Workbook

Sheet 目次
J1: 令和7年10月1日現在（単位：人）
B3: 町丁字別年齢別人口調べを公開します。 | H3: ＊ エクセルご利用の方は下のシート順ですので
H4: 左端のページ移動を操作・確定して表示ください。
B6: Ｐ1. | C6: 秦野市全体 | E6: Ｐ31. | F6: 今 泉 | H6: Ｐ61. | I6: 三 屋 | K6: Ｐ91. | L6: 柳町一丁目
B7: Ｐ2. | C7: 本町地区 | E7: Ｐ32. | F7: 大 秦 町 | H7: Ｐ62. | I7: 大根 ・鶴巻 | K7: Ｐ92. | L7: 柳町二丁目
B8: Ｐ3. | C8: 本町一丁目 | E8: Ｐ33. | F8: 室 町 | H8: Ｐ63. | I8: （大根） | K8: Ｐ93. | L8: 若 松 町
B9: Ｐ4. | C9: 本町二丁目 | E9: Ｐ34. | F9: 尾 尻 | H9: Ｐ64. | I9: 北 矢 名 | K9: Ｐ94. | L9: 萩 が 丘
B10: Ｐ5. | C10: 本町三丁目 | E10: Ｐ35. | F10: 西 大 竹 | H10: Ｐ65. | I10: 南 矢 名 | K10: Ｐ95. | L10: 曲松一丁目
B11: Ｐ6. | C11: 河 原 町 | E11: Ｐ36. | F11: 南が丘一丁目 | H11: Ｐ66. | I11: 下 大 槻 | K11: Ｐ96. | L11: 曲松二丁目
B12: Ｐ7. | C12: 元 町 | E12: Ｐ37. | F12: 南が丘二丁目 | H12: Ｐ67. | I12: 南矢名一丁目 | K12: Ｐ97. | L12: 渋 沢
B13: Ｐ8. | C13: 末 広 町 | E13: Ｐ38. | F13: 南が丘三丁目 | H13: Ｐ68. | I13: 南矢名二丁目 | K13: Ｐ98. | L13: 栃 窪
B14: Ｐ9. | C14: 入 船 町 | E14: Ｐ39. | F14: 南が丘四丁目 | H14: Ｐ69. | I14: 南矢名三丁目 | K14: Ｐ99. | L14: 千 村
B15: Ｐ10. | C15: 曽屋一丁目 | E15: Ｐ40. | F15: 南が丘五丁目 | H15: Ｐ70. | I15: 南矢名四丁目 | K15: Ｐ100. | L15: 渋沢一丁目
B16: Ｐ11. | C16: 曽屋二丁目 | E16: Ｐ41. | F16: 立野台一丁目 | H16: Ｐ71. | I16: 南矢名五丁目 | K16: Ｐ101. | L16: 渋沢二丁目
B17: Ｐ12. | C17: 寿 町 | E17: Ｐ42. | F17: 立野台二丁目 | H17: Ｐ72. | I17: （鶴巻） | K17: Ｐ102. | L17: 渋沢三丁目
B18: Ｐ13. | C18: 栄 町 | E18: Ｐ43. | F18: 立野台三丁目 | H18: Ｐ73. | I18: 鶴 巻 | K18: Ｐ103. | L18: 渋沢上一丁目
B19: Ｐ14. | C19: 文 京 町 | E19: Ｐ44. | F19: 今泉台一丁目 | H19: Ｐ74. | I19: 鶴巻北一丁目 | K19: Ｐ104. | L19: 渋沢上二丁目
B20: Ｐ15. | C20: 幸 町 | E20: Ｐ45. | F20: 今泉台二丁目 | H20: Ｐ75. | I20: 鶴巻北二丁目 | K20: Ｐ105. | L20: 千村一丁目
B21: Ｐ16. | C21: 桜町一丁目 | E21: Ｐ46. | F21: 今泉台三丁目 | H21: Ｐ76. | I21: 鶴巻北三丁目 | K21: Ｐ106. | L21: 千村二丁目
B22: Ｐ17. | C22: 桜町二丁目 | E22: Ｐ47. | F22: 東 地 区 | H22: Ｐ77. | I22: 鶴巻南一丁目 | K22: Ｐ107. | L22: 千村三丁目
B23: Ｐ18. | C23: 水 神 町 | E23: Ｐ48. | F23: 落 合 | H23: Ｐ78. | I23: 鶴巻南二丁目 | K23: Ｐ108. | L23: 千村四丁目
B24: Ｐ19. | C24: ひばりケ丘 | E24: Ｐ49. | F24: 名 古 木 | H24: Ｐ79. | I24: 鶴巻南三丁目 | K24: Ｐ109. | L24: 千村五丁目
B25: Ｐ20. | C25: 富士見町 | E25: Ｐ50. | F25: 寺 山 | H25: Ｐ80. | I25: 鶴巻南四丁目 | K25: Ｐ110. | L25: 上 地 区
B26: Ｐ21. | C26: 曽 屋 | E26: Ｐ51. | F26: 小 蓑 毛 | H26: Ｐ81. | I26: 鶴巻南五丁目 | K26: Ｐ111. | L26: 菖 蒲
B27: Ｐ22. | C27: 上 大 槻 | E27: Ｐ52. | F27: 蓑毛 | H27: Ｐ82. | I27: 西 地 区 | K27: Ｐ112. | L27: 三 廻 部
B28: Ｐ23. | C28: 南 地 区 | E28: Ｐ53. | F28: 東 田 原 | H28: Ｐ83. | I28: 並 木 町 | K28: Ｐ113. | L28: 柳 川
B29: Ｐ24. | C29: 新 町 | E29: Ｐ54. | F29: 西 田 原 | H29: Ｐ84. | I29: 弥 生 町 | K29: Ｐ114. | L29: 八 沢
B30: Ｐ25. | C30: 鈴 張 町 | E30: Ｐ55. | F30: 下 落 合 | H30: Ｐ85. | I30: 春 日 町
B31: Ｐ26. | C31: 緑 町 | E31: Ｐ56. | F31: 北 地 区 | H31: Ｐ86. | I31: 松 原 町
B32: Ｐ27. | C32: 清 水 町 | E32: Ｐ57. | F32: 羽 根 | H32: Ｐ87. | I32: 堀 西
B33: Ｐ28. | C33: 平 沢 | E33: Ｐ58. | F33: 菩 提 | H33: Ｐ88. | I33: 堀 川
B34: Ｐ29. | C34: 上今川町 | E34: Ｐ59. | F34: 横 野 | H34: Ｐ89. | I34: 堀 山 下
B35: Ｐ30. | C35: 今 川 町 | E35: Ｐ60. | F35: 戸 川 | H35: Ｐ90. | I35: 沼代新町

Sheet 秦野市合計
A1: ◆秦野市合計 | H1: 令和7年10月1日現在（単位：人）
A2: 年少人口(0歳～14歳) | B2: 男 | C2: 女 | D2: 計 | E2: 生産年齢人口(15歳～64歳) | F2: 男 | G2: 女 | H2: 計 | I2: 老年人口(65歳以上) | J2: 男 | K2: 女 | L2: 計
A3: 0 歳 | B3: =本町計!B3+南計!B3+東計!B3+北計!B3+大根・鶴巻計!B3+西計!B3+上計!B3 -> 305 | C3: =本町計!C3+南計!C3+東計!C3+北計!C3+大根・鶴巻計!C3+西計!C3+上計!C3 -> 306 | D3: =SUM(B3:C3) -> 611 | E3: 15 | F3: =本町計!F3+南計!F3+東計!F3+北計!F3+大根・鶴巻計!F3+西計!F3+上計!F3 -> 712 | G3: =本町計!G3+南計!G3+東計!G3+北計!G3+大根・鶴巻計!G3+西計!G3+上計!G3 -> 636 | H3: =SUM(F3:G3) -> 1348 | I3: 65 | J3: =本町計!J3+南計!J3+東計!J3+北計!J3+大根・鶴巻計!J3+西計!J3+上計!J3 -> 888 | K3: =本町計!K3+南計!K3+東計!K3+北計!K3+大根・鶴巻計!K3+西計!K3+上計!K3 -> 879 | L3: =SUM(J3:K3) -> 1767
A4: 1 | B4: =本町計!B4+南計!B4+東計!B4+北計!B4+大根・鶴巻計!B4+西計!B4+上計!B4 -> 381 | C4: =本町計!C4+南計!C4+東計!C4+北計!C4+大根・鶴巻計!C4+西計!C4+上計!C4 -> 374 | D4: =SUM(B4:C4) -> 755 | E4: 16 | F4: =本町計!F4+南計!F4+東計!F4+北計!F4+大根・鶴巻計!F4+西計!F4+上計!F4 -> 736 | G4: =本町計!G4+南計!G4+東計!G4+北計!G4+大根・鶴巻計!G4+西計!G4+上計!G4 -> 702 | H4: =SUM(F4:G4) -> 1438 | I4: 66 | J4: =本町計!J4+南計!J4+東計!J4+北計!J4+大根・鶴巻計!J4+西計!J4+上計!J4 -> 986 | K4: =本町計!K4+南計!K4+東計!K4+北計!K4+大根・鶴巻計!K4+西計!K4+上計!K4 -> 962 | L4: =SUM(J4:K4) -> 1948
A5: 2 | B5: =本町計!B5+南計!B5+東計!B5+北計!B5+大根・鶴巻計!B5+西計!B5+上計!B5 -> 378 | C5: =本町計!C5+南計!C5+東計!C5+北計!C5+大根・鶴巻計!C5+西計!C5+上計!C5 -> 348 | D5: 726 | E5: 17 | F5: =本町計!F5+南計!F5+東計!F5+北計!F5+大根・鶴巻計!F5+西計!F5+上計!F5 -> 744 | G5: =本町計!G5+南計!G5+東計!G5+北計!G5+大根・鶴巻計!G5+西計!G5+上計!G5 -> 672 | H5: 1416 | I5: 67 | J5: =本町計!J5+南計!J5+東計!J5+北計!J5+大根・鶴巻計!J5+西計!J5+上計!J5 -> 929 | K5: =本町計!K5+南計!K5+東計!K5+北計!K5+大根・鶴巻計!K5+西計!K5+上計!K5 -> 964 | L5: 1893
A6: 3 | B6: =本町計!B6+南計!B6+東計!B6+北計!B6+大根・鶴巻計!B6+西計!B6+上計!B6 -> 400 | C6: =本町計!C6+南計!C6+東計!C6+北計!C6+大根・鶴巻計!C6+西計!C6+上計!C6 -> 425 | D6: 825 | E6: 18 | F6: =本町計!F6+南計!F6+東計!F6+北計!F6+大根・鶴巻計!F6+西計!F6+上計!F6 -> 779 | G6: =本町計!G6+南計!G6+東計!G6+北計!G6+大根・鶴巻計!G6+西計!G6+上計!G6 -> 735 | H6: 1514 | I6: 68 | J6: =本町計!J6+南計!J6+東計!J6+北計!J6+大根・鶴巻計!J6+西計!J6+上計!J6 -> 867 | K6: =本町計!K6+南計!K6+東計!K6+北計!K6+大根・鶴巻計!K6+西計!K6+上計!K6 -> 895 | L6: 1762
A7: 4 | B7: =本町計!B7+南計!B7+東計!B7+北計!B7+大根・鶴巻計!B7+西計!B7+上計!B7 -> 437 | C7: =本町計!C7+南計!C7+東計!C7+北計!C7+大根・鶴巻計!C7+西計!C7+上計!C7 -> 431 | D7: 868 | E7: 19 | F7: =本町計!F7+南計!F7+東計!F7+北計!F7+大根・鶴巻計!F7+西計!F7+上計!F7 -> 878 | G7: =本町計!G7+南計!G7+東計!G7+北計!G7+大根・鶴巻計!G7+西計!G7+上計!G7 -> 759 | H7: 1637 | I7: 69 | J7: =本町計!J7+南計!J7+東計!J7+北計!J7+大根・鶴巻計!J7+西計!J7+上計!J7 -> 884 | K7: =本町計!K7+南計!K7+東計!K7+北計!K7+大根・鶴巻計!K7+西計!K7+上計!K7 -> 1020 | L7: 1904
A8: 5 | B8: =本町計!B8+南計!B8+東計!B8+北計!B8+大根・鶴巻計!B8+西計!B8+上計!B8 -> 482 | C8: =本町計!C8+南計!C8+東計!C8+北計!C8+大根・鶴巻計!C8+西計!C8+上計!C8 -> 456 | D8: 938 | E8: 20 | F8: =本町計!F8+南計!F8+東計!F8+北計!F8+大根・鶴巻計!F8+西計!F8+上計!F8 -> 921 | G8: =本町計!G8+南計!G8+東計!G8+北計!G8+大根・鶴巻計!G8+西計!G8+上計!G8 -> 803 | H8: 1724 | I8: 70 | J8: =本町計!J8+南計!J8+東計!J8+北計!J8+大根・鶴巻計!J8+西計!J8+上計!J8 -> 1004 | K8: =本町計!K8+南計!K8+東計!K8+北計!K8+大根・鶴巻計!K8+西計!K8+上計!K8 -> 1028 | L8: 2032
A9: 6 | B9: =本町計!B9+南計!B9+東計!B9+北計!B9+大根・鶴巻計!B9+西計!B9+上計!B9 -> 521 | C9: =本町計!C9+南計!C9+東計!C9+北計!C9+大根・鶴巻計!C9+西計!C9+上計!C9 -> 473 | D9: 994 | E9: 21 | F9: =本町計!F9+南計!F9+東計!F9+北計!F9+大根・鶴巻計!F9+西計!F9+上計!F9 -> 962 | G9: =本町計!G9+南計!G9+東計!G9+北計!G9+大根・鶴巻計!G9+西計!G9+上計!G9 -> 848 | H9: 1810 | I9: 71 | J9: =本町計!J9+南計!J9+東計!J9+北計!J9+大根・鶴巻計!J9+西計!J9+上計!J9 -> 949 | K9: =本町計!K9+南計!K9+東計!K9+北計!K9+大根・鶴巻計!K9+西計!K9+上計!K9 -> 1098 | L9: 2047
A10: 7 | B10: =本町計!B10+南計!B10+東計!B10+北計!B10+大根・鶴巻計!B10+西計!B10+上計!B10 -> 494 | C10: =本町計!C10+南計!C10+東計!C10+北計!C10+大根・鶴巻計!C10+西計!C10+上計!C10 -> 455 | D10: 949 | E10: 22 | F10: =本町計!F10+南計!F10+東計!F10+北計!F10+大根・鶴巻計!F10+西計!F10+上計!F10 -> 900 | G10: =本町計!G10+南計!G10+東計!G10+北計!G10+大根・鶴巻計!G10+西計!G10+上計!G10 -> 760 | H10: 1660 | I10: 72 | J10: =本町計!J10+南計!J10+東計!J10+北計!J10+大根・鶴巻計!J10+西計!J10+上計!J10 -> 971 | K10: =本町計!K10+南計!K10+東計!K10+北計!K10+大根・鶴巻計!K10+西計!K10+上計!K10 -> 1128 | L10: 2099
A11: 8 | B11: =本町計!B11+南計!B11+東計!B11+北計!B11+大根・鶴巻計!B11+西計!B11+上計!B11 -> 563 | C11: =本町計!C11+南計!C11+東計!C11+北計!C11+大根・鶴巻計!C11+西計!C11+上計!C11 -> 513 | D11: 1076 | E11: 23 | F11: =本町計!F11+南計!F11+東計!F11+北計!F11+大根・鶴巻計!F11+西計!F11+上計!F11 -> 875 | G11: =本町計!G11+南計!G11+東計!G11+北計!G11+大根・鶴巻計!G11+西計!G11+上計!G11 -> 710 | H11: 1585 | I11: 73 | J11: =本町計!J11+南計!J11+東計!J11+北計!J11+大根・鶴巻計!J11+西計!J11+上計!J11 -> 1167 | K11: =本町計!K11+南計!K11+東計!K11+北計!K11+大根・鶴巻計!K11+西計!K11+上計!K11 -> 1234 | L11: 2401
A12: 9 | B12: =本町計!B12+南計!B12+東計!B12+北計!B12+大根・鶴巻計!B12+西計!B12+上計!B12 -> 596 | C12: =本町計!C12+南計!C12+東計!C12+北計!C12+大根・鶴巻計!C12+西計!C12+上計!C12 -> 538 | D12: 1134 | E12: 24 | F12: =本町計!F12+南計!F12+東計!F12+北計!F12+大根・鶴巻計!F12+西計!F12+上計!F12 -> 878 | G12: =本町計!G12+南計!G12+東計!G12+北計!G12+大根・鶴巻計!G12+西計!G12+上計!G12 -> 736 | H12: 1614 | I12: 74 | J12: =本町計!J12+南計!J12+東計!J12+北計!J12+大根・鶴巻計!J12+西計!J12+上計!J12 -> 1210 | K12: =本町計!K12+南計!K12+東計!K12+北計!K12+大根・鶴巻計!K12+西計!K12+上計!K12 -> 1344 | L12: 2554
A13: 10 | B13: =本町計!B13+南計!B13+東計!B13+北計!B13+大根・鶴巻計!B13+西計!B13+上計!B13 -> 600 | C13: =本町計!C13+南計!C13+東計!C13+北計!C13+大根・鶴巻計!C13+西計!C13+上計!C13 -> 614 | D13: 1214 | E13: 25 | F13: =本町計!F13+南計!F13+東計!F13+北計!F13+大根・鶴巻計!F13+西計!F13+上計!F13 -> 830 | G13: =本町計!G13+南計!G13+東計!G13+北計!G13+大根・鶴巻計!G13+西計!G13+上計!G13 -> 712 | H13: 1542 | I13: 75 | J13: =本町計!J13+南計!J13+東計!J13+北計!J13+大根・鶴巻計!J13+西計!J13+上計!J13 -> 1219 | K13: =本町計!K13+南計!K13+東計!K13+北計!K13+大根・鶴巻計!K13+西計!K13+上計!K13 -> 1467 | L13: 2686
A14: 11 | B14: =本町計!B14+南計!B14+東計!B14+北計!B14+大根・鶴巻計!B14+西計!B14+上計!B14 -> 677 | C14: =本町計!C14+南計!C14+東計!C14+北計!C14+大根・鶴巻計!C14+西計!C14+上計!C14 -> 592 | D14: 1269 | E14: 26 | F14: =本町計!F14+南計!F14+東計!F14+北計!F14+大根・鶴巻計!F14+西計!F14+上計!F14 -> 813 | G14: =本町計!G14+南計!G14+東計!G14+北計!G14+大根・鶴巻計!G14+西計!G14+上計!G14 -> 682 | H14: 1495 | I14: 76 | J14: =本町計!J14+南計!J14+東計!J14+北計!J14+大根・鶴巻計!J14+西計!J14+上計!J14 -> 1378 | K14: =本町計!K14+南計!K14+東計!K14+北計!K14+大根・鶴巻計!K14+西計!K14+上計!K14 -> 1577 | L14: 2955
A15: 12 | B15: =本町計!B15+南計!B15+東計!B15+北計!B15+大根・鶴巻計!B15+西計!B15+上計!B15 -> 671 | C15: =本町計!C15+南計!C15+東計!C15+北計!C15+大根・鶴巻計!C15+西計!C15+上計!C15 -> 611 | D15: 1282 | E15: 27 | F15: =本町計!F15+南計!F15+東計!F15+北計!F15+大根・鶴巻計!F15+西計!F15+上計!F15 -> 797 | G15: =本町計!G15+南計!G15+東計!G15+北計!G15+大根・鶴巻計!G15+西計!G15+上計!G15 -> 684 | H15: 1481 | I15: 77 | J15: =本町計!J15+南計!J15+東計!J15+北計!J15+大根・鶴巻計!J15+西計!J15+上計!J15 -> 1337 | K15: =本町計!K15+南計!K15+東計!K15+北計!K15+大根・鶴巻計!K15+西計!K15+上計!K15 -> 1569 | L15: 2906
A16: 13 | B16: =本町計!B16+南計!B16+東計!B16+北計!B16+大根・鶴巻計!B16+西計!B16+上計!B16 -> 701 | C16: =本町計!C16+南計!C16+東計!C16+北計!C16+大根・鶴巻計!C16+西計!C16+上計!C16 -> 663 | D16: 1364 | E16: 28 | F16: =本町計!F16+南計!F16+東計!F16+北計!F16+大根・鶴巻計!F16+西計!F16+上計!F16 -> 762 | G16: =本町計!G16+南計!G16+東計!G16+北計!G16+大根・鶴巻計!G16+西計!G16+上計!G16 -> 737 | H16: 1499 | I16: 78 | J16: =本町計!J16+南計!J16+東計!J16+北計!J16+大根・鶴巻計!J16+西計!J16+上計!J16 -> 1243 | K16: =本町計!K16+南計!K16+東計!K16+北計!K16+大根・鶴巻計!K16+西計!K16+上計!K16 -> 1390 | L16: 2633
A17: 14 | B17: =本町計!B17+南計!B17+東計!B17+北計!B17+大根・鶴巻計!B17+西計!B17+上計!B17 -> 691 | C17: =本町計!C17+南計!C17+東計!C17+北計!C17+大根・鶴巻計!C17+西計!C17+上計!C17 -> 636 | D17: 1327 | E17: 29 | F17: =本町計!F17+南計!F17+東計!F17+北計!F17+大根・鶴巻計!F17+西計!F17+上計!F17 -> 787 | G17: =本町計!G17+南計!G17+東計!G17+北計!G17+大根・鶴巻計!G17+西計!G17+上計!G17 -> 653 | H17: 1440 | I17: 79 | J17: =本町計!J17+南計!J17+東計!J17+北計!J17+大根・鶴巻計!J17+西計!J17+上計!J17 -> 752 | K17: =本町計!K17+南計!K17+東計!K17+北計!K17+大根・鶴巻計!K17+西計!K17+上計!K17 -> 891 | L17: 1643
A18: 小計 | B18: =SUM(B3:B17) -> 7897 | C18: =SUM(C3:C17) -> 7435 | D18: =SUM(B18:C18) -> 15332 | E18: 30 | F18: =本町計!F18+南計!F18+東計!F18+北計!F18+大根・鶴巻計!F18+西計!F18+上計!F18 -> 764 | G18: =本町計!G18+南計!G18+東計!G18+北計!G18+大根・鶴巻計!G18+西計!G18+上計!G18 -> 647 | H18: 1411 | I18: 80 | J18: =本町計!J18+南計!J18+東計!J18+北計!J18+大根・鶴巻計!J18+西計!J18+上計!J18 -> 797 | K18: =本町計!K18+南計!K18+東計!K18+北計!K18+大根・鶴巻計!K18+西計!K18+上計!K18 -> 906 | L18: 1703
E19: 31 | F19: =本町計!F19+南計!F19+東計!F19+北計!F19+大根・鶴巻計!F19+西計!F19+上計!F19 -> 804 | G19: =本町計!G19+南計!G19+東計!G19+北計!G19+大根・鶴巻計!G19+西計!G19+上計!G19 -> 718 | H19: 1522 | I19: 81 | J19: =本町計!J19+南計!J19+東計!J19+北計!J19+大根・鶴巻計!J19+西計!J19+上計!J19 -> 917 | K19: =本町計!K19+南計!K19+東計!K19+北計!K19+大根・鶴巻計!K19+西計!K19+上計!K19 -> 1068 | L19: 1985
E20: 32 | F20: =本町計!F20+南計!F20+東計!F20+北計!F20+大根・鶴巻計!F20+西計!F20+上計!F20 -> 752 | G20: =本町計!G20+南計!G20+東計!G20+北計!G20+大根・鶴巻計!G20+西計!G20+上計!G20 -> 672 | H20: 1424 | I20: 82 | J20: =本町計!J20+南計!J20+東計!J20+北計!J20+大根・鶴巻計!J20+西計!J20+上計!J20 -> 852 | K20: =本町計!K20+南計!K20+東計!K20+北計!K20+大根・鶴巻計!K20+西計!K20+上計!K20 -> 1030 | L20: 1882
E21: 33 | F21: =本町計!F21+南計!F21+東計!F21+北計!F21+大根・鶴巻計!F21+西計!F21+上計!F21 -> 688 | G21: =本町計!G21+南計!G21+東計!G21+北計!G21+大根・鶴巻計!G21+西計!G21+上計!G21 -> 686 | H21: 1374 | I21: 83 | J21: =本町計!J21+南計!J21+東計!J21+北計!J21+大根・鶴巻計!J21+西計!J21+上計!J21 -> 822 | K21: =本町計!K21+南計!K21+東計!K21+北計!K21+大根・鶴巻計!K21+西計!K21+上計!K21 -> 988 | L21: 1810
E22: 34 | F22: =本町計!F22+南計!F22+東計!F22+北計!F22+大根・鶴巻計!F22+西計!F22+上計!F22 -> 774 | G22: =本町計!G22+南計!G22+東計!G22+北計!G22+大根・鶴巻計!G22+西計!G22+上計!G22 -> 693 | H22: 1467 | I22: 84 | J22: =本町計!J22+南計!J22+東計!J22+北計!J22+大根・鶴巻計!J22+西計!J22+上計!J22 -> 673 | K22: =本町計!K22+南計!K22+東計!K22+北計!K22+大根・鶴巻計!K22+西計!K22+上計!K22 -> 852 | L22: 1525
E23: 35 | F23: =本町計!F23+南計!F23+東計!F23+北計!F23+大根・鶴巻計!F23+西計!F23+上計!F23 -> 726 | G23: =本町計!G23+南計!G23+東計!G23+北計!G23+大根・鶴巻計!G23+西計!G23+上計!G23 -> 662 | H23: 1388 | I23: 85 | J23: =本町計!J23+南計!J23+東計!J23+北計!J23+大根・鶴巻計!J23+西計!J23+上計!J23 -> 579 | K23: =本町計!K23+南計!K23+東計!K23+北計!K23+大根・鶴巻計!K23+西計!K23+上計!K23 -> 737 | L23: 1316
E24: 36 | F24: =本町計!F24+南計!F24+東計!F24+北計!F24+大根・鶴巻計!F24+西計!F24+上計!F24 -> 793 | G24: =本町計!G24+南計!G24+東計!G24+北計!G24+大根・鶴巻計!G24+西計!G24+上計!G24 -> 666 | H24: 1459 | I24: 86 | J24: =本町計!J24+南計!J24+東計!J24+北計!J24+大根・鶴巻計!J24+西計!J24+上計!J24 -> 451 | K24: =本町計!K24+南計!K24+東計!K24+北計!K24+大根・鶴巻計!K24+西計!K24+上計!K24 -> 572 | L24: 1023
E25: 37 | F25: =本町計!F25+南計!F25+東計!F25+北計!F25+大根・鶴巻計!F25+西計!F25+上計!F25 -> 757 | G25: =本町計!G25+南計!G25+東計!G25+北計!G25+大根・鶴巻計!G25+西計!G25+上計!G25 -> 726 | H25: 1483 | I25: 87 | J25: =本町計!J25+南計!J25+東計!J25+北計!J25+大根・鶴巻計!J25+西計!J25+上計!J25 -> 376 | K25: =本町計!K25+南計!K25+東計!K25+北計!K25+大根・鶴巻計!K25+西計!K25+上計!K25 -> 551 | L25: 927
E26: 38 | F26: =本町計!F26+南計!F26+東計!F26+北計!F26+大根・鶴巻計!F26+西計!F26+上計!F26 -> 814 | G26: =本町計!G26+南計!G26+東計!G26+北計!G26+大根・鶴巻計!G26+西計!G26+上計!G26 -> 719 | H26: 1533 | I26: 88 | J26: =本町計!J26+南計!J26+東計!J26+北計!J26+大根・鶴巻計!J26+西計!J26+上計!J26 -> 334 | K26: =本町計!K26+南計!K26+東計!K26+北計!K26+大根・鶴巻計!K26+西計!K26+上計!K26 -> 565 | L26: 899
E27: 39 | F27: =本町計!F27+南計!F27+東計!F27+北計!F27+大根・鶴巻計!F27+西計!F27+上計!F27 -> 875 | G27: =本町計!G27+南計!G27+東計!G27+北計!G27+大根・鶴巻計!G27+西計!G27+上計!G27 -> 719 | H27: 1594 | I27: 89 | J27: =本町計!J27+南計!J27+東計!J27+北計!J27+大根・鶴巻計!J27+西計!J27+上計!J27 -> 279 | K27: =本町計!K27+南計!K27+東計!K27+北計!K27+大根・鶴巻計!K27+西計!K27+上計!K27 -> 442 | L27: 721
E28: 40 | F28: =本町計!F28+南計!F28+東計!F28+北計!F28+大根・鶴巻計!F28+西計!F28+上計!F28 -> 870 | G28: =本町計!G28+南計!G28+東計!G28+北計!G28+大根・鶴巻計!G28+西計!G28+上計!G28 -> 827 | H28: 1697 | I28: 90 | J28: =本町計!J28+南計!J28+東計!J28+北計!J28+大根・鶴巻計!J28+西計!J28+上計!J28 -> 223 | K28: =本町計!K28+南計!K28+東計!K28+北計!K28+大根・鶴巻計!K28+西計!K28+上計!K28 -> 406 | L28: 629
E29: 41 | F29: =本町計!F29+南計!F29+東計!F29+北計!F29+大根・鶴巻計!F29+西計!F29+上計!F29 -> 917 | G29: =本町計!G29+南計!G29+東計!G29+北計!G29+大根・鶴巻計!G29+西計!G29+上計!G29 -> 852 | H29: 1769 | I29: 91 | J29: =本町計!J29+南計!J29+東計!J29+北計!J29+大根・鶴巻計!J29+西計!J29+上計!J29 -> 183 | K29: =本町計!K29+南計!K29+東計!K29+北計!K29+大根・鶴巻計!K29+西計!K29+上計!K29 -> 355 | L29: 538
E30: 42 | F30: =本町計!F30+南計!F30+東計!F30+北計!F30+大根・鶴巻計!F30+西計!F30+上計!F30 -> 977 | G30: =本町計!G30+南計!G30+東計!G30+北計!G30+大根・鶴巻計!G30+西計!G30+上計!G30 -> 878 | H30: 1855 | I30: 92 | J30: =本町計!J30+南計!J30+東計!J30+北計!J30+大根・鶴巻計!J30+西計!J30+上計!J30 -> 125 | K30: =本町計!K30+南計!K30+東計!K30+北計!K30+大根・鶴巻計!K30+西計!K30+上計!K30 -> 274 | L30: 399
E31: 43 | F31: =本町計!F31+南計!F31+東計!F31+北計!F31+大根・鶴巻計!F31+西計!F31+上計!F31 -> 1000 | G31: =本町計!G31+南計!G31+東計!G31+北計!G31+大根・鶴巻計!G31+西計!G31+上計!G31 -> 946 | H31: 1946 | I31: 93 | J31: =本町計!J31+南計!J31+東計!J31+北計!J31+大根・鶴巻計!J31+西計!J31+上計!J31 -> 97 | K31: =本町計!K31+南計!K31+東計!K31+北計!K31+大根・鶴巻計!K31+西計!K31+上計!K31 -> 268 | L31: 365
E32: 44 | F32: =本町計!F32+南計!F32+東計!F32+北計!F32+大根・鶴巻計!F32+西計!F32+上計!F32 -> 1066 | G32: =本町計!G32+南計!G32+東計!G32+北計!G32+大根・鶴巻計!G32+西計!G32+上計!G32 -> 930 | H32: 1996 | I32: 94 | J32: =本町計!J32+南計!J32+東計!J32+北計!J32+大根・鶴巻計!J32+西計!J32+上計!J32 -> 78 | K32: =本町計!K32+南計!K32+東計!K32+北計!K32+大根・鶴巻計!K32+西計!K32+上計!K32 -> 204 | L32: 282
E33: 45 | F33: =本町計!F33+南計!F33+東計!F33+北計!F33+大根・鶴巻計!F33+西計!F33+上計!F33 -> 1033 | G33: =本町計!G33+南計!G33+東計!G33+北計!G33+大根・鶴巻計!G33+西計!G33+上計!G33 -> 951 | H33: 1984 | I33: 95 | J33: =本町計!J33+南計!J33+東計!J33+北計!J33+大根・鶴巻計!J33+西計!J33+上計!J33 -> 48 | K33: =本町計!K33+南計!K33+東計!K33+北計!K33+大根・鶴巻計!K33+西計!K33+上計!K33 -> 158 | L33: 206
E34: 46 | F34: =本町計!F34+南計!F34+東計!F34+北計!F34+大根・鶴巻計!F34+西計!F34+上計!F34 -> 1125 | G34: =本町計!G34+南計!G34+東計!G34+北計!G34+大根・鶴巻計!G34+西計!G34+上計!G34 -> 1014 | H34: 2139 | I34: 96 | J34: =本町計!J34+南計!J34+東計!J34+北計!J34+大根・鶴巻計!J34+西計!J34+上計!J34 -> 34 | K34: =本町計!K34+南計!K34+東計!K34+北計!K34+大根・鶴巻計!K34+西計!K34+上計!K34 -> 134 | L34: 168
E35: 47 | F35: =本町計!F35+南計!F35+東計!F35+北計!F35+大根・鶴巻計!F35+西計!F35+上計!F35 -> 1145 | G35: =本町計!G35+南計!G35+東計!G35+北計!G35+大根・鶴巻計!G35+西計!G35+上計!G35 -> 1083 | H35: 2228 | I35: 97 | J35: =本町計!J35+南計!J35+東計!J35+北計!J35+大根・鶴巻計!J35+西計!J35+上計!J35 -> 14 | K35: =本町計!K35+南計!K35+東計!K35+北計!K35+大根・鶴巻計!K35+西計!K35+上計!K35 -> 101 | L35: 115
E36: 48 | F36: =本町計!F36+南計!F36+東計!F36+北計!F36+大根・鶴巻計!F36+西計!F36+上計!F36 -> 1185 | G36: =本町計!G36+南計!G36+東計!G36+北計!G36+大根・鶴巻計!G36+西計!G36+上計!G36 -> 1071 | H36: 2256 | I36: 98 | J36: =本町計!J36+南計!J36+東計!J36+北計!J36+大根・鶴巻計!J36+西計!J36+上計!J36 -> 12 | K36: =本町計!K36+南計!K36+東計!K36+北計!K36+大根・鶴巻計!K36+西計!K36+上計!K36 -> 60 | L36: 72
E37: 49 | F37: =本町計!F37+南計!F37+東計!F37+北計!F37+大根・鶴巻計!F37+西計!F37+上計!F37 -> 1221 | G37: =本町計!G37+南計!G37+東計!G37+北計!G37+大根・鶴巻計!G37+西計!G37+上計!G37 -> 1133 | H37: 2354 | I37: 99 | J37: =本町計!J37+南計!J37+東計!J37+北計!J37+大根・鶴巻計!J37+西計!J37+上計!J37 -> 10 | K37: =本町計!K37+南計!K37+東計!K37+北計!K37+大根・鶴巻計!K37+西計!K37+上計!K37 -> 47 | L37: 57
E38: 50 | F38: =本町計!F38+南計!F38+東計!F38+北計!F38+大根・鶴巻計!F38+西計!F38+上計!F38 -> 1271 | G38: =本町計!G38+南計!G38+東計!G38+北計!G38+大根・鶴巻計!G38+西計!G38+上計!G38 -> 1167 | H38: 2438 | I38: 100 | J38: =本町計!J38+南計!J38+東計!J38+北計!J38+大根・鶴巻計!J38+西計!J38+上計!J38 -> 6 | K38: =本町計!K38+南計!K38+東計!K38+北計!K38+大根・鶴巻計!K38+西計!K38+上計!K38 -> 33 | L38: 39
E39: 51 | F39: =本町計!F39+南計!F39+東計!F39+北計!F39+大根・鶴巻計!F39+西計!F39+上計!F39 -> 1343 | G39: =本町計!G39+南計!G39+東計!G39+北計!G39+大根・鶴巻計!G39+西計!G39+上計!G39 -> 1271 | H39: 2614 | I39: 101 | J39: =本町計!J39+南計!J39+東計!J39+北計!J39+大根・鶴巻計!J39+西計!J39+上計!J39 -> 3 | K39: =本町計!K39+南計!K39+東計!K39+北計!K39+大根・鶴巻計!K39+西計!K39+上計!K39 -> 16 | L39: 19
E40: 52 | F40: =本町計!F40+南計!F40+東計!F40+北計!F40+大根・鶴巻計!F40+西計!F40+上計!F40 -> 1368 | G40: =本町計!G40+南計!G40+東計!G40+北計!G40+大根・鶴巻計!G40+西計!G40+上計!G40 -> 1305 | H40: 2673 | I40: 102 | J40: =本町計!J40+南計!J40+東計!J40+北計!J40+大根・鶴巻計!J40+西計!J40+上計!J40 -> 2 | K40: =本町計!K40+南計!K40+東計!K40+北計!K40+大根・鶴巻計!K40+西計!K40+上計!K40 -> 9 | L40: 11
E41: 53 | F41: =本町計!F41+南計!F41+東計!F41+北計!F41+大根・鶴巻計!F41+西計!F41+上計!F41 -> 1386 | G41: =本町計!G41+南計!G41+東計!G41+北計!G41+大根・鶴巻計!G41+西計!G41+上計!G41 -> 1250 | H41: 2636 | I41: 103 | J41: =本町計!J41+南計!J41+東計!J41+北計!J41+大根・鶴巻計!J41+西計!J41+上計!J41 -> 2 | K41: =本町計!K41+南計!K41+東計!K41+北計!K41+大根・鶴巻計!K41+西計!K41+上計!K41 -> 16 | L41: 18
E42: 54 | F42: =本町計!F42+南計!F42+東計!F42+北計!F42+大根・鶴巻計!F42+西計!F42+上計!F42 -> 1325 | G42: =本町計!G42+南計!G42+東計!G42+北計!G42+大根・鶴巻計!G42+西計!G42+上計!G42 -> 1199 | H42: 2524 | I42: 104 | J42: =本町計!J42+南計!J42+東計!J42+北計!J42+大根・鶴巻計!J42+西計!J42+上計!J42 -> 1 | K42: =本町計!K42+南計!K42+東計!K42+北計!K42+大根・鶴巻計!K42+西計!K42+上計!K42 -> 6 | L42: 7
E43: 55 | F43: =本町計!F43+南計!F43+東計!F43+北計!F43+大根・鶴巻計!F43+西計!F43+上計!F43 -> 1327 | G43: =本町計!G43+南計!G43+東計!G43+北計!G43+大根・鶴巻計!G43+西計!G43+上計!G43 -> 1156 | H43: 2483 | I43: 105 | J43: =本町計!J43+南計!J43+東計!J43+北計!J43+大根・鶴巻計!J43+西計!J43+上計!J43 -> 0 | K43: =本町計!K43+南計!K43+東計!K43+北計!K43+大根・鶴巻計!K43+西計!K43+上計!K43 -> 2 | L43: 2
E44: 56 | F44: =本町計!F44+南計!F44+東計!F44+北計!F44+大根・鶴巻計!F44+西計!F44+上計!F44 -> 1313 | G44: =本町計!G44+南計!G44+東計!G44+北計!G44+大根・鶴巻計!G44+西計!G44+上計!G44 -> 1089 | H44: 2402 | I44: 106 | J44: =本町計!J44+南計!J44+東計!J44+北計!J44+大根・鶴巻計!J44+西計!J44+上計!J44 -> 0 | K44: =本町計!K44+南計!K44+東計!K44+北計!K44+大根・鶴巻計!K44+西計!K44+上計!K44 -> 0 | L44: 0
E45: 57 | F45: =本町計!F45+南計!F45+東計!F45+北計!F45+大根・鶴巻計!F45+西計!F45+上計!F45 -> 1268 | G45: =本町計!G45+南計!G45+東計!G45+北計!G45+大根・鶴巻計!G45+西計!G45+上計!G45 -> 1109 | H45: 2377 | I45: 107 | J45: =本町計!J45+南計!J45+東計!J45+北計!J45+大根・鶴巻計!J45+西計!J45+上計!J45 -> 0 | K45: =本町計!K45+南計!K45+東計!K45+北計!K45+大根・鶴巻計!K45+西計!K45+上計!K45 -> 1 | L45: 1
E46: 58 | F46: =本町計!F46+南計!F46+東計!F46+北計!F46+大根・鶴巻計!F46+西計!F46+上計!F46 -> 1251 | G46: =本町計!G46+南計!G46+東計!G46+北計!G46+大根・鶴巻計!G46+西計!G46+上計!G46 -> 1136 | H46: 2387 | I46: 108 | J46: =本町計!J46+南計!J46+東計!J46+北計!J46+大根・鶴巻計!J46+西計!J46+上計!J46 -> 0 | K46: =本町計!K46+南計!K46+東計!K46+北計!K46+大根・鶴巻計!K46+西計!K46+上計!K46 -> 0 | L46: 0
E47: 59 | F47: =本町計!F47+南計!F47+東計!F47+北計!F47+大根・鶴巻計!F47+西計!F47+上計!F47 -> 955 | G47: =本町計!G47+南計!G47+東計!G47+北計!G47+大根・鶴巻計!G47+西計!G47+上計!G47 -> 842 | H47: 1797 | I47: 小計 | J47: =SUM(J3:J46) -> 22702 | K47: =SUM(K3:K46) -> 27247 | L47: =SUM(J47:K47) -> 49949
E48: 60 | F48: =本町計!F48+南計!F48+東計!F48+北計!F48+大根・鶴巻計!F48+西計!F48+上計!F48 -> 1161 | G48: =本町計!G48+南計!G48+東計!G48+北計!G48+大根・鶴巻計!G48+西計!G48+上計!G48 -> 1147 | H48: 2308
E49: 61 | F49: =本町計!F49+南計!F49+東計!F49+北計!F49+大根・鶴巻計!F49+西計!F49+上計!F49 -> 1132 | G49: =本町計!G49+南計!G49+東計!G49+北計!G49+大根・鶴巻計!G49+西計!G49+上計!G49 -> 1044 | H49: 2176 | J49: 秦野市合計
E50: 62 | F50: =本町計!F50+南計!F50+東計!F50+北計!F50+大根・鶴巻計!F50+西計!F50+上計!F50 -> 1062 | G50: =本町計!G50+南計!G50+東計!G50+北計!G50+大根・鶴巻計!G50+西計!G50+上計!G50 -> 965 | H50: 2027 | J50: 男 | K50: 女 | L50: 計
E51: 63 | F51: =本町計!F51+南計!F51+東計!F51+北計!F51+大根・鶴巻計!F51+西計!F51+上計!F51 -> 960 | G51: =本町計!G51+南計!G51+東計!G51+北計!G51+大根・鶴巻計!G51+西計!G51+上計!G51 -> 904 | H51: 1864 | J51: =SUM(B18,F53,J47) -> 79325 | K51: =SUM(C18,G53,K47) -> 78657 | L51: =SUM(J51:K51) -> 157982
E52: 64 | F52: =本町計!F52+南計!F52+東計!F52+北計!F52+大根・鶴巻計!F52+西計!F52+上計!F52 -> 944 | G52: =本町計!G52+南計!G52+東計!G52+北計!G52+大根・鶴巻計!G52+西計!G52+上計!G52 -> 969 | H52: 1913
E53: 小計 | F53: =SUM(F3:F52) -> 48726 | G53: =SUM(G3:G52) -> 43975 | H53: =SUM(F53:G53) -> 92701
F56: -1-

Sheet 本町計
A1: ◆本町地区 | H1: =秦野市合計!H1 -> 令和7年10月1日現在（単位：人）
A2: 年少人口(0歳～14歳) | B2: 男 | C2: 女 | D2: 計 | E2: 生産年齢人口(15歳～64歳) | F2: 男 | G2: 女 | H2: 計 | I2: 老年人口(65歳以上) | J2: 男 | K2: 女 | L2: 計
A3: 0 歳 | B3: =本町一丁目!B3+本町二丁目!B3+本町三丁目!B3+河原町!B3+元町!B3+末広町!B3+入船町!B3+曽屋一丁目!B3+曽屋二丁目!B3+寿町!B3+栄町!B3+文京町!B3+幸町!B3+桜町一丁目!B3+桜町二丁目!B3+水神町!B3+ひばりヶ丘!B3+富士見町!B3+曽屋!B3+上大槻!B3 -> 52 | C3: =本町一丁目!C3+本町二丁目!C3+本町三丁目!C3+河原町!C3+元町!C3+末広町!C3+入船町!C3+曽屋一丁目!C3+曽屋二丁目!C3+寿町!C3+栄町!C3+文京町!C3+幸町!C3+桜町一丁目!C3+桜町二丁目!C3+水神町!C3+ひばりヶ丘!C3+富士見町!C3+曽屋!C3+上大槻!C3 -> 24 | D3: =本町一丁目!D3+本町二丁目!D3+本町三丁目!D3+河原町!D3+元町!D3+末広町!D3+入船町!D3+曽屋一丁目!D3+曽屋二丁目!D3+寿町!D3+栄町!D3+文京町!D3+幸町!D3+桜町一丁目!D3+桜町二丁目!D3+水神町!D3+ひばりヶ丘!D3+富士見町!D3+曽屋!D3+上大槻!D3 -> 76 | E3: 15 | F3: =本町一丁目!F3+本町二丁目!F3+本町三丁目!F3+河原町!F3+元町!F3+末広町!F3+入船町!F3+曽屋一丁目!F3+曽屋二丁目!F3+寿町!F3+栄町!F3+文京町!F3+幸町!F3+桜町一丁目!F3+桜町二丁目!F3+水神町!F3+ひばりヶ丘!F3+富士見町!F3+曽屋!F3+上大槻!F3 -> 111 | G3: =本町一丁目!G3+本町二丁目!G3+本町三丁目!G3+河原町!G3+元町!G3+末広町!G3+入船町!G3+曽屋一丁目!G3+曽屋二丁目!G3+寿町!G3+栄町!G3+文京町!G3+幸町!G3+桜町一丁目!G3+桜町二丁目!G3+水神町!G3+ひばりヶ丘!G3+富士見町!G3+曽屋!G3+上大槻!G3 -> 83 | H3: =本町一丁目!H3+本町二丁目!H3+本町三丁目!H3+河原町!H3+元町!H3+末広町!H3+入船町!H3+曽屋一丁目!H3+曽屋二丁目!H3+寿町!H3+栄町!H3+文京町!H3+幸町!H3+桜町一丁目!H3+桜町二丁目!H3+水神町!H3+ひばりヶ丘!H3+富士見町!H3+曽屋!H3+上大槻!H3 -> 194 | I3: 65 | J3: =本町一丁目!J3+本町二丁目!J3+本町三丁目!J3+河原町!J3+元町!J3+末広町!J3+入船町!J3+曽屋一丁目!J3+曽屋二丁目!J3+寿町!J3+栄町!J3+文京町!J3+幸町!J3+桜町一丁目!J3+桜町二丁目!J3+水神町!J3+ひばりヶ丘!J3+富士見町!J3+曽屋!J3+上大槻!J3 -> 122 | K3: =本町一丁目!K3+本町二丁目!K3+本町三丁目!K3+河原町!K3+元町!K3+末広町!K3+入船町!K3+曽屋一丁目!K3+曽屋二丁目!K3+寿町!K3+栄町!K3+文京町!K3+幸町!K3+桜町一丁目!K3+桜町二丁目!K3+水神町!K3+ひばりヶ丘!K3+富士見町!K3+曽屋!K3+上大槻!K3 -> 116 | L3: =本町一丁目!L3+本町二丁目!L3+本町三丁目!L3+河原町!L3+元町!L3+末広町!L3+入船町!L3+曽屋一丁目!L3+曽屋二丁目!L3+寿町!L3+栄町!L3+文京町!L3+幸町!L3+桜町一丁目!L3+桜町二丁目!L3+水神町!L3+ひばりヶ丘!L3+富士見町!L3+曽屋!L3+上大槻!L3 -> 238
A4: 1 | B4: =本町一丁目!B4+本町二丁目!B4+本町三丁目!B4+河原町!B4+元町!B4+末広町!B4+入船町!B4+曽屋一丁目!B4+曽屋二丁目!B4+寿町!B4+栄町!B4+文京町!B4+幸町!B4+桜町一丁目!B4+桜町二丁目!B4+水神町!B4+ひばりヶ丘!B4+富士見町!B4+曽屋!B4+上大槻!B4 -> 51 | C4: =本町一丁目!C4+本町二丁目!C4+本町三丁目!C4+河原町!C4+元町!C4+末広町!C4+入船町!C4+曽屋一丁目!C4+曽屋二丁目!C4+寿町!C4+栄町!C4+文京町!C4+幸町!C4+桜町一丁目!C4+桜町二丁目!C4+水神町!C4+ひばりヶ丘!C4+富士見町!C4+曽屋!C4+上大槻!C4 -> 45 | D4: =本町一丁目!D4+本町二丁目!D4+本町三丁目!D4+河原町!D4+元町!D4+末広町!D4+入船町!D4+曽屋一丁目!D4+曽屋二丁目!D4+寿町!D4+栄町!D4+文京町!D4+幸町!D4+桜町一丁目!D4+桜町二丁目!D4+水神町!D4+ひばりヶ丘!D4+富士見町!D4+曽屋!D4+上大槻!D4 -> 96 | E4: 16 | F4: =本町一丁目!F4+本町二丁目!F4+本町三丁目!F4+河原町!F4+元町!F4+末広町!F4+入船町!F4+曽屋一丁目!F4+曽屋二丁目!F4+寿町!F4+栄町!F4+文京町!F4+幸町!F4+桜町一丁目!F4+桜町二丁目!F4+水神町!F4+ひばりヶ丘!F4+富士見町!F4+曽屋!F4+上大槻!F4 -> 95 | G4: =本町一丁目!G4+本町二丁目!G4+本町三丁目!G4+河原町!G4+元町!G4+末広町!G4+入船町!G4+曽屋一丁目!G4+曽屋二丁目!G4+寿町!G4+栄町!G4+文京町!G4+幸町!G4+桜町一丁目!G4+桜町二丁目!G4+水神町!G4+ひばりヶ丘!G4+富士見町!G4+曽屋!G4+上大槻!G4 -> 105 | H4: =本町一丁目!H4+本町二丁目!H4+本町三丁目!H4+河原町!H4+元町!H4+末広町!H4+入船町!H4+曽屋一丁目!H4+曽屋二丁目!H4+寿町!H4+栄町!H4+文京町!H4+幸町!H4+桜町一丁目!H4+桜町二丁目!H4+水神町!H4+ひばりヶ丘!H4+富士見町!H4+曽屋!H4+上大槻!H4 -> 200 | I4: 66 | J4: =本町一丁目!J4+本町二丁目!J4+本町三丁目!J4+河原町!J4+元町!J4+末広町!J4+入船町!J4+曽屋一丁目!J4+曽屋二丁目!J4+寿町!J4+栄町!J4+文京町!J4+幸町!J4+桜町一丁目!J4+桜町二丁目!J4+水神町!J4+ひばりヶ丘!J4+富士見町!J4+曽屋!J4+上大槻!J4 -> 137 | K4: =本町一丁目!K4+本町二丁目!K4+本町三丁目!K4+河原町!K4+元町!K4+末広町!K4+入船町!K4+曽屋一丁目!K4+曽屋二丁目!K4+寿町!K4+栄町!K4+文京町!K4+幸町!K4+桜町一丁目!K4+桜町二丁目!K4+水神町!K4+ひばりヶ丘!K4+富士見町!K4+曽屋!K4+上大槻!K4 -> 126 | L4: =本町一丁目!L4+本町二丁目!L4+本町三丁目!L4+河原町!L4+元町!L4+末広町!L4+入船町!L4+曽屋一丁目!L4+曽屋二丁目!L4+寿町!L4+栄町!L4+文京町!L4+幸町!L4+桜町一丁目!L4+桜町二丁目!L4+水神町!L4+ひばりヶ丘!L4+富士見町!L4+曽屋!L4+上大槻!L4 -> 263
A5: 2 | B5: =本町一丁目!B5+本町二丁目!B5+本町三丁目!B5+河原町!B5+元町!B5+末広町!B5+入船町!B5+曽屋一丁目!B5+曽屋二丁目!B5+寿町!B5+栄町!B5+文京町!B5+幸町!B5+桜町一丁目!B5+桜町二丁目!B5+水神町!B5+ひばりヶ丘!B5+富士見町!B5+曽屋!B5+上大槻!B5 -> 60 | C5: =本町一丁目!C5+本町二丁目!C5+本町三丁目!C5+河原町!C5+元町!C5+末広町!C5+入船町!C5+曽屋一丁目!C5+曽屋二丁目!C5+寿町!C5+栄町!C5+文京町!C5+幸町!C5+桜町一丁目!C5+桜町二丁目!C5+水神町!C5+ひばりヶ丘!C5+富士見町!C5+曽屋!C5+上大槻!C5 -> 54 | D5: =本町一丁目!D5+本町二丁目!D5+本町三丁目!D5+河原町!D5+元町!D5+末広町!D5+入船町!D5+曽屋一丁目!D5+曽屋二丁目!D5+寿町!D5+栄町!D5+文京町!D5+幸町!D5+桜町一丁目!D5+桜町二丁目!D5+水神町!D5+ひばりヶ丘!D5+富士見町!D5+曽屋!D5+上大槻!D5 -> 114 | E5: 17 | F5: =本町一丁目!F5+本町二丁目!F5+本町三丁目!F5+河原町!F5+元町!F5+末広町!F5+入船町!F5+曽屋一丁目!F5+曽屋二丁目!F5+寿町!F5+栄町!F5+文京町!F5+幸町!F5+桜町一丁目!F5+桜町二丁目!F5+水神町!F5+ひばりヶ丘!F5+富士見町!F5+曽屋!F5+上大槻!F5 -> 109 | G5: =本町一丁目!G5+本町二丁目!G5+本町三丁目!G5+河原町!G5+元町!G5+末広町!G5+入船町!G5+曽屋一丁目!G5+曽屋二丁目!G5+寿町!G5+栄町!G5+文京町!G5+幸町!G5+桜町一丁目!G5+桜町二丁目!G5+水神町!G5+ひばりヶ丘!G5+富士見町!G5+曽屋!G5+上大槻!G5 -> 94 | H5: =本町一丁目!H5+本町二丁目!H5+本町三丁目!H5+河原町!H5+元町!H5+末広町!H5+入船町!H5+曽屋一丁目!H5+曽屋二丁目!H5+寿町!H5+栄町!H5+文京町!H5+幸町!H5+桜町一丁目!H5+桜町二丁目!H5+水神町!H5+ひばりヶ丘!H5+富士見町!H5+曽屋!H5+上大槻!H5 -> 203 | I5: 67 | J5: =本町一丁目!J5+本町二丁目!J5+本町三丁目!J5+河原町!J5+元町!J5+末広町!J5+入船町!J5+曽屋一丁目!J5+曽屋二丁目!J5+寿町!J5+栄町!J5+文京町!J5+幸町!J5+桜町一丁目!J5+桜町二丁目!J5+水神町!J5+ひばりヶ丘!J5+富士見町!J5+曽屋!J5+上大槻!J5 -> 125 | K5: =本町一丁目!K5+本町二丁目!K5+本町三丁目!K5+河原町!K5+元町!K5+末広町!K5+入船町!K5+曽屋一丁目!K5+曽屋二丁目!K5+寿町!K5+栄町!K5+文京町!K5+幸町!K5+桜町一丁目!K5+桜町二丁目!K5+水神町!K5+ひばりヶ丘!K5+富士見町!K5+曽屋!K5+上大槻!K5 -> 129 | L5: =本町一丁目!L5+本町二丁目!L5+本町三丁目!L5+河原町!L5+元町!L5+末広町!L5+入船町!L5+曽屋一丁目!L5+曽屋二丁目!L5+寿町!L5+栄町!L5+文京町!L5+幸町!L5+桜町一丁目!L5+桜町二丁目!L5+水神町!L5+ひばりヶ丘!L5+富士見町!L5+曽屋!L5+上大槻!L5 -> 254
A6: 3 | B6: =本町一丁目!B6+本町二丁目!B6+本町三丁目!B6+河原町!B6+元町!B6+末広町!B6+入船町!B6+曽屋一丁目!B6+曽屋二丁目!B6+寿町!B6+栄町!B6+文京町!B6+幸町!B6+桜町一丁目!B6+桜町二丁目!B6+水神町!B6+ひばりヶ丘!B6+富士見町!B6+曽屋!B6+上大槻!B6 -> 54 | C6: =本町一丁目!C6+本町二丁目!C6+本町三丁目!C6+河原町!C6+元町!C6+末広町!C6+入船町!C6+曽屋一丁目!C6+曽屋二丁目!C6+寿町!C6+栄町!C6+文京町!C6+幸町!C6+桜町一丁目!C6+桜町二丁目!C6+水神町!C6+ひばりヶ丘!C6+富士見町!C6+曽屋!C6+上大槻!C6 -> 55 | D6: =本町一丁目!D6+本町二丁目!D6+本町三丁目!D6+河原町!D6+元町!D6+末広町!D6+入船町!D6+曽屋一丁目!D6+曽屋二丁目!D6+寿町!D6+栄町!D6+文京町!D6+幸町!D6+桜町一丁目!D6+桜町二丁目!D6+水神町!D6+ひばりヶ丘!D6+富士見町!D6+曽屋!D6+上大槻!D6 -> 109 | E6: 18 | F6: =本町一丁目!F6+本町二丁目!F6+本町三丁目!F6+河原町!F6+元町!F6+末広町!F6+入船町!F6+曽屋一丁目!F6+曽屋二丁目!F6+寿町!F6+栄町!F6+文京町!F6+幸町!F6+桜町一丁目!F6+桜町二丁目!F6+水神町!F6+ひばりヶ丘!F6+富士見町!F6+曽屋!F6+上大槻!F6 -> 105 | G6: =本町一丁目!G6+本町二丁目!G6+本町三丁目!G6+河原町!G6+元町!G6+末広町!G6+入船町!G6+曽屋一丁目!G6+曽屋二丁目!G6+寿町!G6+栄町!G6+文京町!G6+幸町!G6+桜町一丁目!G6+桜町二丁目!G6+水神町!G6+ひばりヶ丘!G6+富士見町!G6+曽屋!G6+上大槻!G6 -> 107 | H6: =本町一丁目!H6+本町二丁目!H6+本町三丁目!H6+河原町!H6+元町!H6+末広町!H6+入船町!H6+曽屋一丁目!H6+曽屋二丁目!H6+寿町!H6+栄町!H6+文京町!H6+幸町!H6+桜町一丁目!H6+桜町二丁目!H6+水神町!H6+ひばりヶ丘!H6+富士見町!H6+曽屋!H6+上大槻!H6 -> 212 | I6: 68 | J6: =本町一丁目!J6+本町二丁目!J6+本町三丁目!J6+河原町!J6+元町!J6+末広町!J6+入船町!J6+曽屋一丁目!J6+曽屋二丁目!J6+寿町!J6+栄町!J6+文京町!J6+幸町!J6+桜町一丁目!J6+桜町二丁目!J6+水神町!J6+ひばりヶ丘!J6+富士見町!J6+曽屋!J6+上大槻!J6 -> 130 | K6: =本町一丁目!K6+本町二丁目!K6+本町三丁目!K6+河原町!K6+元町!K6+末広町!K6+入船町!K6+曽屋一丁目!K6+曽屋二丁目!K6+寿町!K6+栄町!K6+文京町!K6+幸町!K6+桜町一丁目!K6+桜町二丁目!K6+水神町!K6+ひばりヶ丘!K6+富士見町!K6+曽屋!K6+上大槻!K6 -> 126 | L6: =本町一丁目!L6+本町二丁目!L6+本町三丁目!L6+河原町!L6+元町!L6+末広町!L6+入船町!L6+曽屋一丁目!L6+曽屋二丁目!L6+寿町!L6+栄町!L6+文京町!L6+幸町!L6+桜町一丁目!L6+桜町二丁目!L6+水神町!L6+ひばりヶ丘!L6+富士見町!L6+曽屋!L6+上大槻!L6 -> 256
A7: 4 | B7: =本町一丁目!B7+本町二丁目!B7+本町三丁目!B7+河原町!B7+元町!B7+末広町!B7+入船町!B7+曽屋一丁目!B7+曽屋二丁目!B7+寿町!B7+栄町!B7+文京町!B7+幸町!B7+桜町一丁目!B7+桜町二丁目!B7+水神町!B7+ひばりヶ丘!B7+富士見町!B7+曽屋!B7+上大槻!B7 -> 56 | C7: =本町一丁目!C7+本町二丁目!C7+本町三丁目!C7+河原町!C7+元町!C7+末広町!C7+入船町!C7+曽屋一丁目!C7+曽屋二丁目!C7+寿町!C7+栄町!C7+文京町!C7+幸町!C7+桜町一丁目!C7+桜町二丁目!C7+水神町!C7+ひばりヶ丘!C7+富士見町!C7+曽屋!C7+上大槻!C7 -> 56 | D7: =本町一丁目!D7+本町二丁目!D7+本町三丁目!D7+河原町!D7+元町!D7+末広町!D7+入船町!D7+曽屋一丁目!D7+曽屋二丁目!D7+寿町!D7+栄町!D7+文京町!D7+幸町!D7+桜町一丁目!D7+桜町二丁目!D7+水神町!D7+ひばりヶ丘!D7+富士見町!D7+曽屋!D7+上大槻!D7 -> 112 | E7: 19 | F7: =本町一丁目!F7+本町二丁目!F7+本町三丁目!F7+河原町!F7+元町!F7+末広町!F7+入船町!F7+曽屋一丁目!F7+曽屋二丁目!F7+寿町!F7+栄町!F7+文京町!F7+幸町!F7+桜町一丁目!F7+桜町二丁目!F7+水神町!F7+ひばりヶ丘!F7+富士見町!F7+曽屋!F7+上大槻!F7 -> 102 | G7: =本町一丁目!G7+本町二丁目!G7+本町三丁目!G7+河原町!G7+元町!G7+末広町!G7+入船町!G7+曽屋一丁目!G7+曽屋二丁目!G7+寿町!G7+栄町!G7+文京町!G7+幸町!G7+桜町一丁目!G7+桜町二丁目!G7+水神町!G7+ひばりヶ丘!G7+富士見町!G7+曽屋!G7+上大槻!G7 -> 78 | H7: =本町一丁目!H7+本町二丁目!H7+本町三丁目!H7+河原町!H7+元町!H7+末広町!H7+入船町!H7+曽屋一丁目!H7+曽屋二丁目!H7+寿町!H7+栄町!H7+文京町!H7+幸町!H7+桜町一丁目!H7+桜町二丁目!H7+水神町!H7+ひばりヶ丘!H7+富士見町!H7+曽屋!H7+上大槻!H7 -> 180 | I7: 69 | J7: =本町一丁目!J7+本町二丁目!J7+本町三丁目!J7+河原町!J7+元町!J7+末広町!J7+入船町!J7+曽屋一丁目!J7+曽屋二丁目!J7+寿町!J7+栄町!J7+文京町!J7+幸町!J7+桜町一丁目!J7+桜町二丁目!J7+水神町!J7+ひばりヶ丘!J7+富士見町!J7+曽屋!J7+上大槻!J7 -> 122 | K7: =本町一丁目!K7+本町二丁目!K7+本町三丁目!K7+河原町!K7+元町!K7+末広町!K7+入船町!K7+曽屋一丁目!K7+曽屋二丁目!K7+寿町!K7+栄町!K7+文京町!K7+幸町!K7+桜町一丁目!K7+桜町二丁目!K7+水神町!K7+ひばりヶ丘!K7+富士見町!K7+曽屋!K7+上大槻!K7 -> 130 | L7: =本町一丁目!L7+本町二丁目!L7+本町三丁目!L7+河原町!L7+元町!L7+末広町!L7+入船町!L7+曽屋一丁目!L7+曽屋二丁目!L7+寿町!L7+栄町!L7+文京町!L7+幸町!L7+桜町一丁目!L7+桜町二丁目!L7+水神町!L7+ひばりヶ丘!L7+富士見町!L7+曽屋!L7+上大槻!L7 -> 252
A8: 5 | B8: =本町一丁目!B8+本町二丁目!B8+本町三丁目!B8+河原町!B8+元町!B8+末広町!B8+入船町!B8+曽屋一丁目!B8+曽屋二丁目!B8+寿町!B8+栄町!B8+文京町!B8+幸町!B8+桜町一丁目!B8+桜町二丁目!B8+水神町!B8+ひばりヶ丘!B8+富士見町!B8+曽屋!B8+上大槻!B8 -> 66 | C8: =本町一丁目!C8+本町二丁目!C8+本町三丁目!C8+河原町!C8+元町!C8+末広町!C8+入船町!C8+曽屋一丁目!C8+曽屋二丁目!C8+寿町!C8+栄町!C8+文京町!C8+幸町!C8+桜町一丁目!C8+桜町二丁目!C8+水神町!C8+ひばりヶ丘!C8+富士見町!C8+曽屋!C8+上大槻!C8 -> 56 | D8: =本町一丁目!D8+本町二丁目!D8+本町三丁目!D8+河原町!D8+元町!D8+末広町!D8+入船町!D8+曽屋一丁目!D8+曽屋二丁目!D8+寿町!D8+栄町!D8+文京町!D8+幸町!D8+桜町一丁目!D8+桜町二丁目!D8+水神町!D8+ひばりヶ丘!D8+富士見町!D8+曽屋!D8+上大槻!D8 -> 122 | E8: 20 | F8: =本町一丁目!F8+本町二丁目!F8+本町三丁目!F8+河原町!F8+元町!F8+末広町!F8+入船町!F8+曽屋一丁目!F8+曽屋二丁目!F8+寿町!F8+栄町!F8+文京町!F8+幸町!F8+桜町一丁目!F8+桜町二丁目!F8+水神町!F8+ひばりヶ丘!F8+富士見町!F8+曽屋!F8+上大槻!F8 -> 103 | G8: =本町一丁目!G8+本町二丁目!G8+本町三丁目!G8+河原町!G8+元町!G8+末広町!G8+入船町!G8+曽屋一丁目!G8+曽屋二丁目!G8+寿町!G8+栄町!G8+文京町!G8+幸町!G8+桜町一丁目!G8+桜町二丁目!G8+水神町!G8+ひばりヶ丘!G8+富士見町!G8+曽屋!G8+上大槻!G8 -> 101 | H8: =本町一丁目!H8+本町二丁目!H8+本町三丁目!H8+河原町!H8+元町!H8+末広町!H8+入船町!H8+曽屋一丁目!H8+曽屋二丁目!H8+寿町!H8+栄町!H8+文京町!H8+幸町!H8+桜町一丁目!H8+桜町二丁目!H8+水神町!H8+ひばりヶ丘!H8+富士見町!H8+曽屋!H8+上大槻!H8 -> 204 | I8: 70 | J8: =本町一丁目!J8+本町二丁目!J8+本町三丁目!J8+河原町!J8+元町!J8+末広町!J8+入船町!J8+曽屋一丁目!J8+曽屋二丁目!J8+寿町!J8+栄町!J8+文京町!J8+幸町!J8+桜町一丁目!J8+桜町二丁目!J8+水神町!J8+ひばりヶ丘!J8+富士見町!J8+曽屋!J8+上大槻!J8 -> 136 | K8: =本町一丁目!K8+本町二丁目!K8+本町三丁目!K8+河原町!K8+元町!K8+末広町!K8+入船町!K8+曽屋一丁目!K8+曽屋二丁目!K8+寿町!K8+栄町!K8+文京町!K8+幸町!K8+桜町一丁目!K8+桜町二丁目!K8+水神町!K8+ひばりヶ丘!K8+富士見町!K8+曽屋!K8+上大槻!K8 -> 138 | L8: =本町一丁目!L8+本町二丁目!L8+本町三丁目!L8+河原町!L8+元町!L8+末広町!L8+入船町!L8+曽屋一丁目!L8+曽屋二丁目!L8+寿町!L8+栄町!L8+文京町!L8+幸町!L8+桜町一丁目!L8+桜町二丁目!L8+水神町!L8+ひばりヶ丘!L8+富士見町!L8+曽屋!L8+上大槻!L8 -> 274
A9: 6 | B9: =本町一丁目!B9+本町二丁目!B9+本町三丁目!B9+河原町!B9+元町!B9+末広町!B9+入船町!B9+曽屋一丁目!B9+曽屋二丁目!B9+寿町!B9+栄町!B9+文京町!B9+幸町!B9+桜町一丁目!B9+桜町二丁目!B9+水神町!B9+ひばりヶ丘!B9+富士見町!B9+曽屋!B9+上大槻!B9 -> 70 | C9: =本町一丁目!C9+本町二丁目!C9+本町三丁目!C9+河原町!C9+元町!C9+末広町!C9+入船町!C9+曽屋一丁目!C9+曽屋二丁目!C9+寿町!C9+栄町!C9+文京町!C9+幸町!C9+桜町一丁目!C9+桜町二丁目!C9+水神町!C9+ひばりヶ丘!C9+富士見町!C9+曽屋!C9+上大槻!C9 -> 54 | D9: =本町一丁目!D9+本町二丁目!D9+本町三丁目!D9+河原町!D9+元町!D9+末広町!D9+入船町!D9+曽屋一丁目!D9+曽屋二丁目!D9+寿町!D9+栄町!D9+文京町!D9+幸町!D9+桜町一丁目!D9+桜町二丁目!D9+水神町!D9+ひばりヶ丘!D9+富士見町!D9+曽屋!D9+上大槻!D9 -> 124 | E9: 21 | F9: =本町一丁目!F9+本町二丁目!F9+本町三丁目!F9+河原町!F9+元町!F9+末広町!F9+入船町!F9+曽屋一丁目!F9+曽屋二丁目!F9+寿町!F9+栄町!F9+文京町!F9+幸町!F9+桜町一丁目!F9+桜町二丁目!F9+水神町!F9+ひばりヶ丘!F9+富士見町!F9+曽屋!F9+上大槻!F9 -> 91 | G9: =本町一丁目!G9+本町二丁目!G9+本町三丁目!G9+河原町!G9+元町!G9+末広町!G9+入船町!G9+曽屋一丁目!G9+曽屋二丁目!G9+寿町!G9+栄町!G9+文京町!G9+幸町!G9+桜町一丁目!G9+桜町二丁目!G9+水神町!G9+ひばりヶ丘!G9+富士見町!G9+曽屋!G9+上大槻!G9 -> 86 | H9: =本町一丁目!H9+本町二丁目!H9+本町三丁目!H9+河原町!H9+元町!H9+末広町!H9+入船町!H9+曽屋一丁目!H9+曽屋二丁目!H9+寿町!H9+栄町!H9+文京町!H9+幸町!H9+桜町一丁目!H9+桜町二丁目!H9+水神町!H9+ひばりヶ丘!H9+富士見町!H9+曽屋!H9+上大槻!H9 -> 177 | I9: 71 | J9: =本町一丁目!J9+本町二丁目!J9+本町三丁目!J9+河原町!J9+元町!J9+末広町!J9+入船町!J9+曽屋一丁目!J9+曽屋二丁目!J9+寿町!J9+栄町!J9+文京町!J9+幸町!J9+桜町一丁目!J9+桜町二丁目!J9+水神町!J9+ひばりヶ丘!J9+富士見町!J9+曽屋!J9+上大槻!J9 -> 109 | K9: =本町一丁目!K9+本町二丁目!K9+本町三丁目!K9+河原町!K9+元町!K9+末広町!K9+入船町!K9+曽屋一丁目!K9+曽屋二丁目!K9+寿町!K9+栄町!K9+文京町!K9+幸町!K9+桜町一丁目!K9+桜町二丁目!K9+水神町!K9+ひばりヶ丘!K9+富士見町!K9+曽屋!K9+上大槻!K9 -> 137 | L9: =本町一丁目!L9+本町二丁目!L9+本町三丁目!L9+河原町!L9+元町!L9+末広町!L9+入船町!L9+曽屋一丁目!L9+曽屋二丁目!L9+寿町!L9+栄町!L9+文京町!L9+幸町!L9+桜町一丁目!L9+桜町二丁目!L9+水神町!L9+ひばりヶ丘!L9+富士見町!L9+曽屋!L9+上大槻!L9 -> 246
A10: 7 | B10: =本町一丁目!B10+本町二丁目!B10+本町三丁目!B10+河原町!B10+元町!B10+末広町!B10+入船町!B10+曽屋一丁目!B10+曽屋二丁目!B10+寿町!B10+栄町!B10+文京町!B10+幸町!B10+桜町一丁目!B10+桜町二丁目!B10+水神町!B10+ひばりヶ丘!B10+富士見町!B10+曽屋!B10+上大槻!B10 -> 66 | C10: =本町一丁目!C10+本町二丁目!C10+本町三丁目!C10+河原町!C10+元町!C10+末広町!C10+入船町!C10+曽屋一丁目!C10+曽屋二丁目!C10+寿町!C10+栄町!C10+文京町!C10+幸町!C10+桜町一丁目!C10+桜町二丁目!C10+水神町!C10+ひばりヶ丘!C10+富士見町!C10+曽屋!C10+上大槻!C10 -> 66 | D10: =本町一丁目!D10+本町二丁目!D10+本町三丁目!D10+河原町!D10+元町!D10+末広町!D10+入船町!D10+曽屋一丁目!D10+曽屋二丁目!D10+寿町!D10+栄町!D10+文京町!D10+幸町!D10+桜町一丁目!D10+桜町二丁目!D10+水神町!D10+ひばりヶ丘!D10+富士見町!D10+曽屋!D10+上大槻!D10 -> 132 | E10: 22 | F10: =本町一丁目!F10+本町二丁目!F10+本町三丁目!F10+河原町!F10+元町!F10+末広町!F10+入船町!F10+曽屋一丁目!F10+曽屋二丁目!F10+寿町!F10+栄町!F10+文京町!F10+幸町!F10+桜町一丁目!F10+桜町二丁目!F10+水神町!F10+ひばりヶ丘!F10+富士見町!F10+曽屋!F10+上大槻!F10 -> 102 | G10: =本町一丁目!G10+本町二丁目!G10+本町三丁目!G10+河原町!G10+元町!G10+末広町!G10+入船町!G10+曽屋一丁目!G10+曽屋二丁目!G10+寿町!G10+栄町!G10+文京町!G10+幸町!G10+桜町一丁目!G10+桜町二丁目!G10+水神町!G10+ひばりヶ丘!G10+富士見町!G10+曽屋!G10+上大槻!G10 -> 85 | H10: =本町一丁目!H10+本町二丁目!H10+本町三丁目!H10+河原町!H10+元町!H10+末広町!H10+入船町!H10+曽屋一丁目!H10+曽屋二丁目!H10+寿町!H10+栄町!H10+文京町!H10+幸町!H10+桜町一丁目!H10+桜町二丁目!H10+水神町!H10+ひばりヶ丘!H10+富士見町!H10+曽屋!H10+上大槻!H10 -> 187 | I10: 72 | J10: =本町一丁目!J10+本町二丁目!J10+本町三丁目!J10+河原町!J10+元町!J10+末広町!J10+入船町!J10+曽屋一丁目!J10+曽屋二丁目!J10+寿町!J10+栄町!J10+文京町!J10+幸町!J10+桜町一丁目!J10+桜町二丁目!J10+水神町!J10+ひばりヶ丘!J10+富士見町!J10+曽屋!J10+上大槻!J10 -> 125 | K10: =本町一丁目!K10+本町二丁目!K10+本町三丁目!K10+河原町!K10+元町!K10+末広町!K10+入船町!K10+曽屋一丁目!K10+曽屋二丁目!K10+寿町!K10+栄町!K10+文京町!K10+幸町!K10+桜町一丁目!K10+桜町二丁目!K10+水神町!K10+ひばりヶ丘!K10+富士見町!K10+曽屋!K10+上大槻!K10 -> 138 | L10: =本町一丁目!L10+本町二丁目!L10+本町三丁目!L10+河原町!L10+元町!L10+末広町!L10+入船町!L10+曽屋一丁目!L10+曽屋二丁目!L10+寿町!L10+栄町!L10+文京町!L10+幸町!L10+桜町一丁目!L10+桜町二丁目!L10+水神町!L10+ひばりヶ丘!L10+富士見町!L10+曽屋!L10+上大槻!L10 -> 263
A11: 8 | B11: =本町一丁目!B11+本町二丁目!B11+本町三丁目!B11+河原町!B11+元町!B11+末広町!B11+入船町!B11+曽屋一丁目!B11+曽屋二丁目!B11+寿町!B11+栄町!B11+文京町!B11+幸町!B11+桜町一丁目!B11+桜町二丁目!B11+水神町!B11+ひばりヶ丘!B11+富士見町!B11+曽屋!B11+上大槻!B11 -> 86 | C11: =本町一丁目!C11+本町二丁目!C11+本町三丁目!C11+河原町!C11+元町!C11+末広町!C11+入船町!C11+曽屋一丁目!C11+曽屋二丁目!C11+寿町!C11+栄町!C11+文京町!C11+幸町!C11+桜町一丁目!C11+桜町二丁目!C11+水神町!C11+ひばりヶ丘!C11+富士見町!C11+曽屋!C11+上大槻!C11 -> 67 | D11: =本町一丁目!D11+本町二丁目!D11+本町三丁目!D11+河原町!D11+元町!D11+末広町!D11+入船町!D11+曽屋一丁目!D11+曽屋二丁目!D11+寿町!D11+栄町!D11+文京町!D11+幸町!D11+桜町一丁目!D11+桜町二丁目!D11+水神町!D11+ひばりヶ丘!D11+富士見町!D11+曽屋!D11+上大槻!D11 -> 153 | E11: 23 | F11: =本町一丁目!F11+本町二丁目!F11+本町三丁目!F11+河原町!F11+元町!F11+末広町!F11+入船町!F11+曽屋一丁目!F11+曽屋二丁目!F11+寿町!F11+栄町!F11+文京町!F11+幸町!F11+桜町一丁目!F11+桜町二丁目!F11+水神町!F11+ひばりヶ丘!F11+富士見町!F11+曽屋!F11+上大槻!F11 -> 108 | G11: =本町一丁目!G11+本町二丁目!G11+本町三丁目!G11+河原町!G11+元町!G11+末広町!G11+入船町!G11+曽屋一丁目!G11+曽屋二丁目!G11+寿町!G11+栄町!G11+文京町!G11+幸町!G11+桜町一丁目!G11+桜町二丁目!G11+水神町!G11+ひばりヶ丘!G11+富士見町!G11+曽屋!G11+上大槻!G11 -> 106 | H11: =本町一丁目!H11+本町二丁目!H11+本町三丁目!H11+河原町!H11+元町!H11+末広町!H11+入船町!H11+曽屋一丁目!H11+曽屋二丁目!H11+寿町!H11+栄町!H11+文京町!H11+幸町!H11+桜町一丁目!H11+桜町二丁目!H11+水神町!H11+ひばりヶ丘!H11+富士見町!H11+曽屋!H11+上大槻!H11 -> 214 | I11: 73 | J11: =本町一丁目!J11+本町二丁目!J11+本町三丁目!J11+河原町!J11+元町!J11+末広町!J11+入船町!J11+曽屋一丁目!J11+曽屋二丁目!J11+寿町!J11+栄町!J11+文京町!J11+幸町!J11+桜町一丁目!J11+桜町二丁目!J11+水神町!J11+ひばりヶ丘!J11+富士見町!J11+曽屋!J11+上大槻!J11 -> 133 | K11: =本町一丁目!K11+本町二丁目!K11+本町三丁目!K11+河原町!K11+元町!K11+末広町!K11+入船町!K11+曽屋一丁目!K11+曽屋二丁目!K11+寿町!K11+栄町!K11+文京町!K11+幸町!K11+桜町一丁目!K11+桜町二丁目!K11+水神町!K11+ひばりヶ丘!K11+富士見町!K11+曽屋!K11+上大槻!K11 -> 166 | L11: =本町一丁目!L11+本町二丁目!L11+本町三丁目!L11+河原町!L11+元町!L11+末広町!L11+入船町!L11+曽屋一丁目!L11+曽屋二丁目!L11+寿町!L11+栄町!L11+文京町!L11+幸町!L11+桜町一丁目!L11+桜町二丁目!L11+水神町!L11+ひばりヶ丘!L11+富士見町!L11+曽屋!L11+上大槻!L11 -> 299
A12: 9 | B12: =本町一丁目!B12+本町二丁目!B12+本町三丁目!B12+河原町!B12+元町!B12+末広町!B12+入船町!B12+曽屋一丁目!B12+曽屋二丁目!B12+寿町!B12+栄町!B12+文京町!B12+幸町!B12+桜町一丁目!B12+桜町二丁目!B12+水神町!B12+ひばりヶ丘!B12+富士見町!B12+曽屋!B12+上大槻!B12 -> 79 | C12: =本町一丁目!C12+本町二丁目!C12+本町三丁目!C12+河原町!C12+元町!C12+末広町!C12+入船町!C12+曽屋一丁目!C12+曽屋二丁目!C12+寿町!C12+栄町!C12+文京町!C12+幸町!C12+桜町一丁目!C12+桜町二丁目!C12+水神町!C12+ひばりヶ丘!C12+富士見町!C12+曽屋!C12+上大槻!C12 -> 63 | D12: =本町一丁目!D12+本町二丁目!D12+本町三丁目!D12+河原町!D12+元町!D12+末広町!D12+入船町!D12+曽屋一丁目!D12+曽屋二丁目!D12+寿町!D12+栄町!D12+文京町!D12+幸町!D12+桜町一丁目!D12+桜町二丁目!D12+水神町!D12+ひばりヶ丘!D12+富士見町!D12+曽屋!D12+上大槻!D12 -> 142 | E12: 24 | F12: =本町一丁目!F12+本町二丁目!F12+本町三丁目!F12+河原町!F12+元町!F12+末広町!F12+入船町!F12+曽屋一丁目!F12+曽屋二丁目!F12+寿町!F12+栄町!F12+文京町!F12+幸町!F12+桜町一丁目!F12+桜町二丁目!F12+水神町!F12+ひばりヶ丘!F12+富士見町!F12+曽屋!F12+上大槻!F12 -> 108 | G12: =本町一丁目!G12+本町二丁目!G12+本町三丁目!G12+河原町!G12+元町!G12+末広町!G12+入船町!G12+曽屋一丁目!G12+曽屋二丁目!G12+寿町!G12+栄町!G12+文京町!G12+幸町!G12+桜町一丁目!G12+桜町二丁目!G12+水神町!G12+ひばりヶ丘!G12+富士見町!G12+曽屋!G12+上大槻!G12 -> 101 | H12: =本町一丁目!H12+本町二丁目!H12+本町三丁目!H12+河原町!H12+元町!H12+末広町!H12+入船町!H12+曽屋一丁目!H12+曽屋二丁目!H12+寿町!H12+栄町!H12+文京町!H12+幸町!H12+桜町一丁目!H12+桜町二丁目!H12+水神町!H12+ひばりヶ丘!H12+富士見町!H12+曽屋!H12+上大槻!H12 -> 209 | I12: 74 | J12: =本町一丁目!J12+本町二丁目!J12+本町三丁目!J12+河原町!J12+元町!J12+末広町!J12+入船町!J12+曽屋一丁目!J12+曽屋二丁目!J12+寿町!J12+栄町!J12+文京町!J12+幸町!J12+桜町一丁目!J12+桜町二丁目!J12+水神町!J12+ひばりヶ丘!J12+富士見町!J12+曽屋!J12+上大槻!J12 -> 148 | K12: =本町一丁目!K12+本町二丁目!K12+本町三丁目!K12+河原町!K12+元町!K12+末広町!K12+入船町!K12+曽屋一丁目!K12+曽屋二丁目!K12+寿町!K12+栄町!K12+文京町!K12+幸町!K12+桜町一丁目!K12+桜町二丁目!K12+水神町!K12+ひばりヶ丘!K12+富士見町!K12+曽屋!K12+上大槻!K12 -> 185 | L12: =本町一丁目!L12+本町二丁目!L12+本町三丁目!L12+河原町!L12+元町!L12+末広町!L12+入船町!L12+曽屋一丁目!L12+曽屋二丁目!L12+寿町!L12+栄町!L12+文京町!L12+幸町!L12+桜町一丁目!L12+桜町二丁目!L12+水神町!L12+ひばりヶ丘!L12+富士見町!L12+曽屋!L12+上大槻!L12 -> 333
A13: 10 | B13: =本町一丁目!B13+本町二丁目!B13+本町三丁目!B13+河原町!B13+元町!B13+末広町!B13+入船町!B13+曽屋一丁目!B13+曽屋二丁目!B13+寿町!B13+栄町!B13+文京町!B13+幸町!B13+桜町一丁目!B13+桜町二丁目!B13+水神町!B13+ひばりヶ丘!B13+富士見町!B13+曽屋!B13+上大槻!B13 -> 83 | C13: =本町一丁目!C13+本町二丁目!C13+本町三丁目!C13+河原町!C13+元町!C13+末広町!C13+入船町!C13+曽屋一丁目!C13+曽屋二丁目!C13+寿町!C13+栄町!C13+文京町!C13+幸町!C13+桜町一丁目!C13+桜町二丁目!C13+水神町!C13+ひばりヶ丘!C13+富士見町!C13+曽屋!C13+上大槻!C13 -> 98 | D13: =本町一丁目!D13+本町二丁目!D13+本町三丁目!D13+河原町!D13+元町!D13+末広町!D13+入船町!D13+曽屋一丁目!D13+曽屋二丁目!D13+寿町!D13+栄町!D13+文京町!D13+幸町!D13+桜町一丁目!D13+桜町二丁目!D13+水神町!D13+ひばりヶ丘!D13+富士見町!D13+曽屋!D13+上大槻!D13 -> 181 | E13: 25 | F13: =本町一丁目!F13+本町二丁目!F13+本町三丁目!F13+河原町!F13+元町!F13+末広町!F13+入船町!F13+曽屋一丁目!F13+曽屋二丁目!F13+寿町!F13+栄町!F13+文京町!F13+幸町!F13+桜町一丁目!F13+桜町二丁目!F13+水神町!F13+ひばりヶ丘!F13+富士見町!F13+曽屋!F13+上大槻!F13 -> 122 | G13: =本町一丁目!G13+本町二丁目!G13+本町三丁目!G13+河原町!G13+元町!G13+末広町!G13+入船町!G13+曽屋一丁目!G13+曽屋二丁目!G13+寿町!G13+栄町!G13+文京町!G13+幸町!G13+桜町一丁目!G13+桜町二丁目!G13+水神町!G13+ひばりヶ丘!G13+富士見町!G13+曽屋!G13+上大槻!G13 -> 105 | H13: =本町一丁目!H13+本町二丁目!H13+本町三丁目!H13+河原町!H13+元町!H13+末広町!H13+入船町!H13+曽屋一丁目!H13+曽屋二丁目!H13+寿町!H13+栄町!H13+文京町!H13+幸町!H13+桜町一丁目!H13+桜町二丁目!H13+水神町!H13+ひばりヶ丘!H13+富士見町!H13+曽屋!H13+上大槻!H13 -> 227 | I13: 75 | J13: =本町一丁目!J13+本町二丁目!J13+本町三丁目!J13+河原町!J13+元町!J13+末広町!J13+入船町!J13+曽屋一丁目!J13+曽屋二丁目!J13+寿町!J13+栄町!J13+文京町!J13+幸町!J13+桜町一丁目!J13+桜町二丁目!J13+水神町!J13+ひばりヶ丘!J13+富士見町!J13+曽屋!J13+上大槻!J13 -> 172 | K13: =本町一丁目!K13+本町二丁目!K13+本町三丁目!K13+河原町!K13+元町!K13+末広町!K13+入船町!K13+曽屋一丁目!K13+曽屋二丁目!K13+寿町!K13+栄町!K13+文京町!K13+幸町!K13+桜町一丁目!K13+桜町二丁目!K13+水神町!K13+ひばりヶ丘!K13+富士見町!K13+曽屋!K13+上大槻!K13 -> 159 | L13: =本町一丁目!L13+本町二丁目!L13+本町三丁目!L13+河原町!L13+元町!L13+末広町!L13+入船町!L13+曽屋一丁目!L13+曽屋二丁目!L13+寿町!L13+栄町!L13+文京町!L13+幸町!L13+桜町一丁目!L13+桜町二丁目!L13+水神町!L13+ひばりヶ丘!L13+富士見町!L13+曽屋!L13+上大槻!L13 -> 331
A14: 11 | B14: =本町一丁目!B14+本町二丁目!B14+本町三丁目!B14+河原町!B14+元町!B14+末広町!B14+入船町!B14+曽屋一丁目!B14+曽屋二丁目!B14+寿町!B14+栄町!B14+文京町!B14+幸町!B14+桜町一丁目!B14+桜町二丁目!B14+水神町!B14+ひばりヶ丘!B14+富士見町!B14+曽屋!B14+上大槻!B14 -> 88 | C14: =本町一丁目!C14+本町二丁目!C14+本町三丁目!C14+河原町!C14+元町!C14+末広町!C14+入船町!C14+曽屋一丁目!C14+曽屋二丁目!C14+寿町!C14+栄町!C14+文京町!C14+幸町!C14+桜町一丁目!C14+桜町二丁目!C14+水神町!C14+ひばりヶ丘!C14+富士見町!C14+曽屋!C14+上大槻!C14 -> 71 | D14: =本町一丁目!D14+本町二丁目!D14+本町三丁目!D14+河原町!D14+元町!D14+末広町!D14+入船町!D14+曽屋一丁目!D14+曽屋二丁目!D14+寿町!D14+栄町!D14+文京町!D14+幸町!D14+桜町一丁目!D14+桜町二丁目!D14+水神町!D14+ひばりヶ丘!D14+富士見町!D14+曽屋!D14+上大槻!D14 -> 159 | E14: 26 | F14: =本町一丁目!F14+本町二丁目!F14+本町三丁目!F14+河原町!F14+元町!F14+末広町!F14+入船町!F14+曽屋一丁目!F14+曽屋二丁目!F14+寿町!F14+栄町!F14+文京町!F14+幸町!F14+桜町一丁目!F14+桜町二丁目!F14+水神町!F14+ひばりヶ丘!F14+富士見町!F14+曽屋!F14+上大槻!F14 -> 108 | G14: =本町一丁目!G14+本町二丁目!G14+本町三丁目!G14+河原町!G14+元町!G14+末広町!G14+入船町!G14+曽屋一丁目!G14+曽屋二丁目!G14+寿町!G14+栄町!G14+文京町!G14+幸町!G14+桜町一丁目!G14+桜町二丁目!G14+水神町!G14+ひばりヶ丘!G14+富士見町!G14+曽屋!G14+上大槻!G14 -> 99 | H14: =本町一丁目!H14+本町二丁目!H14+本町三丁目!H14+河原町!H14+元町!H14+末広町!H14+入船町!H14+曽屋一丁目!H14+曽屋二丁目!H14+寿町!H14+栄町!H14+文京町!H14+幸町!H14+桜町一丁目!H14+桜町二丁目!H14+水神町!H14+ひばりヶ丘!H14+富士見町!H14+曽屋!H14+上大槻!H14 -> 207 | I14: 76 | J14: =本町一丁目!J14+本町二丁目!J14+本町三丁目!J14+河原町!J14+元町!J14+末広町!J14+入船町!J14+曽屋一丁目!J14+曽屋二丁目!J14+寿町!J14+栄町!J14+文京町!J14+幸町!J14+桜町一丁目!J14+桜町二丁目!J14+水神町!J14+ひばりヶ丘!J14+富士見町!J14+曽屋!J14+上大槻!J14 -> 185 | K14: =本町一丁目!K14+本町二丁目!K14+本町三丁目!K14+河原町!K14+元町!K14+末広町!K14+入船町!K14+曽屋一丁目!K14+曽屋二丁目!K14+寿町!K14+栄町!K14+文京町!K14+幸町!K14+桜町一丁目!K14+桜町二丁目!K14+水神町!K14+ひばりヶ丘!K14+富士見町!K14+曽屋!K14+上大槻!K14 -> 165 | L14: =本町一丁目!L14+本町二丁目!L14+本町三丁目!L14+河原町!L14+元町!L14+末広町!L14+入船町!L14+曽屋一丁目!L14+曽屋二丁目!L14+寿町!L14+栄町!L14+文京町!L14+幸町!L14+桜町一丁目!L14+桜町二丁目!L14+水神町!L14+ひばりヶ丘!L14+富士見町!L14+曽屋!L14+上大槻!L14 -> 350
A15: 12 | B15: =本町一丁目!B15+本町二丁目!B15+本町三丁目!B15+河原町!B15+元町!B15+末広町!B15+入船町!B15+曽屋一丁目!B15+曽屋二丁目!B15+寿町!B15+栄町!B15+文京町!B15+幸町!B15+桜町一丁目!B15+桜町二丁目!B15+水神町!B15+ひばりヶ丘!B15+富士見町!B15+曽屋!B15+上大槻!B15 -> 83 | C15: =本町一丁目!C15+本町二丁目!C15+本町三丁目!C15+河原町!C15+元町!C15+末広町!C15+入船町!C15+曽屋一丁目!C15+曽屋二丁目!C15+寿町!C15+栄町!C15+文京町!C15+幸町!C15+桜町一丁目!C15+桜町二丁目!C15+水神町!C15+ひばりヶ丘!C15+富士見町!C15+曽屋!C15+上大槻!C15 -> 76 | D15: =本町一丁目!D15+本町二丁目!D15+本町三丁目!D15+河原町!D15+元町!D15+末広町!D15+入船町!D15+曽屋一丁目!D15+曽屋二丁目!D15+寿町!D15+栄町!D15+文京町!D15+幸町!D15+桜町一丁目!D15+桜町二丁目!D15+水神町!D15+ひばりヶ丘!D15+富士見町!D15+曽屋!D15+上大槻!D15 -> 159 | E15: 27 | F15: =本町一丁目!F15+本町二丁目!F15+本町三丁目!F15+河原町!F15+元町!F15+末広町!F15+入船町!F15+曽屋一丁目!F15+曽屋二丁目!F15+寿町!F15+栄町!F15+文京町!F15+幸町!F15+桜町一丁目!F15+桜町二丁目!F15+水神町!F15+ひばりヶ丘!F15+富士見町!F15+曽屋!F15+上大槻!F15 -> 108 | G15: =本町一丁目!G15+本町二丁目!G15+本町三丁目!G15+河原町!G15+元町!G15+末広町!G15+入船町!G15+曽屋一丁目!G15+曽屋二丁目!G15+寿町!G15+栄町!G15+文京町!G15+幸町!G15+桜町一丁目!G15+桜町二丁目!G15+水神町!G15+ひばりヶ丘!G15+富士見町!G15+曽屋!G15+上大槻!G15 -> 82 | H15: =本町一丁目!H15+本町二丁目!H15+本町三丁目!H15+河原町!H15+元町!H15+末広町!H15+入船町!H15+曽屋一丁目!H15+曽屋二丁目!H15+寿町!H15+栄町!H15+文京町!H15+幸町!H15+桜町一丁目!H15+桜町二丁目!H15+水神町!H15+ひばりヶ丘!H15+富士見町!H15+曽屋!H15+上大槻!H15 -> 190 | I15: 77 | J15: =本町一丁目!J15+本町二丁目!J15+本町三丁目!J15+河原町!J15+元町!J15+末広町!J15+入船町!J15+曽屋一丁目!J15+曽屋二丁目!J15+寿町!J15+栄町!J15+文京町!J15+幸町!J15+桜町一丁目!J15+桜町二丁目!J15+水神町!J15+ひばりヶ丘!J15+富士見町!J15+曽屋!J15+上大槻!J15 -> 155 | K15: =本町一丁目!K15+本町二丁目!K15+本町三丁目!K15+河原町!K15+元町!K15+末広町!K15+入船町!K15+曽屋一丁目!K15+曽屋二丁目!K15+寿町!K15+栄町!K15+文京町!K15+幸町!K15+桜町一丁目!K15+桜町二丁目!K15+水神町!K15+ひばりヶ丘!K15+富士見町!K15+曽屋!K15+上大槻!K15 -> 194 | L15: =本町一丁目!L15+本町二丁目!L15+本町三丁目!L15+河原町!L15+元町!L15+末広町!L15+入船町!L15+曽屋一丁目!L15+曽屋二丁目!L15+寿町!L15+栄町!L15+文京町!L15+幸町!L15+桜町一丁目!L15+桜町二丁目!L15+水神町!L15+ひばりヶ丘!L15+富士見町!L15+曽屋!L15+上大槻!L15 -> 349
A16: 13 | B16: =本町一丁目!B16+本町二丁目!B16+本町三丁目!B16+河原町!B16+元町!B16+末広町!B16+入船町!B16+曽屋一丁目!B16+曽屋二丁目!B16+寿町!B16+栄町!B16+文京町!B16+幸町!B16+桜町一丁目!B16+桜町二丁目!B16+水神町!B16+ひばりヶ丘!B16+富士見町!B16+曽屋!B16+上大槻!B16 -> 99 | C16: =本町一丁目!C16+本町二丁目!C16+本町三丁目!C16+河原町!C16+元町!C16+末広町!C16+入船町!C16+曽屋一丁目!C16+曽屋二丁目!C16+寿町!C16+栄町!C16+文京町!C16+幸町!C16+桜町一丁目!C16+桜町二丁目!C16+水神町!C16+ひばりヶ丘!C16+富士見町!C16+曽屋!C16+上大槻!C16 -> 94 | D16: =本町一丁目!D16+本町二丁目!D16+本町三丁目!D16+河原町!D16+元町!D16+末広町!D16+入船町!D16+曽屋一丁目!D16+曽屋二丁目!D16+寿町!D16+栄町!D16+文京町!D16+幸町!D16+桜町一丁目!D16+桜町二丁目!D16+水神町!D16+ひばりヶ丘!D16+富士見町!D16+曽屋!D16+上大槻!D16 -> 193 | E16: 28 | F16: =本町一丁目!F16+本町二丁目!F16+本町三丁目!F16+河原町!F16+元町!F16+末広町!F16+入船町!F16+曽屋一丁目!F16+曽屋二丁目!F16+寿町!F16+栄町!F16+文京町!F16+幸町!F16+桜町一丁目!F16+桜町二丁目!F16+水神町!F16+ひばりヶ丘!F16+富士見町!F16+曽屋!F16+上大槻!F16 -> 103 | G16: =本町一丁目!G16+本町二丁目!G16+本町三丁目!G16+河原町!G16+元町!G16+末広町!G16+入船町!G16+曽屋一丁目!G16+曽屋二丁目!G16+寿町!G16+栄町!G16+文京町!G16+幸町!G16+桜町一丁目!G16+桜町二丁目!G16+水神町!G16+ひばりヶ丘!G16+富士見町!G16+曽屋!G16+上大槻!G16 -> 104 | H16: =本町一丁目!H16+本町二丁目!H16+本町三丁目!H16+河原町!H16+元町!H16+末広町!H16+入船町!H16+曽屋一丁目!H16+曽屋二丁目!H16+寿町!H16+栄町!H16+文京町!H16+幸町!H16+桜町一丁目!H16+桜町二丁目!H16+水神町!H16+ひばりヶ丘!H16+富士見町!H16+曽屋!H16+上大槻!H16 -> 207 | I16: 78 | J16: =本町一丁目!J16+本町二丁目!J16+本町三丁目!J16+河原町!J16+元町!J16+末広町!J16+入船町!J16+曽屋一丁目!J16+曽屋二丁目!J16+寿町!J16+栄町!J16+文京町!J16+幸町!J16+桜町一丁目!J16+桜町二丁目!J16+水神町!J16+ひばりヶ丘!J16+富士見町!J16+曽屋!J16+上大槻!J16 -> 152 | K16: =本町一丁目!K16+本町二丁目!K16+本町三丁目!K16+河原町!K16+元町!K16+末広町!K16+入船町!K16+曽屋一丁目!K16+曽屋二丁目!K16+寿町!K16+栄町!K16+文京町!K16+幸町!K16+桜町一丁目!K16+桜町二丁目!K16+水神町!K16+ひばりヶ丘!K16+富士見町!K16+曽屋!K16+上大槻!K16 -> 165 | L16: =本町一丁目!L16+本町二丁目!L16+本町三丁目!L16+河原町!L16+元町!L16+末広町!L16+入船町!L16+曽屋一丁目!L16+曽屋二丁目!L16+寿町!L16+栄町!L16+文京町!L16+幸町!L16+桜町一丁目!L16+桜町二丁目!L16+水神町!L16+ひばりヶ丘!L16+富士見町!L16+曽屋!L16+上大槻!L16 -> 317
A17: 14 | B17: =本町一丁目!B17+本町二丁目!B17+本町三丁目!B17+河原町!B17+元町!B17+末広町!B17+入船町!B17+曽屋一丁目!B17+曽屋二丁目!B17+寿町!B17+栄町!B17+文京町!B17+幸町!B17+桜町一丁目!B17+桜町二丁目!B17+水神町!B17+ひばりヶ丘!B17+富士見町!B17+曽屋!B17+上大槻!B17 -> 91 | C17: =本町一丁目!C17+本町二丁目!C17+本町三丁目!C17+河原町!C17+元町!C17+末広町!C17+入船町!C17+曽屋一丁目!C17+曽屋二丁目!C17+寿町!C17+栄町!C17+文京町!C17+幸町!C17+桜町一丁目!C17+桜町二丁目!C17+水神町!C17+ひばりヶ丘!C17+富士見町!C17+曽屋!C17+上大槻!C17 -> 83 | D17: =本町一丁目!D17+本町二丁目!D17+本町三丁目!D17+河原町!D17+元町!D17+末広町!D17+入船町!D17+曽屋一丁目!D17+曽屋二丁目!D17+寿町!D17+栄町!D17+文京町!D17+幸町!D17+桜町一丁目!D17+桜町二丁目!D17+水神町!D17+ひばりヶ丘!D17+富士見町!D17+曽屋!D17+上大槻!D17 -> 174 | E17: 29 | F17: =本町一丁目!F17+本町二丁目!F17+本町三丁目!F17+河原町!F17+元町!F17+末広町!F17+入船町!F17+曽屋一丁目!F17+曽屋二丁目!F17+寿町!F17+栄町!F17+文京町!F17+幸町!F17+桜町一丁目!F17+桜町二丁目!F17+水神町!F17+ひばりヶ丘!F17+富士見町!F17+曽屋!F17+上大槻!F17 -> 117 | G17: =本町一丁目!G17+本町二丁目!G17+本町三丁目!G17+河原町!G17+元町!G17+末広町!G17+入船町!G17+曽屋一丁目!G17+曽屋二丁目!G17+寿町!G17+栄町!G17+文京町!G17+幸町!G17+桜町一丁目!G17+桜町二丁目!G17+水神町!G17+ひばりヶ丘!G17+富士見町!G17+曽屋!G17+上大槻!G17 -> 81 | H17: =本町一丁目!H17+本町二丁目!H17+本町三丁目!H17+河原町!H17+元町!H17+末広町!H17+入船町!H17+曽屋一丁目!H17+曽屋二丁目!H17+寿町!H17+栄町!H17+文京町!H17+幸町!H17+桜町一丁目!H17+桜町二丁目!H17+水神町!H17+ひばりヶ丘!H17+富士見町!H17+曽屋!H17+上大槻!H17 -> 198 | I17: 79 | J17: =本町一丁目!J17+本町二丁目!J17+本町三丁目!J17+河原町!J17+元町!J17+末広町!J17+入船町!J17+曽屋一丁目!J17+曽屋二丁目!J17+寿町!J17+栄町!J17+文京町!J17+幸町!J17+桜町一丁目!J17+桜町二丁目!J17+水神町!J17+ひばりヶ丘!J17+富士見町!J17+曽屋!J17+上大槻!J17 -> 96 | K17: =本町一丁目!K17+本町二丁目!K17+本町三丁目!K17+河原町!K17+元町!K17+末広町!K17+入船町!K17+曽屋一丁目!K17+曽屋二丁目!K17+寿町!K17+栄町!K17+文京町!K17+幸町!K17+桜町一丁目!K17+桜町二丁目!K17+水神町!K17+ひばりヶ丘!K17+富士見町!K17+曽屋!K17+上大槻!K17 -> 109 | L17: =本町一丁目!L17+本町二丁目!L17+本町三丁目!L17+河原町!L17+元町!L17+末広町!L17+入船町!L17+曽屋一丁目!L17+曽屋二丁目!L17+寿町!L17+栄町!L17+文京町!L17+幸町!L17+桜町一丁目!L17+桜町二丁目!L17+水神町!L17+ひばりヶ丘!L17+富士見町!L17+曽屋!L17+上大槻!L17 -> 205
A18: 小計 | B18: =SUM(B3:B17) -> 1084 | C18: =SUM(C3:C17) -> 962 | D18: =SUM(B18:C18) -> 2046 | E18: 30 | F18: =本町一丁目!F18+本町二丁目!F18+本町三丁目!F18+河原町!F18+元町!F18+末広町!F18+入船町!F18+曽屋一丁目!F18+曽屋二丁目!F18+寿町!F18+栄町!F18+文京町!F18+幸町!F18+桜町一丁目!F18+桜町二丁目!F18+水神町!F18+ひばりヶ丘!F18+富士見町!F18+曽屋!F18+上大槻!F18 -> 89 | G18: =本町一丁目!G18+本町二丁目!G18+本町三丁目!G18+河原町!G18+元町!G18+末広町!G18+入船町!G18+曽屋一丁目!G18+曽屋二丁目!G18+寿町!G18+栄町!G18+文京町!G18+幸町!G18+桜町一丁目!G18+桜町二丁目!G18+水神町!G18+ひばりヶ丘!G18+富士見町!G18+曽屋!G18+上大槻!G18 -> 95 | H18: =本町一丁目!H18+本町二丁目!H18+本町三丁目!H18+河原町!H18+元町!H18+末広町!H18+入船町!H18+曽屋一丁目!H18+曽屋二丁目!H18+寿町!H18+栄町!H18+文京町!H18+幸町!H18+桜町一丁目!H18+桜町二丁目!H18+水神町!H18+ひばりヶ丘!H18+富士見町!H18+曽屋!H18+上大槻!H18 -> 184 | I18: 80 | J18: =本町一丁目!J18+本町二丁目!J18+本町三丁目!J18+河原町!J18+元町!J18+末広町!J18+入船町!J18+曽屋一丁目!J18+曽屋二丁目!J18+寿町!J18+栄町!J18+文京町!J18+幸町!J18+桜町一丁目!J18+桜町二丁目!J18+水神町!J18+ひばりヶ丘!J18+富士見町!J18+曽屋!J18+上大槻!J18 -> 96 | K18: =本町一丁目!K18+本町二丁目!K18+本町三丁目!K18+河原町!K18+元町!K18+末広町!K18+入船町!K18+曽屋一丁目!K18+曽屋二丁目!K18+寿町!K18+栄町!K18+文京町!K18+幸町!K18+桜町一丁目!K18+桜町二丁目!K18+水神町!K18+ひばりヶ丘!K18+富士見町!K18+曽屋!K18+上大槻!K18 -> 95 | L18: =本町一丁目!L18+本町二丁目!L18+本町三丁目!L18+河原町!L18+元町!L18+末広町!L18+入船町!L18+曽屋一丁目!L18+曽屋二丁目!L18+寿町!L18+栄町!L18+文京町!L18+幸町!L18+桜町一丁目!L18+桜町二丁目!L18+水神町!L18+ひばりヶ丘!L18+富士見町!L18+曽屋!L18+上大槻!L18 -> 191
E19: 31 | F19: =本町一丁目!F19+本町二丁目!F19+本町三丁目!F19+河原町!F19+元町!F19+末広町!F19+入船町!F19+曽屋一丁目!F19+曽屋二丁目!F19+寿町!F19+栄町!F19+文京町!F19+幸町!F19+桜町一丁目!F19+桜町二丁目!F19+水神町!F19+ひばりヶ丘!F19+富士見町!F19+曽屋!F19+上大槻!F19 -> 103 | G19: =本町一丁目!G19+本町二丁目!G19+本町三丁目!G19+河原町!G19+元町!G19+末広町!G19+入船町!G19+曽屋一丁目!G19+曽屋二丁目!G19+寿町!G19+栄町!G19+文京町!G19+幸町!G19+桜町一丁目!G19+桜町二丁目!G19+水神町!G19+ひばりヶ丘!G19+富士見町!G19+曽屋!G19+上大槻!G19 -> 103 | H19: =本町一丁目!H19+本町二丁目!H19+本町三丁目!H19+河原町!H19+元町!H19+末広町!H19+入船町!H19+曽屋一丁目!H19+曽屋二丁目!H19+寿町!H19+栄町!H19+文京町!H19+幸町!H19+桜町一丁目!H19+桜町二丁目!H19+水神町!H19+ひばりヶ丘!H19+富士見町!H19+曽屋!H19+上大槻!H19 -> 206 | I19: 81 | J19: =本町一丁目!J19+本町二丁目!J19+本町三丁目!J19+河原町!J19+元町!J19+末広町!J19+入船町!J19+曽屋一丁目!J19+曽屋二丁目!J19+寿町!J19+栄町!J19+文京町!J19+幸町!J19+桜町一丁目!J19+桜町二丁目!J19+水神町!J19+ひばりヶ丘!J19+富士見町!J19+曽屋!J19+上大槻!J19 -> 103 | K19: =本町一丁目!K19+本町二丁目!K19+本町三丁目!K19+河原町!K19+元町!K19+末広町!K19+入船町!K19+曽屋一丁目!K19+曽屋二丁目!K19+寿町!K19+栄町!K19+文京町!K19+幸町!K19+桜町一丁目!K19+桜町二丁目!K19+水神町!K19+ひばりヶ丘!K19+富士見町!K19+曽屋!K19+上大槻!K19 -> 144 | L19: =本町一丁目!L19+本町二丁目!L19+本町三丁目!L19+河原町!L19+元町!L19+末広町!L19+入船町!L19+曽屋一丁目!L19+曽屋二丁目!L19+寿町!L19+栄町!L19+文京町!L19+幸町!L19+桜町一丁目!L19+桜町二丁目!L19+水神町!L19+ひばりヶ丘!L19+富士見町!L19+曽屋!L19+上大槻!L19 -> 247
E20: 32 | F20: =本町一丁目!F20+本町二丁目!F20+本町三丁目!F20+河原町!F20+元町!F20+末広町!F20+入船町!F20+曽屋一丁目!F20+曽屋二丁目!F20+寿町!F20+栄町!F20+文京町!F20+幸町!F20+桜町一丁目!F20+桜町二丁目!F20+水神町!F20+ひばりヶ丘!F20+富士見町!F20+曽屋!F20+上大槻!F20 -> 101 | G20: =本町一丁目!G20+本町二丁目!G20+本町三丁目!G20+河原町!G20+元町!G20+末広町!G20+入船町!G20+曽屋一丁目!G20+曽屋二丁目!G20+寿町!G20+栄町!G20+文京町!G20+幸町!G20+桜町一丁目!G20+桜町二丁目!G20+水神町!G20+ひばりヶ丘!G20+富士見町!G20+曽屋!G20+上大槻!G20 -> 103 | H20: =本町一丁目!H20+本町二丁目!H20+本町三丁目!H20+河原町!H20+元町!H20+末広町!H20+入船町!H20+曽屋一丁目!H20+曽屋二丁目!H20+寿町!H20+栄町!H20+文京町!H20+幸町!H20+桜町一丁目!H20+桜町二丁目!H20+水神町!H20+ひばりヶ丘!H20+富士見町!H20+曽屋!H20+上大槻!H20 -> 204 | I20: 82 | J20: =本町一丁目!J20+本町二丁目!J20+本町三丁目!J20+河原町!J20+元町!J20+末広町!J20+入船町!J20+曽屋一丁目!J20+曽屋二丁目!J20+寿町!J20+栄町!J20+文京町!J20+幸町!J20+桜町一丁目!J20+桜町二丁目!J20+水神町!J20+ひばりヶ丘!J20+富士見町!J20+曽屋!J20+上大槻!J20 -> 87 | K20: =本町一丁目!K20+本町二丁目!K20+本町三丁目!K20+河原町!K20+元町!K20+末広町!K20+入船町!K20+曽屋一丁目!K20+曽屋二丁目!K20+寿町!K20+栄町!K20+文京町!K20+幸町!K20+桜町一丁目!K20+桜町二丁目!K20+水神町!K20+ひばりヶ丘!K20+富士見町!K20+曽屋!K20+上大槻!K20 -> 105 | L20: =本町一丁目!L20+本町二丁目!L20+本町三丁目!L20+河原町!L20+元町!L20+末広町!L20+入船町!L20+曽屋一丁目!L20+曽屋二丁目!L20+寿町!L20+栄町!L20+文京町!L20+幸町!L20+桜町一丁目!L20+桜町二丁目!L20+水神町!L20+ひばりヶ丘!L20+富士見町!L20+曽屋!L20+上大槻!L20 -> 192
E21: 33 | F21: =本町一丁目!F21+本町二丁目!F21+本町三丁目!F21+河原町!F21+元町!F21+末広町!F21+入船町!F21+曽屋一丁目!F21+曽屋二丁目!F21+寿町!F21+栄町!F21+文京町!F21+幸町!F21+桜町一丁目!F21+桜町二丁目!F21+水神町!F21+ひばりヶ丘!F21+富士見町!F21+曽屋!F21+上大槻!F21 -> 101 | G21: =本町一丁目!G21+本町二丁目!G21+本町三丁目!G21+河原町!G21+元町!G21+末広町!G21+入船町!G21+曽屋一丁目!G21+曽屋二丁目!G21+寿町!G21+栄町!G21+文京町!G21+幸町!G21+桜町一丁目!G21+桜町二丁目!G21+水神町!G21+ひばりヶ丘!G21+富士見町!G21+曽屋!G21+上大槻!G21 -> 90 | H21: =本町一丁目!H21+本町二丁目!H21+本町三丁目!H21+河原町!H21+元町!H21+末広町!H21+入船町!H21+曽屋一丁目!H21+曽屋二丁目!H21+寿町!H21+栄町!H21+文京町!H21+幸町!H21+桜町一丁目!H21+桜町二丁目!H21+水神町!H21+ひばりヶ丘!H21+富士見町!H21+曽屋!H21+上大槻!H21 -> 191 | I21: 83 | J21: =本町一丁目!J21+本町二丁目!J21+本町三丁目!J21+河原町!J21+元町!J21+末広町!J21+入船町!J21+曽屋一丁目!J21+曽屋二丁目!J21+寿町!J21+栄町!J21+文京町!J21+幸町!J21+桜町一丁目!J21+桜町二丁目!J21+水神町!J21+ひばりヶ丘!J21+富士見町!J21+曽屋!J21+上大槻!J21 -> 85 | K21: =本町一丁目!K21+本町二丁目!K21+本町三丁目!K21+河原町!K21+元町!K21+末広町!K21+入船町!K21+曽屋一丁目!K21+曽屋二丁目!K21+寿町!K21+栄町!K21+文京町!K21+幸町!K21+桜町一丁目!K21+桜町二丁目!K21+水神町!K21+ひばりヶ丘!K21+富士見町!K21+曽屋!K21+上大槻!K21 -> 132 | L21: =本町一丁目!L21+本町二丁目!L21+本町三丁目!L21+河原町!L21+元町!L21+末広町!L21+入船町!L21+曽屋一丁目!L21+曽屋二丁目!L21+寿町!L21+栄町!L21+文京町!L21+幸町!L21+桜町一丁目!L21+桜町二丁目!L21+水神町!L21+ひばりヶ丘!L21+富士見町!L21+曽屋!L21+上大槻!L21 -> 217
E22: 34 | F22: =本町一丁目!F22+本町二丁目!F22+本町三丁目!F22+河原町!F22+元町!F22+末広町!F22+入船町!F22+曽屋一丁目!F22+曽屋二丁目!F22+寿町!F22+栄町!F22+文京町!F22+幸町!F22+桜町一丁目!F22+桜町二丁目!F22+水神町!F22+ひばりヶ丘!F22+富士見町!F22+曽屋!F22+上大槻!F22 -> 101 | G22: =本町一丁目!G22+本町二丁目!G22+本町三丁目!G22+河原町!G22+元町!G22+末広町!G22+入船町!G22+曽屋一丁目!G22+曽屋二丁目!G22+寿町!G22+栄町!G22+文京町!G22+幸町!G22+桜町一丁目!G22+桜町二丁目!G22+水神町!G22+ひばりヶ丘!G22+富士見町!G22+曽屋!G22+上大槻!G22 -> 90 | H22: =本町一丁目!H22+本町二丁目!H22+本町三丁目!H22+河原町!H22+元町!H22+末広町!H22+入船町!H22+曽屋一丁目!H22+曽屋二丁目!H22+寿町!H22+栄町!H22+文京町!H22+幸町!H22+桜町一丁目!H22+桜町二丁目!H22+水神町!H22+ひばりヶ丘!H22+富士見町!H22+曽屋!H22+上大槻!H22 -> 191 | I22: 84 | J22: =本町一丁目!J22+本町二丁目!J22+本町三丁目!J22+河原町!J22+元町!J22+末広町!J22+入船町!J22+曽屋一丁目!J22+曽屋二丁目!J22+寿町!J22+栄町!J22+文京町!J22+幸町!J22+桜町一丁目!J22+桜町二丁目!J22+水神町!J22+ひばりヶ丘!J22+富士見町!J22+曽屋!J22+上大槻!J22 -> 72 | K22: =本町一丁目!K22+本町二丁目!K22+本町三丁目!K22+河原町!K22+元町!K22+末広町!K22+入船町!K22+曽屋一丁目!K22+曽屋二丁目!K22+寿町!K22+栄町!K22+文京町!K22+幸町!K22+桜町一丁目!K22+桜町二丁目!K22+水神町!K22+ひばりヶ丘!K22+富士見町!K22+曽屋!K22+上大槻!K22 -> 126 | L22: =本町一丁目!L22+本町二丁目!L22+本町三丁目!L22+河原町!L22+元町!L22+末広町!L22+入船町!L22+曽屋一丁目!L22+曽屋二丁目!L22+寿町!L22+栄町!L22+文京町!L22+幸町!L22+桜町一丁目!L22+桜町二丁目!L22+水神町!L22+ひばりヶ丘!L22+富士見町!L22+曽屋!L22+上大槻!L22 -> 198
E23: 35 | F23: =本町一丁目!F23+本町二丁目!F23+本町三丁目!F23+河原町!F23+元町!F23+末広町!F23+入船町!F23+曽屋一丁目!F23+曽屋二丁目!F23+寿町!F23+栄町!F23+文京町!F23+幸町!F23+桜町一丁目!F23+桜町二丁目!F23+水神町!F23+ひばりヶ丘!F23+富士見町!F23+曽屋!F23+上大槻!F23 -> 95 | G23: =本町一丁目!G23+本町二丁目!G23+本町三丁目!G23+河原町!G23+元町!G23+末広町!G23+入船町!G23+曽屋一丁目!G23+曽屋二丁目!G23+寿町!G23+栄町!G23+文京町!G23+幸町!G23+桜町一丁目!G23+桜町二丁目!G23+水神町!G23+ひばりヶ丘!G23+富士見町!G23+曽屋!G23+上大槻!G23 -> 86 | H23: =本町一丁目!H23+本町二丁目!H23+本町三丁目!H23+河原町!H23+元町!H23+末広町!H23+入船町!H23+曽屋一丁目!H23+曽屋二丁目!H23+寿町!H23+栄町!H23+文京町!H23+幸町!H23+桜町一丁目!H23+桜町二丁目!H23+水神町!H23+ひばりヶ丘!H23+富士見町!H23+曽屋!H23+上大槻!H23 -> 181 | I23: 85 | J23: =本町一丁目!J23+本町二丁目!J23+本町三丁目!J23+河原町!J23+元町!J23+末広町!J23+入船町!J23+曽屋一丁目!J23+曽屋二丁目!J23+寿町!J23+栄町!J23+文京町!J23+幸町!J23+桜町一丁目!J23+桜町二丁目!J23+水神町!J23+ひばりヶ丘!J23+富士見町!J23+曽屋!J23+上大槻!J23 -> 65 | K23: =本町一丁目!K23+本町二丁目!K23+本町三丁目!K23+河原町!K23+元町!K23+末広町!K23+入船町!K23+曽屋一丁目!K23+曽屋二丁目!K23+寿町!K23+栄町!K23+文京町!K23+幸町!K23+桜町一丁目!K23+桜町二丁目!K23+水神町!K23+ひばりヶ丘!K23+富士見町!K23+曽屋!K23+上大槻!K23 -> 87 | L23: =本町一丁目!L23+本町二丁目!L23+本町三丁目!L23+河原町!L23+元町!L23+末広町!L23+入船町!L23+曽屋一丁目!L23+曽屋二丁目!L23+寿町!L23+栄町!L23+文京町!L23+幸町!L23+桜町一丁目!L23+桜町二丁目!L23+水神町!L23+ひばりヶ丘!L23+富士見町!L23+曽屋!L23+上大槻!L23 -> 152
E24: 36 | F24: =本町一丁目!F24+本町二丁目!F24+本町三丁目!F24+河原町!F24+元町!F24+末広町!F24+入船町!F24+曽屋一丁目!F24+曽屋二丁目!F24+寿町!F24+栄町!F24+文京町!F24+幸町!F24+桜町一丁目!F24+桜町二丁目!F24+水神町!F24+ひばりヶ丘!F24+富士見町!F24+曽屋!F24+上大槻!F24 -> 104 | G24: =本町一丁目!G24+本町二丁目!G24+本町三丁目!G24+河原町!G24+元町!G24+末広町!G24+入船町!G24+曽屋一丁目!G24+曽屋二丁目!G24+寿町!G24+栄町!G24+文京町!G24+幸町!G24+桜町一丁目!G24+桜町二丁目!G24+水神町!G24+ひばりヶ丘!G24+富士見町!G24+曽屋!G24+上大槻!G24 -> 86 | H24: =本町一丁目!H24+本町二丁目!H24+本町三丁目!H24+河原町!H24+元町!H24+末広町!H24+入船町!H24+曽屋一丁目!H24+曽屋二丁目!H24+寿町!H24+栄町!H24+文京町!H24+幸町!H24+桜町一丁目!H24+桜町二丁目!H24+水神町!H24+ひばりヶ丘!H24+富士見町!H24+曽屋!H24+上大槻!H24 -> 190 | I24: 86 | J24: =本町一丁目!J24+本町二丁目!J24+本町三丁目!J24+河原町!J24+元町!J24+末広町!J24+入船町!J24+曽屋一丁目!J24+曽屋二丁目!J24+寿町!J24+栄町!J24+文京町!J24+幸町!J24+桜町一丁目!J24+桜町二丁目!J24+水神町!J24+ひばりヶ丘!J24+富士見町!J24+曽屋!J24+上大槻!J24 -> 62 | K24: =本町一丁目!K24+本町二丁目!K24+本町三丁目!K24+河原町!K24+元町!K24+末広町!K24+入船町!K24+曽屋一丁目!K24+曽屋二丁目!K24+寿町!K24+栄町!K24+文京町!K24+幸町!K24+桜町一丁目!K24+桜町二丁目!K24+水神町!K24+ひばりヶ丘!K24+富士見町!K24+曽屋!K24+上大槻!K24 -> 79 | L24: =本町一丁目!L24+本町二丁目!L24+本町三丁目!L24+河原町!L24+元町!L24+末広町!L24+入船町!L24+曽屋一丁目!L24+曽屋二丁目!L24+寿町!L24+栄町!L24+文京町!L24+幸町!L24+桜町一丁目!L24+桜町二丁目!L24+水神町!L24+ひばりヶ丘!L24+富士見町!L24+曽屋!L24+上大槻!L24 -> 141
E25: 37 | F25: =本町一丁目!F25+本町二丁目!F25+本町三丁目!F25+河原町!F25+元町!F25+末広町!F25+入船町!F25+曽屋一丁目!F25+曽屋二丁目!F25+寿町!F25+栄町!F25+文京町!F25+幸町!F25+桜町一丁目!F25+桜町二丁目!F25+水神町!F25+ひばりヶ丘!F25+富士見町!F25+曽屋!F25+上大槻!F25 -> 120 | G25: =本町一丁目!G25+本町二丁目!G25+本町三丁目!G25+河原町!G25+元町!G25+末広町!G25+入船町!G25+曽屋一丁目!G25+曽屋二丁目!G25+寿町!G25+栄町!G25+文京町!G25+幸町!G25+桜町一丁目!G25+桜町二丁目!G25+水神町!G25+ひばりヶ丘!G25+富士見町!G25+曽屋!G25+上大槻!G25 -> 95 | H25: =本町一丁目!H25+本町二丁目!H25+本町三丁目!H25+河原町!H25+元町!H25+末広町!H25+入船町!H25+曽屋一丁目!H25+曽屋二丁目!H25+寿町!H25+栄町!H25+文京町!H25+幸町!H25+桜町一丁目!H25+桜町二丁目!H25+水神町!H25+ひばりヶ丘!H25+富士見町!H25+曽屋!H25+上大槻!H25 -> 215 | I25: 87 | J25: =本町一丁目!J25+本町二丁目!J25+本町三丁目!J25+河原町!J25+元町!J25+末広町!J25+入船町!J25+曽屋一丁目!J25+曽屋二丁目!J25+寿町!J25+栄町!J25+文京町!J25+幸町!J25+桜町一丁目!J25+桜町二丁目!J25+水神町!J25+ひばりヶ丘!J25+富士見町!J25+曽屋!J25+上大槻!J25 -> 42 | K25: =本町一丁目!K25+本町二丁目!K25+本町三丁目!K25+河原町!K25+元町!K25+末広町!K25+入船町!K25+曽屋一丁目!K25+曽屋二丁目!K25+寿町!K25+栄町!K25+文京町!K25+幸町!K25+桜町一丁目!K25+桜町二丁目!K25+水神町!K25+ひばりヶ丘!K25+富士見町!K25+曽屋!K25+上大槻!K25 -> 92 | L25: =本町一丁目!L25+本町二丁目!L25+本町三丁目!L25+河原町!L25+元町!L25+末広町!L25+入船町!L25+曽屋一丁目!L25+曽屋二丁目!L25+寿町!L25+栄町!L25+文京町!L25+幸町!L25+桜町一丁目!L25+桜町二丁目!L25+水神町!L25+ひばりヶ丘!L25+富士見町!L25+曽屋!L25+上大槻!L25 -> 134
E26: 38 | F26: =本町一丁目!F26+本町二丁目!F26+本町三丁目!F26+河原町!F26+元町!F26+末広町!F26+入船町!F26+曽屋一丁目!F26+曽屋二丁目!F26+寿町!F26+栄町!F26+文京町!F26+幸町!F26+桜町一丁目!F26+桜町二丁目!F26+水神町!F26+ひばりヶ丘!F26+富士見町!F26+曽屋!F26+上大槻!F26 -> 107 | G26: =本町一丁目!G26+本町二丁目!G26+本町三丁目!G26+河原町!G26+元町!G26+末広町!G26+入船町!G26+曽屋一丁目!G26+曽屋二丁目!G26+寿町!G26+栄町!G26+文京町!G26+幸町!G26+桜町一丁目!G26+桜町二丁目!G26+水神町!G26+ひばりヶ丘!G26+富士見町!G26+曽屋!G26+上大槻!G26 -> 80 | H26: =本町一丁目!H26+本町二丁目!H26+本町三丁目!H26+河原町!H26+元町!H26+末広町!H26+入船町!H26+曽屋一丁目!H26+曽屋二丁目!H26+寿町!H26+栄町!H26+文京町!H26+幸町!H26+桜町一丁目!H26+桜町二丁目!H26+水神町!H26+ひばりヶ丘!H26+富士見町!H26+曽屋!H26+上大槻!H26 -> 187 | I26: 88 | J26: =本町一丁目!J26+本町二丁目!J26+本町三丁目!J26+河原町!J26+元町!J26+末広町!J26+入船町!J26+曽屋一丁目!J26+曽屋二丁目!J26+寿町!J26+栄町!J26+文京町!J26+幸町!J26+桜町一丁目!J26+桜町二丁目!J26+水神町!J26+ひばりヶ丘!J26+富士見町!J26+曽屋!J26+上大槻!J26 -> 43 | K26: =本町一丁目!K26+本町二丁目!K26+本町三丁目!K26+河原町!K26+元町!K26+末広町!K26+入船町!K26+曽屋一丁目!K26+曽屋二丁目!K26+寿町!K26+栄町!K26+文京町!K26+幸町!K26+桜町一丁目!K26+桜町二丁目!K26+水神町!K26+ひばりヶ丘!K26+富士見町!K26+曽屋!K26+上大槻!K26 -> 94 | L26: =本町一丁目!L26+本町二丁目!L26+本町三丁目!L26+河原町!L26+元町!L26+末広町!L26+入船町!L26+曽屋一丁目!L26+曽屋二丁目!L26+寿町!L26+栄町!L26+文京町!L26+幸町!L26+桜町一丁目!L26+桜町二丁目!L26+水神町!L26+ひばりヶ丘!L26+富士見町!L26+曽屋!L26+上大槻!L26 -> 137
E27: 39 | F27: =本町一丁目!F27+本町二丁目!F27+本町三丁目!F27+河原町!F27+元町!F27+末広町!F27+入船町!F27+曽屋一丁目!F27+曽屋二丁目!F27+寿町!F27+栄町!F27+文京町!F27+幸町!F27+桜町一丁目!F27+桜町二丁目!F27+水神町!F27+ひばりヶ丘!F27+富士見町!F27+曽屋!F27+上大槻!F27 -> 110 | G27: =本町一丁目!G27+本町二丁目!G27+本町三丁目!G27+河原町!G27+元町!G27+末広町!G27+入船町!G27+曽屋一丁目!G27+曽屋二丁目!G27+寿町!G27+栄町!G27+文京町!G27+幸町!G27+桜町一丁目!G27+桜町二丁目!G27+水神町!G27+ひばりヶ丘!G27+富士見町!G27+曽屋!G27+上大槻!G27 -> 79 | H27: =本町一丁目!H27+本町二丁目!H27+本町三丁目!H27+河原町!H27+元町!H27+末広町!H27+入船町!H27+曽屋一丁目!H27+曽屋二丁目!H27+寿町!H27+栄町!H27+文京町!H27+幸町!H27+桜町一丁目!H27+桜町二丁目!H27+水神町!H27+ひばりヶ丘!H27+富士見町!H27+曽屋!H27+上大槻!H27 -> 189 | I27: 89 | J27: =本町一丁目!J27+本町二丁目!J27+本町三丁目!J27+河原町!J27+元町!J27+末広町!J27+入船町!J27+曽屋一丁目!J27+曽屋二丁目!J27+寿町!J27+栄町!J27+文京町!J27+幸町!J27+桜町一丁目!J27+桜町二丁目!J27+水神町!J27+ひばりヶ丘!J27+富士見町!J27+曽屋!J27+上大槻!J27 -> 33 | K27: =本町一丁目!K27+本町二丁目!K27+本町三丁目!K27+河原町!K27+元町!K27+末広町!K27+入船町!K27+曽屋一丁目!K27+曽屋二丁目!K27+寿町!K27+栄町!K27+文京町!K27+幸町!K27+桜町一丁目!K27+桜町二丁目!K27+水神町!K27+ひばりヶ丘!K27+富士見町!K27+曽屋!K27+上大槻!K27 -> 64 | L27: =本町一丁目!L27+本町二丁目!L27+本町三丁目!L27+河原町!L27+元町!L27+末広町!L27+入船町!L27+曽屋一丁目!L27+曽屋二丁目!L27+寿町!L27+栄町!L27+文京町!L27+幸町!L27+桜町一丁目!L27+桜町二丁目!L27+水神町!L27+ひばりヶ丘!L27+富士見町!L27+曽屋!L27+上大槻!L27 -> 97
E28: 40 | F28: =本町一丁目!F28+本町二丁目!F28+本町三丁目!F28+河原町!F28+元町!F28+末広町!F28+入船町!F28+曽屋一丁目!F28+曽屋二丁目!F28+寿町!F28+栄町!F28+文京町!F28+幸町!F28+桜町一丁目!F28+桜町二丁目!F28+水神町!F28+ひばりヶ丘!F28+富士見町!F28+曽屋!F28+上大槻!F28 -> 118 | G28: =本町一丁目!G28+本町二丁目!G28+本町三丁目!G28+河原町!G28+元町!G28+末広町!G28+入船町!G28+曽屋一丁目!G28+曽屋二丁目!G28+寿町!G28+栄町!G28+文京町!G28+幸町!G28+桜町一丁目!G28+桜町二丁目!G28+水神町!G28+ひばりヶ丘!G28+富士見町!G28+曽屋!G28+上大槻!G28 -> 106 | H28: =本町一丁目!H28+本町二丁目!H28+本町三丁目!H28+河原町!H28+元町!H28+末広町!H28+入船町!H28+曽屋一丁目!H28+曽屋二丁目!H28+寿町!H28+栄町!H28+文京町!H28+幸町!H28+桜町一丁目!H28+桜町二丁目!H28+水神町!H28+ひばりヶ丘!H28+富士見町!H28+曽屋!H28+上大槻!H28 -> 224 | I28: 90 | J28: =本町一丁目!J28+本町二丁目!J28+本町三丁目!J28+河原町!J28+元町!J28+末広町!J28+入船町!J28+曽屋一丁目!J28+曽屋二丁目!J28+寿町!J28+栄町!J28+文京町!J28+幸町!J28+桜町一丁目!J28+桜町二丁目!J28+水神町!J28+ひばりヶ丘!J28+富士見町!J28+曽屋!J28+上大槻!J28 -> 36 | K28: =本町一丁目!K28+本町二丁目!K28+本町三丁目!K28+河原町!K28+元町!K28+末広町!K28+入船町!K28+曽屋一丁目!K28+曽屋二丁目!K28+寿町!K28+栄町!K28+文京町!K28+幸町!K28+桜町一丁目!K28+桜町二丁目!K28+水神町!K28+ひばりヶ丘!K28+富士見町!K28+曽屋!K28+上大槻!K28 -> 62 | L28: =本町一丁目!L28+本町二丁目!L28+本町三丁目!L28+河原町!L28+元町!L28+末広町!L28+入船町!L28+曽屋一丁目!L28+曽屋二丁目!L28+寿町!L28+栄町!L28+文京町!L28+幸町!L28+桜町一丁目!L28+桜町二丁目!L28+水神町!L28+ひばりヶ丘!L28+富士見町!L28+曽屋!L28+上大槻!L28 -> 98
E29: 41 | F29: =本町一丁目!F29+本町二丁目!F29+本町三丁目!F29+河原町!F29+元町!F29+末広町!F29+入船町!F29+曽屋一丁目!F29+曽屋二丁目!F29+寿町!F29+栄町!F29+文京町!F29+幸町!F29+桜町一丁目!F29+桜町二丁目!F29+水神町!F29+ひばりヶ丘!F29+富士見町!F29+曽屋!F29+上大槻!F29 -> 132 | G29: =本町一丁目!G29+本町二丁目!G29+本町三丁目!G29+河原町!G29+元町!G29+末広町!G29+入船町!G29+曽屋一丁目!G29+曽屋二丁目!G29+寿町!G29+栄町!G29+文京町!G29+幸町!G29+桜町一丁目!G29+桜町二丁目!G29+水神町!G29+ひばりヶ丘!G29+富士見町!G29+曽屋!G29+上大槻!G29 -> 104 | H29: =本町一丁目!H29+本町二丁目!H29+本町三丁目!H29+河原町!H29+元町!H29+末広町!H29+入船町!H29+曽屋一丁目!H29+曽屋二丁目!H29+寿町!H29+栄町!H29+文京町!H29+幸町!H29+桜町一丁目!H29+桜町二丁目!H29+水神町!H29+ひばりヶ丘!H29+富士見町!H29+曽屋!H29+上大槻!H29 -> 236 | I29: 91 | J29: =本町一丁目!J29+本町二丁目!J29+本町三丁目!J29+河原町!J29+元町!J29+末広町!J29+入船町!J29+曽屋一丁目!J29+曽屋二丁目!J29+寿町!J29+栄町!J29+文京町!J29+幸町!J29+桜町一丁目!J29+桜町二丁目!J29+水神町!J29+ひばりヶ丘!J29+富士見町!J29+曽屋!J29+上大槻!J29 -> 36 | K29: =本町一丁目!K29+本町二丁目!K29+本町三丁目!K29+河原町!K29+元町!K29+末広町!K29+入船町!K29+曽屋一丁目!K29+曽屋二丁目!K29+寿町!K29+栄町!K29+文京町!K29+幸町!K29+桜町一丁目!K29+桜町二丁目!K29+水神町!K29+ひばりヶ丘!K29+富士見町!K29+曽屋!K29+上大槻!K29 -> 53 | L29: =本町一丁目!L29+本町二丁目!L29+本町三丁目!L29+河原町!L29+元町!L29+末広町!L29+入船町!L29+曽屋一丁目!L29+曽屋二丁目!L29+寿町!L29+栄町!L29+文京町!L29+幸町!L29+桜町一丁目!L29+桜町二丁目!L29+水神町!L29+ひばりヶ丘!L29+富士見町!L29+曽屋!L29+上大槻!L29 -> 89
E30: 42 | F30: =本町一丁目!F30+本町二丁目!F30+本町三丁目!F30+河原町!F30+元町!F30+末広町!F30+入船町!F30+曽屋一丁目!F30+曽屋二丁目!F30+寿町!F30+栄町!F30+文京町!F30+幸町!F30+桜町一丁目!F30+桜町二丁目!F30+水神町!F30+ひばりヶ丘!F30+富士見町!F30+曽屋!F30+上大槻!F30 -> 137 | G30: =本町一丁目!G30+本町二丁目!G30+本町三丁目!G30+河原町!G30+元町!G30+末広町!G30+入船町!G30+曽屋一丁目!G30+曽屋二丁目!G30+寿町!G30+栄町!G30+文京町!G30+幸町!G30+桜町一丁目!G30+桜町二丁目!G30+水神町!G30+ひばりヶ丘!G30+富士見町!G30+曽屋!G30+上大槻!G30 -> 116 | H30: =本町一丁目!H30+本町二丁目!H30+本町三丁目!H30+河原町!H30+元町!H30+末広町!H30+入船町!H30+曽屋一丁目!H30+曽屋二丁目!H30+寿町!H30+栄町!H30+文京町!H30+幸町!H30+桜町一丁目!H30+桜町二丁目!H30+水神町!H30+ひばりヶ丘!H30+富士見町!H30+曽屋!H30+上大槻!H30 -> 253 | I30: 92 | J30: =本町一丁目!J30+本町二丁目!J30+本町三丁目!J30+河原町!J30+元町!J30+末広町!J30+入船町!J30+曽屋一丁目!J30+曽屋二丁目!J30+寿町!J30+栄町!J30+文京町!J30+幸町!J30+桜町一丁目!J30+桜町二丁目!J30+水神町!J30+ひばりヶ丘!J30+富士見町!J30+曽屋!J30+上大槻!J30 -> 17 | K30: =本町一丁目!K30+本町二丁目!K30+本町三丁目!K30+河原町!K30+元町!K30+末広町!K30+入船町!K30+曽屋一丁目!K30+曽屋二丁目!K30+寿町!K30+栄町!K30+文京町!K30+幸町!K30+桜町一丁目!K30+桜町二丁目!K30+水神町!K30+ひばりヶ丘!K30+富士見町!K30+曽屋!K30+上大槻!K30 -> 41 | L30: =本町一丁目!L30+本町二丁目!L30+本町三丁目!L30+河原町!L30+元町!L30+末広町!L30+入船町!L30+曽屋一丁目!L30+曽屋二丁目!L30+寿町!L30+栄町!L30+文京町!L30+幸町!L30+桜町一丁目!L30+桜町二丁目!L30+水神町!L30+ひばりヶ丘!L30+富士見町!L30+曽屋!L30+上大槻!L30 -> 58
E31: 43 | F31: =本町一丁目!F31+本町二丁目!F31+本町三丁目!F31+河原町!F31+元町!F31+末広町!F31+入船町!F31+曽屋一丁目!F31+曽屋二丁目!F31+寿町!F31+栄町!F31+文京町!F31+幸町!F31+桜町一丁目!F31+桜町二丁目!F31+水神町!F31+ひばりヶ丘!F31+富士見町!F31+曽屋!F31+上大槻!F31 -> 122 | G31: =本町一丁目!G31+本町二丁目!G31+本町三丁目!G31+河原町!G31+元町!G31+末広町!G31+入船町!G31+曽屋一丁目!G31+曽屋二丁目!G31+寿町!G31+栄町!G31+文京町!G31+幸町!G31+桜町一丁目!G31+桜町二丁目!G31+水神町!G31+ひばりヶ丘!G31+富士見町!G31+曽屋!G31+上大槻!G31 -> 145 | H31: =本町一丁目!H31+本町二丁目!H31+本町三丁目!H31+河原町!H31+元町!H31+末広町!H31+入船町!H31+曽屋一丁目!H31+曽屋二丁目!H31+寿町!H31+栄町!H31+文京町!H31+幸町!H31+桜町一丁目!H31+桜町二丁目!H31+水神町!H31+ひばりヶ丘!H31+富士見町!H31+曽屋!H31+上大槻!H31 -> 267 | I31: 93 | J31: =本町一丁目!J31+本町二丁目!J31+本町三丁目!J31+河原町!J31+元町!J31+末広町!J31+入船町!J31+曽屋一丁目!J31+曽屋二丁目!J31+寿町!J31+栄町!J31+文京町!J31+幸町!J31+桜町一丁目!J31+桜町二丁目!J31+水神町!J31+ひばりヶ丘!J31+富士見町!J31+曽屋!J31+上大槻!J31 -> 16 | K31: =本町一丁目!K31+本町二丁目!K31+本町三丁目!K31+河原町!K31+元町!K31+末広町!K31+入船町!K31+曽屋一丁目!K31+曽屋二丁目!K31+寿町!K31+栄町!K31+文京町!K31+幸町!K31+桜町一丁目!K31+桜町二丁目!K31+水神町!K31+ひばりヶ丘!K31+富士見町!K31+曽屋!K31+上大槻!K31 -> 34 | L31: =本町一丁目!L31+本町二丁目!L31+本町三丁目!L31+河原町!L31+元町!L31+末広町!L31+入船町!L31+曽屋一丁目!L31+曽屋二丁目!L31+寿町!L31+栄町!L31+文京町!L31+幸町!L31+桜町一丁目!L31+桜町二丁目!L31+水神町!L31+ひばりヶ丘!L31+富士見町!L31+曽屋!L31+上大槻!L31 -> 50
E32: 44 | F32: =本町一丁目!F32+本町二丁目!F32+本町三丁目!F32+河原町!F32+元町!F32+末広町!F32+入船町!F32+曽屋一丁目!F32+曽屋二丁目!F32+寿町!F32+栄町!F32+文京町!F32+幸町!F32+桜町一丁目!F32+桜町二丁目!F32+水神町!F32+ひばりヶ丘!F32+富士見町!F32+曽屋!F32+上大槻!F32 -> 138 | G32: =本町一丁目!G32+本町二丁目!G32+本町三丁目!G32+河原町!G32+元町!G32+末広町!G32+入船町!G32+曽屋一丁目!G32+曽屋二丁目!G32+寿町!G32+栄町!G32+文京町!G32+幸町!G32+桜町一丁目!G32+桜町二丁目!G32+水神町!G32+ひばりヶ丘!G32+富士見町!G32+曽屋!G32+上大槻!G32 -> 129 | H32: =本町一丁目!H32+本町二丁目!H32+本町三丁目!H32+河原町!H32+元町!H32+末広町!H32+入船町!H32+曽屋一丁目!H32+曽屋二丁目!H32+寿町!H32+栄町!H32+文京町!H32+幸町!H32+桜町一丁目!H32+桜町二丁目!H32+水神町!H32+ひばりヶ丘!H32+富士見町!H32+曽屋!H32+上大槻!H32 -> 267 | I32: 94 | J32: =本町一丁目!J32+本町二丁目!J32+本町三丁目!J32+河原町!J32+元町!J32+末広町!J32+入船町!J32+曽屋一丁目!J32+曽屋二丁目!J32+寿町!J32+栄町!J32+文京町!J32+幸町!J32+桜町一丁目!J32+桜町二丁目!J32+水神町!J32+ひばりヶ丘!J32+富士見町!J32+曽屋!J32+上大槻!J32 -> 13 | K32: =本町一丁目!K32+本町二丁目!K32+本町三丁目!K32+河原町!K32+元町!K32+末広町!K32+入船町!K32+曽屋一丁目!K32+曽屋二丁目!K32+寿町!K32+栄町!K32+文京町!K32+幸町!K32+桜町一丁目!K32+桜町二丁目!K32+水神町!K32+ひばりヶ丘!K32+富士見町!K32+曽屋!K32+上大槻!K32 -> 29 | L32: =本町一丁目!L32+本町二丁目!L32+本町三丁目!L32+河原町!L32+元町!L32+末広町!L32+入船町!L32+曽屋一丁目!L32+曽屋二丁目!L32+寿町!L32+栄町!L32+文京町!L32+幸町!L32+桜町一丁目!L32+桜町二丁目!L32+水神町!L32+ひばりヶ丘!L32+富士見町!L32+曽屋!L32+上大槻!L32 -> 42
E33: 45 | F33: =本町一丁目!F33+本町二丁目!F33+本町三丁目!F33+河原町!F33+元町!F33+末広町!F33+入船町!F33+曽屋一丁目!F33+曽屋二丁目!F33+寿町!F33+栄町!F33+文京町!F33+幸町!F33+桜町一丁目!F33+桜町二丁目!F33+水神町!F33+ひばりヶ丘!F33+富士見町!F33+曽屋!F33+上大槻!F33 -> 131 | G33: =本町一丁目!G33+本町二丁目!G33+本町三丁目!G33+河原町!G33+元町!G33+末広町!G33+入船町!G33+曽屋一丁目!G33+曽屋二丁目!G33+寿町!G33+栄町!G33+文京町!G33+幸町!G33+桜町一丁目!G33+桜町二丁目!G33+水神町!G33+ひばりヶ丘!G33+富士見町!G33+曽屋!G33+上大槻!G33 -> 129 | H33: =本町一丁目!H33+本町二丁目!H33+本町三丁目!H33+河原町!H33+元町!H33+末広町!H33+入船町!H33+曽屋一丁目!H33+曽屋二丁目!H33+寿町!H33+栄町!H33+文京町!H33+幸町!H33+桜町一丁目!H33+桜町二丁目!H33+水神町!H33+ひばりヶ丘!H33+富士見町!H33+曽屋!H33+上大槻!H33 -> 260 | I33: 95 | J33: =本町一丁目!J33+本町二丁目!J33+本町三丁目!J33+河原町!J33+元町!J33+末広町!J33+入船町!J33+曽屋一丁目!J33+曽屋二丁目!J33+寿町!J33+栄町!J33+文京町!J33+幸町!J33+桜町一丁目!J33+桜町二丁目!J33+水神町!J33+ひばりヶ丘!J33+富士見町!J33+曽屋!J33+上大槻!J33 -> 9 | K33: =本町一丁目!K33+本町二丁目!K33+本町三丁目!K33+河原町!K33+元町!K33+末広町!K33+入船町!K33+曽屋一丁目!K33+曽屋二丁目!K33+寿町!K33+栄町!K33+文京町!K33+幸町!K33+桜町一丁目!K33+桜町二丁目!K33+水神町!K33+ひばりヶ丘!K33+富士見町!K33+曽屋!K33+上大槻!K33 -> 25 | L33: =本町一丁目!L33+本町二丁目!L33+本町三丁目!L33+河原町!L33+元町!L33+末広町!L33+入船町!L33+曽屋一丁目!L33+曽屋二丁目!L33+寿町!L33+栄町!L33+文京町!L33+幸町!L33+桜町一丁目!L33+桜町二丁目!L33+水神町!L33+ひばりヶ丘!L33+富士見町!L33+曽屋!L33+上大槻!L33 -> 34
E34: 46 | F34: =本町一丁目!F34+本町二丁目!F34+本町三丁目!F34+河原町!F34+元町!F34+末広町!F34+入船町!F34+曽屋一丁目!F34+曽屋二丁目!F34+寿町!F34+栄町!F34+文京町!F34+幸町!F34+桜町一丁目!F34+桜町二丁目!F34+水神町!F34+ひばりヶ丘!F34+富士見町!F34+曽屋!F34+上大槻!F34 -> 149 | G34: =本町一丁目!G34+本町二丁目!G34+本町三丁目!G34+河原町!G34+元町!G34+末広町!G34+入船町!G34+曽屋一丁目!G34+曽屋二丁目!G34+寿町!G34+栄町!G34+文京町!G34+幸町!G34+桜町一丁目!G34+桜町二丁目!G34+水神町!G34+ひばりヶ丘!G34+富士見町!G34+曽屋!G34+上大槻!G34 -> 134 | H34: =本町一丁目!H34+本町二丁目!H34+本町三丁目!H34+河原町!H34+元町!H34+末広町!H34+入船町!H34+曽屋一丁目!H34+曽屋二丁目!H34+寿町!H34+栄町!H34+文京町!H34+幸町!H34+桜町一丁目!H34+桜町二丁目!H34+水神町!H34+ひばりヶ丘!H34+富士見町!H34+曽屋!H34+上大槻!H34 -> 283 | I34: 96 | J34: =本町一丁目!J34+本町二丁目!J34+本町三丁目!J34+河原町!J34+元町!J34+末広町!J34+入船町!J34+曽屋一丁目!J34+曽屋二丁目!J34+寿町!J34+栄町!J34+文京町!J34+幸町!J34+桜町一丁目!J34+桜町二丁目!J34+水神町!J34+ひばりヶ丘!J34+富士見町!J34+曽屋!J34+上大槻!J34 -> 5 | K34: =本町一丁目!K34+本町二丁目!K34+本町三丁目!K34+河原町!K34+元町!K34+末広町!K34+入船町!K34+曽屋一丁目!K34+曽屋二丁目!K34+寿町!K34+栄町!K34+文京町!K34+幸町!K34+桜町一丁目!K34+桜町二丁目!K34+水神町!K34+ひばりヶ丘!K34+富士見町!K34+曽屋!K34+上大槻!K34 -> 25 | L34: =本町一丁目!L34+本町二丁目!L34+本町三丁目!L34+河原町!L34+元町!L34+末広町!L34+入船町!L34+曽屋一丁目!L34+曽屋二丁目!L34+寿町!L34+栄町!L34+文京町!L34+幸町!L34+桜町一丁目!L34+桜町二丁目!L34+水神町!L34+ひばりヶ丘!L34+富士見町!L34+曽屋!L34+上大槻!L34 -> 30
E35: 47 | F35: =本町一丁目!F35+本町二丁目!F35+本町三丁目!F35+河原町!F35+元町!F35+末広町!F35+入船町!F35+曽屋一丁目!F35+曽屋二丁目!F35+寿町!F35+栄町!F35+文京町!F35+幸町!F35+桜町一丁目!F35+桜町二丁目!F35+水神町!F35+ひばりヶ丘!F35+富士見町!F35+曽屋!F35+上大槻!F35 -> 156 | G35: =本町一丁目!G35+本町二丁目!G35+本町三丁目!G35+河原町!G35+元町!G35+末広町!G35+入船町!G35+曽屋一丁目!G35+曽屋二丁目!G35+寿町!G35+栄町!G35+文京町!G35+幸町!G35+桜町一丁目!G35+桜町二丁目!G35+水神町!G35+ひばりヶ丘!G35+富士見町!G35+曽屋!G35+上大槻!G35 -> 139 | H35: =本町一丁目!H35+本町二丁目!H35+本町三丁目!H35+河原町!H35+元町!H35+末広町!H35+入船町!H35+曽屋一丁目!H35+曽屋二丁目!H35+寿町!H35+栄町!H35+文京町!H35+幸町!H35+桜町一丁目!H35+桜町二丁目!H35+水神町!H35+ひばりヶ丘!H35+富士見町!H35+曽屋!H35+上大槻!H35 -> 295 | I35: 97 | J35: =本町一丁目!J35+本町二丁目!J35+本町三丁目!J35+河原町!J35+元町!J35+末広町!J35+入船町!J35+曽屋一丁目!J35+曽屋二丁目!J35+寿町!J35+栄町!J35+文京町!J35+幸町!J35+桜町一丁目!J35+桜町二丁目!J35+水神町!J35+ひばりヶ丘!J35+富士見町!J35+曽屋!J35+上大槻!J35 -> 1 | K35: =本町一丁目!K35+本町二丁目!K35+本町三丁目!K35+河原町!K35+元町!K35+末広町!K35+入船町!K35+曽屋一丁目!K35+曽屋二丁目!K35+寿町!K35+栄町!K35+文京町!K35+幸町!K35+桜町一丁目!K35+桜町二丁目!K35+水神町!K35+ひばりヶ丘!K35+富士見町!K35+曽屋!K35+上大槻!K35 -> 15 | L35: =本町一丁目!L35+本町二丁目!L35+本町三丁目!L35+河原町!L35+元町!L35+末広町!L35+入船町!L35+曽屋一丁目!L35+曽屋二丁目!L35+寿町!L35+栄町!L35+文京町!L35+幸町!L35+桜町一丁目!L35+桜町二丁目!L35+水神町!L35+ひばりヶ丘!L35+富士見町!L35+曽屋!L35+上大槻!L35 -> 16
E36: 48 | F36: =本町一丁目!F36+本町二丁目!F36+本町三丁目!F36+河原町!F36+元町!F36+末広町!F36+入船町!F36+曽屋一丁目!F36+曽屋二丁目!F36+寿町!F36+栄町!F36+文京町!F36+幸町!F36+桜町一丁目!F36+桜町二丁目!F36+水神町!F36+ひばりヶ丘!F36+富士見町!F36+曽屋!F36+上大槻!F36 -> 157 | G36: =本町一丁目!G36+本町二丁目!G36+本町三丁目!G36+河原町!G36+元町!G36+末広町!G36+入船町!G36+曽屋一丁目!G36+曽屋二丁目!G36+寿町!G36+栄町!G36+文京町!G36+幸町!G36+桜町一丁目!G36+桜町二丁目!G36+水神町!G36+ひばりヶ丘!G36+富士見町!G36+曽屋!G36+上大槻!G36 -> 151 | H36: =本町一丁目!H36+本町二丁目!H36+本町三丁目!H36+河原町!H36+元町!H36+末広町!H36+入船町!H36+曽屋一丁目!H36+曽屋二丁目!H36+寿町!H36+栄町!H36+文京町!H36+幸町!H36+桜町一丁目!H36+桜町二丁目!H36+水神町!H36+ひばりヶ丘!H36+富士見町!H36+曽屋!H36+上大槻!H36 -> 308 | I36: 98 | J36: =本町一丁目!J36+本町二丁目!J36+本町三丁目!J36+河原町!J36+元町!J36+末広町!J36+入船町!J36+曽屋一丁目!J36+曽屋二丁目!J36+寿町!J36+栄町!J36+文京町!J36+幸町!J36+桜町一丁目!J36+桜町二丁目!J36+水神町!J36+ひばりヶ丘!J36+富士見町!J36+曽屋!J36+上大槻!J36 -> 1 | K36: =本町一丁目!K36+本町二丁目!K36+本町三丁目!K36+河原町!K36+元町!K36+末広町!K36+入船町!K36+曽屋一丁目!K36+曽屋二丁目!K36+寿町!K36+栄町!K36+文京町!K36+幸町!K36+桜町一丁目!K36+桜町二丁目!K36+水神町!K36+ひばりヶ丘!K36+富士見町!K36+曽屋!K36+上大槻!K36 -> 10 | L36: =本町一丁目!L36+本町二丁目!L36+本町三丁目!L36+河原町!L36+元町!L36+末広町!L36+入船町!L36+曽屋一丁目!L36+曽屋二丁目!L36+寿町!L36+栄町!L36+文京町!L36+幸町!L36+桜町一丁目!L36+桜町二丁目!L36+水神町!L36+ひばりヶ丘!L36+富士見町!L36+曽屋!L36+上大槻!L36 -> 11
E37: 49 | F37: =本町一丁目!F37+本町二丁目!F37+本町三丁目!F37+河原町!F37+元町!F37+末広町!F37+入船町!F37+曽屋一丁目!F37+曽屋二丁目!F37+寿町!F37+栄町!F37+文京町!F37+幸町!F37+桜町一丁目!F37+桜町二丁目!F37+水神町!F37+ひばりヶ丘!F37+富士見町!F37+曽屋!F37+上大槻!F37 -> 169 | G37: =本町一丁目!G37+本町二丁目!G37+本町三丁目!G37+河原町!G37+元町!G37+末広町!G37+入船町!G37+曽屋一丁目!G37+曽屋二丁目!G37+寿町!G37+栄町!G37+文京町!G37+幸町!G37+桜町一丁目!G37+桜町二丁目!G37+水神町!G37+ひばりヶ丘!G37+富士見町!G37+曽屋!G37+上大槻!G37 -> 146 | H37: =本町一丁目!H37+本町二丁目!H37+本町三丁目!H37+河原町!H37+元町!H37+末広町!H37+入船町!H37+曽屋一丁目!H37+曽屋二丁目!H37+寿町!H37+栄町!H37+文京町!H37+幸町!H37+桜町一丁目!H37+桜町二丁目!H37+水神町!H37+ひばりヶ丘!H37+富士見町!H37+曽屋!H37+上大槻!H37 -> 315 | I37: 99 | J37: =本町一丁目!J37+本町二丁目!J37+本町三丁目!J37+河原町!J37+元町!J37+末広町!J37+入船町!J37+曽屋一丁目!J37+曽屋二丁目!J37+寿町!J37+栄町!J37+文京町!J37+幸町!J37+桜町一丁目!J37+桜町二丁目!J37+水神町!J37+ひばりヶ丘!J37+富士見町!J37+曽屋!J37+上大槻!J37 -> 1 | K37: =本町一丁目!K37+本町二丁目!K37+本町三丁目!K37+河原町!K37+元町!K37+末広町!K37+入船町!K37+曽屋一丁目!K37+曽屋二丁目!K37+寿町!K37+栄町!K37+文京町!K37+幸町!K37+桜町一丁目!K37+桜町二丁目!K37+水神町!K37+ひばりヶ丘!K37+富士見町!K37+曽屋!K37+上大槻!K37 -> 6 | L37: =本町一丁目!L37+本町二丁目!L37+本町三丁目!L37+河原町!L37+元町!L37+末広町!L37+入船町!L37+曽屋一丁目!L37+曽屋二丁目!L37+寿町!L37+栄町!L37+文京町!L37+幸町!L37+桜町一丁目!L37+桜町二丁目!L37+水神町!L37+ひばりヶ丘!L37+富士見町!L37+曽屋!L37+上大槻!L37 -> 7
E38: 50 | F38: =本町一丁目!F38+本町二丁目!F38+本町三丁目!F38+河原町!F38+元町!F38+末広町!F38+入船町!F38+曽屋一丁目!F38+曽屋二丁目!F38+寿町!F38+栄町!F38+文京町!F38+幸町!F38+桜町一丁目!F38+桜町二丁目!F38+水神町!F38+ひばりヶ丘!F38+富士見町!F38+曽屋!F38+上大槻!F38 -> 185 | G38: =本町一丁目!G38+本町二丁目!G38+本町三丁目!G38+河原町!G38+元町!G38+末広町!G38+入船町!G38+曽屋一丁目!G38+曽屋二丁目!G38+寿町!G38+栄町!G38+文京町!G38+幸町!G38+桜町一丁目!G38+桜町二丁目!G38+水神町!G38+ひばりヶ丘!G38+富士見町!G38+曽屋!G38+上大槻!G38 -> 175 | H38: =本町一丁目!H38+本町二丁目!H38+本町三丁目!H38+河原町!H38+元町!H38+末広町!H38+入船町!H38+曽屋一丁目!H38+曽屋二丁目!H38+寿町!H38+栄町!H38+文京町!H38+幸町!H38+桜町一丁目!H38+桜町二丁目!H38+水神町!H38+ひばりヶ丘!H38+富士見町!H38+曽屋!H38+上大槻!H38 -> 360 | I38: 100 | J38: =本町一丁目!J38+本町二丁目!J38+本町三丁目!J38+河原町!J38+元町!J38+末広町!J38+入船町!J38+曽屋一丁目!J38+曽屋二丁目!J38+寿町!J38+栄町!J38+文京町!J38+幸町!J38+桜町一丁目!J38+桜町二丁目!J38+水神町!J38+ひばりヶ丘!J38+富士見町!J38+曽屋!J38+上大槻!J38 -> 1 | K38: =本町一丁目!K38+本町二丁目!K38+本町三丁目!K38+河原町!K38+元町!K38+末広町!K38+入船町!K38+曽屋一丁目!K38+曽屋二丁目!K38+寿町!K38+栄町!K38+文京町!K38+幸町!K38+桜町一丁目!K38+桜町二丁目!K38+水神町!K38+ひばりヶ丘!K38+富士見町!K38+曽屋!K38+上大槻!K38 -> 7 | L38: =本町一丁目!L38+本町二丁目!L38+本町三丁目!L38+河原町!L38+元町!L38+末広町!L38+入船町!L38+曽屋一丁目!L38+曽屋二丁目!L38+寿町!L38+栄町!L38+文京町!L38+幸町!L38+桜町一丁目!L38+桜町二丁目!L38+水神町!L38+ひばりヶ丘!L38+富士見町!L38+曽屋!L38+上大槻!L38 -> 8
E39: 51 | F39: =本町一丁目!F39+本町二丁目!F39+本町三丁目!F39+河原町!F39+元町!F39+末広町!F39+入船町!F39+曽屋一丁目!F39+曽屋二丁目!F39+寿町!F39+栄町!F39+文京町!F39+幸町!F39+桜町一丁目!F39+桜町二丁目!F39+水神町!F39+ひばりヶ丘!F39+富士見町!F39+曽屋!F39+上大槻!F39 -> 194 | G39: =本町一丁目!G39+本町二丁目!G39+本町三丁目!G39+河原町!G39+元町!G39+末広町!G39+入船町!G39+曽屋一丁目!G39+曽屋二丁目!G39+寿町!G39+栄町!G39+文京町!G39+幸町!G39+桜町一丁目!G39+桜町二丁目!G39+水神町!G39+ひばりヶ丘!G39+富士見町!G39+曽屋!G39+上大槻!G39 -> 156 | H39: =本町一丁目!H39+本町二丁目!H39+本町三丁目!H39+河原町!H39+元町!H39+末広町!H39+入船町!H39+曽屋一丁目!H39+曽屋二丁目!H39+寿町!H39+栄町!H39+文京町!H39+幸町!H39+桜町一丁目!H39+桜町二丁目!H39+水神町!H39+ひばりヶ丘!H39+富士見町!H39+曽屋!H39+上大槻!H39 -> 350 | I39: 101 | J39: =本町一丁目!J39+本町二丁目!J39+本町三丁目!J39+河原町!J39+元町!J39+末広町!J39+入船町!J39+曽屋一丁目!J39+曽屋二丁目!J39+寿町!J39+栄町!J39+文京町!J39+幸町!J39+桜町一丁目!J39+桜町二丁目!J39+水神町!J39+ひばりヶ丘!J39+富士見町!J39+曽屋!J39+上大槻!J39 -> 0 | K39: =本町一丁目!K39+本町二丁目!K39+本町三丁目!K39+河原町!K39+元町!K39+末広町!K39+入船町!K39+曽屋一丁目!K39+曽屋二丁目!K39+寿町!K39+栄町!K39+文京町!K39+幸町!K39+桜町一丁目!K39+桜町二丁目!K39+水神町!K39+ひばりヶ丘!K39+富士見町!K39+曽屋!K39+上大槻!K39 -> 2 | L39: =本町一丁目!L39+本町二丁目!L39+本町三丁目!L39+河原町!L39+元町!L39+末広町!L39+入船町!L39+曽屋一丁目!L39+曽屋二丁目!L39+寿町!L39+栄町!L39+文京町!L39+幸町!L39+桜町一丁目!L39+桜町二丁目!L39+水神町!L39+ひばりヶ丘!L39+富士見町!L39+曽屋!L39+上大槻!L39 -> 2
E40: 52 | F40: =本町一丁目!F40+本町二丁目!F40+本町三丁目!F40+河原町!F40+元町!F40+末広町!F40+入船町!F40+曽屋一丁目!F40+曽屋二丁目!F40+寿町!F40+栄町!F40+文京町!F40+幸町!F40+桜町一丁目!F40+桜町二丁目!F40+水神町!F40+ひばりヶ丘!F40+富士見町!F40+曽屋!F40+上大槻!F40 -> 187 | G40: =本町一丁目!G40+本町二丁目!G40+本町三丁目!G40+河原町!G40+元町!G40+末広町!G40+入船町!G40+曽屋一丁目!G40+曽屋二丁目!G40+寿町!G40+栄町!G40+文京町!G40+幸町!G40+桜町一丁目!G40+桜町二丁目!G40+水神町!G40+ひばりヶ丘!G40+富士見町!G40+曽屋!G40+上大槻!G40 -> 176 | H40: =本町一丁目!H40+本町二丁目!H40+本町三丁目!H40+河原町!H40+元町!H40+末広町!H40+入船町!H40+曽屋一丁目!H40+曽屋二丁目!H40+寿町!H40+栄町!H40+文京町!H40+幸町!H40+桜町一丁目!H40+桜町二丁目!H40+水神町!H40+ひばりヶ丘!H40+富士見町!H40+曽屋!H40+上大槻!H40 -> 363 | I40: 102 | J40: =本町一丁目!J40+本町二丁目!J40+本町三丁目!J40+河原町!J40+元町!J40+末広町!J40+入船町!J40+曽屋一丁目!J40+曽屋二丁目!J40+寿町!J40+栄町!J40+文京町!J40+幸町!J40+桜町一丁目!J40+桜町二丁目!J40+水神町!J40+ひばりヶ丘!J40+富士見町!J40+曽屋!J40+上大槻!J40 -> 0 | K40: =本町一丁目!K40+本町二丁目!K40+本町三丁目!K40+河原町!K40+元町!K40+末広町!K40+入船町!K40+曽屋一丁目!K40+曽屋二丁目!K40+寿町!K40+栄町!K40+文京町!K40+幸町!K40+桜町一丁目!K40+桜町二丁目!K40+水神町!K40+ひばりヶ丘!K40+富士見町!K40+曽屋!K40+上大槻!K40 -> 2 | L40: =本町一丁目!L40+本町二丁目!L40+本町三丁目!L40+河原町!L40+元町!L40+末広町!L40+入船町!L40+曽屋一丁目!L40+曽屋二丁目!L40+寿町!L40+栄町!L40+文京町!L40+幸町!L40+桜町一丁目!L40+桜町二丁目!L40+水神町!L40+ひばりヶ丘!L40+富士見町!L40+曽屋!L40+上大槻!L40 -> 2
E41: 53 | F41: =本町一丁目!F41+本町二丁目!F41+本町三丁目!F41+河原町!F41+元町!F41+末広町!F41+入船町!F41+曽屋一丁目!F41+曽屋二丁目!F41+寿町!F41+栄町!F41+文京町!F41+幸町!F41+桜町一丁目!F41+桜町二丁目!F41+水神町!F41+ひばりヶ丘!F41+富士見町!F41+曽屋!F41+上大槻!F41 -> 178 | G41: =本町一丁目!G41+本町二丁目!G41+本町三丁目!G41+河原町!G41+元町!G41+末広町!G41+入船町!G41+曽屋一丁目!G41+曽屋二丁目!G41+寿町!G41+栄町!G41+文京町!G41+幸町!G41+桜町一丁目!G41+桜町二丁目!G41+水神町!G41+ひばりヶ丘!G41+富士見町!G41+曽屋!G41+上大槻!G41 -> 147 | H41: =本町一丁目!H41+本町二丁目!H41+本町三丁目!H41+河原町!H41+元町!H41+末広町!H41+入船町!H41+曽屋一丁目!H41+曽屋二丁目!H41+寿町!H41+栄町!H41+文京町!H41+幸町!H41+桜町一丁目!H41+桜町二丁目!H41+水神町!H41+ひばりヶ丘!H41+富士見町!H41+曽屋!H41+上大槻!H41 -> 325 | I41: 103 | J41: =本町一丁目!J41+本町二丁目!J41+本町三丁目!J41+河原町!J41+元町!J41+末広町!J41+入船町!J41+曽屋一丁目!J41+曽屋二丁目!J41+寿町!J41+栄町!J41+文京町!J41+幸町!J41+桜町一丁目!J41+桜町二丁目!J41+水神町!J41+ひばりヶ丘!J41+富士見町!J41+曽屋!J41+上大槻!J41 -> 1 | K41: =本町一丁目!K41+本町二丁目!K41+本町三丁目!K41+河原町!K41+元町!K41+末広町!K41+入船町!K41+曽屋一丁目!K41+曽屋二丁目!K41+寿町!K41+栄町!K41+文京町!K41+幸町!K41+桜町一丁目!K41+桜町二丁目!K41+水神町!K41+ひばりヶ丘!K41+富士見町!K41+曽屋!K41+上大槻!K41 -> 4 | L41: =本町一丁目!L41+本町二丁目!L41+本町三丁目!L41+河原町!L41+元町!L41+末広町!L41+入船町!L41+曽屋一丁目!L41+曽屋二丁目!L41+寿町!L41+栄町!L41+文京町!L41+幸町!L41+桜町一丁目!L41+桜町二丁目!L41+水神町!L41+ひばりヶ丘!L41+富士見町!L41+曽屋!L41+上大槻!L41 -> 5
E42: 54 | F42: =本町一丁目!F42+本町二丁目!F42+本町三丁目!F42+河原町!F42+元町!F42+末広町!F42+入船町!F42+曽屋一丁目!F42+曽屋二丁目!F42+寿町!F42+栄町!F42+文京町!F42+幸町!F42+桜町一丁目!F42+桜町二丁目!F42+水神町!F42+ひばりヶ丘!F42+富士見町!F42+曽屋!F42+上大槻!F42 -> 191 | G42: =本町一丁目!G42+本町二丁目!G42+本町三丁目!G42+河原町!G42+元町!G42+末広町!G42+入船町!G42+曽屋一丁目!G42+曽屋二丁目!G42+寿町!G42+栄町!G42+文京町!G42+幸町!G42+桜町一丁目!G42+桜町二丁目!G42+水神町!G42+ひばりヶ丘!G42+富士見町!G42+曽屋!G42+上大槻!G42 -> 163 | H42: =本町一丁目!H42+本町二丁目!H42+本町三丁目!H42+河原町!H42+元町!H42+末広町!H42+入船町!H42+曽屋一丁目!H42+曽屋二丁目!H42+寿町!H42+栄町!H42+文京町!H42+幸町!H42+桜町一丁目!H42+桜町二丁目!H42+水神町!H42+ひばりヶ丘!H42+富士見町!H42+曽屋!H42+上大槻!H42 -> 354 | I42: 104 | J42: =本町一丁目!J42+本町二丁目!J42+本町三丁目!J42+河原町!J42+元町!J42+末広町!J42+入船町!J42+曽屋一丁目!J42+曽屋二丁目!J42+寿町!J42+栄町!J42+文京町!J42+幸町!J42+桜町一丁目!J42+桜町二丁目!J42+水神町!J42+ひばりヶ丘!J42+富士見町!J42+曽屋!J42+上大槻!J42 -> 0 | K42: =本町一丁目!K42+本町二丁目!K42+本町三丁目!K42+河原町!K42+元町!K42+末広町!K42+入船町!K42+曽屋一丁目!K42+曽屋二丁目!K42+寿町!K42+栄町!K42+文京町!K42+幸町!K42+桜町一丁目!K42+桜町二丁目!K42+水神町!K42+ひばりヶ丘!K42+富士見町!K42+曽屋!K42+上大槻!K42 -> 2 | L42: =本町一丁目!L42+本町二丁目!L42+本町三丁目!L42+河原町!L42+元町!L42+末広町!L42+入船町!L42+曽屋一丁目!L42+曽屋二丁目!L42+寿町!L42+栄町!L42+文京町!L42+幸町!L42+桜町一丁目!L42+桜町二丁目!L42+水神町!L42+ひばりヶ丘!L42+富士見町!L42+曽屋!L42+上大槻!L42 -> 2
E43: 55 | F43: =本町一丁目!F43+本町二丁目!F43+本町三丁目!F43+河原町!F43+元町!F43+末広町!F43+入船町!F43+曽屋一丁目!F43+曽屋二丁目!F43+寿町!F43+栄町!F43+文京町!F43+幸町!F43+桜町一丁目!F43+桜町二丁目!F43+水神町!F43+ひばりヶ丘!F43+富士見町!F43+曽屋!F43+上大槻!F43 -> 183 | G43: =本町一丁目!G43+本町二丁目!G43+本町三丁目!G43+河原町!G43+元町!G43+末広町!G43+入船町!G43+曽屋一丁目!G43+曽屋二丁目!G43+寿町!G43+栄町!G43+文京町!G43+幸町!G43+桜町一丁目!G43+桜町二丁目!G43+水神町!G43+ひばりヶ丘!G43+富士見町!G43+曽屋!G43+上大槻!G43 -> 157 | H43: =本町一丁目!H43+本町二丁目!H43+本町三丁目!H43+河原町!H43+元町!H43+末広町!H43+入船町!H43+曽屋一丁目!H43+曽屋二丁目!H43+寿町!H43+栄町!H43+文京町!H43+幸町!H43+桜町一丁目!H43+桜町二丁目!H43+水神町!H43+ひばりヶ丘!H43+富士見町!H43+曽屋!H43+上大槻!H43 -> 340 | I43: 105 | J43: =本町一丁目!J43+本町二丁目!J43+本町三丁目!J43+河原町!J43+元町!J43+末広町!J43+入船町!J43+曽屋一丁目!J43+曽屋二丁目!J43+寿町!J43+栄町!J43+文京町!J43+幸町!J43+桜町一丁目!J43+桜町二丁目!J43+水神町!J43+ひばりヶ丘!J43+富士見町!J43+曽屋!J43+上大槻!J43 -> 0 | K43: =本町一丁目!K43+本町二丁目!K43+本町三丁目!K43+河原町!K43+元町!K43+末広町!K43+入船町!K43+曽屋一丁目!K43+曽屋二丁目!K43+寿町!K43+栄町!K43+文京町!K43+幸町!K43+桜町一丁目!K43+桜町二丁目!K43+水神町!K43+ひばりヶ丘!K43+富士見町!K43+曽屋!K43+上大槻!K43 -> 0 | L43: =本町一丁目!L43+本町二丁目!L43+本町三丁目!L43+河原町!L43+元町!L43+末広町!L43+入船町!L43+曽屋一丁目!L43+曽屋二丁目!L43+寿町!L43+栄町!L43+文京町!L43+幸町!L43+桜町一丁目!L43+桜町二丁目!L43+水神町!L43+ひばりヶ丘!L43+富士見町!L43+曽屋!L43+上大槻!L43 -> 0
E44: 56 | F44: =本町一丁目!F44+本町二丁目!F44+本町三丁目!F44+河原町!F44+元町!F44+末広町!F44+入船町!F44+曽屋一丁目!F44+曽屋二丁目!F44+寿町!F44+栄町!F44+文京町!F44+幸町!F44+桜町一丁目!F44+桜町二丁目!F44+水神町!F44+ひばりヶ丘!F44+富士見町!F44+曽屋!F44+上大槻!F44 -> 154 | G44: =本町一丁目!G44+本町二丁目!G44+本町三丁目!G44+河原町!G44+元町!G44+末広町!G44+入船町!G44+曽屋一丁目!G44+曽屋二丁目!G44+寿町!G44+栄町!G44+文京町!G44+幸町!G44+桜町一丁目!G44+桜町二丁目!G44+水神町!G44+ひばりヶ丘!G44+富士見町!G44+曽屋!G44+上大槻!G44 -> 149 | H44: =本町一丁目!H44+本町二丁目!H44+本町三丁目!H44+河原町!H44+元町!H44+末広町!H44+入船町!H44+曽屋一丁目!H44+曽屋二丁目!H44+寿町!H44+栄町!H44+文京町!H44+幸町!H44+桜町一丁目!H44+桜町二丁目!H44+水神町!H44+ひばりヶ丘!H44+富士見町!H44+曽屋!H44+上大槻!H44 -> 303 | I44: 106 | J44: =本町一丁目!J44+本町二丁目!J44+本町三丁目!J44+河原町!J44+元町!J44+末広町!J44+入船町!J44+曽屋一丁目!J44+曽屋二丁目!J44+寿町!J44+栄町!J44+文京町!J44+幸町!J44+桜町一丁目!J44+桜町二丁目!J44+水神町!J44+ひばりヶ丘!J44+富士見町!J44+曽屋!J44+上大槻!J44 -> 0 | K44: =本町一丁目!K44+本町二丁目!K44+本町三丁目!K44+河原町!K44+元町!K44+末広町!K44+入船町!K44+曽屋一丁目!K44+曽屋二丁目!K44+寿町!K44+栄町!K44+文京町!K44+幸町!K44+桜町一丁目!K44+桜町二丁目!K44+水神町!K44+ひばりヶ丘!K44+富士見町!K44+曽屋!K44+上大槻!K44 -> 0 | L44: =本町一丁目!L44+本町二丁目!L44+本町三丁目!L44+河原町!L44+元町!L44+末広町!L44+入船町!L44+曽屋一丁目!L44+曽屋二丁目!L44+寿町!L44+栄町!L44+文京町!L44+幸町!L44+桜町一丁目!L44+桜町二丁目!L44+水神町!L44+ひばりヶ丘!L44+富士見町!L44+曽屋!L44+上大槻!L44 -> 0
E45: 57 | F45: =本町一丁目!F45+本町二丁目!F45+本町三丁目!F45+河原町!F45+元町!F45+末広町!F45+入船町!F45+曽屋一丁目!F45+曽屋二丁目!F45+寿町!F45+栄町!F45+文京町!F45+幸町!F45+桜町一丁目!F45+桜町二丁目!F45+水神町!F45+ひばりヶ丘!F45+富士見町!F45+曽屋!F45+上大槻!F45 -> 174 | G45: =本町一丁目!G45+本町二丁目!G45+本町三丁目!G45+河原町!G45+元町!G45+末広町!G45+入船町!G45+曽屋一丁目!G45+曽屋二丁目!G45+寿町!G45+栄町!G45+文京町!G45+幸町!G45+桜町一丁目!G45+桜町二丁目!G45+水神町!G45+ひばりヶ丘!G45+富士見町!G45+曽屋!G45+上大槻!G45 -> 152 | H45: =本町一丁目!H45+本町二丁目!H45+本町三丁目!H45+河原町!H45+元町!H45+末広町!H45+入船町!H45+曽屋一丁目!H45+曽屋二丁目!H45+寿町!H45+栄町!H45+文京町!H45+幸町!H45+桜町一丁目!H45+桜町二丁目!H45+水神町!H45+ひばりヶ丘!H45+富士見町!H45+曽屋!H45+上大槻!H45 -> 326 | I45: 107 | J45: =本町一丁目!J45+本町二丁目!J45+本町三丁目!J45+河原町!J45+元町!J45+末広町!J45+入船町!J45+曽屋一丁目!J45+曽屋二丁目!J45+寿町!J45+栄町!J45+文京町!J45+幸町!J45+桜町一丁目!J45+桜町二丁目!J45+水神町!J45+ひばりヶ丘!J45+富士見町!J45+曽屋!J45+上大槻!J45 -> 0 | K45: =本町一丁目!K45+本町二丁目!K45+本町三丁目!K45+河原町!K45+元町!K45+末広町!K45+入船町!K45+曽屋一丁目!K45+曽屋二丁目!K45+寿町!K45+栄町!K45+文京町!K45+幸町!K45+桜町一丁目!K45+桜町二丁目!K45+水神町!K45+ひばりヶ丘!K45+富士見町!K45+曽屋!K45+上大槻!K45 -> 0 | L45: =本町一丁目!L45+本町二丁目!L45+本町三丁目!L45+河原町!L45+元町!L45+末広町!L45+入船町!L45+曽屋一丁目!L45+曽屋二丁目!L45+寿町!L45+栄町!L45+文京町!L45+幸町!L45+桜町一丁目!L45+桜町二丁目!L45+水神町!L45+ひばりヶ丘!L45+富士見町!L45+曽屋!L45+上大槻!L45 -> 0
E46: 58 | F46: =本町一丁目!F46+本町二丁目!F46+本町三丁目!F46+河原町!F46+元町!F46+末広町!F46+入船町!F46+曽屋一丁目!F46+曽屋二丁目!F46+寿町!F46+栄町!F46+文京町!F46+幸町!F46+桜町一丁目!F46+桜町二丁目!F46+水神町!F46+ひばりヶ丘!F46+富士見町!F46+曽屋!F46+上大槻!F46 -> 191 | G46: =本町一丁目!G46+本町二丁目!G46+本町三丁目!G46+河原町!G46+元町!G46+末広町!G46+入船町!G46+曽屋一丁目!G46+曽屋二丁目!G46+寿町!G46+栄町!G46+文京町!G46+幸町!G46+桜町一丁目!G46+桜町二丁目!G46+水神町!G46+ひばりヶ丘!G46+富士見町!G46+曽屋!G46+上大槻!G46 -> 151 | H46: =本町一丁目!H46+本町二丁目!H46+本町三丁目!H46+河原町!H46+元町!H46+末広町!H46+入船町!H46+曽屋一丁目!H46+曽屋二丁目!H46+寿町!H46+栄町!H46+文京町!H46+幸町!H46+桜町一丁目!H46+桜町二丁目!H46+水神町!H46+ひばりヶ丘!H46+富士見町!H46+曽屋!H46+上大槻!H46 -> 342 | I46: 108 | J46: =本町一丁目!J46+本町二丁目!J46+本町三丁目!J46+河原町!J46+元町!J46+末広町!J46+入船町!J46+曽屋一丁目!J46+曽屋二丁目!J46+寿町!J46+栄町!J46+文京町!J46+幸町!J46+桜町一丁目!J46+桜町二丁目!J46+水神町!J46+ひばりヶ丘!J46+富士見町!J46+曽屋!J46+上大槻!J46 -> 0 | K46: =本町一丁目!K46+本町二丁目!K46+本町三丁目!K46+河原町!K46+元町!K46+末広町!K46+入船町!K46+曽屋一丁目!K46+曽屋二丁目!K46+寿町!K46+栄町!K46+文京町!K46+幸町!K46+桜町一丁目!K46+桜町二丁目!K46+水神町!K46+ひばりヶ丘!K46+富士見町!K46+曽屋!K46+上大槻!K46 -> 0 | L46: =SUM(J46:K46) -> 0
E47: 59 | F47: =本町一丁目!F47+本町二丁目!F47+本町三丁目!F47+河原町!F47+元町!F47+末広町!F47+入船町!F47+曽屋一丁目!F47+曽屋二丁目!F47+寿町!F47+栄町!F47+文京町!F47+幸町!F47+桜町一丁目!F47+桜町二丁目!F47+水神町!F47+ひばりヶ丘!F47+富士見町!F47+曽屋!F47+上大槻!F47 -> 143 | G47: =本町一丁目!G47+本町二丁目!G47+本町三丁目!G47+河原町!G47+元町!G47+末広町!G47+入船町!G47+曽屋一丁目!G47+曽屋二丁目!G47+寿町!G47+栄町!G47+文京町!G47+幸町!G47+桜町一丁目!G47+桜町二丁目!G47+水神町!G47+ひばりヶ丘!G47+富士見町!G47+曽屋!G47+上大槻!G47 -> 120 | H47: =本町一丁目!H47+本町二丁目!H47+本町三丁目!H47+河原町!H47+元町!H47+末広町!H47+入船町!H47+曽屋一丁目!H47+曽屋二丁目!H47+寿町!H47+栄町!H47+文京町!H47+幸町!H47+桜町一丁目!H47+桜町二丁目!H47+水神町!H47+ひばりヶ丘!H47+富士見町!H47+曽屋!H47+上大槻!H47 -> 263 | I47: 小計 | J47: =SUM(J3:J46) -> 2872 | K47: =SUM(K3:K46) -> 3518 | L47: =SUM(J47:K47) -> 6390
E48: 60 | F48: =本町一丁目!F48+本町二丁目!F48+本町三丁目!F48+河原町!F48+元町!F48+末広町!F48+入船町!F48+曽屋一丁目!F48+曽屋二丁目!F48+寿町!F48+栄町!F48+文京町!F48+幸町!F48+桜町一丁目!F48+桜町二丁目!F48+水神町!F48+ひばりヶ丘!F48+富士見町!F48+曽屋!F48+上大槻!F48 -> 155 | G48: =本町一丁目!G48+本町二丁目!G48+本町三丁目!G48+河原町!G48+元町!G48+末広町!G48+入船町!G48+曽屋一丁目!G48+曽屋二丁目!G48+寿町!G48+栄町!G48+文京町!G48+幸町!G48+桜町一丁目!G48+桜町二丁目!G48+水神町!G48+ひばりヶ丘!G48+富士見町!G48+曽屋!G48+上大槻!G48 -> 167 | H48: =本町一丁目!H48+本町二丁目!H48+本町三丁目!H48+河原町!H48+元町!H48+末広町!H48+入船町!H48+曽屋一丁目!H48+曽屋二丁目!H48+寿町!H48+栄町!H48+文京町!H48+幸町!H48+桜町一丁目!H48+桜町二丁目!H48+水神町!H48+ひばりヶ丘!H48+富士見町!H48+曽屋!H48+上大槻!H48 -> 322
E49: 61 | F49: =本町一丁目!F49+本町二丁目!F49+本町三丁目!F49+河原町!F49+元町!F49+末広町!F49+入船町!F49+曽屋一丁目!F49+曽屋二丁目!F49+寿町!F49+栄町!F49+文京町!F49+幸町!F49+桜町一丁目!F49+桜町二丁目!F49+水神町!F49+ひばりヶ丘!F49+富士見町!F49+曽屋!F49+上大槻!F49 -> 171 | G49: =本町一丁目!G49+本町二丁目!G49+本町三丁目!G49+河原町!G49+元町!G49+末広町!G49+入船町!G49+曽屋一丁目!G49+曽屋二丁目!G49+寿町!G49+栄町!G49+文京町!G49+幸町!G49+桜町一丁目!G49+桜町二丁目!G49+水神町!G49+ひばりヶ丘!G49+富士見町!G49+曽屋!G49+上大槻!G49 -> 132 | H49: =本町一丁目!H49+本町二丁目!H49+本町三丁目!H49+河原町!H49+元町!H49+末広町!H49+入船町!H49+曽屋一丁目!H49+曽屋二丁目!H49+寿町!H49+栄町!H49+文京町!H49+幸町!H49+桜町一丁目!H49+桜町二丁目!H49+水神町!H49+ひばりヶ丘!H49+富士見町!H49+曽屋!H49+上大槻!H49 -> 303 | J49: 本町地区合計
E50: 62 | F50: =本町一丁目!F50+本町二丁目!F50+本町三丁目!F50+河原町!F50+元町!F50+末広町!F50+入船町!F50+曽屋一丁目!F50+曽屋二丁目!F50+寿町!F50+栄町!F50+文京町!F50+幸町!F50+桜町一丁目!F50+桜町二丁目!F50+水神町!F50+ひばりヶ丘!F50+富士見町!F50+曽屋!F50+上大槻!F50 -> 159 | G50: =本町一丁目!G50+本町二丁目!G50+本町三丁目!G50+河原町!G50+元町!G50+末広町!G50+入船町!G50+曽屋一丁目!G50+曽屋二丁目!G50+寿町!G50+栄町!G50+文京町!G50+幸町!G50+桜町一丁目!G50+桜町二丁目!G50+水神町!G50+ひばりヶ丘!G50+富士見町!G50+曽屋!G50+上大槻!G50 -> 129 | H50: =本町一丁目!H50+本町二丁目!H50+本町三丁目!H50+河原町!H50+元町!H50+末広町!H50+入船町!H50+曽屋一丁目!H50+曽屋二丁目!H50+寿町!H50+栄町!H50+文京町!H50+幸町!H50+桜町一丁目!H50+桜町二丁目!H50+水神町!H50+ひばりヶ丘!H50+富士見町!H50+曽屋!H50+上大槻!H50 -> 288 | J50: 男 | K50: 女 | L50: 計
E51: 63 | F51: =本町一丁目!F51+本町二丁目!F51+本町三丁目!F51+河原町!F51+元町!F51+末広町!F51+入船町!F51+曽屋一丁目!F51+曽屋二丁目!F51+寿町!F51+栄町!F51+文京町!F51+幸町!F51+桜町一丁目!F51+桜町二丁目!F51+水神町!F51+ひばりヶ丘!F51+富士見町!F51+曽屋!F51+上大槻!F51 -> 131 | G51: =本町一丁目!G51+本町二丁目!G51+本町三丁目!G51+河原町!G51+元町!G51+末広町!G51+入船町!G51+曽屋一丁目!G51+曽屋二丁目!G51+寿町!G51+栄町!G51+文京町!G51+幸町!G51+桜町一丁目!G51+桜町二丁目!G51+水神町!G51+ひばりヶ丘!G51+富士見町!G51+曽屋!G51+上大槻!G51 -> 115 | H51: =本町一丁目!H51+本町二丁目!H51+本町三丁目!H51+河原町!H51+元町!H51+末広町!H51+入船町!H51+曽屋一丁目!H51+曽屋二丁目!H51+寿町!H51+栄町!H51+文京町!H51+幸町!H51+桜町一丁目!H51+桜町二丁目!H51+水神町!H51+ひばりヶ丘!H51+富士見町!H51+曽屋!H51+上大槻!H51 -> 246 | J51: =SUM(B18,F53,J47) -> 10510 | K51: =SUM(C18,G53,K47) -> 10342 | L51: =SUM(J51:K51) -> 20852
E52: 64 | F52: =本町一丁目!F52+本町二丁目!F52+本町三丁目!F52+河原町!F52+元町!F52+末広町!F52+入船町!F52+曽屋一丁目!F52+曽屋二丁目!F52+寿町!F52+栄町!F52+文京町!F52+幸町!F52+桜町一丁目!F52+桜町二丁目!F52+水神町!F52+ひばりヶ丘!F52+富士見町!F52+曽屋!F52+上大槻!F52 -> 126 | G52: =本町一丁目!G52+本町二丁目!G52+本町三丁目!G52+河原町!G52+元町!G52+末広町!G52+入船町!G52+曽屋一丁目!G52+曽屋二丁目!G52+寿町!G52+栄町!G52+文京町!G52+幸町!G52+桜町一丁目!G52+桜町二丁目!G52+水神町!G52+ひばりヶ丘!G52+富士見町!G52+曽屋!G52+上大槻!G52 -> 150 | H52: =本町一丁目!H52+本町二丁目!H52+本町三丁目!H52+河原町!H52+元町!H52+末広町!H52+入船町!H52+曽屋一丁目!H52+曽屋二丁目!H52+寿町!H52+栄町!H52+文京町!H52+幸町!H52+桜町一丁目!H52+桜町二丁目!H52+水神町!H52+ひばりヶ丘!H52+富士見町!H52+曽屋!H52+上大槻!H52 -> 276
E53: 小計 | F53: =SUM(F3:F52) -> 6554 | G53: =SUM(G3:G52) -> 5862 | H53: =SUM(F53:G53) -> 12416
F56: -2-

Sheet 本町一丁目
A1: ◆本町１丁目 | H1: =秦野市合計!H1 -> 令和7年10月1日現在（単位：人）
A2: 年少人口(0歳～14歳) | B2: 男 | C2: 女 | D2: 計 | E2: 生産年齢人口(15歳～64歳) | F2: 男 | G2: 女 | H2: 計 | I2: 老年人口(65歳以上) | J2: 男 | K2: 女 | L2: 計
A3: 0 | B3: =VLOOKUP(REPLACE($A$1,1,1,"")&A3,[1]戸籍からデータ貼り付け先!$A$2:$T$12093,14,FALSE) -> 1 | C3: =VLOOKUP(REPLACE($A$1,1,1,"")&A3,[1]戸籍からデータ貼り付け先!$A$2:$T$12093,16,FALSE) -> 0 | D3: =SUM(B3:C3) -> 1 | E3: 15 | F3: =VLOOKUP(REPLACE($A$1,1,1,"")&E3,[1]戸籍からデータ貼り付け先!$A$2:$T$12093,14,FALSE) -> 2 | G3: =VLOOKUP(REPLACE($A$1,1,1,"")&E3,[1]戸籍からデータ貼り付け先!$A$2:$T$12093,16,FALSE) -> 1 | H3: =SUM(F3:G3) -> 3 | I3: 65 | J3: =VLOOKUP(REPLACE($A$1,1,1,"")&I3,[1]戸籍からデータ貼り付け先!$A$2:$T$12093,14,FALSE) -> 2 | K3: =VLOOKUP(REPLACE($A$1,1,1,"")&I3,[1]戸籍からデータ貼り付け先!$A$2:$T$12093,16,FALSE) -> 1 | L3: =SUM(J3:K3) -> 3
A4: 1 | B4: =VLOOKUP(REPLACE($A$1,1,1,"")&A4,[1]戸籍からデータ貼り付け先!$A$2:$T$12093,14,FALSE) -> 0 | C4: =VLOOKUP(REPLACE($A$1,1,1,"")&A4,[1]戸籍からデータ貼り付け先!$A$2:$T$12093,16,FALSE) -> 1 | D4: =SUM(B4:C4) -> 1 | E4: 16 | F4: =VLOOKUP(REPLACE($A$1,1,1,"")&E4,[1]戸籍からデータ貼り付け先!$A$2:$T$12093,14,FALSE) -> 2 | G4: =VLOOKUP(REPLACE($A$1,1,1,"")&E4,[1]戸籍からデータ貼り付け先!$A$2:$T$12093,16,FALSE) -> 3 | H4: =SUM(F4:G4) -> 5 | I4: 66 | J4: =VLOOKUP(REPLACE($A$1,1,1,"")&I4,[1]戸籍からデータ貼り付け先!$A$2:$T$12093,14,FALSE) -> 2 | K4: =VLOOKUP(REPLACE($A$1,1,1,"")&I4,[1]戸籍からデータ貼り付け先!$A$2:$T$12093,16,FALSE) -> 4 | L4: =SUM(J4:K4) -> 6
A5: 2 | B5: =VLOOKUP(REPLACE($A$1,1,1,"")&A5,[1]戸籍からデータ貼り付け先!$A$2:$T$12093,14,FALSE) -> 1 | C5: =VLOOKUP(REPLACE($A$1,1,1,"")&A5,[1]戸籍からデータ貼り付け先!$A$2:$T$12093,16,FALSE) -> 1 | D5: 2 | E5: 17 | F5: =VLOOKUP(REPLACE($A$1,1,1,"")&E5,[1]戸籍からデータ貼り付け先!$A$2:$T$12093,14,FALSE) -> 2 | G5: =VLOOKUP(REPLACE($A$1,1,1,"")&E5,[1]戸籍からデータ貼り付け先!$A$2:$T$12093,16,FALSE) -> 3 | H5: 5 | I5: 67 | J5: =VLOOKUP(REPLACE($A$1,1,1,"")&I5,[1]戸籍からデータ貼り付け先!$A$2:$T$12093,14,FALSE) -> 2 | K5: =VLOOKUP(REPLACE($A$1,1,1,"")&I5,[1]戸籍からデータ貼り付け先!$A$2:$T$12093,16,FALSE) -> 1 | L5: 3
A6: 3 | B6: =VLOOKUP(REPLACE($A$1,1,1,"")&A6,[1]戸籍からデータ貼り付け先!$A$2:$T$12093,14,FALSE) -> 1 | C6: =VLOOKUP(REPLACE($A$1,1,1,"")&A6,[1]戸籍からデータ貼り付け先!$A$2:$T$12093,16,FALSE) -> 1 | D6: 2 | E6: 18 | F6: =VLOOKUP(REPLACE($A$1,1,1,"")&E6,[1]戸籍からデータ貼り付け先!$A$2:$T$12093,14,FALSE) -> 2 | G6: =VLOOKUP(REPLACE($A$1,1,1,"")&E6,[1]戸籍からデータ貼り付け先!$A$2:$T$12093,16,FALSE) -> 4 | H6: 6 | I6: 68 | J6: =VLOOKUP(REPLACE($A$1,1,1,"")&I6,[1]戸籍からデータ貼り付け先!$A$2:$T$12093,14,FALSE) -> 5 | K6: =VLOOKUP(REPLACE($A$1,1,1,"")&I6,[1]戸籍からデータ貼り付け先!$A$2:$T$12093,16,FALSE) -> 2 | L6: 7
A7: 4 | B7: =VLOOKUP(REPLACE($A$1,1,1,"")&A7,[1]戸籍からデータ貼り付け先!$A$2:$T$12093,14,FALSE) -> 1 | C7: =VLOOKUP(REPLACE($A$1,1,1,"")&A7,[1]戸籍からデータ貼り付け先!$A$2:$T$12093,16,FALSE) -> 0 | D7: 1 | E7: 19 | F7: =VLOOKUP(REPLACE($A$1,1,1,"")&E7,[1]戸籍からデータ貼り付け先!$A$2:$T$12093,14,FALSE) -> 3 | G7: =VLOOKUP(REPLACE($A$1,1,1,"")&E7,[1]戸籍からデータ貼り付け先!$A$2:$T$12093,16,FALSE) -> 1 | H7: 4 | I7: 69 | J7: =VLOOKUP(REPLACE($A$1,1,1,"")&I7,[1]戸籍からデータ貼り付け先!$A$2:$T$12093,14,FALSE) -> 1 | K7: =VLOOKUP(REPLACE($A$1,1,1,"")&I7,[1]戸籍からデータ貼り付け先!$A$2:$T$12093,16,FALSE) -> 3 | L7: 4
A8: 5 | B8: =VLOOKUP(REPLACE($A$1,1,1,"")&A8,[1]戸籍からデータ貼り付け先!$A$2:$T$12093,14,FALSE) -> 2 | C8: =VLOOKUP(REPLACE($A$1,1,1,"")&A8,[1]戸籍からデータ貼り付け先!$A$2:$T$12093,16,FALSE) -> 0 | D8: 2 | E8: 20 | F8: =VLOOKUP(REPLACE($A$1,1,1,"")&E8,[1]戸籍からデータ貼り付け先!$A$2:$T$12093,14,FALSE) -> 4 | G8: =VLOOKUP(REPLACE($A$1,1,1,"")&E8,[1]戸籍からデータ貼り付け先!$A$2:$T$12093,16,FALSE) -> 1 | H8: 5 | I8: 70 | J8: =VLOOKUP(REPLACE($A$1,1,1,"")&I8,[1]戸籍からデータ貼り付け先!$A$2:$T$12093,14,FALSE) -> 0 | K8: =VLOOKUP(REPLACE($A$1,1,1,"")&I8,[1]戸籍からデータ貼り付け先!$A$2:$T$12093,16,FALSE) -> 4 | L8: 4
A9: 6 | B9: =VLOOKUP(REPLACE($A$1,1,1,"")&A9,[1]戸籍からデータ貼り付け先!$A$2:$T$12093,14,FALSE) -> 1 | C9: =VLOOKUP(REPLACE($A$1,1,1,"")&A9,[1]戸籍からデータ貼り付け先!$A$2:$T$12093,16,FALSE) -> 1 | D9: 2 | E9: 21 | F9: =VLOOKUP(REPLACE($A$1,1,1,"")&E9,[1]戸籍からデータ貼り付け先!$A$2:$T$12093,14,FALSE) -> 1 | G9: =VLOOKUP(REPLACE($A$1,1,1,"")&E9,[1]戸籍からデータ貼り付け先!$A$2:$T$12093,16,FALSE) -> 1 | H9: 2 | I9: 71 | J9: =VLOOKUP(REPLACE($A$1,1,1,"")&I9,[1]戸籍からデータ貼り付け先!$A$2:$T$12093,14,FALSE) -> 1 | K9: =VLOOKUP(REPLACE($A$1,1,1,"")&I9,[1]戸籍からデータ貼り付け先!$A$2:$T$12093,16,FALSE) -> 1 | L9: 2
A10: 7 | B10: =VLOOKUP(REPLACE($A$1,1,1,"")&A10,[1]戸籍からデータ貼り付け先!$A$2:$T$12093,14,FALSE) -> 1 | C10: =VLOOKUP(REPLACE($A$1,1,1,"")&A10,[1]戸籍からデータ貼り付け先!$A$2:$T$12093,16,FALSE) -> 2 | D10: 3 | E10: 22 | F10: =VLOOKUP(REPLACE($A$1,1,1,"")&E10,[1]戸籍からデータ貼り付け先!$A$2:$T$12093,14,FALSE) -> 2 | G10: =VLOOKUP(REPLACE($A$1,1,1,"")&E10,[1]戸籍からデータ貼り付け先!$A$2:$T$12093,16,FALSE) -> 3 | H10: 5 | I10: 72 | J10: =VLOOKUP(REPLACE($A$1,1,1,"")&I10,[1]戸籍からデータ貼り付け先!$A$2:$T$12093,14,FALSE) -> 3 | K10: =VLOOKUP(REPLACE($A$1,1,1,"")&I10,[1]戸籍からデータ貼り付け先!$A$2:$T$12093,16,FALSE) -> 2 | L10: 5
A11: 8 | B11: =VLOOKUP(REPLACE($A$1,1,1,"")&A11,[1]戸籍からデータ貼り付け先!$A$2:$T$12093,14,FALSE) -> 0 | C11: =VLOOKUP(REPLACE($A$1,1,1,"")&A11,[1]戸籍からデータ貼り付け先!$A$2:$T$12093,16,FALSE) -> 2 | D11: 2 | E11: 23 | F11: =VLOOKUP(REPLACE($A$1,1,1,"")&E11,[1]戸籍からデータ貼り付け先!$A$2:$T$12093,14,FALSE) -> 2 | G11: =VLOOKUP(REPLACE($A$1,1,1,"")&E11,[1]戸籍からデータ貼り付け先!$A$2:$T$12093,16,FALSE) -> 3 | H11: 5 | I11: 73 | J11: =VLOOKUP(REPLACE($A$1,1,1,"")&I11,[1]戸籍からデータ貼り付け先!$A$2:$T$12093,14,FALSE) -> 3 | K11: =VLOOKUP(REPLACE($A$1,1,1,"")&I11,[1]戸籍からデータ貼り付け先!$A$2:$T$12093,16,FALSE) -> 5 | L11: 8
A12: 9 | B12: =VLOOKUP(REPLACE($A$1,1,1,"")&A12,[1]戸籍からデータ貼り付け先!$A$2:$T$12093,14,FALSE) -> 1 | C12: =VLOOKUP(REPLACE($A$1,1,1,"")&A12,[1]戸籍からデータ貼り付け先!$A$2:$T$12093,16,FALSE) -> 0 | D12: 1 | E12: 24 | F12: =VLOOKUP(REPLACE($A$1,1,1,"")&E12,[1]戸籍からデータ貼り付け先!$A$2:$T$12093,14,FALSE) -> 3 | G12: =VLOOKUP(REPLACE($A$1,1,1,"")&E12,[1]戸籍からデータ貼り付け先!$A$2:$T$12093,16,FALSE) -> 2 | H12: 5 | I12: 74 | J12: =VLOOKUP(REPLACE($A$1,1,1,"")&I12,[1]戸籍からデータ貼り付け先!$A$2:$T$12093,14,FALSE) -> 1 | K12: =VLOOKUP(REPLACE($A$1,1,1,"")&I12,[1]戸籍からデータ貼り付け先!$A$2:$T$12093,16,FALSE) -> 4 | L12: 5
A13: 10 | B13: =VLOOKUP(REPLACE($A$1,1,1,"")&A13,[1]戸籍からデータ貼り付け先!$A$2:$T$12093,14,FALSE) -> 1 | C13: =VLOOKUP(REPLACE($A$1,1,1,"")&A13,[1]戸籍からデータ貼り付け先!$A$2:$T$12093,16,FALSE) -> 0 | D13: 1 | E13: 25 | F13: =VLOOKUP(REPLACE($A$1,1,1,"")&E13,[1]戸籍からデータ貼り付け先!$A$2:$T$12093,14,FALSE) -> 0 | G13: =VLOOKUP(REPLACE($A$1,1,1,"")&E13,[1]戸籍からデータ貼り付け先!$A$2:$T$12093,16,FALSE) -> 1 | H13: 1 | I13: 75 | J13: =VLOOKUP(REPLACE($A$1,1,1,"")&I13,[1]戸籍からデータ貼り付け先!$A$2:$T$12093,14,FALSE) -> 3 | K13: =VLOOKUP(REPLACE($A$1,1,1,"")&I13,[1]戸籍からデータ貼り付け先!$A$2:$T$12093,16,FALSE) -> 2 | L13: 5
A14: 11 | B14: =VLOOKUP(REPLACE($A$1,1,1,"")&A14,[1]戸籍からデータ貼り付け先!$A$2:$T$12093,14,FALSE) -> 1 | C14: =VLOOKUP(REPLACE($A$1,1,1,"")&A14,[1]戸籍からデータ貼り付け先!$A$2:$T$12093,16,FALSE) -> 1 | D14: 2 | E14: 26 | F14: =VLOOKUP(REPLACE($A$1,1,1,"")&E14,[1]戸籍からデータ貼り付け先!$A$2:$T$12093,14,FALSE) -> 1 | G14: =VLOOKUP(REPLACE($A$1,1,1,"")&E14,[1]戸籍からデータ貼り付け先!$A$2:$T$12093,16,FALSE) -> 0 | H14: 1 | I14: 76 | J14: =VLOOKUP(REPLACE($A$1,1,1,"")&I14,[1]戸籍からデータ貼り付け先!$A$2:$T$12093,14,FALSE) -> 3 | K14: =VLOOKUP(REPLACE($A$1,1,1,"")&I14,[1]戸籍からデータ貼り付け先!$A$2:$T$12093,16,FALSE) -> 3 | L14: 6
A15: 12 | B15: =VLOOKUP(REPLACE($A$1,1,1,"")&A15,[1]戸籍からデータ貼り付け先!$A$2:$T$12093,14,FALSE) -> 1 | C15: =VLOOKUP(REPLACE($A$1,1,1,"")&A15,[1]戸籍からデータ貼り付け先!$A$2:$T$12093,16,FALSE) -> 0 | D15: 1 | E15: 27 | F15: =VLOOKUP(REPLACE($A$1,1,1,"")&E15,[1]戸籍からデータ貼り付け先!$A$2:$T$12093,14,FALSE) -> 2 | G15: =VLOOKUP(REPLACE($A$1,1,1,"")&E15,[1]戸籍からデータ貼り付け先!$A$2:$T$12093,16,FALSE) -> 0 | H15: 2 | I15: 77 | J15: =VLOOKUP(REPLACE($A$1,1,1,"")&I15,[1]戸籍からデータ貼り付け先!$A$2:$T$12093,14,FALSE) -> 8 | K15: =VLOOKUP(REPLACE($A$1,1,1,"")&I15,[1]戸籍からデータ貼り付け先!$A$2:$T$12093,16,FALSE) -> 3 | L15: 11
A16: 13 | B16: =VLOOKUP(REPLACE($A$1,1,1,"")&A16,[1]戸籍からデータ貼り付け先!$A$2:$T$12093,14,FALSE) -> 1 | C16: =VLOOKUP(REPLACE($A$1,1,1,"")&A16,[1]戸籍からデータ貼り付け先!$A$2:$T$12093,16,FALSE) -> 1 | D16: 2 | E16: 28 | F16: =VLOOKUP(REPLACE($A$1,1,1,"")&E16,[1]戸籍からデータ貼り付け先!$A$2:$T$12093,14,FALSE) -> 1 | G16: =VLOOKUP(REPLACE($A$1,1,1,"")&E16,[1]戸籍からデータ貼り付け先!$A$2:$T$12093,16,FALSE) -> 4 | H16: 5 | I16: 78 | J16: =VLOOKUP(REPLACE($A$1,1,1,"")&I16,[1]戸籍からデータ貼り付け先!$A$2:$T$12093,14,FALSE) -> 3 | K16: =VLOOKUP(REPLACE($A$1,1,1,"")&I16,[1]戸籍からデータ貼り付け先!$A$2:$T$12093,16,FALSE) -> 4 | L16: 7
A17: 14 | B17: =VLOOKUP(REPLACE($A$1,1,1,"")&A17,[1]戸籍からデータ貼り付け先!$A$2:$T$12093,14,FALSE) -> 3 | C17: =VLOOKUP(REPLACE($A$1,1,1,"")&A17,[1]戸籍からデータ貼り付け先!$A$2:$T$12093,16,FALSE) -> 0 | D17: 3 | E17: 29 | F17: =VLOOKUP(REPLACE($A$1,1,1,"")&E17,[1]戸籍からデータ貼り付け先!$A$2:$T$12093,14,FALSE) -> 2 | G17: =VLOOKUP(REPLACE($A$1,1,1,"")&E17,[1]戸籍からデータ貼り付け先!$A$2:$T$12093,16,FALSE) -> 1 | H17: 3 | I17: 79 | J17: =VLOOKUP(REPLACE($A$1,1,1,"")&I17,[1]戸籍からデータ貼り付け先!$A$2:$T$12093,14,FALSE) -> 2 | K17: =VLOOKUP(REPLACE($A$1,1,1,"")&I17,[1]戸籍からデータ貼り付け先!$A$2:$T$12093,16,FALSE) -> 4 | L17: 6
A18: 小計 | B18: =SUM(B3:B17) -> 16 | C18: =SUM(C3:C17) -> 10 | D18: =SUM(B18:C18) -> 26 | E18: 30 | F18: =VLOOKUP(REPLACE($A$1,1,1,"")&E18,[1]戸籍からデータ貼り付け先!$A$2:$T$12093,14,FALSE) -> 0 | G18: =VLOOKUP(REPLACE($A$1,1,1,"")&E18,[1]戸籍からデータ貼り付け先!$A$2:$T$12093,16,FALSE) -> 2 | H18: 2 | I18: 80 | J18: =VLOOKUP(REPLACE($A$1,1,1,"")&I18,[1]戸籍からデータ貼り付け先!$A$2:$T$12093,14,FALSE) -> 0 | K18: =VLOOKUP(REPLACE($A$1,1,1,"")&I18,[1]戸籍からデータ貼り付け先!$A$2:$T$12093,16,FALSE) -> 3 | L18: 3
E19: 31 | F19: =VLOOKUP(REPLACE($A$1,1,1,"")&E19,[1]戸籍からデータ貼り付け先!$A$2:$T$12093,14,FALSE) -> 6 | G19: =VLOOKUP(REPLACE($A$1,1,1,"")&E19,[1]戸籍からデータ貼り付け先!$A$2:$T$12093,16,FALSE) -> 4 | H19: 10 | I19: 81 | J19: =VLOOKUP(REPLACE($A$1,1,1,"")&I19,[1]戸籍からデータ貼り付け先!$A$2:$T$12093,14,FALSE) -> 2 | K19: =VLOOKUP(REPLACE($A$1,1,1,"")&I19,[1]戸籍からデータ貼り付け先!$A$2:$T$12093,16,FALSE) -> 3 | L19: 5
E20: 32 | F20: =VLOOKUP(REPLACE($A$1,1,1,"")&E20,[1]戸籍からデータ貼り付け先!$A$2:$T$12093,14,FALSE) -> 2 | G20: =VLOOKUP(REPLACE($A$1,1,1,"")&E20,[1]戸籍からデータ貼り付け先!$A$2:$T$12093,16,FALSE) -> 2 | H20: 4 | I20: 82 | J20: =VLOOKUP(REPLACE($A$1,1,1,"")&I20,[1]戸籍からデータ貼り付け先!$A$2:$T$12093,14,FALSE) -> 1 | K20: =VLOOKUP(REPLACE($A$1,1,1,"")&I20,[1]戸籍からデータ貼り付け先!$A$2:$T$12093,16,FALSE) -> 1 | L20: 2
E21: 33 | F21: =VLOOKUP(REPLACE($A$1,1,1,"")&E21,[1]戸籍からデータ貼り付け先!$A$2:$T$12093,14,FALSE) -> 2 | G21: =VLOOKUP(REPLACE($A$1,1,1,"")&E21,[1]戸籍からデータ貼り付け先!$A$2:$T$12093,16,FALSE) -> 1 | H21: 3 | I21: 83 | J21: =VLOOKUP(REPLACE($A$1,1,1,"")&I21,[1]戸籍からデータ貼り付け先!$A$2:$T$12093,14,FALSE) -> 2 | K21: =VLOOKUP(REPLACE($A$1,1,1,"")&I21,[1]戸籍からデータ貼り付け先!$A$2:$T$12093,16,FALSE) -> 4 | L21: 6
E22: 34 | F22: =VLOOKUP(REPLACE($A$1,1,1,"")&E22,[1]戸籍からデータ貼り付け先!$A$2:$T$12093,14,FALSE) -> 1 | G22: =VLOOKUP(REPLACE($A$1,1,1,"")&E22,[1]戸籍からデータ貼り付け先!$A$2:$T$12093,16,FALSE) -> 3 | H22: 4 | I22: 84 | J22: =VLOOKUP(REPLACE($A$1,1,1,"")&I22,[1]戸籍からデータ貼り付け先!$A$2:$T$12093,14,FALSE) -> 1 | K22: =VLOOKUP(REPLACE($A$1,1,1,"")&I22,[1]戸籍からデータ貼り付け先!$A$2:$T$12093,16,FALSE) -> 2 | L22: 3
E23: 35 | F23: =VLOOKUP(REPLACE($A$1,1,1,"")&E23,[1]戸籍からデータ貼り付け先!$A$2:$T$12093,14,FALSE) -> 1 | G23: =VLOOKUP(REPLACE($A$1,1,1,"")&E23,[1]戸籍からデータ貼り付け先!$A$2:$T$12093,16,FALSE) -> 0 | H23: 1 | I23: 85 | J23: =VLOOKUP(REPLACE($A$1,1,1,"")&I23,[1]戸籍からデータ貼り付け先!$A$2:$T$12093,14,FALSE) -> 1 | K23: =VLOOKUP(REPLACE($A$1,1,1,"")&I23,[1]戸籍からデータ貼り付け先!$A$2:$T$12093,16,FALSE) -> 7 | L23: 8
E24: 36 | F24: =VLOOKUP(REPLACE($A$1,1,1,"")&E24,[1]戸籍からデータ貼り付け先!$A$2:$T$12093,14,FALSE) -> 3 | G24: =VLOOKUP(REPLACE($A$1,1,1,"")&E24,[1]戸籍からデータ貼り付け先!$A$2:$T$12093,16,FALSE) -> 2 | H24: 5 | I24: 86 | J24: =VLOOKUP(REPLACE($A$1,1,1,"")&I24,[1]戸籍からデータ貼り付け先!$A$2:$T$12093,14,FALSE) -> 2 | K24: =VLOOKUP(REPLACE($A$1,1,1,"")&I24,[1]戸籍からデータ貼り付け先!$A$2:$T$12093,16,FALSE) -> 2 | L24: 4
E25: 37 | F25: =VLOOKUP(REPLACE($A$1,1,1,"")&E25,[1]戸籍からデータ貼り付け先!$A$2:$T$12093,14,FALSE) -> 1 | G25: =VLOOKUP(REPLACE($A$1,1,1,"")&E25,[1]戸籍からデータ貼り付け先!$A$2:$T$12093,16,FALSE) -> 2 | H25: 3 | I25: 87 | J25: =VLOOKUP(REPLACE($A$1,1,1,"")&I25,[1]戸籍からデータ貼り付け先!$A$2:$T$12093,14,FALSE) -> 2 | K25: =VLOOKUP(REPLACE($A$1,1,1,"")&I25,[1]戸籍からデータ貼り付け先!$A$2:$T$12093,16,FALSE) -> 2 | L25: 4
E26: 38 | F26: =VLOOKUP(REPLACE($A$1,1,1,"")&E26,[1]戸籍からデータ貼り付け先!$A$2:$T$12093,14,FALSE) -> 1 | G26: =VLOOKUP(REPLACE($A$1,1,1,"")&E26,[1]戸籍からデータ貼り付け先!$A$2:$T$12093,16,FALSE) -> 2 | H26: 3 | I26: 88 | J26: =VLOOKUP(REPLACE($A$1,1,1,"")&I26,[1]戸籍からデータ貼り付け先!$A$2:$T$12093,14,FALSE) -> 1 | K26: =VLOOKUP(REPLACE($A$1,1,1,"")&I26,[1]戸籍からデータ貼り付け先!$A$2:$T$12093,16,FALSE) -> 3 | L26: 4
E27: 39 | F27: =VLOOKUP(REPLACE($A$1,1,1,"")&E27,[1]戸籍からデータ貼り付け先!$A$2:$T$12093,14,FALSE) -> 2 | G27: =VLOOKUP(REPLACE($A$1,1,1,"")&E27,[1]戸籍からデータ貼り付け先!$A$2:$T$12093,16,FALSE) -> 0 | H27: 2 | I27: 89 | J27: =VLOOKUP(REPLACE($A$1,1,1,"")&I27,[1]戸籍からデータ貼り付け先!$A$2:$T$12093,14,FALSE) -> 1 | K27: =VLOOKUP(REPLACE($A$1,1,1,"")&I27,[1]戸籍からデータ貼り付け先!$A$2:$T$12093,16,FALSE) -> 2 | L27: 3
E28: 40 | F28: =VLOOKUP(REPLACE($A$1,1,1,"")&E28,[1]戸籍からデータ貼り付け先!$A$2:$T$12093,14,FALSE) -> 2 | G28: =VLOOKUP(REPLACE($A$1,1,1,"")&E28,[1]戸籍からデータ貼り付け先!$A$2:$T$12093,16,FALSE) -> 1 | H28: 3 | I28: 90 | J28: =VLOOKUP(REPLACE($A$1,1,1,"")&I28,[1]戸籍からデータ貼り付け先!$A$2:$T$12093,14,FALSE) -> 2 | K28: =VLOOKUP(REPLACE($A$1,1,1,"")&I28,[1]戸籍からデータ貼り付け先!$A$2:$T$12093,16,FALSE) -> 3 | L28: 5
E29: 41 | F29: =VLOOKUP(REPLACE($A$1,1,1,"")&E29,[1]戸籍からデータ貼り付け先!$A$2:$T$12093,14,FALSE) -> 3 | G29: =VLOOKUP(REPLACE($A$1,1,1,"")&E29,[1]戸籍からデータ貼り付け先!$A$2:$T$12093,16,FALSE) -> 4 | H29: 7 | I29: 91 | J29: =VLOOKUP(REPLACE($A$1,1,1,"")&I29,[1]戸籍からデータ貼り付け先!$A$2:$T$12093,14,FALSE) -> 3 | K29: =VLOOKUP(REPLACE($A$1,1,1,"")&I29,[1]戸籍からデータ貼り付け先!$A$2:$T$12093,16,FALSE) -> 2 | L29: 5
E30: 42 | F30: =VLOOKUP(REPLACE($A$1,1,1,"")&E30,[1]戸籍からデータ貼り付け先!$A$2:$T$12093,14,FALSE) -> 1 | G30: =VLOOKUP(REPLACE($A$1,1,1,"")&E30,[1]戸籍からデータ貼り付け先!$A$2:$T$12093,16,FALSE) -> 3 | H30: 4 | I30: 92 | J30: =VLOOKUP(REPLACE($A$1,1,1,"")&I30,[1]戸籍からデータ貼り付け先!$A$2:$T$12093,14,FALSE) -> 0 | K30: =VLOOKUP(REPLACE($A$1,1,1,"")&I30,[1]戸籍からデータ貼り付け先!$A$2:$T$12093,16,FALSE) -> 1 | L30: 1
E31: 43 | F31: =VLOOKUP(REPLACE($A$1,1,1,"")&E31,[1]戸籍からデータ貼り付け先!$A$2:$T$12093,14,FALSE) -> 6 | G31: =VLOOKUP(REPLACE($A$1,1,1,"")&E31,[1]戸籍からデータ貼り付け先!$A$2:$T$12093,16,FALSE) -> 2 | H31: 8 | I31: 93 | J31: =VLOOKUP(REPLACE($A$1,1,1,"")&I31,[1]戸籍からデータ貼り付け先!$A$2:$T$12093,14,FALSE) -> 0 | K31: =VLOOKUP(REPLACE($A$1,1,1,"")&I31,[1]戸籍からデータ貼り付け先!$A$2:$T$12093,16,FALSE) -> 1 | L31: 1
E32: 44 | F32: =VLOOKUP(REPLACE($A$1,1,1,"")&E32,[1]戸籍からデータ貼り付け先!$A$2:$T$12093,14,FALSE) -> 3 | G32: =VLOOKUP(REPLACE($A$1,1,1,"")&E32,[1]戸籍からデータ貼り付け先!$A$2:$T$12093,16,FALSE) -> 2 | H32: 5 | I32: 94 | J32: =VLOOKUP(REPLACE($A$1,1,1,"")&I32,[1]戸籍からデータ貼り付け先!$A$2:$T$12093,14,FALSE) -> 2 | K32: =VLOOKUP(REPLACE($A$1,1,1,"")&I32,[1]戸籍からデータ貼り付け先!$A$2:$T$12093,16,FALSE) -> 0 | L32: 2
E33: 45 | F33: =VLOOKUP(REPLACE($A$1,1,1,"")&E33,[1]戸籍からデータ貼り付け先!$A$2:$T$12093,14,FALSE) -> 4 | G33: =VLOOKUP(REPLACE($A$1,1,1,"")&E33,[1]戸籍からデータ貼り付け先!$A$2:$T$12093,16,FALSE) -> 5 | H33: 9 | I33: 95 | J33: =VLOOKUP(REPLACE($A$1,1,1,"")&I33,[1]戸籍からデータ貼り付け先!$A$2:$T$12093,14,FALSE) -> 1 | K33: =VLOOKUP(REPLACE($A$1,1,1,"")&I33,[1]戸籍からデータ貼り付け先!$A$2:$T$12093,16,FALSE) -> 1 | L33: 2
E34: 46 | F34: =VLOOKUP(REPLACE($A$1,1,1,"")&E34,[1]戸籍からデータ貼り付け先!$A$2:$T$12093,14,FALSE) -> 1 | G34: =VLOOKUP(REPLACE($A$1,1,1,"")&E34,[1]戸籍からデータ貼り付け先!$A$2:$T$12093,16,FALSE) -> 4 | H34: 5 | I34: 96 | J34: =VLOOKUP(REPLACE($A$1,1,1,"")&I34,[1]戸籍からデータ貼り付け先!$A$2:$T$12093,14,FALSE) -> 0 | K34: =VLOOKUP(REPLACE($A$1,1,1,"")&I34,[1]戸籍からデータ貼り付け先!$A$2:$T$12093,16,FALSE) -> 1 | L34: 1
E35: 47 | F35: =VLOOKUP(REPLACE($A$1,1,1,"")&E35,[1]戸籍からデータ貼り付け先!$A$2:$T$12093,14,FALSE) -> 7 | G35: =VLOOKUP(REPLACE($A$1,1,1,"")&E35,[1]戸籍からデータ貼り付け先!$A$2:$T$12093,16,FALSE) -> 2 | H35: 9 | I35: 97 | J35: =VLOOKUP(REPLACE($A$1,1,1,"")&I35,[1]戸籍からデータ貼り付け先!$A$2:$T$12093,14,FALSE) -> 0 | K35: =VLOOKUP(REPLACE($A$1,1,1,"")&I35,[1]戸籍からデータ貼り付け先!$A$2:$T$12093,16,FALSE) -> 0 | L35: 0
E36: 48 | F36: =VLOOKUP(REPLACE($A$1,1,1,"")&E36,[1]戸籍からデータ貼り付け先!$A$2:$T$12093,14,FALSE) -> 1 | G36: =VLOOKUP(REPLACE($A$1,1,1,"")&E36,[1]戸籍からデータ貼り付け先!$A$2:$T$12093,16,FALSE) -> 3 | H36: 4 | I36: 98 | J36: =VLOOKUP(REPLACE($A$1,1,1,"")&I36,[1]戸籍からデータ貼り付け先!$A$2:$T$12093,14,FALSE) -> 0 | K36: =VLOOKUP(REPLACE($A$1,1,1,"")&I36,[1]戸籍からデータ貼り付け先!$A$2:$T$12093,16,FALSE) -> 0 | L36: 0
E37: 49 | F37: =VLOOKUP(REPLACE($A$1,1,1,"")&E37,[1]戸籍からデータ貼り付け先!$A$2:$T$12093,14,FALSE) -> 4 | G37: =VLOOKUP(REPLACE($A$1,1,1,"")&E37,[1]戸籍からデータ貼り付け先!$A$2:$T$12093,16,FALSE) -> 0 | H37: 4 | I37: 99 | J37: =VLOOKUP(REPLACE($A$1,1,1,"")&I37,[1]戸籍からデータ貼り付け先!$A$2:$T$12093,14,FALSE) -> 0 | K37: =VLOOKUP(REPLACE($A$1,1,1,"")&I37,[1]戸籍からデータ貼り付け先!$A$2:$T$12093,16,FALSE) -> 0 | L37: 0
E38: 50 | F38: =VLOOKUP(REPLACE($A$1,1,1,"")&E38,[1]戸籍からデータ貼り付け先!$A$2:$T$12093,14,FALSE) -> 4 | G38: =VLOOKUP(REPLACE($A$1,1,1,"")&E38,[1]戸籍からデータ貼り付け先!$A$2:$T$12093,16,FALSE) -> 5 | H38: 9 | I38: 100 | J38: =VLOOKUP(REPLACE($A$1,1,1,"")&I38,[1]戸籍からデータ貼り付け先!$A$2:$T$12093,14,FALSE) -> 0 | K38: =VLOOKUP(REPLACE($A$1,1,1,"")&I38,[1]戸籍からデータ貼り付け先!$A$2:$T$12093,16,FALSE) -> 0 | L38: 0
E39: 51 | F39: =VLOOKUP(REPLACE($A$1,1,1,"")&E39,[1]戸籍からデータ貼り付け先!$A$2:$T$12093,14,FALSE) -> 5 | G39: =VLOOKUP(REPLACE($A$1,1,1,"")&E39,[1]戸籍からデータ貼り付け先!$A$2:$T$12093,16,FALSE) -> 5 | H39: 10 | I39: 101 | J39: =VLOOKUP(REPLACE($A$1,1,1,"")&I39,[1]戸籍からデータ貼り付け先!$A$2:$T$12093,14,FALSE) -> 0 | K39: =VLOOKUP(REPLACE($A$1,1,1,"")&I39,[1]戸籍からデータ貼り付け先!$A$2:$T$12093,16,FALSE) -> 0 | L39: 0
E40: 52 | F40: =VLOOKUP(REPLACE($A$1,1,1,"")&E40,[1]戸籍からデータ貼り付け先!$A$2:$T$12093,14,FALSE) -> 2 | G40: =VLOOKUP(REPLACE($A$1,1,1,"")&E40,[1]戸籍からデータ貼り付け先!$A$2:$T$12093,16,FALSE) -> 3 | H40: 5 | I40: 102 | J40: =VLOOKUP(REPLACE($A$1,1,1,"")&I40,[1]戸籍からデータ貼り付け先!$A$2:$T$12093,14,FALSE) -> 0 | K40: =VLOOKUP(REPLACE($A$1,1,1,"")&I40,[1]戸籍からデータ貼り付け先!$A$2:$T$12093,16,FALSE) -> 0 | L40: 0
E41: 53 | F41: =VLOOKUP(REPLACE($A$1,1,1,"")&E41,[1]戸籍からデータ貼り付け先!$A$2:$T$12093,14,FALSE) -> 4 | G41: =VLOOKUP(REPLACE($A$1,1,1,"")&E41,[1]戸籍からデータ貼り付け先!$A$2:$T$12093,16,FALSE) -> 3 | H41: 7 | I41: 103 | J41: =VLOOKUP(REPLACE($A$1,1,1,"")&I41,[1]戸籍からデータ貼り付け先!$A$2:$T$12093,14,FALSE) -> 0 | K41: =VLOOKUP(REPLACE($A$1,1,1,"")&I41,[1]戸籍からデータ貼り付け先!$A$2:$T$12093,16,FALSE) -> 0 | L41: 0
E42: 54 | F42: =VLOOKUP(REPLACE($A$1,1,1,"")&E42,[1]戸籍からデータ貼り付け先!$A$2:$T$12093,14,FALSE) -> 8 | G42: =VLOOKUP(REPLACE($A$1,1,1,"")&E42,[1]戸籍からデータ貼り付け先!$A$2:$T$12093,16,FALSE) -> 4 | H42: 12 | I42: 104 | J42: =VLOOKUP(REPLACE($A$1,1,1,"")&I42,[1]戸籍からデータ貼り付け先!$A$2:$T$12093,14,FALSE) -> 0 | K42: =VLOOKUP(REPLACE($A$1,1,1,"")&I42,[1]戸籍からデータ貼り付け先!$A$2:$T$12093,16,FALSE) -> 0 | L42: 0
E43: 55 | F43: =VLOOKUP(REPLACE($A$1,1,1,"")&E43,[1]戸籍からデータ貼り付け先!$A$2:$T$12093,14,FALSE) -> 6 | G43: =VLOOKUP(REPLACE($A$1,1,1,"")&E43,[1]戸籍からデータ貼り付け先!$A$2:$T$12093,16,FALSE) -> 4 | H43: 10 | I43: 105 | J43: =VLOOKUP(REPLACE($A$1,1,1,"")&I43,[1]戸籍からデータ貼り付け先!$A$2:$T$12093,14,FALSE) -> 0 | K43: =VLOOKUP(REPLACE($A$1,1,1,"")&I43,[1]戸籍からデータ貼り付け先!$A$2:$T$12093,16,FALSE) -> 0 | L43: 0
E44: 56 | F44: =VLOOKUP(REPLACE($A$1,1,1,"")&E44,[1]戸籍からデータ貼り付け先!$A$2:$T$12093,14,FALSE) -> 6 | G44: =VLOOKUP(REPLACE($A$1,1,1,"")&E44,[1]戸籍からデータ貼り付け先!$A$2:$T$12093,16,FALSE) -> 1 | H44: 7 | I44: 106 | J44: =VLOOKUP(REPLACE($A$1,1,1,"")&I44,[1]戸籍からデータ貼り付け先!$A$2:$T$12093,14,FALSE) -> 0 | K44: =VLOOKUP(REPLACE($A$1,1,1,"")&I44,[1]戸籍からデータ貼り付け先!$A$2:$T$12093,16,FALSE) -> 0 | L44: 0
E45: 57 | F45: =VLOOKUP(REPLACE($A$1,1,1,"")&E45,[1]戸籍からデータ貼り付け先!$A$2:$T$12093,14,FALSE) -> 2 | G45: =VLOOKUP(REPLACE($A$1,1,1,"")&E45,[1]戸籍からデータ貼り付け先!$A$2:$T$12093,16,FALSE) -> 3 | H45: 5 | I45: 107 | J45: =VLOOKUP(REPLACE($A$1,1,1,"")&I45,[1]戸籍からデータ貼り付け先!$A$2:$T$12093,14,FALSE) -> 0 | K45: =VLOOKUP(REPLACE($A$1,1,1,"")&I45,[1]戸籍からデータ貼り付け先!$A$2:$T$12093,16,FALSE) -> 0 | L45: 0
E46: 58 | F46: =VLOOKUP(REPLACE($A$1,1,1,"")&E46,[1]戸籍からデータ貼り付け先!$A$2:$T$12093,14,FALSE) -> 9 | G46: =VLOOKUP(REPLACE($A$1,1,1,"")&E46,[1]戸籍からデータ貼り付け先!$A$2:$T$12093,16,FALSE) -> 4 | H46: 13 | I46: 108 | J46: =VLOOKUP(REPLACE($A$1,1,1,"")&I46,[1]戸籍からデータ貼り付け先!$A$2:$T$12093,14,FALSE) -> 0 | K46: =VLOOKUP(REPLACE($A$1,1,1,"")&I46,[1]戸籍からデータ貼り付け先!$A$2:$T$12093,16,FALSE) -> 0 | L46: 0
E47: 59 | F47: =VLOOKUP(REPLACE($A$1,1,1,"")&E47,[1]戸籍からデータ貼り付け先!$A$2:$T$12093,14,FALSE) -> 1 | G47: =VLOOKUP(REPLACE($A$1,1,1,"")&E47,[1]戸籍からデータ貼り付け先!$A$2:$T$12093,16,FALSE) -> 2 | H47: 3 | I47: 小計 | J47: =SUM(J3:J46) -> 60 | K47: =SUM(K3:K46) -> 81 | L47: =SUM(J47:K47) -> 141
E48: 60 | F48: =VLOOKUP(REPLACE($A$1,1,1,"")&E48,[1]戸籍からデータ貼り付け先!$A$2:$T$12093,14,FALSE) -> 5 | G48: =VLOOKUP(REPLACE($A$1,1,1,"")&E48,[1]戸籍からデータ貼り付け先!$A$2:$T$12093,16,FALSE) -> 3 | H48: 8
E49: 61 | F49: =VLOOKUP(REPLACE($A$1,1,1,"")&E49,[1]戸籍からデータ貼り付け先!$A$2:$T$12093,14,FALSE) -> 4 | G49: =VLOOKUP(REPLACE($A$1,1,1,"")&E49,[1]戸籍からデータ貼り付け先!$A$2:$T$12093,16,FALSE) -> 3 | H49: 7 | J49: =REPLACE(A1,1,1,"")&"合計" -> 本町１丁目合計
E50: 62 | F50: =VLOOKUP(REPLACE($A$1,1,1,"")&E50,[1]戸籍からデータ貼り付け先!$A$2:$T$12093,14,FALSE) -> 6 | G50: =VLOOKUP(REPLACE($A$1,1,1,"")&E50,[1]戸籍からデータ貼り付け先!$A$2:$T$12093,16,FALSE) -> 0 | H50: 6 | J50: 男 | K50: 女 | L50: 計
E51: 63 | F51: =VLOOKUP(REPLACE($A$1,1,1,"")&E51,[1]戸籍からデータ貼り付け先!$A$2:$T$12093,14,FALSE) -> 4 | G51: =VLOOKUP(REPLACE($A$1,1,1,"")&E51,[1]戸籍からデータ貼り付け先!$A$2:$T$12093,16,FALSE) -> 2 | H51: 6 | J51: =SUM(B18,F53,J47) -> 224 | K51: =SUM(C18,G53,K47) -> 208 | L51: =SUM(J51:K51) -> 432
E52: 64 | F52: =VLOOKUP(REPLACE($A$1,1,1,"")&E52,[1]戸籍からデータ貼り付け先!$A$2:$T$12093,14,FALSE) -> 2 | G52: =VLOOKUP(REPLACE($A$1,1,1,"")&E52,[1]戸籍からデータ貼り付け先!$A$2:$T$12093,16,FALSE) -> 3 | H52: 5
E53: 小計 | F53: =SUM(F3:F52) -> 148 | G53: =SUM(G3:G52) -> 117 | H53: =SUM(F53:G53) -> 265
F56: -3-

Sheet 本町二丁目
A1: ◆本町２丁目 | H1: =秦野市合計!H1 -> 令和7年10月1日現在（単位：人）
A2: 年少人口(0歳～14歳) | B2: 男 | C2: 女 | D2: 計 | E2: 生産年齢人口(15歳～64歳) | F2: 男 | G2: 女 | H2: 計 | I2: 老年人口(65歳以上) | J2: 男 | K2: 女 | L2: 計
A3: 0 | B3: =VLOOKUP(REPLACE($A$1,1,1,"")&A3,[1]戸籍からデータ貼り付け先!$A$2:$T$12093,14,FALSE) -> 0 | C3: =VLOOKUP(REPLACE($A$1,1,1,"")&A3,[1]戸籍からデータ貼り付け先!$A$2:$T$12093,16,FALSE) -> 1 | D3: =SUM(B3:C3) -> 1 | E3: 15 | F3: =VLOOKUP(REPLACE($A$1,1,1,"")&E3,[1]戸籍からデータ貼り付け先!$A$2:$T$12093,14,FALSE) -> 3 | G3: =VLOOKUP(REPLACE($A$1,1,1,"")&E3,[1]戸籍からデータ貼り付け先!$A$2:$T$12093,16,FALSE) -> 3 | H3: =SUM(F3:G3) -> 6 | I3: 65 | J3: =VLOOKUP(REPLACE($A$1,1,1,"")&I3,[1]戸籍からデータ貼り付け先!$A$2:$T$12093,14,FALSE) -> 4 | K3: =VLOOKUP(REPLACE($A$1,1,1,"")&I3,[1]戸籍からデータ貼り付け先!$A$2:$T$12093,16,FALSE) -> 3 | L3: =SUM(J3:K3) -> 7
A4: 1 | B4: =VLOOKUP(REPLACE($A$1,1,1,"")&A4,[1]戸籍からデータ貼り付け先!$A$2:$T$12093,14,FALSE) -> 0 | C4: =VLOOKUP(REPLACE($A$1,1,1,"")&A4,[1]戸籍からデータ貼り付け先!$A$2:$T$12093,16,FALSE) -> 1 | D4: =SUM(B4:C4) -> 1 | E4: 16 | F4: =VLOOKUP(REPLACE($A$1,1,1,"")&E4,[1]戸籍からデータ貼り付け先!$A$2:$T$12093,14,FALSE) -> 2 | G4: =VLOOKUP(REPLACE($A$1,1,1,"")&E4,[1]戸籍からデータ貼り付け先!$A$2:$T$12093,16,FALSE) -> 5 | H4: =SUM(F4:G4) -> 7 | I4: 66 | J4: =VLOOKUP(REPLACE($A$1,1,1,"")&I4,[1]戸籍からデータ貼り付け先!$A$2:$T$12093,14,FALSE) -> 5 | K4: =VLOOKUP(REPLACE($A$1,1,1,"")&I4,[1]戸籍からデータ貼り付け先!$A$2:$T$12093,16,FALSE) -> 5 | L4: =SUM(J4:K4) -> 10
A5: 2 | B5: =VLOOKUP(REPLACE($A$1,1,1,"")&A5,[1]戸籍からデータ貼り付け先!$A$2:$T$12093,14,FALSE) -> 3 | C5: =VLOOKUP(REPLACE($A$1,1,1,"")&A5,[1]戸籍からデータ貼り付け先!$A$2:$T$12093,16,FALSE) -> 3 | D5: 6 | E5: 17 | F5: =VLOOKUP(REPLACE($A$1,1,1,"")&E5,[1]戸籍からデータ貼り付け先!$A$2:$T$12093,14,FALSE) -> 1 | G5: =VLOOKUP(REPLACE($A$1,1,1,"")&E5,[1]戸籍からデータ貼り付け先!$A$2:$T$12093,16,FALSE) -> 2 | H5: 3 | I5: 67 | J5: =VLOOKUP(REPLACE($A$1,1,1,"")&I5,[1]戸籍からデータ貼り付け先!$A$2:$T$12093,14,FALSE) -> 5 | K5: =VLOOKUP(REPLACE($A$1,1,1,"")&I5,[1]戸籍からデータ貼り付け先!$A$2:$T$12093,16,FALSE) -> 2 | L5: 7
A6: 3 | B6: =VLOOKUP(REPLACE($A$1,1,1,"")&A6,[1]戸籍からデータ貼り付け先!$A$2:$T$12093,14,FALSE) -> 1 | C6: =VLOOKUP(REPLACE($A$1,1,1,"")&A6,[1]戸籍からデータ貼り付け先!$A$2:$T$12093,16,FALSE) -> 2 | D6: 3 | E6: 18 | F6: =VLOOKUP(REPLACE($A$1,1,1,"")&E6,[1]戸籍からデータ貼り付け先!$A$2:$T$12093,14,FALSE) -> 4 | G6: =VLOOKUP(REPLACE($A$1,1,1,"")&E6,[1]戸籍からデータ貼り付け先!$A$2:$T$12093,16,FALSE) -> 2 | H6: 6 | I6: 68 | J6: =VLOOKUP(REPLACE($A$1,1,1,"")&I6,[1]戸籍からデータ貼り付け先!$A$2:$T$12093,14,FALSE) -> 5 | K6: =VLOOKUP(REPLACE($A$1,1,1,"")&I6,[1]戸籍からデータ貼り付け先!$A$2:$T$12093,16,FALSE) -> 8 | L6: 13
A7: 4 | B7: =VLOOKUP(REPLACE($A$1,1,1,"")&A7,[1]戸籍からデータ貼り付け先!$A$2:$T$12093,14,FALSE) -> 1 | C7: =VLOOKUP(REPLACE($A$1,1,1,"")&A7,[1]戸籍からデータ貼り付け先!$A$2:$T$12093,16,FALSE) -> 2 | D7: 3 | E7: 19 | F7: =VLOOKUP(REPLACE($A$1,1,1,"")&E7,[1]戸籍からデータ貼り付け先!$A$2:$T$12093,14,FALSE) -> 7 | G7: =VLOOKUP(REPLACE($A$1,1,1,"")&E7,[1]戸籍からデータ貼り付け先!$A$2:$T$12093,16,FALSE) -> 3 | H7: 10 | I7: 69 | J7: =VLOOKUP(REPLACE($A$1,1,1,"")&I7,[1]戸籍からデータ貼り付け先!$A$2:$T$12093,14,FALSE) -> 8 | K7: =VLOOKUP(REPLACE($A$1,1,1,"")&I7,[1]戸籍からデータ貼り付け先!$A$2:$T$12093,16,FALSE) -> 2 | L7: 10
A8: 5 | B8: =VLOOKUP(REPLACE($A$1,1,1,"")&A8,[1]戸籍からデータ貼り付け先!$A$2:$T$12093,14,FALSE) -> 2 | C8: =VLOOKUP(REPLACE($A$1,1,1,"")&A8,[1]戸籍からデータ貼り付け先!$A$2:$T$12093,16,FALSE) -> 2 | D8: 4 | E8: 20 | F8: =VLOOKUP(REPLACE($A$1,1,1,"")&E8,[1]戸籍からデータ貼り付け先!$A$2:$T$12093,14,FALSE) -> 3 | G8: =VLOOKUP(REPLACE($A$1,1,1,"")&E8,[1]戸籍からデータ貼り付け先!$A$2:$T$12093,16,FALSE) -> 6 | H8: 9 | I8: 70 | J8: =VLOOKUP(REPLACE($A$1,1,1,"")&I8,[1]戸籍からデータ貼り付け先!$A$2:$T$12093,14,FALSE) -> 5 | K8: =VLOOKUP(REPLACE($A$1,1,1,"")&I8,[1]戸籍からデータ貼り付け先!$A$2:$T$12093,16,FALSE) -> 2 | L8: 7
A9: 6 | B9: =VLOOKUP(REPLACE($A$1,1,1,"")&A9,[1]戸籍からデータ貼り付け先!$A$2:$T$12093,14,FALSE) -> 0 | C9: =VLOOKUP(REPLACE($A$1,1,1,"")&A9,[1]戸籍からデータ貼り付け先!$A$2:$T$12093,16,FALSE) -> 2 | D9: 2 | E9: 21 | F9: =VLOOKUP(REPLACE($A$1,1,1,"")&E9,[1]戸籍からデータ貼り付け先!$A$2:$T$12093,14,FALSE) -> 4 | G9: =VLOOKUP(REPLACE($A$1,1,1,"")&E9,[1]戸籍からデータ貼り付け先!$A$2:$T$12093,16,FALSE) -> 1 | H9: 5 | I9: 71 | J9: =VLOOKUP(REPLACE($A$1,1,1,"")&I9,[1]戸籍からデータ貼り付け先!$A$2:$T$12093,14,FALSE) -> 4 | K9: =VLOOKUP(REPLACE($A$1,1,1,"")&I9,[1]戸籍からデータ貼り付け先!$A$2:$T$12093,16,FALSE) -> 6 | L9: 10
A10: 7 | B10: =VLOOKUP(REPLACE($A$1,1,1,"")&A10,[1]戸籍からデータ貼り付け先!$A$2:$T$12093,14,FALSE) -> 0 | C10: =VLOOKUP(REPLACE($A$1,1,1,"")&A10,[1]戸籍からデータ貼り付け先!$A$2:$T$12093,16,FALSE) -> 4 | D10: 4 | E10: 22 | F10: =VLOOKUP(REPLACE($A$1,1,1,"")&E10,[1]戸籍からデータ貼り付け先!$A$2:$T$12093,14,FALSE) -> 1 | G10: =VLOOKUP(REPLACE($A$1,1,1,"")&E10,[1]戸籍からデータ貼り付け先!$A$2:$T$12093,16,FALSE) -> 1 | H10: 2 | I10: 72 | J10: =VLOOKUP(REPLACE($A$1,1,1,"")&I10,[1]戸籍からデータ貼り付け先!$A$2:$T$12093,14,FALSE) -> 8 | K10: =VLOOKUP(REPLACE($A$1,1,1,"")&I10,[1]戸籍からデータ貼り付け先!$A$2:$T$12093,16,FALSE) -> 4 | L10: 12
A11: 8 | B11: =VLOOKUP(REPLACE($A$1,1,1,"")&A11,[1]戸籍からデータ貼り付け先!$A$2:$T$12093,14,FALSE) -> 2 | C11: =VLOOKUP(REPLACE($A$1,1,1,"")&A11,[1]戸籍からデータ貼り付け先!$A$2:$T$12093,16,FALSE) -> 0 | D11: 2 | E11: 23 | F11: =VLOOKUP(REPLACE($A$1,1,1,"")&E11,[1]戸籍からデータ貼り付け先!$A$2:$T$12093,14,FALSE) -> 7 | G11: =VLOOKUP(REPLACE($A$1,1,1,"")&E11,[1]戸籍からデータ貼り付け先!$A$2:$T$12093,16,FALSE) -> 3 | H11: 10 | I11: 73 | J11: =VLOOKUP(REPLACE($A$1,1,1,"")&I11,[1]戸籍からデータ貼り付け先!$A$2:$T$12093,14,FALSE) -> 0 | K11: =VLOOKUP(REPLACE($A$1,1,1,"")&I11,[1]戸籍からデータ貼り付け先!$A$2:$T$12093,16,FALSE) -> 7 | L11: 7
A12: 9 | B12: =VLOOKUP(REPLACE($A$1,1,1,"")&A12,[1]戸籍からデータ貼り付け先!$A$2:$T$12093,14,FALSE) -> 2 | C12: =VLOOKUP(REPLACE($A$1,1,1,"")&A12,[1]戸籍からデータ貼り付け先!$A$2:$T$12093,16,FALSE) -> 0 | D12: 2 | E12: 24 | F12: =VLOOKUP(REPLACE($A$1,1,1,"")&E12,[1]戸籍からデータ貼り付け先!$A$2:$T$12093,14,FALSE) -> 7 | G12: =VLOOKUP(REPLACE($A$1,1,1,"")&E12,[1]戸籍からデータ貼り付け先!$A$2:$T$12093,16,FALSE) -> 4 | H12: 11 | I12: 74 | J12: =VLOOKUP(REPLACE($A$1,1,1,"")&I12,[1]戸籍からデータ貼り付け先!$A$2:$T$12093,14,FALSE) -> 10 | K12: =VLOOKUP(REPLACE($A$1,1,1,"")&I12,[1]戸籍からデータ貼り付け先!$A$2:$T$12093,16,FALSE) -> 8 | L12: 18
A13: 10 | B13: =VLOOKUP(REPLACE($A$1,1,1,"")&A13,[1]戸籍からデータ貼り付け先!$A$2:$T$12093,14,FALSE) -> 1 | C13: =VLOOKUP(REPLACE($A$1,1,1,"")&A13,[1]戸籍からデータ貼り付け先!$A$2:$T$12093,16,FALSE) -> 3 | D13: 4 | E13: 25 | F13: =VLOOKUP(REPLACE($A$1,1,1,"")&E13,[1]戸籍からデータ貼り付け先!$A$2:$T$12093,14,FALSE) -> 8 | G13: =VLOOKUP(REPLACE($A$1,1,1,"")&E13,[1]戸籍からデータ貼り付け先!$A$2:$T$12093,16,FALSE) -> 4 | H13: 12 | I13: 75 | J13: =VLOOKUP(REPLACE($A$1,1,1,"")&I13,[1]戸籍からデータ貼り付け先!$A$2:$T$12093,14,FALSE) -> 3 | K13: =VLOOKUP(REPLACE($A$1,1,1,"")&I13,[1]戸籍からデータ貼り付け先!$A$2:$T$12093,16,FALSE) -> 5 | L13: 8
A14: 11 | B14: =VLOOKUP(REPLACE($A$1,1,1,"")&A14,[1]戸籍からデータ貼り付け先!$A$2:$T$12093,14,FALSE) -> 2 | C14: =VLOOKUP(REPLACE($A$1,1,1,"")&A14,[1]戸籍からデータ貼り付け先!$A$2:$T$12093,16,FALSE) -> 2 | D14: 4 | E14: 26 | F14: =VLOOKUP(REPLACE($A$1,1,1,"")&E14,[1]戸籍からデータ貼り付け先!$A$2:$T$12093,14,FALSE) -> 0 | G14: =VLOOKUP(REPLACE($A$1,1,1,"")&E14,[1]戸籍からデータ貼り付け先!$A$2:$T$12093,16,FALSE) -> 5 | H14: 5 | I14: 76 | J14: =VLOOKUP(REPLACE($A$1,1,1,"")&I14,[1]戸籍からデータ貼り付け先!$A$2:$T$12093,14,FALSE) -> 8 | K14: =VLOOKUP(REPLACE($A$1,1,1,"")&I14,[1]戸籍からデータ貼り付け先!$A$2:$T$12093,16,FALSE) -> 4 | L14: 12
A15: 12 | B15: =VLOOKUP(REPLACE($A$1,1,1,"")&A15,[1]戸籍からデータ貼り付け先!$A$2:$T$12093,14,FALSE) -> 2 | C15: =VLOOKUP(REPLACE($A$1,1,1,"")&A15,[1]戸籍からデータ貼り付け先!$A$2:$T$12093,16,FALSE) -> 1 | D15: 3 | E15: 27 | F15: =VLOOKUP(REPLACE($A$1,1,1,"")&E15,[1]戸籍からデータ貼り付け先!$A$2:$T$12093,14,FALSE) -> 5 | G15: =VLOOKUP(REPLACE($A$1,1,1,"")&E15,[1]戸籍からデータ貼り付け先!$A$2:$T$12093,16,FALSE) -> 4 | H15: 9 | I15: 77 | J15: =VLOOKUP(REPLACE($A$1,1,1,"")&I15,[1]戸籍からデータ貼り付け先!$A$2:$T$12093,14,FALSE) -> 7 | K15: =VLOOKUP(REPLACE($A$1,1,1,"")&I15,[1]戸籍からデータ貼り付け先!$A$2:$T$12093,16,FALSE) -> 6 | L15: 13
A16: 13 | B16: =VLOOKUP(REPLACE($A$1,1,1,"")&A16,[1]戸籍からデータ貼り付け先!$A$2:$T$12093,14,FALSE) -> 7 | C16: =VLOOKUP(REPLACE($A$1,1,1,"")&A16,[1]戸籍からデータ貼り付け先!$A$2:$T$12093,16,FALSE) -> 1 | D16: 8 | E16: 28 | F16: =VLOOKUP(REPLACE($A$1,1,1,"")&E16,[1]戸籍からデータ貼り付け先!$A$2:$T$12093,14,FALSE) -> 4 | G16: =VLOOKUP(REPLACE($A$1,1,1,"")&E16,[1]戸籍からデータ貼り付け先!$A$2:$T$12093,16,FALSE) -> 2 | H16: 6 | I16: 78 | J16: =VLOOKUP(REPLACE($A$1,1,1,"")&I16,[1]戸籍からデータ貼り付け先!$A$2:$T$12093,14,FALSE) -> 4 | K16: =VLOOKUP(REPLACE($A$1,1,1,"")&I16,[1]戸籍からデータ貼り付け先!$A$2:$T$12093,16,FALSE) -> 7 | L16: 11
A17: 14 | B17: =VLOOKUP(REPLACE($A$1,1,1,"")&A17,[1]戸籍からデータ貼り付け先!$A$2:$T$12093,14,FALSE) -> 5 | C17: =VLOOKUP(REPLACE($A$1,1,1,"")&A17,[1]戸籍からデータ貼り付け先!$A$2:$T$12093,16,FALSE) -> 3 | D17: 8 | E17: 29 | F17: =VLOOKUP(REPLACE($A$1,1,1,"")&E17,[1]戸籍からデータ貼り付け先!$A$2:$T$12093,14,FALSE) -> 5 | G17: =VLOOKUP(REPLACE($A$1,1,1,"")&E17,[1]戸籍からデータ貼り付け先!$A$2:$T$12093,16,FALSE) -> 3 | H17: 8 | I17: 79 | J17: =VLOOKUP(REPLACE($A$1,1,1,"")&I17,[1]戸籍からデータ貼り付け先!$A$2:$T$12093,14,FALSE) -> 4 | K17: =VLOOKUP(REPLACE($A$1,1,1,"")&I17,[1]戸籍からデータ貼り付け先!$A$2:$T$12093,16,FALSE) -> 3 | L17: 7
A18: 小計 | B18: =SUM(B3:B17) -> 28 | C18: =SUM(C3:C17) -> 27 | D18: =SUM(B18:C18) -> 55 | E18: 30 | F18: =VLOOKUP(REPLACE($A$1,1,1,"")&E18,[1]戸籍からデータ貼り付け先!$A$2:$T$12093,14,FALSE) -> 3 | G18: =VLOOKUP(REPLACE($A$1,1,1,"")&E18,[1]戸籍からデータ貼り付け先!$A$2:$T$12093,16,FALSE) -> 5 | H18: 8 | I18: 80 | J18: =VLOOKUP(REPLACE($A$1,1,1,"")&I18,[1]戸籍からデータ貼り付け先!$A$2:$T$12093,14,FALSE) -> 4 | K18: =VLOOKUP(REPLACE($A$1,1,1,"")&I18,[1]戸籍からデータ貼り付け先!$A$2:$T$12093,16,FALSE) -> 3 | L18: 7
E19: 31 | F19: =VLOOKUP(REPLACE($A$1,1,1,"")&E19,[1]戸籍からデータ貼り付け先!$A$2:$T$12093,14,FALSE) -> 3 | G19: =VLOOKUP(REPLACE($A$1,1,1,"")&E19,[1]戸籍からデータ貼り付け先!$A$2:$T$12093,16,FALSE) -> 7 | H19: 10 | I19: 81 | J19: =VLOOKUP(REPLACE($A$1,1,1,"")&I19,[1]戸籍からデータ貼り付け先!$A$2:$T$12093,14,FALSE) -> 0 | K19: =VLOOKUP(REPLACE($A$1,1,1,"")&I19,[1]戸籍からデータ貼り付け先!$A$2:$T$12093,16,FALSE) -> 5 | L19: 5
E20: 32 | F20: =VLOOKUP(REPLACE($A$1,1,1,"")&E20,[1]戸籍からデータ貼り付け先!$A$2:$T$12093,14,FALSE) -> 6 | G20: =VLOOKUP(REPLACE($A$1,1,1,"")&E20,[1]戸籍からデータ貼り付け先!$A$2:$T$12093,16,FALSE) -> 4 | H20: 10 | I20: 82 | J20: =VLOOKUP(REPLACE($A$1,1,1,"")&I20,[1]戸籍からデータ貼り付け先!$A$2:$T$12093,14,FALSE) -> 3 | K20: =VLOOKUP(REPLACE($A$1,1,1,"")&I20,[1]戸籍からデータ貼り付け先!$A$2:$T$12093,16,FALSE) -> 3 | L20: 6
E21: 33 | F21: =VLOOKUP(REPLACE($A$1,1,1,"")&E21,[1]戸籍からデータ貼り付け先!$A$2:$T$12093,14,FALSE) -> 2 | G21: =VLOOKUP(REPLACE($A$1,1,1,"")&E21,[1]戸籍からデータ貼り付け先!$A$2:$T$12093,16,FALSE) -> 2 | H21: 4 | I21: 83 | J21: =VLOOKUP(REPLACE($A$1,1,1,"")&I21,[1]戸籍からデータ貼り付け先!$A$2:$T$12093,14,FALSE) -> 3 | K21: =VLOOKUP(REPLACE($A$1,1,1,"")&I21,[1]戸籍からデータ貼り付け先!$A$2:$T$12093,16,FALSE) -> 3 | L21: 6
E22: 34 | F22: =VLOOKUP(REPLACE($A$1,1,1,"")&E22,[1]戸籍からデータ貼り付け先!$A$2:$T$12093,14,FALSE) -> 2 | G22: =VLOOKUP(REPLACE($A$1,1,1,"")&E22,[1]戸籍からデータ貼り付け先!$A$2:$T$12093,16,FALSE) -> 7 | H22: 9 | I22: 84 | J22: =VLOOKUP(REPLACE($A$1,1,1,"")&I22,[1]戸籍からデータ貼り付け先!$A$2:$T$12093,14,FALSE) -> 1 | K22: =VLOOKUP(REPLACE($A$1,1,1,"")&I22,[1]戸籍からデータ貼り付け先!$A$2:$T$12093,16,FALSE) -> 9 | L22: 10
E23: 35 | F23: =VLOOKUP(REPLACE($A$1,1,1,"")&E23,[1]戸籍からデータ貼り付け先!$A$2:$T$12093,14,FALSE) -> 4 | G23: =VLOOKUP(REPLACE($A$1,1,1,"")&E23,[1]戸籍からデータ貼り付け先!$A$2:$T$12093,16,FALSE) -> 4 | H23: 8 | I23: 85 | J23: =VLOOKUP(REPLACE($A$1,1,1,"")&I23,[1]戸籍からデータ貼り付け先!$A$2:$T$12093,14,FALSE) -> 3 | K23: =VLOOKUP(REPLACE($A$1,1,1,"")&I23,[1]戸籍からデータ貼り付け先!$A$2:$T$12093,16,FALSE) -> 2 | L23: 5
E24: 36 | F24: =VLOOKUP(REPLACE($A$1,1,1,"")&E24,[1]戸籍からデータ貼り付け先!$A$2:$T$12093,14,FALSE) -> 7 | G24: =VLOOKUP(REPLACE($A$1,1,1,"")&E24,[1]戸籍からデータ貼り付け先!$A$2:$T$12093,16,FALSE) -> 1 | H24: 8 | I24: 86 | J24: =VLOOKUP(REPLACE($A$1,1,1,"")&I24,[1]戸籍からデータ貼り付け先!$A$2:$T$12093,14,FALSE) -> 3 | K24: =VLOOKUP(REPLACE($A$1,1,1,"")&I24,[1]戸籍からデータ貼り付け先!$A$2:$T$12093,16,FALSE) -> 4 | L24: 7
E25: 37 | F25: =VLOOKUP(REPLACE($A$1,1,1,"")&E25,[1]戸籍からデータ貼り付け先!$A$2:$T$12093,14,FALSE) -> 5 | G25: =VLOOKUP(REPLACE($A$1,1,1,"")&E25,[1]戸籍からデータ貼り付け先!$A$2:$T$12093,16,FALSE) -> 1 | H25: 6 | I25: 87 | J25: =VLOOKUP(REPLACE($A$1,1,1,"")&I25,[1]戸籍からデータ貼り付け先!$A$2:$T$12093,14,FALSE) -> 0 | K25: =VLOOKUP(REPLACE($A$1,1,1,"")&I25,[1]戸籍からデータ貼り付け先!$A$2:$T$12093,16,FALSE) -> 1 | L25: 1
E26: 38 | F26: =VLOOKUP(REPLACE($A$1,1,1,"")&E26,[1]戸籍からデータ貼り付け先!$A$2:$T$12093,14,FALSE) -> 4 | G26: =VLOOKUP(REPLACE($A$1,1,1,"")&E26,[1]戸籍からデータ貼り付け先!$A$2:$T$12093,16,FALSE) -> 2 | H26: 6 | I26: 88 | J26: =VLOOKUP(REPLACE($A$1,1,1,"")&I26,[1]戸籍からデータ貼り付け先!$A$2:$T$12093,14,FALSE) -> 0 | K26: =VLOOKUP(REPLACE($A$1,1,1,"")&I26,[1]戸籍からデータ貼り付け先!$A$2:$T$12093,16,FALSE) -> 4 | L26: 4
E27: 39 | F27: =VLOOKUP(REPLACE($A$1,1,1,"")&E27,[1]戸籍からデータ貼り付け先!$A$2:$T$12093,14,FALSE) -> 6 | G27: =VLOOKUP(REPLACE($A$1,1,1,"")&E27,[1]戸籍からデータ貼り付け先!$A$2:$T$12093,16,FALSE) -> 3 | H27: 9 | I27: 89 | J27: =VLOOKUP(REPLACE($A$1,1,1,"")&I27,[1]戸籍からデータ貼り付け先!$A$2:$T$12093,14,FALSE) -> 0 | K27: =VLOOKUP(REPLACE($A$1,1,1,"")&I27,[1]戸籍からデータ貼り付け先!$A$2:$T$12093,16,FALSE) -> 5 | L27: 5
E28: 40 | F28: =VLOOKUP(REPLACE($A$1,1,1,"")&E28,[1]戸籍からデータ貼り付け先!$A$2:$T$12093,14,FALSE) -> 1 | G28: =VLOOKUP(REPLACE($A$1,1,1,"")&E28,[1]戸籍からデータ貼り付け先!$A$2:$T$12093,16,FALSE) -> 7 | H28: 8 | I28: 90 | J28: =VLOOKUP(REPLACE($A$1,1,1,"")&I28,[1]戸籍からデータ貼り付け先!$A$2:$T$12093,14,FALSE) -> 1 | K28: =VLOOKUP(REPLACE($A$1,1,1,"")&I28,[1]戸籍からデータ貼り付け先!$A$2:$T$12093,16,FALSE) -> 0 | L28: 1
E29: 41 | F29: =VLOOKUP(REPLACE($A$1,1,1,"")&E29,[1]戸籍からデータ貼り付け先!$A$2:$T$12093,14,FALSE) -> 5 | G29: =VLOOKUP(REPLACE($A$1,1,1,"")&E29,[1]戸籍からデータ貼り付け先!$A$2:$T$12093,16,FALSE) -> 2 | H29: 7 | I29: 91 | J29: =VLOOKUP(REPLACE($A$1,1,1,"")&I29,[1]戸籍からデータ貼り付け先!$A$2:$T$12093,14,FALSE) -> 1 | K29: =VLOOKUP(REPLACE($A$1,1,1,"")&I29,[1]戸籍からデータ貼り付け先!$A$2:$T$12093,16,FALSE) -> 3 | L29: 4
E30: 42 | F30: =VLOOKUP(REPLACE($A$1,1,1,"")&E30,[1]戸籍からデータ貼り付け先!$A$2:$T$12093,14,FALSE) -> 1 | G30: =VLOOKUP(REPLACE($A$1,1,1,"")&E30,[1]戸籍からデータ貼り付け先!$A$2:$T$12093,16,FALSE) -> 4 | H30: 5 | I30: 92 | J30: =VLOOKUP(REPLACE($A$1,1,1,"")&I30,[1]戸籍からデータ貼り付け先!$A$2:$T$12093,14,FALSE) -> 0 | K30: =VLOOKUP(REPLACE($A$1,1,1,"")&I30,[1]戸籍からデータ貼り付け先!$A$2:$T$12093,16,FALSE) -> 1 | L30: 1
E31: 43 | F31: =VLOOKUP(REPLACE($A$1,1,1,"")&E31,[1]戸籍からデータ貼り付け先!$A$2:$T$12093,14,FALSE) -> 3 | G31: =VLOOKUP(REPLACE($A$1,1,1,"")&E31,[1]戸籍からデータ貼り付け先!$A$2:$T$12093,16,FALSE) -> 7 | H31: 10 | I31: 93 | J31: =VLOOKUP(REPLACE($A$1,1,1,"")&I31,[1]戸籍からデータ貼り付け先!$A$2:$T$12093,14,FALSE) -> 3 | K31: =VLOOKUP(REPLACE($A$1,1,1,"")&I31,[1]戸籍からデータ貼り付け先!$A$2:$T$12093,16,FALSE) -> 1 | L31: 4
E32: 44 | F32: =VLOOKUP(REPLACE($A$1,1,1,"")&E32,[1]戸籍からデータ貼り付け先!$A$2:$T$12093,14,FALSE) -> 2 | G32: =VLOOKUP(REPLACE($A$1,1,1,"")&E32,[1]戸籍からデータ貼り付け先!$A$2:$T$12093,16,FALSE) -> 3 | H32: 5 | I32: 94 | J32: =VLOOKUP(REPLACE($A$1,1,1,"")&I32,[1]戸籍からデータ貼り付け先!$A$2:$T$12093,14,FALSE) -> 0 | K32: =VLOOKUP(REPLACE($A$1,1,1,"")&I32,[1]戸籍からデータ貼り付け先!$A$2:$T$12093,16,FALSE) -> 1 | L32: 1
E33: 45 | F33: =VLOOKUP(REPLACE($A$1,1,1,"")&E33,[1]戸籍からデータ貼り付け先!$A$2:$T$12093,14,FALSE) -> 4 | G33: =VLOOKUP(REPLACE($A$1,1,1,"")&E33,[1]戸籍からデータ貼り付け先!$A$2:$T$12093,16,FALSE) -> 3 | H33: 7 | I33: 95 | J33: =VLOOKUP(REPLACE($A$1,1,1,"")&I33,[1]戸籍からデータ貼り付け先!$A$2:$T$12093,14,FALSE) -> 1 | K33: =VLOOKUP(REPLACE($A$1,1,1,"")&I33,[1]戸籍からデータ貼り付け先!$A$2:$T$12093,16,FALSE) -> 1 | L33: 2
E34: 46 | F34: =VLOOKUP(REPLACE($A$1,1,1,"")&E34,[1]戸籍からデータ貼り付け先!$A$2:$T$12093,14,FALSE) -> 6 | G34: =VLOOKUP(REPLACE($A$1,1,1,"")&E34,[1]戸籍からデータ貼り付け先!$A$2:$T$12093,16,FALSE) -> 4 | H34: 10 | I34: 96 | J34: =VLOOKUP(REPLACE($A$1,1,1,"")&I34,[1]戸籍からデータ貼り付け先!$A$2:$T$12093,14,FALSE) -> 0 | K34: =VLOOKUP(REPLACE($A$1,1,1,"")&I34,[1]戸籍からデータ貼り付け先!$A$2:$T$12093,16,FALSE) -> 3 | L34: 3
E35: 47 | F35: =VLOOKUP(REPLACE($A$1,1,1,"")&E35,[1]戸籍からデータ貼り付け先!$A$2:$T$12093,14,FALSE) -> 3 | G35: =VLOOKUP(REPLACE($A$1,1,1,"")&E35,[1]戸籍からデータ貼り付け先!$A$2:$T$12093,16,FALSE) -> 7 | H35: 10 | I35: 97 | J35: =VLOOKUP(REPLACE($A$1,1,1,"")&I35,[1]戸籍からデータ貼り付け先!$A$2:$T$12093,14,FALSE) -> 0 | K35: =VLOOKUP(REPLACE($A$1,1,1,"")&I35,[1]戸籍からデータ貼り付け先!$A$2:$T$12093,16,FALSE) -> 1 | L35: 1
E36: 48 | F36: =VLOOKUP(REPLACE($A$1,1,1,"")&E36,[1]戸籍からデータ貼り付け先!$A$2:$T$12093,14,FALSE) -> 6 | G36: =VLOOKUP(REPLACE($A$1,1,1,"")&E36,[1]戸籍からデータ貼り付け先!$A$2:$T$12093,16,FALSE) -> 7 | H36: 13 | I36: 98 | J36: =VLOOKUP(REPLACE($A$1,1,1,"")&I36,[1]戸籍からデータ貼り付け先!$A$2:$T$12093,14,FALSE) -> 0 | K36: =VLOOKUP(REPLACE($A$1,1,1,"")&I36,[1]戸籍からデータ貼り付け先!$A$2:$T$12093,16,FALSE) -> 2 | L36: 2
E37: 49 | F37: =VLOOKUP(REPLACE($A$1,1,1,"")&E37,[1]戸籍からデータ貼り付け先!$A$2:$T$12093,14,FALSE) -> 9 | G37: =VLOOKUP(REPLACE($A$1,1,1,"")&E37,[1]戸籍からデータ貼り付け先!$A$2:$T$12093,16,FALSE) -> 6 | H37: 15 | I37: 99 | J37: =VLOOKUP(REPLACE($A$1,1,1,"")&I37,[1]戸籍からデータ貼り付け先!$A$2:$T$12093,14,FALSE) -> 0 | K37: =VLOOKUP(REPLACE($A$1,1,1,"")&I37,[1]戸籍からデータ貼り付け先!$A$2:$T$12093,16,FALSE) -> 0 | L37: 0
E38: 50 | F38: =VLOOKUP(REPLACE($A$1,1,1,"")&E38,[1]戸籍からデータ貼り付け先!$A$2:$T$12093,14,FALSE) -> 4 | G38: =VLOOKUP(REPLACE($A$1,1,1,"")&E38,[1]戸籍からデータ貼り付け先!$A$2:$T$12093,16,FALSE) -> 8 | H38: 12 | I38: 100 | J38: =VLOOKUP(REPLACE($A$1,1,1,"")&I38,[1]戸籍からデータ貼り付け先!$A$2:$T$12093,14,FALSE) -> 0 | K38: =VLOOKUP(REPLACE($A$1,1,1,"")&I38,[1]戸籍からデータ貼り付け先!$A$2:$T$12093,16,FALSE) -> 0 | L38: 0
E39: 51 | F39: =VLOOKUP(REPLACE($A$1,1,1,"")&E39,[1]戸籍からデータ貼り付け先!$A$2:$T$12093,14,FALSE) -> 9 | G39: =VLOOKUP(REPLACE($A$1,1,1,"")&E39,[1]戸籍からデータ貼り付け先!$A$2:$T$12093,16,FALSE) -> 6 | H39: 15 | I39: 101 | J39: =VLOOKUP(REPLACE($A$1,1,1,"")&I39,[1]戸籍からデータ貼り付け先!$A$2:$T$12093,14,FALSE) -> 0 | K39: =VLOOKUP(REPLACE($A$1,1,1,"")&I39,[1]戸籍からデータ貼り付け先!$A$2:$T$12093,16,FALSE) -> 0 | L39: 0
E40: 52 | F40: =VLOOKUP(REPLACE($A$1,1,1,"")&E40,[1]戸籍からデータ貼り付け先!$A$2:$T$12093,14,FALSE) -> 5 | G40: =VLOOKUP(REPLACE($A$1,1,1,"")&E40,[1]戸籍からデータ貼り付け先!$A$2:$T$12093,16,FALSE) -> 5 | H40: 10 | I40: 102 | J40: =VLOOKUP(REPLACE($A$1,1,1,"")&I40,[1]戸籍からデータ貼り付け先!$A$2:$T$12093,14,FALSE) -> 0 | K40: =VLOOKUP(REPLACE($A$1,1,1,"")&I40,[1]戸籍からデータ貼り付け先!$A$2:$T$12093,16,FALSE) -> 0 | L40: 0
E41: 53 | F41: =VLOOKUP(REPLACE($A$1,1,1,"")&E41,[1]戸籍からデータ貼り付け先!$A$2:$T$12093,14,FALSE) -> 4 | G41: =VLOOKUP(REPLACE($A$1,1,1,"")&E41,[1]戸籍からデータ貼り付け先!$A$2:$T$12093,16,FALSE) -> 7 | H41: 11 | I41: 103 | J41: =VLOOKUP(REPLACE($A$1,1,1,"")&I41,[1]戸籍からデータ貼り付け先!$A$2:$T$12093,14,FALSE) -> 0 | K41: =VLOOKUP(REPLACE($A$1,1,1,"")&I41,[1]戸籍からデータ貼り付け先!$A$2:$T$12093,16,FALSE) -> 0 | L41: 0
E42: 54 | F42: =VLOOKUP(REPLACE($A$1,1,1,"")&E42,[1]戸籍からデータ貼り付け先!$A$2:$T$12093,14,FALSE) -> 5 | G42: =VLOOKUP(REPLACE($A$1,1,1,"")&E42,[1]戸籍からデータ貼り付け先!$A$2:$T$12093,16,FALSE) -> 6 | H42: 11 | I42: 104 | J42: =VLOOKUP(REPLACE($A$1,1,1,"")&I42,[1]戸籍からデータ貼り付け先!$A$2:$T$12093,14,FALSE) -> 0 | K42: =VLOOKUP(REPLACE($A$1,1,1,"")&I42,[1]戸籍からデータ貼り付け先!$A$2:$T$12093,16,FALSE) -> 0 | L42: 0
E43: 55 | F43: =VLOOKUP(REPLACE($A$1,1,1,"")&E43,[1]戸籍からデータ貼り付け先!$A$2:$T$12093,14,FALSE) -> 7 | G43: =VLOOKUP(REPLACE($A$1,1,1,"")&E43,[1]戸籍からデータ貼り付け先!$A$2:$T$12093,16,FALSE) -> 4 | H43: 11 | I43: 105 | J43: =VLOOKUP(REPLACE($A$1,1,1,"")&I43,[1]戸籍からデータ貼り付け先!$A$2:$T$12093,14,FALSE) -> 0 | K43: =VLOOKUP(REPLACE($A$1,1,1,"")&I43,[1]戸籍からデータ貼り付け先!$A$2:$T$12093,16,FALSE) -> 0 | L43: 0
E44: 56 | F44: =VLOOKUP(REPLACE($A$1,1,1,"")&E44,[1]戸籍からデータ貼り付け先!$A$2:$T$12093,14,FALSE) -> 5 | G44: =VLOOKUP(REPLACE($A$1,1,1,"")&E44,[1]戸籍からデータ貼り付け先!$A$2:$T$12093,16,FALSE) -> 6 | H44: 11 | I44: 106 | J44: =VLOOKUP(REPLACE($A$1,1,1,"")&I44,[1]戸籍からデータ貼り付け先!$A$2:$T$12093,14,FALSE) -> 0 | K44: =VLOOKUP(REPLACE($A$1,1,1,"")&I44,[1]戸籍からデータ貼り付け先!$A$2:$T$12093,16,FALSE) -> 0 | L44: 0
E45: 57 | F45: =VLOOKUP(REPLACE($A$1,1,1,"")&E45,[1]戸籍からデータ貼り付け先!$A$2:$T$12093,14,FALSE) -> 7 | G45: =VLOOKUP(REPLACE($A$1,1,1,"")&E45,[1]戸籍からデータ貼り付け先!$A$2:$T$12093,16,FALSE) -> 6 | H45: 13 | I45: 107 | J45: =VLOOKUP(REPLACE($A$1,1,1,"")&I45,[1]戸籍からデータ貼り付け先!$A$2:$T$12093,14,FALSE) -> 0 | K45: =VLOOKUP(REPLACE($A$1,1,1,"")&I45,[1]戸籍からデータ貼り付け先!$A$2:$T$12093,16,FALSE) -> 0 | L45: 0
E46: 58 | F46: =VLOOKUP(REPLACE($A$1,1,1,"")&E46,[1]戸籍からデータ貼り付け先!$A$2:$T$12093,14,FALSE) -> 8 | G46: =VLOOKUP(REPLACE($A$1,1,1,"")&E46,[1]戸籍からデータ貼り付け先!$A$2:$T$12093,16,FALSE) -> 6 | H46: 14 | I46: 108 | J46: =VLOOKUP(REPLACE($A$1,1,1,"")&I46,[1]戸籍からデータ貼り付け先!$A$2:$T$12093,14,FALSE) -> 0 | K46: =VLOOKUP(REPLACE($A$1,1,1,"")&I46,[1]戸籍からデータ貼り付け先!$A$2:$T$12093,16,FALSE) -> 0 | L46: 0
E47: 59 | F47: =VLOOKUP(REPLACE($A$1,1,1,"")&E47,[1]戸籍からデータ貼り付け先!$A$2:$T$12093,14,FALSE) -> 7 | G47: =VLOOKUP(REPLACE($A$1,1,1,"")&E47,[1]戸籍からデータ貼り付け先!$A$2:$T$12093,16,FALSE) -> 7 | H47: 14 | I47: 小計 | J47: =SUM(J3:J46) -> 103 | K47: =SUM(K3:K46) -> 124 | L47: =SUM(J47:K47) -> 227
E48: 60 | F48: =VLOOKUP(REPLACE($A$1,1,1,"")&E48,[1]戸籍からデータ貼り付け先!$A$2:$T$12093,14,FALSE) -> 2 | G48: =VLOOKUP(REPLACE($A$1,1,1,"")&E48,[1]戸籍からデータ貼り付け先!$A$2:$T$12093,16,FALSE) -> 7 | H48: 9
E49: 61 | F49: =VLOOKUP(REPLACE($A$1,1,1,"")&E49,[1]戸籍からデータ貼り付け先!$A$2:$T$12093,14,FALSE) -> 4 | G49: =VLOOKUP(REPLACE($A$1,1,1,"")&E49,[1]戸籍からデータ貼り付け先!$A$2:$T$12093,16,FALSE) -> 3 | H49: 7 | J49: =REPLACE(A1,1,1,"")&"合計" -> 本町２丁目合計
E50: 62 | F50: =VLOOKUP(REPLACE($A$1,1,1,"")&E50,[1]戸籍からデータ貼り付け先!$A$2:$T$12093,14,FALSE) -> 5 | G50: =VLOOKUP(REPLACE($A$1,1,1,"")&E50,[1]戸籍からデータ貼り付け先!$A$2:$T$12093,16,FALSE) -> 3 | H50: 8 | J50: 男 | K50: 女 | L50: 計
E51: 63 | F51: =VLOOKUP(REPLACE($A$1,1,1,"")&E51,[1]戸籍からデータ貼り付け先!$A$2:$T$12093,14,FALSE) -> 6 | G51: =VLOOKUP(REPLACE($A$1,1,1,"")&E51,[1]戸籍からデータ貼り付け先!$A$2:$T$12093,16,FALSE) -> 1 | H51: 7 | J51: =SUM(B18,F53,J47) -> 354 | K51: =SUM(C18,G53,K47) -> 369 | L51: =SUM(J51:K51) -> 723
E52: 64 | F52: =VLOOKUP(REPLACE($A$1,1,1,"")&E52,[1]戸籍からデータ貼り付け先!$A$2:$T$12093,14,FALSE) -> 2 | G52: =VLOOKUP(REPLACE($A$1,1,1,"")&E52,[1]戸籍からデータ貼り付け先!$A$2:$T$12093,16,FALSE) -> 9 | H52: 11
E53: 小計 | F53: =SUM(F3:F52) -> 223 | G53: =SUM(G3:G52) -> 218 | H53: =SUM(F53:G53) -> 441
F56: -4-

Sheet 本町三丁目
A1: ◆本町３丁目 | H1: =秦野市合計!H1 -> 令和7年10月1日現在（単位：人）
A2: 年少人口(0歳～14歳) | B2: 男 | C2: 女 | D2: 計 | E2: 生産年齢人口(15歳～64歳) | F2: 男 | G2: 女 | H2: 計 | I2: 老年人口(65歳以上) | J2: 男 | K2: 女 | L2: 計
A3: 0 | B3: =VLOOKUP(REPLACE($A$1,1,1,"")&A3,[1]戸籍からデータ貼り付け先!$A$2:$T$12093,14,FALSE) -> 1 | C3: =VLOOKUP(REPLACE($A$1,1,1,"")&A3,[1]戸籍からデータ貼り付け先!$A$2:$T$12093,16,FALSE) -> 0 | D3: =SUM(B3:C3) -> 1 | E3: 15 | F3: =VLOOKUP(REPLACE($A$1,1,1,"")&E3,[1]戸籍からデータ貼り付け先!$A$2:$T$12093,14,FALSE) -> 7 | G3: =VLOOKUP(REPLACE($A$1,1,1,"")&E3,[1]戸籍からデータ貼り付け先!$A$2:$T$12093,16,FALSE) -> 8 | H3: =SUM(F3:G3) -> 15 | I3: 65 | J3: =VLOOKUP(REPLACE($A$1,1,1,"")&I3,[1]戸籍からデータ貼り付け先!$A$2:$T$12093,14,FALSE) -> 6 | K3: =VLOOKUP(REPLACE($A$1,1,1,"")&I3,[1]戸籍からデータ貼り付け先!$A$2:$T$12093,16,FALSE) -> 7 | L3: =SUM(J3:K3) -> 13
A4: 1 | B4: =VLOOKUP(REPLACE($A$1,1,1,"")&A4,[1]戸籍からデータ貼り付け先!$A$2:$T$12093,14,FALSE) -> 1 | C4: =VLOOKUP(REPLACE($A$1,1,1,"")&A4,[1]戸籍からデータ貼り付け先!$A$2:$T$12093,16,FALSE) -> 1 | D4: =SUM(B4:C4) -> 2 | E4: 16 | F4: =VLOOKUP(REPLACE($A$1,1,1,"")&E4,[1]戸籍からデータ貼り付け先!$A$2:$T$12093,14,FALSE) -> 3 | G4: =VLOOKUP(REPLACE($A$1,1,1,"")&E4,[1]戸籍からデータ貼り付け先!$A$2:$T$12093,16,FALSE) -> 3 | H4: =SUM(F4:G4) -> 6 | I4: 66 | J4: =VLOOKUP(REPLACE($A$1,1,1,"")&I4,[1]戸籍からデータ貼り付け先!$A$2:$T$12093,14,FALSE) -> 6 | K4: =VLOOKUP(REPLACE($A$1,1,1,"")&I4,[1]戸籍からデータ貼り付け先!$A$2:$T$12093,16,FALSE) -> 12 | L4: =SUM(J4:K4) -> 18
A5: 2 | B5: =VLOOKUP(REPLACE($A$1,1,1,"")&A5,[1]戸籍からデータ貼り付け先!$A$2:$T$12093,14,FALSE) -> 2 | C5: =VLOOKUP(REPLACE($A$1,1,1,"")&A5,[1]戸籍からデータ貼り付け先!$A$2:$T$12093,16,FALSE) -> 4 | D5: 6 | E5: 17 | F5: =VLOOKUP(REPLACE($A$1,1,1,"")&E5,[1]戸籍からデータ貼り付け先!$A$2:$T$12093,14,FALSE) -> 10 | G5: =VLOOKUP(REPLACE($A$1,1,1,"")&E5,[1]戸籍からデータ貼り付け先!$A$2:$T$12093,16,FALSE) -> 6 | H5: 16 | I5: 67 | J5: =VLOOKUP(REPLACE($A$1,1,1,"")&I5,[1]戸籍からデータ貼り付け先!$A$2:$T$12093,14,FALSE) -> 6 | K5: =VLOOKUP(REPLACE($A$1,1,1,"")&I5,[1]戸籍からデータ貼り付け先!$A$2:$T$12093,16,FALSE) -> 16 | L5: 22
A6: 3 | B6: =VLOOKUP(REPLACE($A$1,1,1,"")&A6,[1]戸籍からデータ貼り付け先!$A$2:$T$12093,14,FALSE) -> 4 | C6: =VLOOKUP(REPLACE($A$1,1,1,"")&A6,[1]戸籍からデータ貼り付け先!$A$2:$T$12093,16,FALSE) -> 2 | D6: 6 | E6: 18 | F6: =VLOOKUP(REPLACE($A$1,1,1,"")&E6,[1]戸籍からデータ貼り付け先!$A$2:$T$12093,14,FALSE) -> 8 | G6: =VLOOKUP(REPLACE($A$1,1,1,"")&E6,[1]戸籍からデータ貼り付け先!$A$2:$T$12093,16,FALSE) -> 7 | H6: 15 | I6: 68 | J6: =VLOOKUP(REPLACE($A$1,1,1,"")&I6,[1]戸籍からデータ貼り付け先!$A$2:$T$12093,14,FALSE) -> 6 | K6: =VLOOKUP(REPLACE($A$1,1,1,"")&I6,[1]戸籍からデータ貼り付け先!$A$2:$T$12093,16,FALSE) -> 10 | L6: 16
A7: 4 | B7: =VLOOKUP(REPLACE($A$1,1,1,"")&A7,[1]戸籍からデータ貼り付け先!$A$2:$T$12093,14,FALSE) -> 2 | C7: =VLOOKUP(REPLACE($A$1,1,1,"")&A7,[1]戸籍からデータ貼り付け先!$A$2:$T$12093,16,FALSE) -> 4 | D7: 6 | E7: 19 | F7: =VLOOKUP(REPLACE($A$1,1,1,"")&E7,[1]戸籍からデータ貼り付け先!$A$2:$T$12093,14,FALSE) -> 5 | G7: =VLOOKUP(REPLACE($A$1,1,1,"")&E7,[1]戸籍からデータ貼り付け先!$A$2:$T$12093,16,FALSE) -> 10 | H7: 15 | I7: 69 | J7: =VLOOKUP(REPLACE($A$1,1,1,"")&I7,[1]戸籍からデータ貼り付け先!$A$2:$T$12093,14,FALSE) -> 7 | K7: =VLOOKUP(REPLACE($A$1,1,1,"")&I7,[1]戸籍からデータ貼り付け先!$A$2:$T$12093,16,FALSE) -> 8 | L7: 15
A8: 5 | B8: =VLOOKUP(REPLACE($A$1,1,1,"")&A8,[1]戸籍からデータ貼り付け先!$A$2:$T$12093,14,FALSE) -> 7 | C8: =VLOOKUP(REPLACE($A$1,1,1,"")&A8,[1]戸籍からデータ貼り付け先!$A$2:$T$12093,16,FALSE) -> 1 | D8: 8 | E8: 20 | F8: =VLOOKUP(REPLACE($A$1,1,1,"")&E8,[1]戸籍からデータ貼り付け先!$A$2:$T$12093,14,FALSE) -> 3 | G8: =VLOOKUP(REPLACE($A$1,1,1,"")&E8,[1]戸籍からデータ貼り付け先!$A$2:$T$12093,16,FALSE) -> 8 | H8: 11 | I8: 70 | J8: =VLOOKUP(REPLACE($A$1,1,1,"")&I8,[1]戸籍からデータ貼り付け先!$A$2:$T$12093,14,FALSE) -> 10 | K8: =VLOOKUP(REPLACE($A$1,1,1,"")&I8,[1]戸籍からデータ貼り付け先!$A$2:$T$12093,16,FALSE) -> 13 | L8: 23
A9: 6 | B9: =VLOOKUP(REPLACE($A$1,1,1,"")&A9,[1]戸籍からデータ貼り付け先!$A$2:$T$12093,14,FALSE) -> 3 | C9: =VLOOKUP(REPLACE($A$1,1,1,"")&A9,[1]戸籍からデータ貼り付け先!$A$2:$T$12093,16,FALSE) -> 4 | D9: 7 | E9: 21 | F9: =VLOOKUP(REPLACE($A$1,1,1,"")&E9,[1]戸籍からデータ貼り付け先!$A$2:$T$12093,14,FALSE) -> 7 | G9: =VLOOKUP(REPLACE($A$1,1,1,"")&E9,[1]戸籍からデータ貼り付け先!$A$2:$T$12093,16,FALSE) -> 3 | H9: 10 | I9: 71 | J9: =VLOOKUP(REPLACE($A$1,1,1,"")&I9,[1]戸籍からデータ貼り付け先!$A$2:$T$12093,14,FALSE) -> 14 | K9: =VLOOKUP(REPLACE($A$1,1,1,"")&I9,[1]戸籍からデータ貼り付け先!$A$2:$T$12093,16,FALSE) -> 14 | L9: 28
A10: 7 | B10: =VLOOKUP(REPLACE($A$1,1,1,"")&A10,[1]戸籍からデータ貼り付け先!$A$2:$T$12093,14,FALSE) -> 3 | C10: =VLOOKUP(REPLACE($A$1,1,1,"")&A10,[1]戸籍からデータ貼り付け先!$A$2:$T$12093,16,FALSE) -> 0 | D10: 3 | E10: 22 | F10: =VLOOKUP(REPLACE($A$1,1,1,"")&E10,[1]戸籍からデータ貼り付け先!$A$2:$T$12093,14,FALSE) -> 6 | G10: =VLOOKUP(REPLACE($A$1,1,1,"")&E10,[1]戸籍からデータ貼り付け先!$A$2:$T$12093,16,FALSE) -> 9 | H10: 15 | I10: 72 | J10: =VLOOKUP(REPLACE($A$1,1,1,"")&I10,[1]戸籍からデータ貼り付け先!$A$2:$T$12093,14,FALSE) -> 7 | K10: =VLOOKUP(REPLACE($A$1,1,1,"")&I10,[1]戸籍からデータ貼り付け先!$A$2:$T$12093,16,FALSE) -> 8 | L10: 15
A11: 8 | B11: =VLOOKUP(REPLACE($A$1,1,1,"")&A11,[1]戸籍からデータ貼り付け先!$A$2:$T$12093,14,FALSE) -> 11 | C11: =VLOOKUP(REPLACE($A$1,1,1,"")&A11,[1]戸籍からデータ貼り付け先!$A$2:$T$12093,16,FALSE) -> 7 | D11: 18 | E11: 23 | F11: =VLOOKUP(REPLACE($A$1,1,1,"")&E11,[1]戸籍からデータ貼り付け先!$A$2:$T$12093,14,FALSE) -> 6 | G11: =VLOOKUP(REPLACE($A$1,1,1,"")&E11,[1]戸籍からデータ貼り付け先!$A$2:$T$12093,16,FALSE) -> 6 | H11: 12 | I11: 73 | J11: =VLOOKUP(REPLACE($A$1,1,1,"")&I11,[1]戸籍からデータ貼り付け先!$A$2:$T$12093,14,FALSE) -> 5 | K11: =VLOOKUP(REPLACE($A$1,1,1,"")&I11,[1]戸籍からデータ貼り付け先!$A$2:$T$12093,16,FALSE) -> 12 | L11: 17
A12: 9 | B12: =VLOOKUP(REPLACE($A$1,1,1,"")&A12,[1]戸籍からデータ貼り付け先!$A$2:$T$12093,14,FALSE) -> 2 | C12: =VLOOKUP(REPLACE($A$1,1,1,"")&A12,[1]戸籍からデータ貼り付け先!$A$2:$T$12093,16,FALSE) -> 3 | D12: 5 | E12: 24 | F12: =VLOOKUP(REPLACE($A$1,1,1,"")&E12,[1]戸籍からデータ貼り付け先!$A$2:$T$12093,14,FALSE) -> 5 | G12: =VLOOKUP(REPLACE($A$1,1,1,"")&E12,[1]戸籍からデータ貼り付け先!$A$2:$T$12093,16,FALSE) -> 13 | H12: 18 | I12: 74 | J12: =VLOOKUP(REPLACE($A$1,1,1,"")&I12,[1]戸籍からデータ貼り付け先!$A$2:$T$12093,14,FALSE) -> 11 | K12: =VLOOKUP(REPLACE($A$1,1,1,"")&I12,[1]戸籍からデータ貼り付け先!$A$2:$T$12093,16,FALSE) -> 16 | L12: 27
A13: 10 | B13: =VLOOKUP(REPLACE($A$1,1,1,"")&A13,[1]戸籍からデータ貼り付け先!$A$2:$T$12093,14,FALSE) -> 6 | C13: =VLOOKUP(REPLACE($A$1,1,1,"")&A13,[1]戸籍からデータ貼り付け先!$A$2:$T$12093,16,FALSE) -> 8 | D13: 14 | E13: 25 | F13: =VLOOKUP(REPLACE($A$1,1,1,"")&E13,[1]戸籍からデータ貼り付け先!$A$2:$T$12093,14,FALSE) -> 4 | G13: =VLOOKUP(REPLACE($A$1,1,1,"")&E13,[1]戸籍からデータ貼り付け先!$A$2:$T$12093,16,FALSE) -> 4 | H13: 8 | I13: 75 | J13: =VLOOKUP(REPLACE($A$1,1,1,"")&I13,[1]戸籍からデータ貼り付け先!$A$2:$T$12093,14,FALSE) -> 12 | K13: =VLOOKUP(REPLACE($A$1,1,1,"")&I13,[1]戸籍からデータ貼り付け先!$A$2:$T$12093,16,FALSE) -> 10 | L13: 22
A14: 11 | B14: =VLOOKUP(REPLACE($A$1,1,1,"")&A14,[1]戸籍からデータ貼り付け先!$A$2:$T$12093,14,FALSE) -> 2 | C14: =VLOOKUP(REPLACE($A$1,1,1,"")&A14,[1]戸籍からデータ貼り付け先!$A$2:$T$12093,16,FALSE) -> 3 | D14: 5 | E14: 26 | F14: =VLOOKUP(REPLACE($A$1,1,1,"")&E14,[1]戸籍からデータ貼り付け先!$A$2:$T$12093,14,FALSE) -> 8 | G14: =VLOOKUP(REPLACE($A$1,1,1,"")&E14,[1]戸籍からデータ貼り付け先!$A$2:$T$12093,16,FALSE) -> 7 | H14: 15 | I14: 76 | J14: =VLOOKUP(REPLACE($A$1,1,1,"")&I14,[1]戸籍からデータ貼り付け先!$A$2:$T$12093,14,FALSE) -> 18 | K14: =VLOOKUP(REPLACE($A$1,1,1,"")&I14,[1]戸籍からデータ貼り付け先!$A$2:$T$12093,16,FALSE) -> 16 | L14: 34
A15: 12 | B15: =VLOOKUP(REPLACE($A$1,1,1,"")&A15,[1]戸籍からデータ貼り付け先!$A$2:$T$12093,14,FALSE) -> 3 | C15: =VLOOKUP(REPLACE($A$1,1,1,"")&A15,[1]戸籍からデータ貼り付け先!$A$2:$T$12093,16,FALSE) -> 5 | D15: 8 | E15: 27 | F15: =VLOOKUP(REPLACE($A$1,1,1,"")&E15,[1]戸籍からデータ貼り付け先!$A$2:$T$12093,14,FALSE) -> 7 | G15: =VLOOKUP(REPLACE($A$1,1,1,"")&E15,[1]戸籍からデータ貼り付け先!$A$2:$T$12093,16,FALSE) -> 1 | H15: 8 | I15: 77 | J15: =VLOOKUP(REPLACE($A$1,1,1,"")&I15,[1]戸籍からデータ貼り付け先!$A$2:$T$12093,14,FALSE) -> 13 | K15: =VLOOKUP(REPLACE($A$1,1,1,"")&I15,[1]戸籍からデータ貼り付け先!$A$2:$T$12093,16,FALSE) -> 23 | L15: 36
A16: 13 | B16: =VLOOKUP(REPLACE($A$1,1,1,"")&A16,[1]戸籍からデータ貼り付け先!$A$2:$T$12093,14,FALSE) -> 2 | C16: =VLOOKUP(REPLACE($A$1,1,1,"")&A16,[1]戸籍からデータ貼り付け先!$A$2:$T$12093,16,FALSE) -> 3 | D16: 5 | E16: 28 | F16: =VLOOKUP(REPLACE($A$1,1,1,"")&E16,[1]戸籍からデータ貼り付け先!$A$2:$T$12093,14,FALSE) -> 5 | G16: =VLOOKUP(REPLACE($A$1,1,1,"")&E16,[1]戸籍からデータ貼り付け先!$A$2:$T$12093,16,FALSE) -> 8 | H16: 13 | I16: 78 | J16: =VLOOKUP(REPLACE($A$1,1,1,"")&I16,[1]戸籍からデータ貼り付け先!$A$2:$T$12093,14,FALSE) -> 16 | K16: =VLOOKUP(REPLACE($A$1,1,1,"")&I16,[1]戸籍からデータ貼り付け先!$A$2:$T$12093,16,FALSE) -> 13 | L16: 29
A17: 14 | B17: =VLOOKUP(REPLACE($A$1,1,1,"")&A17,[1]戸籍からデータ貼り付け先!$A$2:$T$12093,14,FALSE) -> 0 | C17: =VLOOKUP(REPLACE($A$1,1,1,"")&A17,[1]戸籍からデータ貼り付け先!$A$2:$T$12093,16,FALSE) -> 6 | D17: 6 | E17: 29 | F17: =VLOOKUP(REPLACE($A$1,1,1,"")&E17,[1]戸籍からデータ貼り付け先!$A$2:$T$12093,14,FALSE) -> 7 | G17: =VLOOKUP(REPLACE($A$1,1,1,"")&E17,[1]戸籍からデータ貼り付け先!$A$2:$T$12093,16,FALSE) -> 7 | H17: 14 | I17: 79 | J17: =VLOOKUP(REPLACE($A$1,1,1,"")&I17,[1]戸籍からデータ貼り付け先!$A$2:$T$12093,14,FALSE) -> 5 | K17: =VLOOKUP(REPLACE($A$1,1,1,"")&I17,[1]戸籍からデータ貼り付け先!$A$2:$T$12093,16,FALSE) -> 13 | L17: 18
A18: 小計 | B18: =SUM(B3:B17) -> 49 | C18: =SUM(C3:C17) -> 51 | D18: =SUM(B18:C18) -> 100 | E18: 30 | F18: =VLOOKUP(REPLACE($A$1,1,1,"")&E18,[1]戸籍からデータ貼り付け先!$A$2:$T$12093,14,FALSE) -> 4 | G18: =VLOOKUP(REPLACE($A$1,1,1,"")&E18,[1]戸籍からデータ貼り付け先!$A$2:$T$12093,16,FALSE) -> 9 | H18: 13 | I18: 80 | J18: =VLOOKUP(REPLACE($A$1,1,1,"")&I18,[1]戸籍からデータ貼り付け先!$A$2:$T$12093,14,FALSE) -> 13 | K18: =VLOOKUP(REPLACE($A$1,1,1,"")&I18,[1]戸籍からデータ貼り付け先!$A$2:$T$12093,16,FALSE) -> 13 | L18: 26
E19: 31 | F19: =VLOOKUP(REPLACE($A$1,1,1,"")&E19,[1]戸籍からデータ貼り付け先!$A$2:$T$12093,14,FALSE) -> 8 | G19: =VLOOKUP(REPLACE($A$1,1,1,"")&E19,[1]戸籍からデータ貼り付け先!$A$2:$T$12093,16,FALSE) -> 6 | H19: 14 | I19: 81 | J19: =VLOOKUP(REPLACE($A$1,1,1,"")&I19,[1]戸籍からデータ貼り付け先!$A$2:$T$12093,14,FALSE) -> 13 | K19: =VLOOKUP(REPLACE($A$1,1,1,"")&I19,[1]戸籍からデータ貼り付け先!$A$2:$T$12093,16,FALSE) -> 13 | L19: 26
E20: 32 | F20: =VLOOKUP(REPLACE($A$1,1,1,"")&E20,[1]戸籍からデータ貼り付け先!$A$2:$T$12093,14,FALSE) -> 8 | G20: =VLOOKUP(REPLACE($A$1,1,1,"")&E20,[1]戸籍からデータ貼り付け先!$A$2:$T$12093,16,FALSE) -> 6 | H20: 14 | I20: 82 | J20: =VLOOKUP(REPLACE($A$1,1,1,"")&I20,[1]戸籍からデータ貼り付け先!$A$2:$T$12093,14,FALSE) -> 4 | K20: =VLOOKUP(REPLACE($A$1,1,1,"")&I20,[1]戸籍からデータ貼り付け先!$A$2:$T$12093,16,FALSE) -> 11 | L20: 15
E21: 33 | F21: =VLOOKUP(REPLACE($A$1,1,1,"")&E21,[1]戸籍からデータ貼り付け先!$A$2:$T$12093,14,FALSE) -> 5 | G21: =VLOOKUP(REPLACE($A$1,1,1,"")&E21,[1]戸籍からデータ貼り付け先!$A$2:$T$12093,16,FALSE) -> 6 | H21: 11 | I21: 83 | J21: =VLOOKUP(REPLACE($A$1,1,1,"")&I21,[1]戸籍からデータ貼り付け先!$A$2:$T$12093,14,FALSE) -> 9 | K21: =VLOOKUP(REPLACE($A$1,1,1,"")&I21,[1]戸籍からデータ貼り付け先!$A$2:$T$12093,16,FALSE) -> 13 | L21: 22
E22: 34 | F22: =VLOOKUP(REPLACE($A$1,1,1,"")&E22,[1]戸籍からデータ貼り付け先!$A$2:$T$12093,14,FALSE) -> 7 | G22: =VLOOKUP(REPLACE($A$1,1,1,"")&E22,[1]戸籍からデータ貼り付け先!$A$2:$T$12093,16,FALSE) -> 3 | H22: 10 | I22: 84 | J22: =VLOOKUP(REPLACE($A$1,1,1,"")&I22,[1]戸籍からデータ貼り付け先!$A$2:$T$12093,14,FALSE) -> 5 | K22: =VLOOKUP(REPLACE($A$1,1,1,"")&I22,[1]戸籍からデータ貼り付け先!$A$2:$T$12093,16,FALSE) -> 16 | L22: 21
E23: 35 | F23: =VLOOKUP(REPLACE($A$1,1,1,"")&E23,[1]戸籍からデータ貼り付け先!$A$2:$T$12093,14,FALSE) -> 3 | G23: =VLOOKUP(REPLACE($A$1,1,1,"")&E23,[1]戸籍からデータ貼り付け先!$A$2:$T$12093,16,FALSE) -> 6 | H23: 9 | I23: 85 | J23: =VLOOKUP(REPLACE($A$1,1,1,"")&I23,[1]戸籍からデータ貼り付け先!$A$2:$T$12093,14,FALSE) -> 7 | K23: =VLOOKUP(REPLACE($A$1,1,1,"")&I23,[1]戸籍からデータ貼り付け先!$A$2:$T$12093,16,FALSE) -> 12 | L23: 19
E24: 36 | F24: =VLOOKUP(REPLACE($A$1,1,1,"")&E24,[1]戸籍からデータ貼り付け先!$A$2:$T$12093,14,FALSE) -> 12 | G24: =VLOOKUP(REPLACE($A$1,1,1,"")&E24,[1]戸籍からデータ貼り付け先!$A$2:$T$12093,16,FALSE) -> 2 | H24: 14 | I24: 86 | J24: =VLOOKUP(REPLACE($A$1,1,1,"")&I24,[1]戸籍からデータ貼り付け先!$A$2:$T$12093,14,FALSE) -> 4 | K24: =VLOOKUP(REPLACE($A$1,1,1,"")&I24,[1]戸籍からデータ貼り付け先!$A$2:$T$12093,16,FALSE) -> 7 | L24: 11
E25: 37 | F25: =VLOOKUP(REPLACE($A$1,1,1,"")&E25,[1]戸籍からデータ貼り付け先!$A$2:$T$12093,14,FALSE) -> 6 | G25: =VLOOKUP(REPLACE($A$1,1,1,"")&E25,[1]戸籍からデータ貼り付け先!$A$2:$T$12093,16,FALSE) -> 6 | H25: 12 | I25: 87 | J25: =VLOOKUP(REPLACE($A$1,1,1,"")&I25,[1]戸籍からデータ貼り付け先!$A$2:$T$12093,14,FALSE) -> 6 | K25: =VLOOKUP(REPLACE($A$1,1,1,"")&I25,[1]戸籍からデータ貼り付け先!$A$2:$T$12093,16,FALSE) -> 10 | L25: 16
E26: 38 | F26: =VLOOKUP(REPLACE($A$1,1,1,"")&E26,[1]戸籍からデータ貼り付け先!$A$2:$T$12093,14,FALSE) -> 6 | G26: =VLOOKUP(REPLACE($A$1,1,1,"")&E26,[1]戸籍からデータ貼り付け先!$A$2:$T$12093,16,FALSE) -> 9 | H26: 15 | I26: 88 | J26: =VLOOKUP(REPLACE($A$1,1,1,"")&I26,[1]戸籍からデータ貼り付け先!$A$2:$T$12093,14,FALSE) -> 7 | K26: =VLOOKUP(REPLACE($A$1,1,1,"")&I26,[1]戸籍からデータ貼り付け先!$A$2:$T$12093,16,FALSE) -> 13 | L26: 20
E27: 39 | F27: =VLOOKUP(REPLACE($A$1,1,1,"")&E27,[1]戸籍からデータ貼り付け先!$A$2:$T$12093,14,FALSE) -> 6 | G27: =VLOOKUP(REPLACE($A$1,1,1,"")&E27,[1]戸籍からデータ貼り付け先!$A$2:$T$12093,16,FALSE) -> 1 | H27: 7 | I27: 89 | J27: =VLOOKUP(REPLACE($A$1,1,1,"")&I27,[1]戸籍からデータ貼り付け先!$A$2:$T$12093,14,FALSE) -> 3 | K27: =VLOOKUP(REPLACE($A$1,1,1,"")&I27,[1]戸籍からデータ貼り付け先!$A$2:$T$12093,16,FALSE) -> 5 | L27: 8
E28: 40 | F28: =VLOOKUP(REPLACE($A$1,1,1,"")&E28,[1]戸籍からデータ貼り付け先!$A$2:$T$12093,14,FALSE) -> 4 | G28: =VLOOKUP(REPLACE($A$1,1,1,"")&E28,[1]戸籍からデータ貼り付け先!$A$2:$T$12093,16,FALSE) -> 3 | H28: 7 | I28: 90 | J28: =VLOOKUP(REPLACE($A$1,1,1,"")&I28,[1]戸籍からデータ貼り付け先!$A$2:$T$12093,14,FALSE) -> 7 | K28: =VLOOKUP(REPLACE($A$1,1,1,"")&I28,[1]戸籍からデータ貼り付け先!$A$2:$T$12093,16,FALSE) -> 6 | L28: 13
E29: 41 | F29: =VLOOKUP(REPLACE($A$1,1,1,"")&E29,[1]戸籍からデータ貼り付け先!$A$2:$T$12093,14,FALSE) -> 6 | G29: =VLOOKUP(REPLACE($A$1,1,1,"")&E29,[1]戸籍からデータ貼り付け先!$A$2:$T$12093,16,FALSE) -> 8 | H29: 14 | I29: 91 | J29: =VLOOKUP(REPLACE($A$1,1,1,"")&I29,[1]戸籍からデータ貼り付け先!$A$2:$T$12093,14,FALSE) -> 3 | K29: =VLOOKUP(REPLACE($A$1,1,1,"")&I29,[1]戸籍からデータ貼り付け先!$A$2:$T$12093,16,FALSE) -> 7 | L29: 10
E30: 42 | F30: =VLOOKUP(REPLACE($A$1,1,1,"")&E30,[1]戸籍からデータ貼り付け先!$A$2:$T$12093,14,FALSE) -> 10 | G30: =VLOOKUP(REPLACE($A$1,1,1,"")&E30,[1]戸籍からデータ貼り付け先!$A$2:$T$12093,16,FALSE) -> 8 | H30: 18 | I30: 92 | J30: =VLOOKUP(REPLACE($A$1,1,1,"")&I30,[1]戸籍からデータ貼り付け先!$A$2:$T$12093,14,FALSE) -> 0 | K30: =VLOOKUP(REPLACE($A$1,1,1,"")&I30,[1]戸籍からデータ貼り付け先!$A$2:$T$12093,16,FALSE) -> 5 | L30: 5
E31: 43 | F31: =VLOOKUP(REPLACE($A$1,1,1,"")&E31,[1]戸籍からデータ貼り付け先!$A$2:$T$12093,14,FALSE) -> 6 | G31: =VLOOKUP(REPLACE($A$1,1,1,"")&E31,[1]戸籍からデータ貼り付け先!$A$2:$T$12093,16,FALSE) -> 12 | H31: 18 | I31: 93 | J31: =VLOOKUP(REPLACE($A$1,1,1,"")&I31,[1]戸籍からデータ貼り付け先!$A$2:$T$12093,14,FALSE) -> 0 | K31: =VLOOKUP(REPLACE($A$1,1,1,"")&I31,[1]戸籍からデータ貼り付け先!$A$2:$T$12093,16,FALSE) -> 2 | L31: 2
E32: 44 | F32: =VLOOKUP(REPLACE($A$1,1,1,"")&E32,[1]戸籍からデータ貼り付け先!$A$2:$T$12093,14,FALSE) -> 5 | G32: =VLOOKUP(REPLACE($A$1,1,1,"")&E32,[1]戸籍からデータ貼り付け先!$A$2:$T$12093,16,FALSE) -> 7 | H32: 12 | I32: 94 | J32: =VLOOKUP(REPLACE($A$1,1,1,"")&I32,[1]戸籍からデータ貼り付け先!$A$2:$T$12093,14,FALSE) -> 2 | K32: =VLOOKUP(REPLACE($A$1,1,1,"")&I32,[1]戸籍からデータ貼り付け先!$A$2:$T$12093,16,FALSE) -> 1 | L32: 3
E33: 45 | F33: =VLOOKUP(REPLACE($A$1,1,1,"")&E33,[1]戸籍からデータ貼り付け先!$A$2:$T$12093,14,FALSE) -> 3 | G33: =VLOOKUP(REPLACE($A$1,1,1,"")&E33,[1]戸籍からデータ貼り付け先!$A$2:$T$12093,16,FALSE) -> 6 | H33: 9 | I33: 95 | J33: =VLOOKUP(REPLACE($A$1,1,1,"")&I33,[1]戸籍からデータ貼り付け先!$A$2:$T$12093,14,FALSE) -> 0 | K33: =VLOOKUP(REPLACE($A$1,1,1,"")&I33,[1]戸籍からデータ貼り付け先!$A$2:$T$12093,16,FALSE) -> 1 | L33: 1
E34: 46 | F34: =VLOOKUP(REPLACE($A$1,1,1,"")&E34,[1]戸籍からデータ貼り付け先!$A$2:$T$12093,14,FALSE) -> 4 | G34: =VLOOKUP(REPLACE($A$1,1,1,"")&E34,[1]戸籍からデータ貼り付け先!$A$2:$T$12093,16,FALSE) -> 5 | H34: 9 | I34: 96 | J34: =VLOOKUP(REPLACE($A$1,1,1,"")&I34,[1]戸籍からデータ貼り付け先!$A$2:$T$12093,14,FALSE) -> 1 | K34: =VLOOKUP(REPLACE($A$1,1,1,"")&I34,[1]戸籍からデータ貼り付け先!$A$2:$T$12093,16,FALSE) -> 1 | L34: 2
E35: 47 | F35: =VLOOKUP(REPLACE($A$1,1,1,"")&E35,[1]戸籍からデータ貼り付け先!$A$2:$T$12093,14,FALSE) -> 9 | G35: =VLOOKUP(REPLACE($A$1,1,1,"")&E35,[1]戸籍からデータ貼り付け先!$A$2:$T$12093,16,FALSE) -> 9 | H35: 18 | I35: 97 | J35: =VLOOKUP(REPLACE($A$1,1,1,"")&I35,[1]戸籍からデータ貼り付け先!$A$2:$T$12093,14,FALSE) -> 0 | K35: =VLOOKUP(REPLACE($A$1,1,1,"")&I35,[1]戸籍からデータ貼り付け先!$A$2:$T$12093,16,FALSE) -> 0 | L35: 0
E36: 48 | F36: =VLOOKUP(REPLACE($A$1,1,1,"")&E36,[1]戸籍からデータ貼り付け先!$A$2:$T$12093,14,FALSE) -> 10 | G36: =VLOOKUP(REPLACE($A$1,1,1,"")&E36,[1]戸籍からデータ貼り付け先!$A$2:$T$12093,16,FALSE) -> 13 | H36: 23 | I36: 98 | J36: =VLOOKUP(REPLACE($A$1,1,1,"")&I36,[1]戸籍からデータ貼り付け先!$A$2:$T$12093,14,FALSE) -> 0 | K36: =VLOOKUP(REPLACE($A$1,1,1,"")&I36,[1]戸籍からデータ貼り付け先!$A$2:$T$12093,16,FALSE) -> 0 | L36: 0
E37: 49 | F37: =VLOOKUP(REPLACE($A$1,1,1,"")&E37,[1]戸籍からデータ貼り付け先!$A$2:$T$12093,14,FALSE) -> 9 | G37: =VLOOKUP(REPLACE($A$1,1,1,"")&E37,[1]戸籍からデータ貼り付け先!$A$2:$T$12093,16,FALSE) -> 7 | H37: 16 | I37: 99 | J37: =VLOOKUP(REPLACE($A$1,1,1,"")&I37,[1]戸籍からデータ貼り付け先!$A$2:$T$12093,14,FALSE) -> 0 | K37: =VLOOKUP(REPLACE($A$1,1,1,"")&I37,[1]戸籍からデータ貼り付け先!$A$2:$T$12093,16,FALSE) -> 0 | L37: 0
E38: 50 | F38: =VLOOKUP(REPLACE($A$1,1,1,"")&E38,[1]戸籍からデータ貼り付け先!$A$2:$T$12093,14,FALSE) -> 12 | G38: =VLOOKUP(REPLACE($A$1,1,1,"")&E38,[1]戸籍からデータ貼り付け先!$A$2:$T$12093,16,FALSE) -> 13 | H38: 25 | I38: 100 | J38: =VLOOKUP(REPLACE($A$1,1,1,"")&I38,[1]戸籍からデータ貼り付け先!$A$2:$T$12093,14,FALSE) -> 0 | K38: =VLOOKUP(REPLACE($A$1,1,1,"")&I38,[1]戸籍からデータ貼り付け先!$A$2:$T$12093,16,FALSE) -> 0 | L38: 0
E39: 51 | F39: =VLOOKUP(REPLACE($A$1,1,1,"")&E39,[1]戸籍からデータ貼り付け先!$A$2:$T$12093,14,FALSE) -> 18 | G39: =VLOOKUP(REPLACE($A$1,1,1,"")&E39,[1]戸籍からデータ貼り付け先!$A$2:$T$12093,16,FALSE) -> 9 | H39: 27 | I39: 101 | J39: =VLOOKUP(REPLACE($A$1,1,1,"")&I39,[1]戸籍からデータ貼り付け先!$A$2:$T$12093,14,FALSE) -> 0 | K39: =VLOOKUP(REPLACE($A$1,1,1,"")&I39,[1]戸籍からデータ貼り付け先!$A$2:$T$12093,16,FALSE) -> 0 | L39: 0
E40: 52 | F40: =VLOOKUP(REPLACE($A$1,1,1,"")&E40,[1]戸籍からデータ貼り付け先!$A$2:$T$12093,14,FALSE) -> 12 | G40: =VLOOKUP(REPLACE($A$1,1,1,"")&E40,[1]戸籍からデータ貼り付け先!$A$2:$T$12093,16,FALSE) -> 10 | H40: 22 | I40: 102 | J40: =VLOOKUP(REPLACE($A$1,1,1,"")&I40,[1]戸籍からデータ貼り付け先!$A$2:$T$12093,14,FALSE) -> 0 | K40: =VLOOKUP(REPLACE($A$1,1,1,"")&I40,[1]戸籍からデータ貼り付け先!$A$2:$T$12093,16,FALSE) -> 0 | L40: 0
E41: 53 | F41: =VLOOKUP(REPLACE($A$1,1,1,"")&E41,[1]戸籍からデータ貼り付け先!$A$2:$T$12093,14,FALSE) -> 9 | G41: =VLOOKUP(REPLACE($A$1,1,1,"")&E41,[1]戸籍からデータ貼り付け先!$A$2:$T$12093,16,FALSE) -> 10 | H41: 19 | I41: 103 | J41: =VLOOKUP(REPLACE($A$1,1,1,"")&I41,[1]戸籍からデータ貼り付け先!$A$2:$T$12093,14,FALSE) -> 0 | K41: =VLOOKUP(REPLACE($A$1,1,1,"")&I41,[1]戸籍からデータ貼り付け先!$A$2:$T$12093,16,FALSE) -> 0 | L41: 0
E42: 54 | F42: =VLOOKUP(REPLACE($A$1,1,1,"")&E42,[1]戸籍からデータ貼り付け先!$A$2:$T$12093,14,FALSE) -> 10 | G42: =VLOOKUP(REPLACE($A$1,1,1,"")&E42,[1]戸籍からデータ貼り付け先!$A$2:$T$12093,16,FALSE) -> 19 | H42: 29 | I42: 104 | J42: =VLOOKUP(REPLACE($A$1,1,1,"")&I42,[1]戸籍からデータ貼り付け先!$A$2:$T$12093,14,FALSE) -> 0 | K42: =VLOOKUP(REPLACE($A$1,1,1,"")&I42,[1]戸籍からデータ貼り付け先!$A$2:$T$12093,16,FALSE) -> 0 | L42: 0
E43: 55 | F43: =VLOOKUP(REPLACE($A$1,1,1,"")&E43,[1]戸籍からデータ貼り付け先!$A$2:$T$12093,14,FALSE) -> 10 | G43: =VLOOKUP(REPLACE($A$1,1,1,"")&E43,[1]戸籍からデータ貼り付け先!$A$2:$T$12093,16,FALSE) -> 13 | H43: 23 | I43: 105 | J43: =VLOOKUP(REPLACE($A$1,1,1,"")&I43,[1]戸籍からデータ貼り付け先!$A$2:$T$12093,14,FALSE) -> 0 | K43: =VLOOKUP(REPLACE($A$1,1,1,"")&I43,[1]戸籍からデータ貼り付け先!$A$2:$T$12093,16,FALSE) -> 0 | L43: 0
E44: 56 | F44: =VLOOKUP(REPLACE($A$1,1,1,"")&E44,[1]戸籍からデータ貼り付け先!$A$2:$T$12093,14,FALSE) -> 12 | G44: =VLOOKUP(REPLACE($A$1,1,1,"")&E44,[1]戸籍からデータ貼り付け先!$A$2:$T$12093,16,FALSE) -> 14 | H44: 26 | I44: 106 | J44: =VLOOKUP(REPLACE($A$1,1,1,"")&I44,[1]戸籍からデータ貼り付け先!$A$2:$T$12093,14,FALSE) -> 0 | K44: =VLOOKUP(REPLACE($A$1,1,1,"")&I44,[1]戸籍からデータ貼り付け先!$A$2:$T$12093,16,FALSE) -> 0 | L44: 0
E45: 57 | F45: =VLOOKUP(REPLACE($A$1,1,1,"")&E45,[1]戸籍からデータ貼り付け先!$A$2:$T$12093,14,FALSE) -> 17 | G45: =VLOOKUP(REPLACE($A$1,1,1,"")&E45,[1]戸籍からデータ貼り付け先!$A$2:$T$12093,16,FALSE) -> 8 | H45: 25 | I45: 107 | J45: =VLOOKUP(REPLACE($A$1,1,1,"")&I45,[1]戸籍からデータ貼り付け先!$A$2:$T$12093,14,FALSE) -> 0 | K45: =VLOOKUP(REPLACE($A$1,1,1,"")&I45,[1]戸籍からデータ貼り付け先!$A$2:$T$12093,16,FALSE) -> 0 | L45: 0
E46: 58 | F46: =VLOOKUP(REPLACE($A$1,1,1,"")&E46,[1]戸籍からデータ貼り付け先!$A$2:$T$12093,14,FALSE) -> 12 | G46: =VLOOKUP(REPLACE($A$1,1,1,"")&E46,[1]戸籍からデータ貼り付け先!$A$2:$T$12093,16,FALSE) -> 10 | H46: 22 | I46: 108 | J46: =VLOOKUP(REPLACE($A$1,1,1,"")&I46,[1]戸籍からデータ貼り付け先!$A$2:$T$12093,14,FALSE) -> 0 | K46: =VLOOKUP(REPLACE($A$1,1,1,"")&I46,[1]戸籍からデータ貼り付け先!$A$2:$T$12093,16,FALSE) -> 0 | L46: 0
E47: 59 | F47: =VLOOKUP(REPLACE($A$1,1,1,"")&E47,[1]戸籍からデータ貼り付け先!$A$2:$T$12093,14,FALSE) -> 7 | G47: =VLOOKUP(REPLACE($A$1,1,1,"")&E47,[1]戸籍からデータ貼り付け先!$A$2:$T$12093,16,FALSE) -> 4 | H47: 11 | I47: 小計 | J47: =SUM(J3:J46) -> 226 | K47: =SUM(K3:K46) -> 327 | L47: =SUM(J47:K47) -> 553
E48: 60 | F48: =VLOOKUP(REPLACE($A$1,1,1,"")&E48,[1]戸籍からデータ貼り付け先!$A$2:$T$12093,14,FALSE) -> 11 | G48: =VLOOKUP(REPLACE($A$1,1,1,"")&E48,[1]戸籍からデータ貼り付け先!$A$2:$T$12093,16,FALSE) -> 5 | H48: 16
E49: 61 | F49: =VLOOKUP(REPLACE($A$1,1,1,"")&E49,[1]戸籍からデータ貼り付け先!$A$2:$T$12093,14,FALSE) -> 9 | G49: =VLOOKUP(REPLACE($A$1,1,1,"")&E49,[1]戸籍からデータ貼り付け先!$A$2:$T$12093,16,FALSE) -> 10 | H49: 19 | J49: =REPLACE(A1,1,1,"")&"合計" -> 本町３丁目合計
E50: 62 | F50: =VLOOKUP(REPLACE($A$1,1,1,"")&E50,[1]戸籍からデータ貼り付け先!$A$2:$T$12093,14,FALSE) -> 11 | G50: =VLOOKUP(REPLACE($A$1,1,1,"")&E50,[1]戸籍からデータ貼り付け先!$A$2:$T$12093,16,FALSE) -> 3 | H50: 14 | J50: 男 | K50: 女 | L50: 計
E51: 63 | F51: =VLOOKUP(REPLACE($A$1,1,1,"")&E51,[1]戸籍からデータ貼り付け先!$A$2:$T$12093,14,FALSE) -> 8 | G51: =VLOOKUP(REPLACE($A$1,1,1,"")&E51,[1]戸籍からデータ貼り付け先!$A$2:$T$12093,16,FALSE) -> 8 | H51: 16 | J51: =SUM(B18,F53,J47) -> 662 | K51: =SUM(C18,G53,K47) -> 757 | L51: =SUM(J51:K51) -> 1419
E52: 64 | F52: =VLOOKUP(REPLACE($A$1,1,1,"")&E52,[1]戸籍からデータ貼り付け先!$A$2:$T$12093,14,FALSE) -> 7 | G52: =VLOOKUP(REPLACE($A$1,1,1,"")&E52,[1]戸籍からデータ貼り付け先!$A$2:$T$12093,16,FALSE) -> 11 | H52: 18
E53: 小計 | F53: =SUM(F3:F52) -> 387 | G53: =SUM(G3:G52) -> 379 | H53: =SUM(F53:G53) -> 766
F56: -5-

Sheet 河原町
A1: ◆河原町 | H1: =秦野市合計!H1 -> 令和7年10月1日現在（単位：人）
A2: 年少人口(0歳～14歳) | B2: 男 | C2: 女 | D2: 計 | E2: 生産年齢人口(15歳～64歳) | F2: 男 | G2: 女 | H2: 計 | I2: 老年人口(65歳以上) | J2: 男 | K2: 女 | L2: 計
A3: 0 | B3: =VLOOKUP(REPLACE($A$1,1,1,"")&A3,[1]戸籍からデータ貼り付け先!$A$2:$T$12093,14,FALSE) -> 1 | C3: =VLOOKUP(REPLACE($A$1,1,1,"")&A3,[1]戸籍からデータ貼り付け先!$A$2:$T$12093,16,FALSE) -> 0 | D3: =SUM(B3:C3) -> 1 | E3: 15 | F3: =VLOOKUP(REPLACE($A$1,1,1,"")&E3,[1]戸籍からデータ貼り付け先!$A$2:$T$12093,14,FALSE) -> 0 | G3: =VLOOKUP(REPLACE($A$1,1,1,"")&E3,[1]戸籍からデータ貼り付け先!$A$2:$T$12093,16,FALSE) -> 0 | H3: =SUM(F3:G3) -> 0 | I3: 65 | J3: =VLOOKUP(REPLACE($A$1,1,1,"")&I3,[1]戸籍からデータ貼り付け先!$A$2:$T$12093,14,FALSE) -> 3 | K3: =VLOOKUP(REPLACE($A$1,1,1,"")&I3,[1]戸籍からデータ貼り付け先!$A$2:$T$12093,16,FALSE) -> 1 | L3: =SUM(J3:K3) -> 4
A4: 1 | B4: =VLOOKUP(REPLACE($A$1,1,1,"")&A4,[1]戸籍からデータ貼り付け先!$A$2:$T$12093,14,FALSE) -> 2 | C4: =VLOOKUP(REPLACE($A$1,1,1,"")&A4,[1]戸籍からデータ貼り付け先!$A$2:$T$12093,16,FALSE) -> 1 | D4: =SUM(B4:C4) -> 3 | E4: 16 | F4: =VLOOKUP(REPLACE($A$1,1,1,"")&E4,[1]戸籍からデータ貼り付け先!$A$2:$T$12093,14,FALSE) -> 1 | G4: =VLOOKUP(REPLACE($A$1,1,1,"")&E4,[1]戸籍からデータ貼り付け先!$A$2:$T$12093,16,FALSE) -> 3 | H4: =SUM(F4:G4) -> 4 | I4: 66 | J4: =VLOOKUP(REPLACE($A$1,1,1,"")&I4,[1]戸籍からデータ貼り付け先!$A$2:$T$12093,14,FALSE) -> 1 | K4: =VLOOKUP(REPLACE($A$1,1,1,"")&I4,[1]戸籍からデータ貼り付け先!$A$2:$T$12093,16,FALSE) -> 2 | L4: =SUM(J4:K4) -> 3
A5: 2 | B5: =VLOOKUP(REPLACE($A$1,1,1,"")&A5,[1]戸籍からデータ貼り付け先!$A$2:$T$12093,14,FALSE) -> 0 | C5: =VLOOKUP(REPLACE($A$1,1,1,"")&A5,[1]戸籍からデータ貼り付け先!$A$2:$T$12093,16,FALSE) -> 3 | D5: 3 | E5: 17 | F5: =VLOOKUP(REPLACE($A$1,1,1,"")&E5,[1]戸籍からデータ貼り付け先!$A$2:$T$12093,14,FALSE) -> 2 | G5: =VLOOKUP(REPLACE($A$1,1,1,"")&E5,[1]戸籍からデータ貼り付け先!$A$2:$T$12093,16,FALSE) -> 3 | H5: 5 | I5: 67 | J5: =VLOOKUP(REPLACE($A$1,1,1,"")&I5,[1]戸籍からデータ貼り付け先!$A$2:$T$12093,14,FALSE) -> 3 | K5: =VLOOKUP(REPLACE($A$1,1,1,"")&I5,[1]戸籍からデータ貼り付け先!$A$2:$T$12093,16,FALSE) -> 7 | L5: 10
A6: 3 | B6: =VLOOKUP(REPLACE($A$1,1,1,"")&A6,[1]戸籍からデータ貼り付け先!$A$2:$T$12093,14,FALSE) -> 1 | C6: =VLOOKUP(REPLACE($A$1,1,1,"")&A6,[1]戸籍からデータ貼り付け先!$A$2:$T$12093,16,FALSE) -> 0 | D6: 1 | E6: 18 | F6: =VLOOKUP(REPLACE($A$1,1,1,"")&E6,[1]戸籍からデータ貼り付け先!$A$2:$T$12093,14,FALSE) -> 4 | G6: =VLOOKUP(REPLACE($A$1,1,1,"")&E6,[1]戸籍からデータ貼り付け先!$A$2:$T$12093,16,FALSE) -> 5 | H6: 9 | I6: 68 | J6: =VLOOKUP(REPLACE($A$1,1,1,"")&I6,[1]戸籍からデータ貼り付け先!$A$2:$T$12093,14,FALSE) -> 2 | K6: =VLOOKUP(REPLACE($A$1,1,1,"")&I6,[1]戸籍からデータ貼り付け先!$A$2:$T$12093,16,FALSE) -> 1 | L6: 3
A7: 4 | B7: =VLOOKUP(REPLACE($A$1,1,1,"")&A7,[1]戸籍からデータ貼り付け先!$A$2:$T$12093,14,FALSE) -> 3 | C7: =VLOOKUP(REPLACE($A$1,1,1,"")&A7,[1]戸籍からデータ貼り付け先!$A$2:$T$12093,16,FALSE) -> 2 | D7: 5 | E7: 19 | F7: =VLOOKUP(REPLACE($A$1,1,1,"")&E7,[1]戸籍からデータ貼り付け先!$A$2:$T$12093,14,FALSE) -> 3 | G7: =VLOOKUP(REPLACE($A$1,1,1,"")&E7,[1]戸籍からデータ貼り付け先!$A$2:$T$12093,16,FALSE) -> 3 | H7: 6 | I7: 69 | J7: =VLOOKUP(REPLACE($A$1,1,1,"")&I7,[1]戸籍からデータ貼り付け先!$A$2:$T$12093,14,FALSE) -> 6 | K7: =VLOOKUP(REPLACE($A$1,1,1,"")&I7,[1]戸籍からデータ貼り付け先!$A$2:$T$12093,16,FALSE) -> 3 | L7: 9
A8: 5 | B8: =VLOOKUP(REPLACE($A$1,1,1,"")&A8,[1]戸籍からデータ貼り付け先!$A$2:$T$12093,14,FALSE) -> 1 | C8: =VLOOKUP(REPLACE($A$1,1,1,"")&A8,[1]戸籍からデータ貼り付け先!$A$2:$T$12093,16,FALSE) -> 0 | D8: 1 | E8: 20 | F8: =VLOOKUP(REPLACE($A$1,1,1,"")&E8,[1]戸籍からデータ貼り付け先!$A$2:$T$12093,14,FALSE) -> 3 | G8: =VLOOKUP(REPLACE($A$1,1,1,"")&E8,[1]戸籍からデータ貼り付け先!$A$2:$T$12093,16,FALSE) -> 3 | H8: 6 | I8: 70 | J8: =VLOOKUP(REPLACE($A$1,1,1,"")&I8,[1]戸籍からデータ貼り付け先!$A$2:$T$12093,14,FALSE) -> 3 | K8: =VLOOKUP(REPLACE($A$1,1,1,"")&I8,[1]戸籍からデータ貼り付け先!$A$2:$T$12093,16,FALSE) -> 4 | L8: 7
A9: 6 | B9: =VLOOKUP(REPLACE($A$1,1,1,"")&A9,[1]戸籍からデータ貼り付け先!$A$2:$T$12093,14,FALSE) -> 4 | C9: =VLOOKUP(REPLACE($A$1,1,1,"")&A9,[1]戸籍からデータ貼り付け先!$A$2:$T$12093,16,FALSE) -> 0 | D9: 4 | E9: 21 | F9: =VLOOKUP(REPLACE($A$1,1,1,"")&E9,[1]戸籍からデータ貼り付け先!$A$2:$T$12093,14,FALSE) -> 1 | G9: =VLOOKUP(REPLACE($A$1,1,1,"")&E9,[1]戸籍からデータ貼り付け先!$A$2:$T$12093,16,FALSE) -> 1 | H9: 2 | I9: 71 | J9: =VLOOKUP(REPLACE($A$1,1,1,"")&I9,[1]戸籍からデータ貼り付け先!$A$2:$T$12093,14,FALSE) -> 2 | K9: =VLOOKUP(REPLACE($A$1,1,1,"")&I9,[1]戸籍からデータ貼り付け先!$A$2:$T$12093,16,FALSE) -> 2 | L9: 4
A10: 7 | B10: =VLOOKUP(REPLACE($A$1,1,1,"")&A10,[1]戸籍からデータ貼り付け先!$A$2:$T$12093,14,FALSE) -> 2 | C10: =VLOOKUP(REPLACE($A$1,1,1,"")&A10,[1]戸籍からデータ貼り付け先!$A$2:$T$12093,16,FALSE) -> 0 | D10: 2 | E10: 22 | F10: =VLOOKUP(REPLACE($A$1,1,1,"")&E10,[1]戸籍からデータ貼り付け先!$A$2:$T$12093,14,FALSE) -> 2 | G10: =VLOOKUP(REPLACE($A$1,1,1,"")&E10,[1]戸籍からデータ貼り付け先!$A$2:$T$12093,16,FALSE) -> 2 | H10: 4 | I10: 72 | J10: =VLOOKUP(REPLACE($A$1,1,1,"")&I10,[1]戸籍からデータ貼り付け先!$A$2:$T$12093,14,FALSE) -> 3 | K10: =VLOOKUP(REPLACE($A$1,1,1,"")&I10,[1]戸籍からデータ貼り付け先!$A$2:$T$12093,16,FALSE) -> 1 | L10: 4
A11: 8 | B11: =VLOOKUP(REPLACE($A$1,1,1,"")&A11,[1]戸籍からデータ貼り付け先!$A$2:$T$12093,14,FALSE) -> 2 | C11: =VLOOKUP(REPLACE($A$1,1,1,"")&A11,[1]戸籍からデータ貼り付け先!$A$2:$T$12093,16,FALSE) -> 1 | D11: 3 | E11: 23 | F11: =VLOOKUP(REPLACE($A$1,1,1,"")&E11,[1]戸籍からデータ貼り付け先!$A$2:$T$12093,14,FALSE) -> 1 | G11: =VLOOKUP(REPLACE($A$1,1,1,"")&E11,[1]戸籍からデータ貼り付け先!$A$2:$T$12093,16,FALSE) -> 3 | H11: 4 | I11: 73 | J11: =VLOOKUP(REPLACE($A$1,1,1,"")&I11,[1]戸籍からデータ貼り付け先!$A$2:$T$12093,14,FALSE) -> 3 | K11: =VLOOKUP(REPLACE($A$1,1,1,"")&I11,[1]戸籍からデータ貼り付け先!$A$2:$T$12093,16,FALSE) -> 0 | L11: 3
A12: 9 | B12: =VLOOKUP(REPLACE($A$1,1,1,"")&A12,[1]戸籍からデータ貼り付け先!$A$2:$T$12093,14,FALSE) -> 0 | C12: =VLOOKUP(REPLACE($A$1,1,1,"")&A12,[1]戸籍からデータ貼り付け先!$A$2:$T$12093,16,FALSE) -> 1 | D12: 1 | E12: 24 | F12: =VLOOKUP(REPLACE($A$1,1,1,"")&E12,[1]戸籍からデータ貼り付け先!$A$2:$T$12093,14,FALSE) -> 1 | G12: =VLOOKUP(REPLACE($A$1,1,1,"")&E12,[1]戸籍からデータ貼り付け先!$A$2:$T$12093,16,FALSE) -> 2 | H12: 3 | I12: 74 | J12: =VLOOKUP(REPLACE($A$1,1,1,"")&I12,[1]戸籍からデータ貼り付け先!$A$2:$T$12093,14,FALSE) -> 2 | K12: =VLOOKUP(REPLACE($A$1,1,1,"")&I12,[1]戸籍からデータ貼り付け先!$A$2:$T$12093,16,FALSE) -> 6 | L12: 8
A13: 10 | B13: =VLOOKUP(REPLACE($A$1,1,1,"")&A13,[1]戸籍からデータ貼り付け先!$A$2:$T$12093,14,FALSE) -> 0 | C13: =VLOOKUP(REPLACE($A$1,1,1,"")&A13,[1]戸籍からデータ貼り付け先!$A$2:$T$12093,16,FALSE) -> 1 | D13: 1 | E13: 25 | F13: =VLOOKUP(REPLACE($A$1,1,1,"")&E13,[1]戸籍からデータ貼り付け先!$A$2:$T$12093,14,FALSE) -> 5 | G13: =VLOOKUP(REPLACE($A$1,1,1,"")&E13,[1]戸籍からデータ貼り付け先!$A$2:$T$12093,16,FALSE) -> 3 | H13: 8 | I13: 75 | J13: =VLOOKUP(REPLACE($A$1,1,1,"")&I13,[1]戸籍からデータ貼り付け先!$A$2:$T$12093,14,FALSE) -> 0 | K13: =VLOOKUP(REPLACE($A$1,1,1,"")&I13,[1]戸籍からデータ貼り付け先!$A$2:$T$12093,16,FALSE) -> 5 | L13: 5
A14: 11 | B14: =VLOOKUP(REPLACE($A$1,1,1,"")&A14,[1]戸籍からデータ貼り付け先!$A$2:$T$12093,14,FALSE) -> 3 | C14: =VLOOKUP(REPLACE($A$1,1,1,"")&A14,[1]戸籍からデータ貼り付け先!$A$2:$T$12093,16,FALSE) -> 1 | D14: 4 | E14: 26 | F14: =VLOOKUP(REPLACE($A$1,1,1,"")&E14,[1]戸籍からデータ貼り付け先!$A$2:$T$12093,14,FALSE) -> 1 | G14: =VLOOKUP(REPLACE($A$1,1,1,"")&E14,[1]戸籍からデータ貼り付け先!$A$2:$T$12093,16,FALSE) -> 4 | H14: 5 | I14: 76 | J14: =VLOOKUP(REPLACE($A$1,1,1,"")&I14,[1]戸籍からデータ貼り付け先!$A$2:$T$12093,14,FALSE) -> 8 | K14: =VLOOKUP(REPLACE($A$1,1,1,"")&I14,[1]戸籍からデータ貼り付け先!$A$2:$T$12093,16,FALSE) -> 3 | L14: 11
A15: 12 | B15: =VLOOKUP(REPLACE($A$1,1,1,"")&A15,[1]戸籍からデータ貼り付け先!$A$2:$T$12093,14,FALSE) -> 0 | C15: =VLOOKUP(REPLACE($A$1,1,1,"")&A15,[1]戸籍からデータ貼り付け先!$A$2:$T$12093,16,FALSE) -> 2 | D15: 2 | E15: 27 | F15: =VLOOKUP(REPLACE($A$1,1,1,"")&E15,[1]戸籍からデータ貼り付け先!$A$2:$T$12093,14,FALSE) -> 2 | G15: =VLOOKUP(REPLACE($A$1,1,1,"")&E15,[1]戸籍からデータ貼り付け先!$A$2:$T$12093,16,FALSE) -> 2 | H15: 4 | I15: 77 | J15: =VLOOKUP(REPLACE($A$1,1,1,"")&I15,[1]戸籍からデータ貼り付け先!$A$2:$T$12093,14,FALSE) -> 0 | K15: =VLOOKUP(REPLACE($A$1,1,1,"")&I15,[1]戸籍からデータ貼り付け先!$A$2:$T$12093,16,FALSE) -> 3 | L15: 3
A16: 13 | B16: =VLOOKUP(REPLACE($A$1,1,1,"")&A16,[1]戸籍からデータ貼り付け先!$A$2:$T$12093,14,FALSE) -> 0 | C16: =VLOOKUP(REPLACE($A$1,1,1,"")&A16,[1]戸籍からデータ貼り付け先!$A$2:$T$12093,16,FALSE) -> 1 | D16: 1 | E16: 28 | F16: =VLOOKUP(REPLACE($A$1,1,1,"")&E16,[1]戸籍からデータ貼り付け先!$A$2:$T$12093,14,FALSE) -> 0 | G16: =VLOOKUP(REPLACE($A$1,1,1,"")&E16,[1]戸籍からデータ貼り付け先!$A$2:$T$12093,16,FALSE) -> 2 | H16: 2 | I16: 78 | J16: =VLOOKUP(REPLACE($A$1,1,1,"")&I16,[1]戸籍からデータ貼り付け先!$A$2:$T$12093,14,FALSE) -> 2 | K16: =VLOOKUP(REPLACE($A$1,1,1,"")&I16,[1]戸籍からデータ貼り付け先!$A$2:$T$12093,16,FALSE) -> 5 | L16: 7
A17: 14 | B17: =VLOOKUP(REPLACE($A$1,1,1,"")&A17,[1]戸籍からデータ貼り付け先!$A$2:$T$12093,14,FALSE) -> 2 | C17: =VLOOKUP(REPLACE($A$1,1,1,"")&A17,[1]戸籍からデータ貼り付け先!$A$2:$T$12093,16,FALSE) -> 0 | D17: 2 | E17: 29 | F17: =VLOOKUP(REPLACE($A$1,1,1,"")&E17,[1]戸籍からデータ貼り付け先!$A$2:$T$12093,14,FALSE) -> 3 | G17: =VLOOKUP(REPLACE($A$1,1,1,"")&E17,[1]戸籍からデータ貼り付け先!$A$2:$T$12093,16,FALSE) -> 3 | H17: 6 | I17: 79 | J17: =VLOOKUP(REPLACE($A$1,1,1,"")&I17,[1]戸籍からデータ貼り付け先!$A$2:$T$12093,14,FALSE) -> 5 | K17: =VLOOKUP(REPLACE($A$1,1,1,"")&I17,[1]戸籍からデータ貼り付け先!$A$2:$T$12093,16,FALSE) -> 2 | L17: 7
A18: 小計 | B18: =SUM(B3:B17) -> 21 | C18: =SUM(C3:C17) -> 13 | D18: =SUM(B18:C18) -> 34 | E18: 30 | F18: =VLOOKUP(REPLACE($A$1,1,1,"")&E18,[1]戸籍からデータ貼り付け先!$A$2:$T$12093,14,FALSE) -> 1 | G18: =VLOOKUP(REPLACE($A$1,1,1,"")&E18,[1]戸籍からデータ貼り付け先!$A$2:$T$12093,16,FALSE) -> 3 | H18: 4 | I18: 80 | J18: =VLOOKUP(REPLACE($A$1,1,1,"")&I18,[1]戸籍からデータ貼り付け先!$A$2:$T$12093,14,FALSE) -> 2 | K18: =VLOOKUP(REPLACE($A$1,1,1,"")&I18,[1]戸籍からデータ貼り付け先!$A$2:$T$12093,16,FALSE) -> 4 | L18: 6
E19: 31 | F19: =VLOOKUP(REPLACE($A$1,1,1,"")&E19,[1]戸籍からデータ貼り付け先!$A$2:$T$12093,14,FALSE) -> 1 | G19: =VLOOKUP(REPLACE($A$1,1,1,"")&E19,[1]戸籍からデータ貼り付け先!$A$2:$T$12093,16,FALSE) -> 1 | H19: 2 | I19: 81 | J19: =VLOOKUP(REPLACE($A$1,1,1,"")&I19,[1]戸籍からデータ貼り付け先!$A$2:$T$12093,14,FALSE) -> 1 | K19: =VLOOKUP(REPLACE($A$1,1,1,"")&I19,[1]戸籍からデータ貼り付け先!$A$2:$T$12093,16,FALSE) -> 7 | L19: 8
E20: 32 | F20: =VLOOKUP(REPLACE($A$1,1,1,"")&E20,[1]戸籍からデータ貼り付け先!$A$2:$T$12093,14,FALSE) -> 2 | G20: =VLOOKUP(REPLACE($A$1,1,1,"")&E20,[1]戸籍からデータ貼り付け先!$A$2:$T$12093,16,FALSE) -> 7 | H20: 9 | I20: 82 | J20: =VLOOKUP(REPLACE($A$1,1,1,"")&I20,[1]戸籍からデータ貼り付け先!$A$2:$T$12093,14,FALSE) -> 0 | K20: =VLOOKUP(REPLACE($A$1,1,1,"")&I20,[1]戸籍からデータ貼り付け先!$A$2:$T$12093,16,FALSE) -> 4 | L20: 4
E21: 33 | F21: =VLOOKUP(REPLACE($A$1,1,1,"")&E21,[1]戸籍からデータ貼り付け先!$A$2:$T$12093,14,FALSE) -> 2 | G21: =VLOOKUP(REPLACE($A$1,1,1,"")&E21,[1]戸籍からデータ貼り付け先!$A$2:$T$12093,16,FALSE) -> 2 | H21: 4 | I21: 83 | J21: =VLOOKUP(REPLACE($A$1,1,1,"")&I21,[1]戸籍からデータ貼り付け先!$A$2:$T$12093,14,FALSE) -> 0 | K21: =VLOOKUP(REPLACE($A$1,1,1,"")&I21,[1]戸籍からデータ貼り付け先!$A$2:$T$12093,16,FALSE) -> 5 | L21: 5
E22: 34 | F22: =VLOOKUP(REPLACE($A$1,1,1,"")&E22,[1]戸籍からデータ貼り付け先!$A$2:$T$12093,14,FALSE) -> 1 | G22: =VLOOKUP(REPLACE($A$1,1,1,"")&E22,[1]戸籍からデータ貼り付け先!$A$2:$T$12093,16,FALSE) -> 1 | H22: 2 | I22: 84 | J22: =VLOOKUP(REPLACE($A$1,1,1,"")&I22,[1]戸籍からデータ貼り付け先!$A$2:$T$12093,14,FALSE) -> 4 | K22: =VLOOKUP(REPLACE($A$1,1,1,"")&I22,[1]戸籍からデータ貼り付け先!$A$2:$T$12093,16,FALSE) -> 4 | L22: 8
E23: 35 | F23: =VLOOKUP(REPLACE($A$1,1,1,"")&E23,[1]戸籍からデータ貼り付け先!$A$2:$T$12093,14,FALSE) -> 1 | G23: =VLOOKUP(REPLACE($A$1,1,1,"")&E23,[1]戸籍からデータ貼り付け先!$A$2:$T$12093,16,FALSE) -> 1 | H23: 2 | I23: 85 | J23: =VLOOKUP(REPLACE($A$1,1,1,"")&I23,[1]戸籍からデータ貼り付け先!$A$2:$T$12093,14,FALSE) -> 1 | K23: =VLOOKUP(REPLACE($A$1,1,1,"")&I23,[1]戸籍からデータ貼り付け先!$A$2:$T$12093,16,FALSE) -> 5 | L23: 6
E24: 36 | F24: =VLOOKUP(REPLACE($A$1,1,1,"")&E24,[1]戸籍からデータ貼り付け先!$A$2:$T$12093,14,FALSE) -> 2 | G24: =VLOOKUP(REPLACE($A$1,1,1,"")&E24,[1]戸籍からデータ貼り付け先!$A$2:$T$12093,16,FALSE) -> 2 | H24: 4 | I24: 86 | J24: =VLOOKUP(REPLACE($A$1,1,1,"")&I24,[1]戸籍からデータ貼り付け先!$A$2:$T$12093,14,FALSE) -> 1 | K24: =VLOOKUP(REPLACE($A$1,1,1,"")&I24,[1]戸籍からデータ貼り付け先!$A$2:$T$12093,16,FALSE) -> 2 | L24: 3
E25: 37 | F25: =VLOOKUP(REPLACE($A$1,1,1,"")&E25,[1]戸籍からデータ貼り付け先!$A$2:$T$12093,14,FALSE) -> 1 | G25: =VLOOKUP(REPLACE($A$1,1,1,"")&E25,[1]戸籍からデータ貼り付け先!$A$2:$T$12093,16,FALSE) -> 3 | H25: 4 | I25: 87 | J25: =VLOOKUP(REPLACE($A$1,1,1,"")&I25,[1]戸籍からデータ貼り付け先!$A$2:$T$12093,14,FALSE) -> 0 | K25: =VLOOKUP(REPLACE($A$1,1,1,"")&I25,[1]戸籍からデータ貼り付け先!$A$2:$T$12093,16,FALSE) -> 1 | L25: 1
E26: 38 | F26: =VLOOKUP(REPLACE($A$1,1,1,"")&E26,[1]戸籍からデータ貼り付け先!$A$2:$T$12093,14,FALSE) -> 3 | G26: =VLOOKUP(REPLACE($A$1,1,1,"")&E26,[1]戸籍からデータ貼り付け先!$A$2:$T$12093,16,FALSE) -> 1 | H26: 4 | I26: 88 | J26: =VLOOKUP(REPLACE($A$1,1,1,"")&I26,[1]戸籍からデータ貼り付け先!$A$2:$T$12093,14,FALSE) -> 3 | K26: =VLOOKUP(REPLACE($A$1,1,1,"")&I26,[1]戸籍からデータ貼り付け先!$A$2:$T$12093,16,FALSE) -> 1 | L26: 4
E27: 39 | F27: =VLOOKUP(REPLACE($A$1,1,1,"")&E27,[1]戸籍からデータ貼り付け先!$A$2:$T$12093,14,FALSE) -> 1 | G27: =VLOOKUP(REPLACE($A$1,1,1,"")&E27,[1]戸籍からデータ貼り付け先!$A$2:$T$12093,16,FALSE) -> 0 | H27: 1 | I27: 89 | J27: =VLOOKUP(REPLACE($A$1,1,1,"")&I27,[1]戸籍からデータ貼り付け先!$A$2:$T$12093,14,FALSE) -> 2 | K27: =VLOOKUP(REPLACE($A$1,1,1,"")&I27,[1]戸籍からデータ貼り付け先!$A$2:$T$12093,16,FALSE) -> 3 | L27: 5
E28: 40 | F28: =VLOOKUP(REPLACE($A$1,1,1,"")&E28,[1]戸籍からデータ貼り付け先!$A$2:$T$12093,14,FALSE) -> 0 | G28: =VLOOKUP(REPLACE($A$1,1,1,"")&E28,[1]戸籍からデータ貼り付け先!$A$2:$T$12093,16,FALSE) -> 0 | H28: 0 | I28: 90 | J28: =VLOOKUP(REPLACE($A$1,1,1,"")&I28,[1]戸籍からデータ貼り付け先!$A$2:$T$12093,14,FALSE) -> 1 | K28: =VLOOKUP(REPLACE($A$1,1,1,"")&I28,[1]戸籍からデータ貼り付け先!$A$2:$T$12093,16,FALSE) -> 6 | L28: 7
E29: 41 | F29: =VLOOKUP(REPLACE($A$1,1,1,"")&E29,[1]戸籍からデータ貼り付け先!$A$2:$T$12093,14,FALSE) -> 2 | G29: =VLOOKUP(REPLACE($A$1,1,1,"")&E29,[1]戸籍からデータ貼り付け先!$A$2:$T$12093,16,FALSE) -> 0 | H29: 2 | I29: 91 | J29: =VLOOKUP(REPLACE($A$1,1,1,"")&I29,[1]戸籍からデータ貼り付け先!$A$2:$T$12093,14,FALSE) -> 1 | K29: =VLOOKUP(REPLACE($A$1,1,1,"")&I29,[1]戸籍からデータ貼り付け先!$A$2:$T$12093,16,FALSE) -> 0 | L29: 1
E30: 42 | F30: =VLOOKUP(REPLACE($A$1,1,1,"")&E30,[1]戸籍からデータ貼り付け先!$A$2:$T$12093,14,FALSE) -> 3 | G30: =VLOOKUP(REPLACE($A$1,1,1,"")&E30,[1]戸籍からデータ貼り付け先!$A$2:$T$12093,16,FALSE) -> 1 | H30: 4 | I30: 92 | J30: =VLOOKUP(REPLACE($A$1,1,1,"")&I30,[1]戸籍からデータ貼り付け先!$A$2:$T$12093,14,FALSE) -> 1 | K30: =VLOOKUP(REPLACE($A$1,1,1,"")&I30,[1]戸籍からデータ貼り付け先!$A$2:$T$12093,16,FALSE) -> 0 | L30: 1
E31: 43 | F31: =VLOOKUP(REPLACE($A$1,1,1,"")&E31,[1]戸籍からデータ貼り付け先!$A$2:$T$12093,14,FALSE) -> 1 | G31: =VLOOKUP(REPLACE($A$1,1,1,"")&E31,[1]戸籍からデータ貼り付け先!$A$2:$T$12093,16,FALSE) -> 1 | H31: 2 | I31: 93 | J31: =VLOOKUP(REPLACE($A$1,1,1,"")&I31,[1]戸籍からデータ貼り付け先!$A$2:$T$12093,14,FALSE) -> 1 | K31: =VLOOKUP(REPLACE($A$1,1,1,"")&I31,[1]戸籍からデータ貼り付け先!$A$2:$T$12093,16,FALSE) -> 1 | L31: 2
E32: 44 | F32: =VLOOKUP(REPLACE($A$1,1,1,"")&E32,[1]戸籍からデータ貼り付け先!$A$2:$T$12093,14,FALSE) -> 4 | G32: =VLOOKUP(REPLACE($A$1,1,1,"")&E32,[1]戸籍からデータ貼り付け先!$A$2:$T$12093,16,FALSE) -> 2 | H32: 6 | I32: 94 | J32: =VLOOKUP(REPLACE($A$1,1,1,"")&I32,[1]戸籍からデータ貼り付け先!$A$2:$T$12093,14,FALSE) -> 0 | K32: =VLOOKUP(REPLACE($A$1,1,1,"")&I32,[1]戸籍からデータ貼り付け先!$A$2:$T$12093,16,FALSE) -> 2 | L32: 2
E33: 45 | F33: =VLOOKUP(REPLACE($A$1,1,1,"")&E33,[1]戸籍からデータ貼り付け先!$A$2:$T$12093,14,FALSE) -> 2 | G33: =VLOOKUP(REPLACE($A$1,1,1,"")&E33,[1]戸籍からデータ貼り付け先!$A$2:$T$12093,16,FALSE) -> 3 | H33: 5 | I33: 95 | J33: =VLOOKUP(REPLACE($A$1,1,1,"")&I33,[1]戸籍からデータ貼り付け先!$A$2:$T$12093,14,FALSE) -> 0 | K33: =VLOOKUP(REPLACE($A$1,1,1,"")&I33,[1]戸籍からデータ貼り付け先!$A$2:$T$12093,16,FALSE) -> 0 | L33: 0
E34: 46 | F34: =VLOOKUP(REPLACE($A$1,1,1,"")&E34,[1]戸籍からデータ貼り付け先!$A$2:$T$12093,14,FALSE) -> 4 | G34: =VLOOKUP(REPLACE($A$1,1,1,"")&E34,[1]戸籍からデータ貼り付け先!$A$2:$T$12093,16,FALSE) -> 0 | H34: 4 | I34: 96 | J34: =VLOOKUP(REPLACE($A$1,1,1,"")&I34,[1]戸籍からデータ貼り付け先!$A$2:$T$12093,14,FALSE) -> 0 | K34: =VLOOKUP(REPLACE($A$1,1,1,"")&I34,[1]戸籍からデータ貼り付け先!$A$2:$T$12093,16,FALSE) -> 0 | L34: 0
E35: 47 | F35: =VLOOKUP(REPLACE($A$1,1,1,"")&E35,[1]戸籍からデータ貼り付け先!$A$2:$T$12093,14,FALSE) -> 9 | G35: =VLOOKUP(REPLACE($A$1,1,1,"")&E35,[1]戸籍からデータ貼り付け先!$A$2:$T$12093,16,FALSE) -> 3 | H35: 12 | I35: 97 | J35: =VLOOKUP(REPLACE($A$1,1,1,"")&I35,[1]戸籍からデータ貼り付け先!$A$2:$T$12093,14,FALSE) -> 0 | K35: =VLOOKUP(REPLACE($A$1,1,1,"")&I35,[1]戸籍からデータ貼り付け先!$A$2:$T$12093,16,FALSE) -> 0 | L35: 0
E36: 48 | F36: =VLOOKUP(REPLACE($A$1,1,1,"")&E36,[1]戸籍からデータ貼り付け先!$A$2:$T$12093,14,FALSE) -> 3 | G36: =VLOOKUP(REPLACE($A$1,1,1,"")&E36,[1]戸籍からデータ貼り付け先!$A$2:$T$12093,16,FALSE) -> 5 | H36: 8 | I36: 98 | J36: =VLOOKUP(REPLACE($A$1,1,1,"")&I36,[1]戸籍からデータ貼り付け先!$A$2:$T$12093,14,FALSE) -> 0 | K36: =VLOOKUP(REPLACE($A$1,1,1,"")&I36,[1]戸籍からデータ貼り付け先!$A$2:$T$12093,16,FALSE) -> 0 | L36: 0
E37: 49 | F37: =VLOOKUP(REPLACE($A$1,1,1,"")&E37,[1]戸籍からデータ貼り付け先!$A$2:$T$12093,14,FALSE) -> 1 | G37: =VLOOKUP(REPLACE($A$1,1,1,"")&E37,[1]戸籍からデータ貼り付け先!$A$2:$T$12093,16,FALSE) -> 5 | H37: 6 | I37: 99 | J37: =VLOOKUP(REPLACE($A$1,1,1,"")&I37,[1]戸籍からデータ貼り付け先!$A$2:$T$12093,14,FALSE) -> 0 | K37: =VLOOKUP(REPLACE($A$1,1,1,"")&I37,[1]戸籍からデータ貼り付け先!$A$2:$T$12093,16,FALSE) -> 0 | L37: 0
E38: 50 | F38: =VLOOKUP(REPLACE($A$1,1,1,"")&E38,[1]戸籍からデータ貼り付け先!$A$2:$T$12093,14,FALSE) -> 4 | G38: =VLOOKUP(REPLACE($A$1,1,1,"")&E38,[1]戸籍からデータ貼り付け先!$A$2:$T$12093,16,FALSE) -> 2 | H38: 6 | I38: 100 | J38: =VLOOKUP(REPLACE($A$1,1,1,"")&I38,[1]戸籍からデータ貼り付け先!$A$2:$T$12093,14,FALSE) -> 0 | K38: =VLOOKUP(REPLACE($A$1,1,1,"")&I38,[1]戸籍からデータ貼り付け先!$A$2:$T$12093,16,FALSE) -> 1 | L38: 1
E39: 51 | F39: =VLOOKUP(REPLACE($A$1,1,1,"")&E39,[1]戸籍からデータ貼り付け先!$A$2:$T$12093,14,FALSE) -> 6 | G39: =VLOOKUP(REPLACE($A$1,1,1,"")&E39,[1]戸籍からデータ貼り付け先!$A$2:$T$12093,16,FALSE) -> 4 | H39: 10 | I39: 101 | J39: =VLOOKUP(REPLACE($A$1,1,1,"")&I39,[1]戸籍からデータ貼り付け先!$A$2:$T$12093,14,FALSE) -> 0 | K39: =VLOOKUP(REPLACE($A$1,1,1,"")&I39,[1]戸籍からデータ貼り付け先!$A$2:$T$12093,16,FALSE) -> 0 | L39: 0
E40: 52 | F40: =VLOOKUP(REPLACE($A$1,1,1,"")&E40,[1]戸籍からデータ貼り付け先!$A$2:$T$12093,14,FALSE) -> 6 | G40: =VLOOKUP(REPLACE($A$1,1,1,"")&E40,[1]戸籍からデータ貼り付け先!$A$2:$T$12093,16,FALSE) -> 3 | H40: 9 | I40: 102 | J40: =VLOOKUP(REPLACE($A$1,1,1,"")&I40,[1]戸籍からデータ貼り付け先!$A$2:$T$12093,14,FALSE) -> 0 | K40: =VLOOKUP(REPLACE($A$1,1,1,"")&I40,[1]戸籍からデータ貼り付け先!$A$2:$T$12093,16,FALSE) -> 0 | L40: 0
E41: 53 | F41: =VLOOKUP(REPLACE($A$1,1,1,"")&E41,[1]戸籍からデータ貼り付け先!$A$2:$T$12093,14,FALSE) -> 6 | G41: =VLOOKUP(REPLACE($A$1,1,1,"")&E41,[1]戸籍からデータ貼り付け先!$A$2:$T$12093,16,FALSE) -> 7 | H41: 13 | I41: 103 | J41: =VLOOKUP(REPLACE($A$1,1,1,"")&I41,[1]戸籍からデータ貼り付け先!$A$2:$T$12093,14,FALSE) -> 0 | K41: =VLOOKUP(REPLACE($A$1,1,1,"")&I41,[1]戸籍からデータ貼り付け先!$A$2:$T$12093,16,FALSE) -> 0 | L41: 0
E42: 54 | F42: =VLOOKUP(REPLACE($A$1,1,1,"")&E42,[1]戸籍からデータ貼り付け先!$A$2:$T$12093,14,FALSE) -> 10 | G42: =VLOOKUP(REPLACE($A$1,1,1,"")&E42,[1]戸籍からデータ貼り付け先!$A$2:$T$12093,16,FALSE) -> 2 | H42: 12 | I42: 104 | J42: =VLOOKUP(REPLACE($A$1,1,1,"")&I42,[1]戸籍からデータ貼り付け先!$A$2:$T$12093,14,FALSE) -> 0 | K42: =VLOOKUP(REPLACE($A$1,1,1,"")&I42,[1]戸籍からデータ貼り付け先!$A$2:$T$12093,16,FALSE) -> 0 | L42: 0
E43: 55 | F43: =VLOOKUP(REPLACE($A$1,1,1,"")&E43,[1]戸籍からデータ貼り付け先!$A$2:$T$12093,14,FALSE) -> 6 | G43: =VLOOKUP(REPLACE($A$1,1,1,"")&E43,[1]戸籍からデータ貼り付け先!$A$2:$T$12093,16,FALSE) -> 4 | H43: 10 | I43: 105 | J43: =VLOOKUP(REPLACE($A$1,1,1,"")&I43,[1]戸籍からデータ貼り付け先!$A$2:$T$12093,14,FALSE) -> 0 | K43: =VLOOKUP(REPLACE($A$1,1,1,"")&I43,[1]戸籍からデータ貼り付け先!$A$2:$T$12093,16,FALSE) -> 0 | L43: 0
E44: 56 | F44: =VLOOKUP(REPLACE($A$1,1,1,"")&E44,[1]戸籍からデータ貼り付け先!$A$2:$T$12093,14,FALSE) -> 6 | G44: =VLOOKUP(REPLACE($A$1,1,1,"")&E44,[1]戸籍からデータ貼り付け先!$A$2:$T$12093,16,FALSE) -> 2 | H44: 8 | I44: 106 | J44: =VLOOKUP(REPLACE($A$1,1,1,"")&I44,[1]戸籍からデータ貼り付け先!$A$2:$T$12093,14,FALSE) -> 0 | K44: =VLOOKUP(REPLACE($A$1,1,1,"")&I44,[1]戸籍からデータ貼り付け先!$A$2:$T$12093,16,FALSE) -> 0 | L44: 0
E45: 57 | F45: =VLOOKUP(REPLACE($A$1,1,1,"")&E45,[1]戸籍からデータ貼り付け先!$A$2:$T$12093,14,FALSE) -> 1 | G45: =VLOOKUP(REPLACE($A$1,1,1,"")&E45,[1]戸籍からデータ貼り付け先!$A$2:$T$12093,16,FALSE) -> 5 | H45: 6 | I45: 107 | J45: =VLOOKUP(REPLACE($A$1,1,1,"")&I45,[1]戸籍からデータ貼り付け先!$A$2:$T$12093,14,FALSE) -> 0 | K45: =VLOOKUP(REPLACE($A$1,1,1,"")&I45,[1]戸籍からデータ貼り付け先!$A$2:$T$12093,16,FALSE) -> 0 | L45: 0
E46: 58 | F46: =VLOOKUP(REPLACE($A$1,1,1,"")&E46,[1]戸籍からデータ貼り付け先!$A$2:$T$12093,14,FALSE) -> 2 | G46: =VLOOKUP(REPLACE($A$1,1,1,"")&E46,[1]戸籍からデータ貼り付け先!$A$2:$T$12093,16,FALSE) -> 4 | H46: 6 | I46: 108 | J46: =VLOOKUP(REPLACE($A$1,1,1,"")&I46,[1]戸籍からデータ貼り付け先!$A$2:$T$12093,14,FALSE) -> 0 | K46: =VLOOKUP(REPLACE($A$1,1,1,"")&I46,[1]戸籍からデータ貼り付け先!$A$2:$T$12093,16,FALSE) -> 0 | L46: 0
E47: 59 | F47: =VLOOKUP(REPLACE($A$1,1,1,"")&E47,[1]戸籍からデータ貼り付け先!$A$2:$T$12093,14,FALSE) -> 5 | G47: =VLOOKUP(REPLACE($A$1,1,1,"")&E47,[1]戸籍からデータ貼り付け先!$A$2:$T$12093,16,FALSE) -> 5 | H47: 10 | I47: 小計 | J47: =SUM(J3:J46) -> 61 | K47: =SUM(K3:K46) -> 91 | L47: =SUM(J47:K47) -> 152
E48: 60 | F48: =VLOOKUP(REPLACE($A$1,1,1,"")&E48,[1]戸籍からデータ貼り付け先!$A$2:$T$12093,14,FALSE) -> 6 | G48: =VLOOKUP(REPLACE($A$1,1,1,"")&E48,[1]戸籍からデータ貼り付け先!$A$2:$T$12093,16,FALSE) -> 7 | H48: 13
E49: 61 | F49: =VLOOKUP(REPLACE($A$1,1,1,"")&E49,[1]戸籍からデータ貼り付け先!$A$2:$T$12093,14,FALSE) -> 5 | G49: =VLOOKUP(REPLACE($A$1,1,1,"")&E49,[1]戸籍からデータ貼り付け先!$A$2:$T$12093,16,FALSE) -> 7 | H49: 12 | J49: =REPLACE(A1,1,1,"")&"合計" -> 河原町合計
E50: 62 | F50: =VLOOKUP(REPLACE($A$1,1,1,"")&E50,[1]戸籍からデータ貼り付け先!$A$2:$T$12093,14,FALSE) -> 4 | G50: =VLOOKUP(REPLACE($A$1,1,1,"")&E50,[1]戸籍からデータ貼り付け先!$A$2:$T$12093,16,FALSE) -> 3 | H50: 7 | J50: 男 | K50: 女 | L50: 計
E51: 63 | F51: =VLOOKUP(REPLACE($A$1,1,1,"")&E51,[1]戸籍からデータ貼り付け先!$A$2:$T$12093,14,FALSE) -> 5 | G51: =VLOOKUP(REPLACE($A$1,1,1,"")&E51,[1]戸籍からデータ貼り付け先!$A$2:$T$12093,16,FALSE) -> 2 | H51: 7 | J51: =SUM(B18,F53,J47) -> 230 | K51: =SUM(C18,G53,K47) -> 244 | L51: =SUM(J51:K51) -> 474
E52: 64 | F52: =VLOOKUP(REPLACE($A$1,1,1,"")&E52,[1]戸籍からデータ貼り付け先!$A$2:$T$12093,14,FALSE) -> 3 | G52: =VLOOKUP(REPLACE($A$1,1,1,"")&E52,[1]戸籍からデータ貼り付け先!$A$2:$T$12093,16,FALSE) -> 3 | H52: 6
E53: 小計 | F53: =SUM(F3:F52) -> 148 | G53: =SUM(G3:G52) -> 140 | H53: =SUM(F53:G53) -> 288
F56: -6-

Sheet 元町
A1: ◆元町 | H1: =秦野市合計!H1 -> 令和7年10月1日現在（単位：人）
A2: 年少人口(0歳～14歳) | B2: 男 | C2: 女 | D2: 計 | E2: 生産年齢人口(15歳～64歳) | F2: 男 | G2: 女 | H2: 計 | I2: 老年人口(65歳以上) | J2: 男 | K2: 女 | L2: 計
A3: 0 | B3: =VLOOKUP(REPLACE($A$1,1,1,"")&A3,[1]戸籍からデータ貼り付け先!$A$2:$T$12093,14,FALSE) -> 1 | C3: =VLOOKUP(REPLACE($A$1,1,1,"")&A3,[1]戸籍からデータ貼り付け先!$A$2:$T$12093,16,FALSE) -> 1 | D3: =SUM(B3:C3) -> 2 | E3: 15 | F3: =VLOOKUP(REPLACE($A$1,1,1,"")&E3,[1]戸籍からデータ貼り付け先!$A$2:$T$12093,14,FALSE) -> 2 | G3: =VLOOKUP(REPLACE($A$1,1,1,"")&E3,[1]戸籍からデータ貼り付け先!$A$2:$T$12093,16,FALSE) -> 1 | H3: =SUM(F3:G3) -> 3 | I3: 65 | J3: =VLOOKUP(REPLACE($A$1,1,1,"")&I3,[1]戸籍からデータ貼り付け先!$A$2:$T$12093,14,FALSE) -> 3 | K3: =VLOOKUP(REPLACE($A$1,1,1,"")&I3,[1]戸籍からデータ貼り付け先!$A$2:$T$12093,16,FALSE) -> 8 | L3: =SUM(J3:K3) -> 11
A4: 1 | B4: =VLOOKUP(REPLACE($A$1,1,1,"")&A4,[1]戸籍からデータ貼り付け先!$A$2:$T$12093,14,FALSE) -> 0 | C4: =VLOOKUP(REPLACE($A$1,1,1,"")&A4,[1]戸籍からデータ貼り付け先!$A$2:$T$12093,16,FALSE) -> 2 | D4: =SUM(B4:C4) -> 2 | E4: 16 | F4: =VLOOKUP(REPLACE($A$1,1,1,"")&E4,[1]戸籍からデータ貼り付け先!$A$2:$T$12093,14,FALSE) -> 0 | G4: =VLOOKUP(REPLACE($A$1,1,1,"")&E4,[1]戸籍からデータ貼り付け先!$A$2:$T$12093,16,FALSE) -> 0 | H4: =SUM(F4:G4) -> 0 | I4: 66 | J4: =VLOOKUP(REPLACE($A$1,1,1,"")&I4,[1]戸籍からデータ貼り付け先!$A$2:$T$12093,14,FALSE) -> 4 | K4: =VLOOKUP(REPLACE($A$1,1,1,"")&I4,[1]戸籍からデータ貼り付け先!$A$2:$T$12093,16,FALSE) -> 6 | L4: =SUM(J4:K4) -> 10
A5: 2 | B5: =VLOOKUP(REPLACE($A$1,1,1,"")&A5,[1]戸籍からデータ貼り付け先!$A$2:$T$12093,14,FALSE) -> 1 | C5: =VLOOKUP(REPLACE($A$1,1,1,"")&A5,[1]戸籍からデータ貼り付け先!$A$2:$T$12093,16,FALSE) -> 2 | D5: 3 | E5: 17 | F5: =VLOOKUP(REPLACE($A$1,1,1,"")&E5,[1]戸籍からデータ貼り付け先!$A$2:$T$12093,14,FALSE) -> 4 | G5: =VLOOKUP(REPLACE($A$1,1,1,"")&E5,[1]戸籍からデータ貼り付け先!$A$2:$T$12093,16,FALSE) -> 3 | H5: 7 | I5: 67 | J5: =VLOOKUP(REPLACE($A$1,1,1,"")&I5,[1]戸籍からデータ貼り付け先!$A$2:$T$12093,14,FALSE) -> 9 | K5: =VLOOKUP(REPLACE($A$1,1,1,"")&I5,[1]戸籍からデータ貼り付け先!$A$2:$T$12093,16,FALSE) -> 8 | L5: 17
A6: 3 | B6: =VLOOKUP(REPLACE($A$1,1,1,"")&A6,[1]戸籍からデータ貼り付け先!$A$2:$T$12093,14,FALSE) -> 1 | C6: =VLOOKUP(REPLACE($A$1,1,1,"")&A6,[1]戸籍からデータ貼り付け先!$A$2:$T$12093,16,FALSE) -> 1 | D6: 2 | E6: 18 | F6: =VLOOKUP(REPLACE($A$1,1,1,"")&E6,[1]戸籍からデータ貼り付け先!$A$2:$T$12093,14,FALSE) -> 3 | G6: =VLOOKUP(REPLACE($A$1,1,1,"")&E6,[1]戸籍からデータ貼り付け先!$A$2:$T$12093,16,FALSE) -> 1 | H6: 4 | I6: 68 | J6: =VLOOKUP(REPLACE($A$1,1,1,"")&I6,[1]戸籍からデータ貼り付け先!$A$2:$T$12093,14,FALSE) -> 9 | K6: =VLOOKUP(REPLACE($A$1,1,1,"")&I6,[1]戸籍からデータ貼り付け先!$A$2:$T$12093,16,FALSE) -> 7 | L6: 16
A7: 4 | B7: =VLOOKUP(REPLACE($A$1,1,1,"")&A7,[1]戸籍からデータ貼り付け先!$A$2:$T$12093,14,FALSE) -> 0 | C7: =VLOOKUP(REPLACE($A$1,1,1,"")&A7,[1]戸籍からデータ貼り付け先!$A$2:$T$12093,16,FALSE) -> 3 | D7: 3 | E7: 19 | F7: =VLOOKUP(REPLACE($A$1,1,1,"")&E7,[1]戸籍からデータ貼り付け先!$A$2:$T$12093,14,FALSE) -> 2 | G7: =VLOOKUP(REPLACE($A$1,1,1,"")&E7,[1]戸籍からデータ貼り付け先!$A$2:$T$12093,16,FALSE) -> 4 | H7: 6 | I7: 69 | J7: =VLOOKUP(REPLACE($A$1,1,1,"")&I7,[1]戸籍からデータ貼り付け先!$A$2:$T$12093,14,FALSE) -> 6 | K7: =VLOOKUP(REPLACE($A$1,1,1,"")&I7,[1]戸籍からデータ貼り付け先!$A$2:$T$12093,16,FALSE) -> 4 | L7: 10
A8: 5 | B8: =VLOOKUP(REPLACE($A$1,1,1,"")&A8,[1]戸籍からデータ貼り付け先!$A$2:$T$12093,14,FALSE) -> 2 | C8: =VLOOKUP(REPLACE($A$1,1,1,"")&A8,[1]戸籍からデータ貼り付け先!$A$2:$T$12093,16,FALSE) -> 1 | D8: 3 | E8: 20 | F8: =VLOOKUP(REPLACE($A$1,1,1,"")&E8,[1]戸籍からデータ貼り付け先!$A$2:$T$12093,14,FALSE) -> 0 | G8: =VLOOKUP(REPLACE($A$1,1,1,"")&E8,[1]戸籍からデータ貼り付け先!$A$2:$T$12093,16,FALSE) -> 2 | H8: 2 | I8: 70 | J8: =VLOOKUP(REPLACE($A$1,1,1,"")&I8,[1]戸籍からデータ貼り付け先!$A$2:$T$12093,14,FALSE) -> 6 | K8: =VLOOKUP(REPLACE($A$1,1,1,"")&I8,[1]戸籍からデータ貼り付け先!$A$2:$T$12093,16,FALSE) -> 4 | L8: 10
A9: 6 | B9: =VLOOKUP(REPLACE($A$1,1,1,"")&A9,[1]戸籍からデータ貼り付け先!$A$2:$T$12093,14,FALSE) -> 3 | C9: =VLOOKUP(REPLACE($A$1,1,1,"")&A9,[1]戸籍からデータ貼り付け先!$A$2:$T$12093,16,FALSE) -> 2 | D9: 5 | E9: 21 | F9: =VLOOKUP(REPLACE($A$1,1,1,"")&E9,[1]戸籍からデータ貼り付け先!$A$2:$T$12093,14,FALSE) -> 1 | G9: =VLOOKUP(REPLACE($A$1,1,1,"")&E9,[1]戸籍からデータ貼り付け先!$A$2:$T$12093,16,FALSE) -> 3 | H9: 4 | I9: 71 | J9: =VLOOKUP(REPLACE($A$1,1,1,"")&I9,[1]戸籍からデータ貼り付け先!$A$2:$T$12093,14,FALSE) -> 1 | K9: =VLOOKUP(REPLACE($A$1,1,1,"")&I9,[1]戸籍からデータ貼り付け先!$A$2:$T$12093,16,FALSE) -> 2 | L9: 3
A10: 7 | B10: =VLOOKUP(REPLACE($A$1,1,1,"")&A10,[1]戸籍からデータ貼り付け先!$A$2:$T$12093,14,FALSE) -> 1 | C10: =VLOOKUP(REPLACE($A$1,1,1,"")&A10,[1]戸籍からデータ貼り付け先!$A$2:$T$12093,16,FALSE) -> 2 | D10: 3 | E10: 22 | F10: =VLOOKUP(REPLACE($A$1,1,1,"")&E10,[1]戸籍からデータ貼り付け先!$A$2:$T$12093,14,FALSE) -> 2 | G10: =VLOOKUP(REPLACE($A$1,1,1,"")&E10,[1]戸籍からデータ貼り付け先!$A$2:$T$12093,16,FALSE) -> 3 | H10: 5 | I10: 72 | J10: =VLOOKUP(REPLACE($A$1,1,1,"")&I10,[1]戸籍からデータ貼り付け先!$A$2:$T$12093,14,FALSE) -> 8 | K10: =VLOOKUP(REPLACE($A$1,1,1,"")&I10,[1]戸籍からデータ貼り付け先!$A$2:$T$12093,16,FALSE) -> 4 | L10: 12
A11: 8 | B11: =VLOOKUP(REPLACE($A$1,1,1,"")&A11,[1]戸籍からデータ貼り付け先!$A$2:$T$12093,14,FALSE) -> 6 | C11: =VLOOKUP(REPLACE($A$1,1,1,"")&A11,[1]戸籍からデータ貼り付け先!$A$2:$T$12093,16,FALSE) -> 2 | D11: 8 | E11: 23 | F11: =VLOOKUP(REPLACE($A$1,1,1,"")&E11,[1]戸籍からデータ貼り付け先!$A$2:$T$12093,14,FALSE) -> 1 | G11: =VLOOKUP(REPLACE($A$1,1,1,"")&E11,[1]戸籍からデータ貼り付け先!$A$2:$T$12093,16,FALSE) -> 2 | H11: 3 | I11: 73 | J11: =VLOOKUP(REPLACE($A$1,1,1,"")&I11,[1]戸籍からデータ貼り付け先!$A$2:$T$12093,14,FALSE) -> 6 | K11: =VLOOKUP(REPLACE($A$1,1,1,"")&I11,[1]戸籍からデータ貼り付け先!$A$2:$T$12093,16,FALSE) -> 4 | L11: 10
A12: 9 | B12: =VLOOKUP(REPLACE($A$1,1,1,"")&A12,[1]戸籍からデータ貼り付け先!$A$2:$T$12093,14,FALSE) -> 1 | C12: =VLOOKUP(REPLACE($A$1,1,1,"")&A12,[1]戸籍からデータ貼り付け先!$A$2:$T$12093,16,FALSE) -> 0 | D12: 1 | E12: 24 | F12: =VLOOKUP(REPLACE($A$1,1,1,"")&E12,[1]戸籍からデータ貼り付け先!$A$2:$T$12093,14,FALSE) -> 1 | G12: =VLOOKUP(REPLACE($A$1,1,1,"")&E12,[1]戸籍からデータ貼り付け先!$A$2:$T$12093,16,FALSE) -> 1 | H12: 2 | I12: 74 | J12: =VLOOKUP(REPLACE($A$1,1,1,"")&I12,[1]戸籍からデータ貼り付け先!$A$2:$T$12093,14,FALSE) -> 2 | K12: =VLOOKUP(REPLACE($A$1,1,1,"")&I12,[1]戸籍からデータ貼り付け先!$A$2:$T$12093,16,FALSE) -> 7 | L12: 9
A13: 10 | B13: =VLOOKUP(REPLACE($A$1,1,1,"")&A13,[1]戸籍からデータ貼り付け先!$A$2:$T$12093,14,FALSE) -> 5 | C13: =VLOOKUP(REPLACE($A$1,1,1,"")&A13,[1]戸籍からデータ貼り付け先!$A$2:$T$12093,16,FALSE) -> 3 | D13: 8 | E13: 25 | F13: =VLOOKUP(REPLACE($A$1,1,1,"")&E13,[1]戸籍からデータ貼り付け先!$A$2:$T$12093,14,FALSE) -> 2 | G13: =VLOOKUP(REPLACE($A$1,1,1,"")&E13,[1]戸籍からデータ貼り付け先!$A$2:$T$12093,16,FALSE) -> 6 | H13: 8 | I13: 75 | J13: =VLOOKUP(REPLACE($A$1,1,1,"")&I13,[1]戸籍からデータ貼り付け先!$A$2:$T$12093,14,FALSE) -> 7 | K13: =VLOOKUP(REPLACE($A$1,1,1,"")&I13,[1]戸籍からデータ貼り付け先!$A$2:$T$12093,16,FALSE) -> 5 | L13: 12
A14: 11 | B14: =VLOOKUP(REPLACE($A$1,1,1,"")&A14,[1]戸籍からデータ貼り付け先!$A$2:$T$12093,14,FALSE) -> 5 | C14: =VLOOKUP(REPLACE($A$1,1,1,"")&A14,[1]戸籍からデータ貼り付け先!$A$2:$T$12093,16,FALSE) -> 4 | D14: 9 | E14: 26 | F14: =VLOOKUP(REPLACE($A$1,1,1,"")&E14,[1]戸籍からデータ貼り付け先!$A$2:$T$12093,14,FALSE) -> 0 | G14: =VLOOKUP(REPLACE($A$1,1,1,"")&E14,[1]戸籍からデータ貼り付け先!$A$2:$T$12093,16,FALSE) -> 3 | H14: 3 | I14: 76 | J14: =VLOOKUP(REPLACE($A$1,1,1,"")&I14,[1]戸籍からデータ貼り付け先!$A$2:$T$12093,14,FALSE) -> 10 | K14: =VLOOKUP(REPLACE($A$1,1,1,"")&I14,[1]戸籍からデータ貼り付け先!$A$2:$T$12093,16,FALSE) -> 8 | L14: 18
A15: 12 | B15: =VLOOKUP(REPLACE($A$1,1,1,"")&A15,[1]戸籍からデータ貼り付け先!$A$2:$T$12093,14,FALSE) -> 2 | C15: =VLOOKUP(REPLACE($A$1,1,1,"")&A15,[1]戸籍からデータ貼り付け先!$A$2:$T$12093,16,FALSE) -> 2 | D15: 4 | E15: 27 | F15: =VLOOKUP(REPLACE($A$1,1,1,"")&E15,[1]戸籍からデータ貼り付け先!$A$2:$T$12093,14,FALSE) -> 1 | G15: =VLOOKUP(REPLACE($A$1,1,1,"")&E15,[1]戸籍からデータ貼り付け先!$A$2:$T$12093,16,FALSE) -> 4 | H15: 5 | I15: 77 | J15: =VLOOKUP(REPLACE($A$1,1,1,"")&I15,[1]戸籍からデータ貼り付け先!$A$2:$T$12093,14,FALSE) -> 3 | K15: =VLOOKUP(REPLACE($A$1,1,1,"")&I15,[1]戸籍からデータ貼り付け先!$A$2:$T$12093,16,FALSE) -> 7 | L15: 10
A16: 13 | B16: =VLOOKUP(REPLACE($A$1,1,1,"")&A16,[1]戸籍からデータ貼り付け先!$A$2:$T$12093,14,FALSE) -> 3 | C16: =VLOOKUP(REPLACE($A$1,1,1,"")&A16,[1]戸籍からデータ貼り付け先!$A$2:$T$12093,16,FALSE) -> 0 | D16: 3 | E16: 28 | F16: =VLOOKUP(REPLACE($A$1,1,1,"")&E16,[1]戸籍からデータ貼り付け先!$A$2:$T$12093,14,FALSE) -> 3 | G16: =VLOOKUP(REPLACE($A$1,1,1,"")&E16,[1]戸籍からデータ貼り付け先!$A$2:$T$12093,16,FALSE) -> 1 | H16: 4 | I16: 78 | J16: =VLOOKUP(REPLACE($A$1,1,1,"")&I16,[1]戸籍からデータ貼り付け先!$A$2:$T$12093,14,FALSE) -> 3 | K16: =VLOOKUP(REPLACE($A$1,1,1,"")&I16,[1]戸籍からデータ貼り付け先!$A$2:$T$12093,16,FALSE) -> 5 | L16: 8
A17: 14 | B17: =VLOOKUP(REPLACE($A$1,1,1,"")&A17,[1]戸籍からデータ貼り付け先!$A$2:$T$12093,14,FALSE) -> 1 | C17: =VLOOKUP(REPLACE($A$1,1,1,"")&A17,[1]戸籍からデータ貼り付け先!$A$2:$T$12093,16,FALSE) -> 3 | D17: 4 | E17: 29 | F17: =VLOOKUP(REPLACE($A$1,1,1,"")&E17,[1]戸籍からデータ貼り付け先!$A$2:$T$12093,14,FALSE) -> 2 | G17: =VLOOKUP(REPLACE($A$1,1,1,"")&E17,[1]戸籍からデータ貼り付け先!$A$2:$T$12093,16,FALSE) -> 0 | H17: 2 | I17: 79 | J17: =VLOOKUP(REPLACE($A$1,1,1,"")&I17,[1]戸籍からデータ貼り付け先!$A$2:$T$12093,14,FALSE) -> 2 | K17: =VLOOKUP(REPLACE($A$1,1,1,"")&I17,[1]戸籍からデータ貼り付け先!$A$2:$T$12093,16,FALSE) -> 5 | L17: 7
A18: 小計 | B18: =SUM(B3:B17) -> 32 | C18: =SUM(C3:C17) -> 28 | D18: =SUM(B18:C18) -> 60 | E18: 30 | F18: =VLOOKUP(REPLACE($A$1,1,1,"")&E18,[1]戸籍からデータ貼り付け先!$A$2:$T$12093,14,FALSE) -> 1 | G18: =VLOOKUP(REPLACE($A$1,1,1,"")&E18,[1]戸籍からデータ貼り付け先!$A$2:$T$12093,16,FALSE) -> 2 | H18: 3 | I18: 80 | J18: =VLOOKUP(REPLACE($A$1,1,1,"")&I18,[1]戸籍からデータ貼り付け先!$A$2:$T$12093,14,FALSE) -> 3 | K18: =VLOOKUP(REPLACE($A$1,1,1,"")&I18,[1]戸籍からデータ貼り付け先!$A$2:$T$12093,16,FALSE) -> 0 | L18: 3
E19: 31 | F19: =VLOOKUP(REPLACE($A$1,1,1,"")&E19,[1]戸籍からデータ貼り付け先!$A$2:$T$12093,14,FALSE) -> 3 | G19: =VLOOKUP(REPLACE($A$1,1,1,"")&E19,[1]戸籍からデータ貼り付け先!$A$2:$T$12093,16,FALSE) -> 2 | H19: 5 | I19: 81 | J19: =VLOOKUP(REPLACE($A$1,1,1,"")&I19,[1]戸籍からデータ貼り付け先!$A$2:$T$12093,14,FALSE) -> 6 | K19: =VLOOKUP(REPLACE($A$1,1,1,"")&I19,[1]戸籍からデータ貼り付け先!$A$2:$T$12093,16,FALSE) -> 5 | L19: 11
E20: 32 | F20: =VLOOKUP(REPLACE($A$1,1,1,"")&E20,[1]戸籍からデータ貼り付け先!$A$2:$T$12093,14,FALSE) -> 2 | G20: =VLOOKUP(REPLACE($A$1,1,1,"")&E20,[1]戸籍からデータ貼り付け先!$A$2:$T$12093,16,FALSE) -> 6 | H20: 8 | I20: 82 | J20: =VLOOKUP(REPLACE($A$1,1,1,"")&I20,[1]戸籍からデータ貼り付け先!$A$2:$T$12093,14,FALSE) -> 6 | K20: =VLOOKUP(REPLACE($A$1,1,1,"")&I20,[1]戸籍からデータ貼り付け先!$A$2:$T$12093,16,FALSE) -> 1 | L20: 7
E21: 33 | F21: =VLOOKUP(REPLACE($A$1,1,1,"")&E21,[1]戸籍からデータ貼り付け先!$A$2:$T$12093,14,FALSE) -> 1 | G21: =VLOOKUP(REPLACE($A$1,1,1,"")&E21,[1]戸籍からデータ貼り付け先!$A$2:$T$12093,16,FALSE) -> 3 | H21: 4 | I21: 83 | J21: =VLOOKUP(REPLACE($A$1,1,1,"")&I21,[1]戸籍からデータ貼り付け先!$A$2:$T$12093,14,FALSE) -> 0 | K21: =VLOOKUP(REPLACE($A$1,1,1,"")&I21,[1]戸籍からデータ貼り付け先!$A$2:$T$12093,16,FALSE) -> 8 | L21: 8
E22: 34 | F22: =VLOOKUP(REPLACE($A$1,1,1,"")&E22,[1]戸籍からデータ貼り付け先!$A$2:$T$12093,14,FALSE) -> 1 | G22: =VLOOKUP(REPLACE($A$1,1,1,"")&E22,[1]戸籍からデータ貼り付け先!$A$2:$T$12093,16,FALSE) -> 6 | H22: 7 | I22: 84 | J22: =VLOOKUP(REPLACE($A$1,1,1,"")&I22,[1]戸籍からデータ貼り付け先!$A$2:$T$12093,14,FALSE) -> 3 | K22: =VLOOKUP(REPLACE($A$1,1,1,"")&I22,[1]戸籍からデータ貼り付け先!$A$2:$T$12093,16,FALSE) -> 4 | L22: 7
E23: 35 | F23: =VLOOKUP(REPLACE($A$1,1,1,"")&E23,[1]戸籍からデータ貼り付け先!$A$2:$T$12093,14,FALSE) -> 6 | G23: =VLOOKUP(REPLACE($A$1,1,1,"")&E23,[1]戸籍からデータ貼り付け先!$A$2:$T$12093,16,FALSE) -> 2 | H23: 8 | I23: 85 | J23: =VLOOKUP(REPLACE($A$1,1,1,"")&I23,[1]戸籍からデータ貼り付け先!$A$2:$T$12093,14,FALSE) -> 1 | K23: =VLOOKUP(REPLACE($A$1,1,1,"")&I23,[1]戸籍からデータ貼り付け先!$A$2:$T$12093,16,FALSE) -> 0 | L23: 1
E24: 36 | F24: =VLOOKUP(REPLACE($A$1,1,1,"")&E24,[1]戸籍からデータ貼り付け先!$A$2:$T$12093,14,FALSE) -> 3 | G24: =VLOOKUP(REPLACE($A$1,1,1,"")&E24,[1]戸籍からデータ貼り付け先!$A$2:$T$12093,16,FALSE) -> 3 | H24: 6 | I24: 86 | J24: =VLOOKUP(REPLACE($A$1,1,1,"")&I24,[1]戸籍からデータ貼り付け先!$A$2:$T$12093,14,FALSE) -> 4 | K24: =VLOOKUP(REPLACE($A$1,1,1,"")&I24,[1]戸籍からデータ貼り付け先!$A$2:$T$12093,16,FALSE) -> 2 | L24: 6
E25: 37 | F25: =VLOOKUP(REPLACE($A$1,1,1,"")&E25,[1]戸籍からデータ貼り付け先!$A$2:$T$12093,14,FALSE) -> 3 | G25: =VLOOKUP(REPLACE($A$1,1,1,"")&E25,[1]戸籍からデータ貼り付け先!$A$2:$T$12093,16,FALSE) -> 4 | H25: 7 | I25: 87 | J25: =VLOOKUP(REPLACE($A$1,1,1,"")&I25,[1]戸籍からデータ貼り付け先!$A$2:$T$12093,14,FALSE) -> 1 | K25: =VLOOKUP(REPLACE($A$1,1,1,"")&I25,[1]戸籍からデータ貼り付け先!$A$2:$T$12093,16,FALSE) -> 3 | L25: 4
E26: 38 | F26: =VLOOKUP(REPLACE($A$1,1,1,"")&E26,[1]戸籍からデータ貼り付け先!$A$2:$T$12093,14,FALSE) -> 3 | G26: =VLOOKUP(REPLACE($A$1,1,1,"")&E26,[1]戸籍からデータ貼り付け先!$A$2:$T$12093,16,FALSE) -> 0 | H26: 3 | I26: 88 | J26: =VLOOKUP(REPLACE($A$1,1,1,"")&I26,[1]戸籍からデータ貼り付け先!$A$2:$T$12093,14,FALSE) -> 2 | K26: =VLOOKUP(REPLACE($A$1,1,1,"")&I26,[1]戸籍からデータ貼り付け先!$A$2:$T$12093,16,FALSE) -> 3 | L26: 5
E27: 39 | F27: =VLOOKUP(REPLACE($A$1,1,1,"")&E27,[1]戸籍からデータ貼り付け先!$A$2:$T$12093,14,FALSE) -> 1 | G27: =VLOOKUP(REPLACE($A$1,1,1,"")&E27,[1]戸籍からデータ貼り付け先!$A$2:$T$12093,16,FALSE) -> 4 | H27: 5 | I27: 89 | J27: =VLOOKUP(REPLACE($A$1,1,1,"")&I27,[1]戸籍からデータ貼り付け先!$A$2:$T$12093,14,FALSE) -> 1 | K27: =VLOOKUP(REPLACE($A$1,1,1,"")&I27,[1]戸籍からデータ貼り付け先!$A$2:$T$12093,16,FALSE) -> 2 | L27: 3
E28: 40 | F28: =VLOOKUP(REPLACE($A$1,1,1,"")&E28,[1]戸籍からデータ貼り付け先!$A$2:$T$12093,14,FALSE) -> 4 | G28: =VLOOKUP(REPLACE($A$1,1,1,"")&E28,[1]戸籍からデータ貼り付け先!$A$2:$T$12093,16,FALSE) -> 6 | H28: 10 | I28: 90 | J28: =VLOOKUP(REPLACE($A$1,1,1,"")&I28,[1]戸籍からデータ貼り付け先!$A$2:$T$12093,14,FALSE) -> 0 | K28: =VLOOKUP(REPLACE($A$1,1,1,"")&I28,[1]戸籍からデータ貼り付け先!$A$2:$T$12093,16,FALSE) -> 3 | L28: 3
E29: 41 | F29: =VLOOKUP(REPLACE($A$1,1,1,"")&E29,[1]戸籍からデータ貼り付け先!$A$2:$T$12093,14,FALSE) -> 4 | G29: =VLOOKUP(REPLACE($A$1,1,1,"")&E29,[1]戸籍からデータ貼り付け先!$A$2:$T$12093,16,FALSE) -> 3 | H29: 7 | I29: 91 | J29: =VLOOKUP(REPLACE($A$1,1,1,"")&I29,[1]戸籍からデータ貼り付け先!$A$2:$T$12093,14,FALSE) -> 0 | K29: =VLOOKUP(REPLACE($A$1,1,1,"")&I29,[1]戸籍からデータ貼り付け先!$A$2:$T$12093,16,FALSE) -> 1 | L29: 1
E30: 42 | F30: =VLOOKUP(REPLACE($A$1,1,1,"")&E30,[1]戸籍からデータ貼り付け先!$A$2:$T$12093,14,FALSE) -> 5 | G30: =VLOOKUP(REPLACE($A$1,1,1,"")&E30,[1]戸籍からデータ貼り付け先!$A$2:$T$12093,16,FALSE) -> 8 | H30: 13 | I30: 92 | J30: =VLOOKUP(REPLACE($A$1,1,1,"")&I30,[1]戸籍からデータ貼り付け先!$A$2:$T$12093,14,FALSE) -> 2 | K30: =VLOOKUP(REPLACE($A$1,1,1,"")&I30,[1]戸籍からデータ貼り付け先!$A$2:$T$12093,16,FALSE) -> 1 | L30: 3
E31: 43 | F31: =VLOOKUP(REPLACE($A$1,1,1,"")&E31,[1]戸籍からデータ貼り付け先!$A$2:$T$12093,14,FALSE) -> 2 | G31: =VLOOKUP(REPLACE($A$1,1,1,"")&E31,[1]戸籍からデータ貼り付け先!$A$2:$T$12093,16,FALSE) -> 5 | H31: 7 | I31: 93 | J31: =VLOOKUP(REPLACE($A$1,1,1,"")&I31,[1]戸籍からデータ貼り付け先!$A$2:$T$12093,14,FALSE) -> 0 | K31: =VLOOKUP(REPLACE($A$1,1,1,"")&I31,[1]戸籍からデータ貼り付け先!$A$2:$T$12093,16,FALSE) -> 2 | L31: 2
E32: 44 | F32: =VLOOKUP(REPLACE($A$1,1,1,"")&E32,[1]戸籍からデータ貼り付け先!$A$2:$T$12093,14,FALSE) -> 5 | G32: =VLOOKUP(REPLACE($A$1,1,1,"")&E32,[1]戸籍からデータ貼り付け先!$A$2:$T$12093,16,FALSE) -> 4 | H32: 9 | I32: 94 | J32: =VLOOKUP(REPLACE($A$1,1,1,"")&I32,[1]戸籍からデータ貼り付け先!$A$2:$T$12093,14,FALSE) -> 0 | K32: =VLOOKUP(REPLACE($A$1,1,1,"")&I32,[1]戸籍からデータ貼り付け先!$A$2:$T$12093,16,FALSE) -> 1 | L32: 1
E33: 45 | F33: =VLOOKUP(REPLACE($A$1,1,1,"")&E33,[1]戸籍からデータ貼り付け先!$A$2:$T$12093,14,FALSE) -> 1 | G33: =VLOOKUP(REPLACE($A$1,1,1,"")&E33,[1]戸籍からデータ貼り付け先!$A$2:$T$12093,16,FALSE) -> 1 | H33: 2 | I33: 95 | J33: =VLOOKUP(REPLACE($A$1,1,1,"")&I33,[1]戸籍からデータ貼り付け先!$A$2:$T$12093,14,FALSE) -> 1 | K33: =VLOOKUP(REPLACE($A$1,1,1,"")&I33,[1]戸籍からデータ貼り付け先!$A$2:$T$12093,16,FALSE) -> 1 | L33: 2
E34: 46 | F34: =VLOOKUP(REPLACE($A$1,1,1,"")&E34,[1]戸籍からデータ貼り付け先!$A$2:$T$12093,14,FALSE) -> 2 | G34: =VLOOKUP(REPLACE($A$1,1,1,"")&E34,[1]戸籍からデータ貼り付け先!$A$2:$T$12093,16,FALSE) -> 4 | H34: 6 | I34: 96 | J34: =VLOOKUP(REPLACE($A$1,1,1,"")&I34,[1]戸籍からデータ貼り付け先!$A$2:$T$12093,14,FALSE) -> 0 | K34: =VLOOKUP(REPLACE($A$1,1,1,"")&I34,[1]戸籍からデータ貼り付け先!$A$2:$T$12093,16,FALSE) -> 3 | L34: 3
E35: 47 | F35: =VLOOKUP(REPLACE($A$1,1,1,"")&E35,[1]戸籍からデータ貼り付け先!$A$2:$T$12093,14,FALSE) -> 6 | G35: =VLOOKUP(REPLACE($A$1,1,1,"")&E35,[1]戸籍からデータ貼り付け先!$A$2:$T$12093,16,FALSE) -> 3 | H35: 9 | I35: 97 | J35: =VLOOKUP(REPLACE($A$1,1,1,"")&I35,[1]戸籍からデータ貼り付け先!$A$2:$T$12093,14,FALSE) -> 0 | K35: =VLOOKUP(REPLACE($A$1,1,1,"")&I35,[1]戸籍からデータ貼り付け先!$A$2:$T$12093,16,FALSE) -> 1 | L35: 1
E36: 48 | F36: =VLOOKUP(REPLACE($A$1,1,1,"")&E36,[1]戸籍からデータ貼り付け先!$A$2:$T$12093,14,FALSE) -> 2 | G36: =VLOOKUP(REPLACE($A$1,1,1,"")&E36,[1]戸籍からデータ貼り付け先!$A$2:$T$12093,16,FALSE) -> 7 | H36: 9 | I36: 98 | J36: =VLOOKUP(REPLACE($A$1,1,1,"")&I36,[1]戸籍からデータ貼り付け先!$A$2:$T$12093,14,FALSE) -> 0 | K36: =VLOOKUP(REPLACE($A$1,1,1,"")&I36,[1]戸籍からデータ貼り付け先!$A$2:$T$12093,16,FALSE) -> 0 | L36: 0
E37: 49 | F37: =VLOOKUP(REPLACE($A$1,1,1,"")&E37,[1]戸籍からデータ貼り付け先!$A$2:$T$12093,14,FALSE) -> 7 | G37: =VLOOKUP(REPLACE($A$1,1,1,"")&E37,[1]戸籍からデータ貼り付け先!$A$2:$T$12093,16,FALSE) -> 1 | H37: 8 | I37: 99 | J37: =VLOOKUP(REPLACE($A$1,1,1,"")&I37,[1]戸籍からデータ貼り付け先!$A$2:$T$12093,14,FALSE) -> 0 | K37: =VLOOKUP(REPLACE($A$1,1,1,"")&I37,[1]戸籍からデータ貼り付け先!$A$2:$T$12093,16,FALSE) -> 0 | L37: 0
E38: 50 | F38: =VLOOKUP(REPLACE($A$1,1,1,"")&E38,[1]戸籍からデータ貼り付け先!$A$2:$T$12093,14,FALSE) -> 4 | G38: =VLOOKUP(REPLACE($A$1,1,1,"")&E38,[1]戸籍からデータ貼り付け先!$A$2:$T$12093,16,FALSE) -> 5 | H38: 9 | I38: 100 | J38: =VLOOKUP(REPLACE($A$1,1,1,"")&I38,[1]戸籍からデータ貼り付け先!$A$2:$T$12093,14,FALSE) -> 0 | K38: =VLOOKUP(REPLACE($A$1,1,1,"")&I38,[1]戸籍からデータ貼り付け先!$A$2:$T$12093,16,FALSE) -> 1 | L38: 1
E39: 51 | F39: =VLOOKUP(REPLACE($A$1,1,1,"")&E39,[1]戸籍からデータ貼り付け先!$A$2:$T$12093,14,FALSE) -> 2 | G39: =VLOOKUP(REPLACE($A$1,1,1,"")&E39,[1]戸籍からデータ貼り付け先!$A$2:$T$12093,16,FALSE) -> 1 | H39: 3 | I39: 101 | J39: =VLOOKUP(REPLACE($A$1,1,1,"")&I39,[1]戸籍からデータ貼り付け先!$A$2:$T$12093,14,FALSE) -> 0 | K39: =VLOOKUP(REPLACE($A$1,1,1,"")&I39,[1]戸籍からデータ貼り付け先!$A$2:$T$12093,16,FALSE) -> 0 | L39: 0
E40: 52 | F40: =VLOOKUP(REPLACE($A$1,1,1,"")&E40,[1]戸籍からデータ貼り付け先!$A$2:$T$12093,14,FALSE) -> 2 | G40: =VLOOKUP(REPLACE($A$1,1,1,"")&E40,[1]戸籍からデータ貼り付け先!$A$2:$T$12093,16,FALSE) -> 1 | H40: 3 | I40: 102 | J40: =VLOOKUP(REPLACE($A$1,1,1,"")&I40,[1]戸籍からデータ貼り付け先!$A$2:$T$12093,14,FALSE) -> 0 | K40: =VLOOKUP(REPLACE($A$1,1,1,"")&I40,[1]戸籍からデータ貼り付け先!$A$2:$T$12093,16,FALSE) -> 0 | L40: 0
E41: 53 | F41: =VLOOKUP(REPLACE($A$1,1,1,"")&E41,[1]戸籍からデータ貼り付け先!$A$2:$T$12093,14,FALSE) -> 2 | G41: =VLOOKUP(REPLACE($A$1,1,1,"")&E41,[1]戸籍からデータ貼り付け先!$A$2:$T$12093,16,FALSE) -> 4 | H41: 6 | I41: 103 | J41: =VLOOKUP(REPLACE($A$1,1,1,"")&I41,[1]戸籍からデータ貼り付け先!$A$2:$T$12093,14,FALSE) -> 1 | K41: =VLOOKUP(REPLACE($A$1,1,1,"")&I41,[1]戸籍からデータ貼り付け先!$A$2:$T$12093,16,FALSE) -> 0 | L41: 1
E42: 54 | F42: =VLOOKUP(REPLACE($A$1,1,1,"")&E42,[1]戸籍からデータ貼り付け先!$A$2:$T$12093,14,FALSE) -> 4 | G42: =VLOOKUP(REPLACE($A$1,1,1,"")&E42,[1]戸籍からデータ貼り付け先!$A$2:$T$12093,16,FALSE) -> 5 | H42: 9 | I42: 104 | J42: =VLOOKUP(REPLACE($A$1,1,1,"")&I42,[1]戸籍からデータ貼り付け先!$A$2:$T$12093,14,FALSE) -> 0 | K42: =VLOOKUP(REPLACE($A$1,1,1,"")&I42,[1]戸籍からデータ貼り付け先!$A$2:$T$12093,16,FALSE) -> 0 | L42: 0
E43: 55 | F43: =VLOOKUP(REPLACE($A$1,1,1,"")&E43,[1]戸籍からデータ貼り付け先!$A$2:$T$12093,14,FALSE) -> 7 | G43: =VLOOKUP(REPLACE($A$1,1,1,"")&E43,[1]戸籍からデータ貼り付け先!$A$2:$T$12093,16,FALSE) -> 6 | H43: 13 | I43: 105 | J43: =VLOOKUP(REPLACE($A$1,1,1,"")&I43,[1]戸籍からデータ貼り付け先!$A$2:$T$12093,14,FALSE) -> 0 | K43: =VLOOKUP(REPLACE($A$1,1,1,"")&I43,[1]戸籍からデータ貼り付け先!$A$2:$T$12093,16,FALSE) -> 0 | L43: 0
E44: 56 | F44: =VLOOKUP(REPLACE($A$1,1,1,"")&E44,[1]戸籍からデータ貼り付け先!$A$2:$T$12093,14,FALSE) -> 3 | G44: =VLOOKUP(REPLACE($A$1,1,1,"")&E44,[1]戸籍からデータ貼り付け先!$A$2:$T$12093,16,FALSE) -> 6 | H44: 9 | I44: 106 | J44: =VLOOKUP(REPLACE($A$1,1,1,"")&I44,[1]戸籍からデータ貼り付け先!$A$2:$T$12093,14,FALSE) -> 0 | K44: =VLOOKUP(REPLACE($A$1,1,1,"")&I44,[1]戸籍からデータ貼り付け先!$A$2:$T$12093,16,FALSE) -> 0 | L44: 0
E45: 57 | F45: =VLOOKUP(REPLACE($A$1,1,1,"")&E45,[1]戸籍からデータ貼り付け先!$A$2:$T$12093,14,FALSE) -> 2 | G45: =VLOOKUP(REPLACE($A$1,1,1,"")&E45,[1]戸籍からデータ貼り付け先!$A$2:$T$12093,16,FALSE) -> 5 | H45: 7 | I45: 107 | J45: =VLOOKUP(REPLACE($A$1,1,1,"")&I45,[1]戸籍からデータ貼り付け先!$A$2:$T$12093,14,FALSE) -> 0 | K45: =VLOOKUP(REPLACE($A$1,1,1,"")&I45,[1]戸籍からデータ貼り付け先!$A$2:$T$12093,16,FALSE) -> 0 | L45: 0
E46: 58 | F46: =VLOOKUP(REPLACE($A$1,1,1,"")&E46,[1]戸籍からデータ貼り付け先!$A$2:$T$12093,14,FALSE) -> 6 | G46: =VLOOKUP(REPLACE($A$1,1,1,"")&E46,[1]戸籍からデータ貼り付け先!$A$2:$T$12093,16,FALSE) -> 1 | H46: 7 | I46: 108 | J46: =VLOOKUP(REPLACE($A$1,1,1,"")&I46,[1]戸籍からデータ貼り付け先!$A$2:$T$12093,14,FALSE) -> 0 | K46: =VLOOKUP(REPLACE($A$1,1,1,"")&I46,[1]戸籍からデータ貼り付け先!$A$2:$T$12093,16,FALSE) -> 0 | L46: 0
E47: 59 | F47: =VLOOKUP(REPLACE($A$1,1,1,"")&E47,[1]戸籍からデータ貼り付け先!$A$2:$T$12093,14,FALSE) -> 6 | G47: =VLOOKUP(REPLACE($A$1,1,1,"")&E47,[1]戸籍からデータ貼り付け先!$A$2:$T$12093,16,FALSE) -> 5 | H47: 11 | I47: 小計 | J47: =SUM(J3:J46) -> 110 | K47: =SUM(K3:K46) -> 126 | L47: =SUM(J47:K47) -> 236
E48: 60 | F48: =VLOOKUP(REPLACE($A$1,1,1,"")&E48,[1]戸籍からデータ貼り付け先!$A$2:$T$12093,14,FALSE) -> 5 | G48: =VLOOKUP(REPLACE($A$1,1,1,"")&E48,[1]戸籍からデータ貼り付け先!$A$2:$T$12093,16,FALSE) -> 5 | H48: 10
E49: 61 | F49: =VLOOKUP(REPLACE($A$1,1,1,"")&E49,[1]戸籍からデータ貼り付け先!$A$2:$T$12093,14,FALSE) -> 4 | G49: =VLOOKUP(REPLACE($A$1,1,1,"")&E49,[1]戸籍からデータ貼り付け先!$A$2:$T$12093,16,FALSE) -> 4 | H49: 8 | J49: =REPLACE(A1,1,1,"")&"合計" -> 元町合計
E50: 62 | F50: =VLOOKUP(REPLACE($A$1,1,1,"")&E50,[1]戸籍からデータ貼り付け先!$A$2:$T$12093,14,FALSE) -> 3 | G50: =VLOOKUP(REPLACE($A$1,1,1,"")&E50,[1]戸籍からデータ貼り付け先!$A$2:$T$12093,16,FALSE) -> 5 | H50: 8 | J50: 男 | K50: 女 | L50: 計
E51: 63 | F51: =VLOOKUP(REPLACE($A$1,1,1,"")&E51,[1]戸籍からデータ貼り付け先!$A$2:$T$12093,14,FALSE) -> 8 | G51: =VLOOKUP(REPLACE($A$1,1,1,"")&E51,[1]戸籍からデータ貼り付け先!$A$2:$T$12093,16,FALSE) -> 4 | H51: 12 | J51: =SUM(B18,F53,J47) -> 291 | K51: =SUM(C18,G53,K47) -> 323 | L51: =SUM(J51:K51) -> 614
E52: 64 | F52: =VLOOKUP(REPLACE($A$1,1,1,"")&E52,[1]戸籍からデータ貼り付け先!$A$2:$T$12093,14,FALSE) -> 5 | G52: =VLOOKUP(REPLACE($A$1,1,1,"")&E52,[1]戸籍からデータ貼り付け先!$A$2:$T$12093,16,FALSE) -> 4 | H52: 9
E53: 小計 | F53: =SUM(F3:F52) -> 149 | G53: =SUM(G3:G52) -> 169 | H53: =SUM(F53:G53) -> 318
F56: -7-

Sheet 末広町
A1: ◆末広町 | H1: =秦野市合計!H1 -> 令和7年10月1日現在（単位：人）
A2: 年少人口(0歳～14歳) | B2: 男 | C2: 女 | D2: 計 | E2: 生産年齢人口(15歳～64歳) | F2: 男 | G2: 女 | H2: 計 | I2: 老年人口(65歳以上) | J2: 男 | K2: 女 | L2: 計
A3: 0 | B3: =VLOOKUP(REPLACE($A$1,1,1,"")&A3,[1]戸籍からデータ貼り付け先!$A$2:$T$12093,14,FALSE) -> 0 | C3: =VLOOKUP(REPLACE($A$1,1,1,"")&A3,[1]戸籍からデータ貼り付け先!$A$2:$T$12093,16,FALSE) -> 0 | D3: =SUM(B3:C3) -> 0 | E3: 15 | F3: =VLOOKUP(REPLACE($A$1,1,1,"")&E3,[1]戸籍からデータ貼り付け先!$A$2:$T$12093,14,FALSE) -> 1 | G3: =VLOOKUP(REPLACE($A$1,1,1,"")&E3,[1]戸籍からデータ貼り付け先!$A$2:$T$12093,16,FALSE) -> 1 | H3: =SUM(F3:G3) -> 2 | I3: 65 | J3: =VLOOKUP(REPLACE($A$1,1,1,"")&I3,[1]戸籍からデータ貼り付け先!$A$2:$T$12093,14,FALSE) -> 0 | K3: =VLOOKUP(REPLACE($A$1,1,1,"")&I3,[1]戸籍からデータ貼り付け先!$A$2:$T$12093,16,FALSE) -> 1 | L3: =SUM(J3:K3) -> 1
A4: 1 | B4: =VLOOKUP(REPLACE($A$1,1,1,"")&A4,[1]戸籍からデータ貼り付け先!$A$2:$T$12093,14,FALSE) -> 1 | C4: =VLOOKUP(REPLACE($A$1,1,1,"")&A4,[1]戸籍からデータ貼り付け先!$A$2:$T$12093,16,FALSE) -> 0 | D4: =SUM(B4:C4) -> 1 | E4: 16 | F4: =VLOOKUP(REPLACE($A$1,1,1,"")&E4,[1]戸籍からデータ貼り付け先!$A$2:$T$12093,14,FALSE) -> 1 | G4: =VLOOKUP(REPLACE($A$1,1,1,"")&E4,[1]戸籍からデータ貼り付け先!$A$2:$T$12093,16,FALSE) -> 4 | H4: =SUM(F4:G4) -> 5 | I4: 66 | J4: =VLOOKUP(REPLACE($A$1,1,1,"")&I4,[1]戸籍からデータ貼り付け先!$A$2:$T$12093,14,FALSE) -> 2 | K4: =VLOOKUP(REPLACE($A$1,1,1,"")&I4,[1]戸籍からデータ貼り付け先!$A$2:$T$12093,16,FALSE) -> 1 | L4: =SUM(J4:K4) -> 3
A5: 2 | B5: =VLOOKUP(REPLACE($A$1,1,1,"")&A5,[1]戸籍からデータ貼り付け先!$A$2:$T$12093,14,FALSE) -> 2 | C5: =VLOOKUP(REPLACE($A$1,1,1,"")&A5,[1]戸籍からデータ貼り付け先!$A$2:$T$12093,16,FALSE) -> 0 | D5: 2 | E5: 17 | F5: =VLOOKUP(REPLACE($A$1,1,1,"")&E5,[1]戸籍からデータ貼り付け先!$A$2:$T$12093,14,FALSE) -> 2 | G5: =VLOOKUP(REPLACE($A$1,1,1,"")&E5,[1]戸籍からデータ貼り付け先!$A$2:$T$12093,16,FALSE) -> 1 | H5: 3 | I5: 67 | J5: =VLOOKUP(REPLACE($A$1,1,1,"")&I5,[1]戸籍からデータ貼り付け先!$A$2:$T$12093,14,FALSE) -> 5 | K5: =VLOOKUP(REPLACE($A$1,1,1,"")&I5,[1]戸籍からデータ貼り付け先!$A$2:$T$12093,16,FALSE) -> 6 | L5: 11
A6: 3 | B6: =VLOOKUP(REPLACE($A$1,1,1,"")&A6,[1]戸籍からデータ貼り付け先!$A$2:$T$12093,14,FALSE) -> 0 | C6: =VLOOKUP(REPLACE($A$1,1,1,"")&A6,[1]戸籍からデータ貼り付け先!$A$2:$T$12093,16,FALSE) -> 2 | D6: 2 | E6: 18 | F6: =VLOOKUP(REPLACE($A$1,1,1,"")&E6,[1]戸籍からデータ貼り付け先!$A$2:$T$12093,14,FALSE) -> 0 | G6: =VLOOKUP(REPLACE($A$1,1,1,"")&E6,[1]戸籍からデータ貼り付け先!$A$2:$T$12093,16,FALSE) -> 2 | H6: 2 | I6: 68 | J6: =VLOOKUP(REPLACE($A$1,1,1,"")&I6,[1]戸籍からデータ貼り付け先!$A$2:$T$12093,14,FALSE) -> 2 | K6: =VLOOKUP(REPLACE($A$1,1,1,"")&I6,[1]戸籍からデータ貼り付け先!$A$2:$T$12093,16,FALSE) -> 2 | L6: 4
A7: 4 | B7: =VLOOKUP(REPLACE($A$1,1,1,"")&A7,[1]戸籍からデータ貼り付け先!$A$2:$T$12093,14,FALSE) -> 0 | C7: =VLOOKUP(REPLACE($A$1,1,1,"")&A7,[1]戸籍からデータ貼り付け先!$A$2:$T$12093,16,FALSE) -> 2 | D7: 2 | E7: 19 | F7: =VLOOKUP(REPLACE($A$1,1,1,"")&E7,[1]戸籍からデータ貼り付け先!$A$2:$T$12093,14,FALSE) -> 0 | G7: =VLOOKUP(REPLACE($A$1,1,1,"")&E7,[1]戸籍からデータ貼り付け先!$A$2:$T$12093,16,FALSE) -> 0 | H7: 0 | I7: 69 | J7: =VLOOKUP(REPLACE($A$1,1,1,"")&I7,[1]戸籍からデータ貼り付け先!$A$2:$T$12093,14,FALSE) -> 2 | K7: =VLOOKUP(REPLACE($A$1,1,1,"")&I7,[1]戸籍からデータ貼り付け先!$A$2:$T$12093,16,FALSE) -> 0 | L7: 2
A8: 5 | B8: =VLOOKUP(REPLACE($A$1,1,1,"")&A8,[1]戸籍からデータ貼り付け先!$A$2:$T$12093,14,FALSE) -> 1 | C8: =VLOOKUP(REPLACE($A$1,1,1,"")&A8,[1]戸籍からデータ貼り付け先!$A$2:$T$12093,16,FALSE) -> 1 | D8: 2 | E8: 20 | F8: =VLOOKUP(REPLACE($A$1,1,1,"")&E8,[1]戸籍からデータ貼り付け先!$A$2:$T$12093,14,FALSE) -> 1 | G8: =VLOOKUP(REPLACE($A$1,1,1,"")&E8,[1]戸籍からデータ貼り付け先!$A$2:$T$12093,16,FALSE) -> 0 | H8: 1 | I8: 70 | J8: =VLOOKUP(REPLACE($A$1,1,1,"")&I8,[1]戸籍からデータ貼り付け先!$A$2:$T$12093,14,FALSE) -> 0 | K8: =VLOOKUP(REPLACE($A$1,1,1,"")&I8,[1]戸籍からデータ貼り付け先!$A$2:$T$12093,16,FALSE) -> 1 | L8: 1
A9: 6 | B9: =VLOOKUP(REPLACE($A$1,1,1,"")&A9,[1]戸籍からデータ貼り付け先!$A$2:$T$12093,14,FALSE) -> 1 | C9: =VLOOKUP(REPLACE($A$1,1,1,"")&A9,[1]戸籍からデータ貼り付け先!$A$2:$T$12093,16,FALSE) -> 0 | D9: 1 | E9: 21 | F9: =VLOOKUP(REPLACE($A$1,1,1,"")&E9,[1]戸籍からデータ貼り付け先!$A$2:$T$12093,14,FALSE) -> 1 | G9: =VLOOKUP(REPLACE($A$1,1,1,"")&E9,[1]戸籍からデータ貼り付け先!$A$2:$T$12093,16,FALSE) -> 0 | H9: 1 | I9: 71 | J9: =VLOOKUP(REPLACE($A$1,1,1,"")&I9,[1]戸籍からデータ貼り付け先!$A$2:$T$12093,14,FALSE) -> 1 | K9: =VLOOKUP(REPLACE($A$1,1,1,"")&I9,[1]戸籍からデータ貼り付け先!$A$2:$T$12093,16,FALSE) -> 3 | L9: 4
A10: 7 | B10: =VLOOKUP(REPLACE($A$1,1,1,"")&A10,[1]戸籍からデータ貼り付け先!$A$2:$T$12093,14,FALSE) -> 1 | C10: =VLOOKUP(REPLACE($A$1,1,1,"")&A10,[1]戸籍からデータ貼り付け先!$A$2:$T$12093,16,FALSE) -> 2 | D10: 3 | E10: 22 | F10: =VLOOKUP(REPLACE($A$1,1,1,"")&E10,[1]戸籍からデータ貼り付け先!$A$2:$T$12093,14,FALSE) -> 2 | G10: =VLOOKUP(REPLACE($A$1,1,1,"")&E10,[1]戸籍からデータ貼り付け先!$A$2:$T$12093,16,FALSE) -> 0 | H10: 2 | I10: 72 | J10: =VLOOKUP(REPLACE($A$1,1,1,"")&I10,[1]戸籍からデータ貼り付け先!$A$2:$T$12093,14,FALSE) -> 2 | K10: =VLOOKUP(REPLACE($A$1,1,1,"")&I10,[1]戸籍からデータ貼り付け先!$A$2:$T$12093,16,FALSE) -> 2 | L10: 4
A11: 8 | B11: =VLOOKUP(REPLACE($A$1,1,1,"")&A11,[1]戸籍からデータ貼り付け先!$A$2:$T$12093,14,FALSE) -> 2 | C11: =VLOOKUP(REPLACE($A$1,1,1,"")&A11,[1]戸籍からデータ貼り付け先!$A$2:$T$12093,16,FALSE) -> 1 | D11: 3 | E11: 23 | F11: =VLOOKUP(REPLACE($A$1,1,1,"")&E11,[1]戸籍からデータ貼り付け先!$A$2:$T$12093,14,FALSE) -> 0 | G11: =VLOOKUP(REPLACE($A$1,1,1,"")&E11,[1]戸籍からデータ貼り付け先!$A$2:$T$12093,16,FALSE) -> 2 | H11: 2 | I11: 73 | J11: =VLOOKUP(REPLACE($A$1,1,1,"")&I11,[1]戸籍からデータ貼り付け先!$A$2:$T$12093,14,FALSE) -> 0 | K11: =VLOOKUP(REPLACE($A$1,1,1,"")&I11,[1]戸籍からデータ貼り付け先!$A$2:$T$12093,16,FALSE) -> 3 | L11: 3
A12: 9 | B12: =VLOOKUP(REPLACE($A$1,1,1,"")&A12,[1]戸籍からデータ貼り付け先!$A$2:$T$12093,14,FALSE) -> 1 | C12: =VLOOKUP(REPLACE($A$1,1,1,"")&A12,[1]戸籍からデータ貼り付け先!$A$2:$T$12093,16,FALSE) -> 2 | D12: 3 | E12: 24 | F12: =VLOOKUP(REPLACE($A$1,1,1,"")&E12,[1]戸籍からデータ貼り付け先!$A$2:$T$12093,14,FALSE) -> 0 | G12: =VLOOKUP(REPLACE($A$1,1,1,"")&E12,[1]戸籍からデータ貼り付け先!$A$2:$T$12093,16,FALSE) -> 1 | H12: 1 | I12: 74 | J12: =VLOOKUP(REPLACE($A$1,1,1,"")&I12,[1]戸籍からデータ貼り付け先!$A$2:$T$12093,14,FALSE) -> 2 | K12: =VLOOKUP(REPLACE($A$1,1,1,"")&I12,[1]戸籍からデータ貼り付け先!$A$2:$T$12093,16,FALSE) -> 3 | L12: 5
A13: 10 | B13: =VLOOKUP(REPLACE($A$1,1,1,"")&A13,[1]戸籍からデータ貼り付け先!$A$2:$T$12093,14,FALSE) -> 4 | C13: =VLOOKUP(REPLACE($A$1,1,1,"")&A13,[1]戸籍からデータ貼り付け先!$A$2:$T$12093,16,FALSE) -> 0 | D13: 4 | E13: 25 | F13: =VLOOKUP(REPLACE($A$1,1,1,"")&E13,[1]戸籍からデータ貼り付け先!$A$2:$T$12093,14,FALSE) -> 1 | G13: =VLOOKUP(REPLACE($A$1,1,1,"")&E13,[1]戸籍からデータ貼り付け先!$A$2:$T$12093,16,FALSE) -> 0 | H13: 1 | I13: 75 | J13: =VLOOKUP(REPLACE($A$1,1,1,"")&I13,[1]戸籍からデータ貼り付け先!$A$2:$T$12093,14,FALSE) -> 4 | K13: =VLOOKUP(REPLACE($A$1,1,1,"")&I13,[1]戸籍からデータ貼り付け先!$A$2:$T$12093,16,FALSE) -> 3 | L13: 7
A14: 11 | B14: =VLOOKUP(REPLACE($A$1,1,1,"")&A14,[1]戸籍からデータ貼り付け先!$A$2:$T$12093,14,FALSE) -> 1 | C14: =VLOOKUP(REPLACE($A$1,1,1,"")&A14,[1]戸籍からデータ貼り付け先!$A$2:$T$12093,16,FALSE) -> 3 | D14: 4 | E14: 26 | F14: =VLOOKUP(REPLACE($A$1,1,1,"")&E14,[1]戸籍からデータ貼り付け先!$A$2:$T$12093,14,FALSE) -> 0 | G14: =VLOOKUP(REPLACE($A$1,1,1,"")&E14,[1]戸籍からデータ貼り付け先!$A$2:$T$12093,16,FALSE) -> 0 | H14: 0 | I14: 76 | J14: =VLOOKUP(REPLACE($A$1,1,1,"")&I14,[1]戸籍からデータ貼り付け先!$A$2:$T$12093,14,FALSE) -> 5 | K14: =VLOOKUP(REPLACE($A$1,1,1,"")&I14,[1]戸籍からデータ貼り付け先!$A$2:$T$12093,16,FALSE) -> 2 | L14: 7
A15: 12 | B15: =VLOOKUP(REPLACE($A$1,1,1,"")&A15,[1]戸籍からデータ貼り付け先!$A$2:$T$12093,14,FALSE) -> 1 | C15: =VLOOKUP(REPLACE($A$1,1,1,"")&A15,[1]戸籍からデータ貼り付け先!$A$2:$T$12093,16,FALSE) -> 1 | D15: 2 | E15: 27 | F15: =VLOOKUP(REPLACE($A$1,1,1,"")&E15,[1]戸籍からデータ貼り付け先!$A$2:$T$12093,14,FALSE) -> 1 | G15: =VLOOKUP(REPLACE($A$1,1,1,"")&E15,[1]戸籍からデータ貼り付け先!$A$2:$T$12093,16,FALSE) -> 0 | H15: 1 | I15: 77 | J15: =VLOOKUP(REPLACE($A$1,1,1,"")&I15,[1]戸籍からデータ貼り付け先!$A$2:$T$12093,14,FALSE) -> 1 | K15: =VLOOKUP(REPLACE($A$1,1,1,"")&I15,[1]戸籍からデータ貼り付け先!$A$2:$T$12093,16,FALSE) -> 5 | L15: 6
A16: 13 | B16: =VLOOKUP(REPLACE($A$1,1,1,"")&A16,[1]戸籍からデータ貼り付け先!$A$2:$T$12093,14,FALSE) -> 3 | C16: =VLOOKUP(REPLACE($A$1,1,1,"")&A16,[1]戸籍からデータ貼り付け先!$A$2:$T$12093,16,FALSE) -> 1 | D16: 4 | E16: 28 | F16: =VLOOKUP(REPLACE($A$1,1,1,"")&E16,[1]戸籍からデータ貼り付け先!$A$2:$T$12093,14,FALSE) -> 2 | G16: =VLOOKUP(REPLACE($A$1,1,1,"")&E16,[1]戸籍からデータ貼り付け先!$A$2:$T$12093,16,FALSE) -> 0 | H16: 2 | I16: 78 | J16: =VLOOKUP(REPLACE($A$1,1,1,"")&I16,[1]戸籍からデータ貼り付け先!$A$2:$T$12093,14,FALSE) -> 2 | K16: =VLOOKUP(REPLACE($A$1,1,1,"")&I16,[1]戸籍からデータ貼り付け先!$A$2:$T$12093,16,FALSE) -> 4 | L16: 6
A17: 14 | B17: =VLOOKUP(REPLACE($A$1,1,1,"")&A17,[1]戸籍からデータ貼り付け先!$A$2:$T$12093,14,FALSE) -> 0 | C17: =VLOOKUP(REPLACE($A$1,1,1,"")&A17,[1]戸籍からデータ貼り付け先!$A$2:$T$12093,16,FALSE) -> 4 | D17: 4 | E17: 29 | F17: =VLOOKUP(REPLACE($A$1,1,1,"")&E17,[1]戸籍からデータ貼り付け先!$A$2:$T$12093,14,FALSE) -> 2 | G17: =VLOOKUP(REPLACE($A$1,1,1,"")&E17,[1]戸籍からデータ貼り付け先!$A$2:$T$12093,16,FALSE) -> 2 | H17: 4 | I17: 79 | J17: =VLOOKUP(REPLACE($A$1,1,1,"")&I17,[1]戸籍からデータ貼り付け先!$A$2:$T$12093,14,FALSE) -> 0 | K17: =VLOOKUP(REPLACE($A$1,1,1,"")&I17,[1]戸籍からデータ貼り付け先!$A$2:$T$12093,16,FALSE) -> 2 | L17: 2
A18: 小計 | B18: =SUM(B3:B17) -> 18 | C18: =SUM(C3:C17) -> 19 | D18: =SUM(B18:C18) -> 37 | E18: 30 | F18: =VLOOKUP(REPLACE($A$1,1,1,"")&E18,[1]戸籍からデータ貼り付け先!$A$2:$T$12093,14,FALSE) -> 0 | G18: =VLOOKUP(REPLACE($A$1,1,1,"")&E18,[1]戸籍からデータ貼り付け先!$A$2:$T$12093,16,FALSE) -> 1 | H18: 1 | I18: 80 | J18: =VLOOKUP(REPLACE($A$1,1,1,"")&I18,[1]戸籍からデータ貼り付け先!$A$2:$T$12093,14,FALSE) -> 2 | K18: =VLOOKUP(REPLACE($A$1,1,1,"")&I18,[1]戸籍からデータ貼り付け先!$A$2:$T$12093,16,FALSE) -> 1 | L18: 3
E19: 31 | F19: =VLOOKUP(REPLACE($A$1,1,1,"")&E19,[1]戸籍からデータ貼り付け先!$A$2:$T$12093,14,FALSE) -> 3 | G19: =VLOOKUP(REPLACE($A$1,1,1,"")&E19,[1]戸籍からデータ貼り付け先!$A$2:$T$12093,16,FALSE) -> 1 | H19: 4 | I19: 81 | J19: =VLOOKUP(REPLACE($A$1,1,1,"")&I19,[1]戸籍からデータ貼り付け先!$A$2:$T$12093,14,FALSE) -> 3 | K19: =VLOOKUP(REPLACE($A$1,1,1,"")&I19,[1]戸籍からデータ貼り付け先!$A$2:$T$12093,16,FALSE) -> 2 | L19: 5
E20: 32 | F20: =VLOOKUP(REPLACE($A$1,1,1,"")&E20,[1]戸籍からデータ貼り付け先!$A$2:$T$12093,14,FALSE) -> 0 | G20: =VLOOKUP(REPLACE($A$1,1,1,"")&E20,[1]戸籍からデータ貼り付け先!$A$2:$T$12093,16,FALSE) -> 1 | H20: 1 | I20: 82 | J20: =VLOOKUP(REPLACE($A$1,1,1,"")&I20,[1]戸籍からデータ貼り付け先!$A$2:$T$12093,14,FALSE) -> 1 | K20: =VLOOKUP(REPLACE($A$1,1,1,"")&I20,[1]戸籍からデータ貼り付け先!$A$2:$T$12093,16,FALSE) -> 3 | L20: 4
E21: 33 | F21: =VLOOKUP(REPLACE($A$1,1,1,"")&E21,[1]戸籍からデータ貼り付け先!$A$2:$T$12093,14,FALSE) -> 0 | G21: =VLOOKUP(REPLACE($A$1,1,1,"")&E21,[1]戸籍からデータ貼り付け先!$A$2:$T$12093,16,FALSE) -> 0 | H21: 0 | I21: 83 | J21: =VLOOKUP(REPLACE($A$1,1,1,"")&I21,[1]戸籍からデータ貼り付け先!$A$2:$T$12093,14,FALSE) -> 0 | K21: =VLOOKUP(REPLACE($A$1,1,1,"")&I21,[1]戸籍からデータ貼り付け先!$A$2:$T$12093,16,FALSE) -> 0 | L21: 0
E22: 34 | F22: =VLOOKUP(REPLACE($A$1,1,1,"")&E22,[1]戸籍からデータ貼り付け先!$A$2:$T$12093,14,FALSE) -> 1 | G22: =VLOOKUP(REPLACE($A$1,1,1,"")&E22,[1]戸籍からデータ貼り付け先!$A$2:$T$12093,16,FALSE) -> 2 | H22: 3 | I22: 84 | J22: =VLOOKUP(REPLACE($A$1,1,1,"")&I22,[1]戸籍からデータ貼り付け先!$A$2:$T$12093,14,FALSE) -> 3 | K22: =VLOOKUP(REPLACE($A$1,1,1,"")&I22,[1]戸籍からデータ貼り付け先!$A$2:$T$12093,16,FALSE) -> 2 | L22: 5
E23: 35 | F23: =VLOOKUP(REPLACE($A$1,1,1,"")&E23,[1]戸籍からデータ貼り付け先!$A$2:$T$12093,14,FALSE) -> 1 | G23: =VLOOKUP(REPLACE($A$1,1,1,"")&E23,[1]戸籍からデータ貼り付け先!$A$2:$T$12093,16,FALSE) -> 1 | H23: 2 | I23: 85 | J23: =VLOOKUP(REPLACE($A$1,1,1,"")&I23,[1]戸籍からデータ貼り付け先!$A$2:$T$12093,14,FALSE) -> 2 | K23: =VLOOKUP(REPLACE($A$1,1,1,"")&I23,[1]戸籍からデータ貼り付け先!$A$2:$T$12093,16,FALSE) -> 2 | L23: 4
E24: 36 | F24: =VLOOKUP(REPLACE($A$1,1,1,"")&E24,[1]戸籍からデータ貼り付け先!$A$2:$T$12093,14,FALSE) -> 2 | G24: =VLOOKUP(REPLACE($A$1,1,1,"")&E24,[1]戸籍からデータ貼り付け先!$A$2:$T$12093,16,FALSE) -> 0 | H24: 2 | I24: 86 | J24: =VLOOKUP(REPLACE($A$1,1,1,"")&I24,[1]戸籍からデータ貼り付け先!$A$2:$T$12093,14,FALSE) -> 1 | K24: =VLOOKUP(REPLACE($A$1,1,1,"")&I24,[1]戸籍からデータ貼り付け先!$A$2:$T$12093,16,FALSE) -> 0 | L24: 1
E25: 37 | F25: =VLOOKUP(REPLACE($A$1,1,1,"")&E25,[1]戸籍からデータ貼り付け先!$A$2:$T$12093,14,FALSE) -> 2 | G25: =VLOOKUP(REPLACE($A$1,1,1,"")&E25,[1]戸籍からデータ貼り付け先!$A$2:$T$12093,16,FALSE) -> 1 | H25: 3 | I25: 87 | J25: =VLOOKUP(REPLACE($A$1,1,1,"")&I25,[1]戸籍からデータ貼り付け先!$A$2:$T$12093,14,FALSE) -> 0 | K25: =VLOOKUP(REPLACE($A$1,1,1,"")&I25,[1]戸籍からデータ貼り付け先!$A$2:$T$12093,16,FALSE) -> 0 | L25: 0
E26: 38 | F26: =VLOOKUP(REPLACE($A$1,1,1,"")&E26,[1]戸籍からデータ貼り付け先!$A$2:$T$12093,14,FALSE) -> 3 | G26: =VLOOKUP(REPLACE($A$1,1,1,"")&E26,[1]戸籍からデータ貼り付け先!$A$2:$T$12093,16,FALSE) -> 2 | H26: 5 | I26: 88 | J26: =VLOOKUP(REPLACE($A$1,1,1,"")&I26,[1]戸籍からデータ貼り付け先!$A$2:$T$12093,14,FALSE) -> 0 | K26: =VLOOKUP(REPLACE($A$1,1,1,"")&I26,[1]戸籍からデータ貼り付け先!$A$2:$T$12093,16,FALSE) -> 2 | L26: 2
E27: 39 | F27: =VLOOKUP(REPLACE($A$1,1,1,"")&E27,[1]戸籍からデータ貼り付け先!$A$2:$T$12093,14,FALSE) -> 1 | G27: =VLOOKUP(REPLACE($A$1,1,1,"")&E27,[1]戸籍からデータ貼り付け先!$A$2:$T$12093,16,FALSE) -> 1 | H27: 2 | I27: 89 | J27: =VLOOKUP(REPLACE($A$1,1,1,"")&I27,[1]戸籍からデータ貼り付け先!$A$2:$T$12093,14,FALSE) -> 1 | K27: =VLOOKUP(REPLACE($A$1,1,1,"")&I27,[1]戸籍からデータ貼り付け先!$A$2:$T$12093,16,FALSE) -> 2 | L27: 3
E28: 40 | F28: =VLOOKUP(REPLACE($A$1,1,1,"")&E28,[1]戸籍からデータ貼り付け先!$A$2:$T$12093,14,FALSE) -> 1 | G28: =VLOOKUP(REPLACE($A$1,1,1,"")&E28,[1]戸籍からデータ貼り付け先!$A$2:$T$12093,16,FALSE) -> 1 | H28: 2 | I28: 90 | J28: =VLOOKUP(REPLACE($A$1,1,1,"")&I28,[1]戸籍からデータ貼り付け先!$A$2:$T$12093,14,FALSE) -> 0 | K28: =VLOOKUP(REPLACE($A$1,1,1,"")&I28,[1]戸籍からデータ貼り付け先!$A$2:$T$12093,16,FALSE) -> 0 | L28: 0
E29: 41 | F29: =VLOOKUP(REPLACE($A$1,1,1,"")&E29,[1]戸籍からデータ貼り付け先!$A$2:$T$12093,14,FALSE) -> 0 | G29: =VLOOKUP(REPLACE($A$1,1,1,"")&E29,[1]戸籍からデータ貼り付け先!$A$2:$T$12093,16,FALSE) -> 2 | H29: 2 | I29: 91 | J29: =VLOOKUP(REPLACE($A$1,1,1,"")&I29,[1]戸籍からデータ貼り付け先!$A$2:$T$12093,14,FALSE) -> 1 | K29: =VLOOKUP(REPLACE($A$1,1,1,"")&I29,[1]戸籍からデータ貼り付け先!$A$2:$T$12093,16,FALSE) -> 2 | L29: 3
E30: 42 | F30: =VLOOKUP(REPLACE($A$1,1,1,"")&E30,[1]戸籍からデータ貼り付け先!$A$2:$T$12093,14,FALSE) -> 3 | G30: =VLOOKUP(REPLACE($A$1,1,1,"")&E30,[1]戸籍からデータ貼り付け先!$A$2:$T$12093,16,FALSE) -> 4 | H30: 7 | I30: 92 | J30: =VLOOKUP(REPLACE($A$1,1,1,"")&I30,[1]戸籍からデータ貼り付け先!$A$2:$T$12093,14,FALSE) -> 0 | K30: =VLOOKUP(REPLACE($A$1,1,1,"")&I30,[1]戸籍からデータ貼り付け先!$A$2:$T$12093,16,FALSE) -> 0 | L30: 0
E31: 43 | F31: =VLOOKUP(REPLACE($A$1,1,1,"")&E31,[1]戸籍からデータ貼り付け先!$A$2:$T$12093,14,FALSE) -> 2 | G31: =VLOOKUP(REPLACE($A$1,1,1,"")&E31,[1]戸籍からデータ貼り付け先!$A$2:$T$12093,16,FALSE) -> 0 | H31: 2 | I31: 93 | J31: =VLOOKUP(REPLACE($A$1,1,1,"")&I31,[1]戸籍からデータ貼り付け先!$A$2:$T$12093,14,FALSE) -> 0 | K31: =VLOOKUP(REPLACE($A$1,1,1,"")&I31,[1]戸籍からデータ貼り付け先!$A$2:$T$12093,16,FALSE) -> 2 | L31: 2
E32: 44 | F32: =VLOOKUP(REPLACE($A$1,1,1,"")&E32,[1]戸籍からデータ貼り付け先!$A$2:$T$12093,14,FALSE) -> 1 | G32: =VLOOKUP(REPLACE($A$1,1,1,"")&E32,[1]戸籍からデータ貼り付け先!$A$2:$T$12093,16,FALSE) -> 1 | H32: 2 | I32: 94 | J32: =VLOOKUP(REPLACE($A$1,1,1,"")&I32,[1]戸籍からデータ貼り付け先!$A$2:$T$12093,14,FALSE) -> 1 | K32: =VLOOKUP(REPLACE($A$1,1,1,"")&I32,[1]戸籍からデータ貼り付け先!$A$2:$T$12093,16,FALSE) -> 1 | L32: 2
E33: 45 | F33: =VLOOKUP(REPLACE($A$1,1,1,"")&E33,[1]戸籍からデータ貼り付け先!$A$2:$T$12093,14,FALSE) -> 3 | G33: =VLOOKUP(REPLACE($A$1,1,1,"")&E33,[1]戸籍からデータ貼り付け先!$A$2:$T$12093,16,FALSE) -> 3 | H33: 6 | I33: 95 | J33: =VLOOKUP(REPLACE($A$1,1,1,"")&I33,[1]戸籍からデータ貼り付け先!$A$2:$T$12093,14,FALSE) -> 0 | K33: =VLOOKUP(REPLACE($A$1,1,1,"")&I33,[1]戸籍からデータ貼り付け先!$A$2:$T$12093,16,FALSE) -> 2 | L33: 2
E34: 46 | F34: =VLOOKUP(REPLACE($A$1,1,1,"")&E34,[1]戸籍からデータ貼り付け先!$A$2:$T$12093,14,FALSE) -> 0 | G34: =VLOOKUP(REPLACE($A$1,1,1,"")&E34,[1]戸籍からデータ貼り付け先!$A$2:$T$12093,16,FALSE) -> 1 | H34: 1 | I34: 96 | J34: =VLOOKUP(REPLACE($A$1,1,1,"")&I34,[1]戸籍からデータ貼り付け先!$A$2:$T$12093,14,FALSE) -> 0 | K34: =VLOOKUP(REPLACE($A$1,1,1,"")&I34,[1]戸籍からデータ貼り付け先!$A$2:$T$12093,16,FALSE) -> 0 | L34: 0
E35: 47 | F35: =VLOOKUP(REPLACE($A$1,1,1,"")&E35,[1]戸籍からデータ貼り付け先!$A$2:$T$12093,14,FALSE) -> 1 | G35: =VLOOKUP(REPLACE($A$1,1,1,"")&E35,[1]戸籍からデータ貼り付け先!$A$2:$T$12093,16,FALSE) -> 4 | H35: 5 | I35: 97 | J35: =VLOOKUP(REPLACE($A$1,1,1,"")&I35,[1]戸籍からデータ貼り付け先!$A$2:$T$12093,14,FALSE) -> 0 | K35: =VLOOKUP(REPLACE($A$1,1,1,"")&I35,[1]戸籍からデータ貼り付け先!$A$2:$T$12093,16,FALSE) -> 0 | L35: 0
E36: 48 | F36: =VLOOKUP(REPLACE($A$1,1,1,"")&E36,[1]戸籍からデータ貼り付け先!$A$2:$T$12093,14,FALSE) -> 3 | G36: =VLOOKUP(REPLACE($A$1,1,1,"")&E36,[1]戸籍からデータ貼り付け先!$A$2:$T$12093,16,FALSE) -> 2 | H36: 5 | I36: 98 | J36: =VLOOKUP(REPLACE($A$1,1,1,"")&I36,[1]戸籍からデータ貼り付け先!$A$2:$T$12093,14,FALSE) -> 0 | K36: =VLOOKUP(REPLACE($A$1,1,1,"")&I36,[1]戸籍からデータ貼り付け先!$A$2:$T$12093,16,FALSE) -> 0 | L36: 0
E37: 49 | F37: =VLOOKUP(REPLACE($A$1,1,1,"")&E37,[1]戸籍からデータ貼り付け先!$A$2:$T$12093,14,FALSE) -> 4 | G37: =VLOOKUP(REPLACE($A$1,1,1,"")&E37,[1]戸籍からデータ貼り付け先!$A$2:$T$12093,16,FALSE) -> 4 | H37: 8 | I37: 99 | J37: =VLOOKUP(REPLACE($A$1,1,1,"")&I37,[1]戸籍からデータ貼り付け先!$A$2:$T$12093,14,FALSE) -> 0 | K37: =VLOOKUP(REPLACE($A$1,1,1,"")&I37,[1]戸籍からデータ貼り付け先!$A$2:$T$12093,16,FALSE) -> 1 | L37: 1
E38: 50 | F38: =VLOOKUP(REPLACE($A$1,1,1,"")&E38,[1]戸籍からデータ貼り付け先!$A$2:$T$12093,14,FALSE) -> 2 | G38: =VLOOKUP(REPLACE($A$1,1,1,"")&E38,[1]戸籍からデータ貼り付け先!$A$2:$T$12093,16,FALSE) -> 0 | H38: 2 | I38: 100 | J38: =VLOOKUP(REPLACE($A$1,1,1,"")&I38,[1]戸籍からデータ貼り付け先!$A$2:$T$12093,14,FALSE) -> 0 | K38: =VLOOKUP(REPLACE($A$1,1,1,"")&I38,[1]戸籍からデータ貼り付け先!$A$2:$T$12093,16,FALSE) -> 0 | L38: 0
E39: 51 | F39: =VLOOKUP(REPLACE($A$1,1,1,"")&E39,[1]戸籍からデータ貼り付け先!$A$2:$T$12093,14,FALSE) -> 3 | G39: =VLOOKUP(REPLACE($A$1,1,1,"")&E39,[1]戸籍からデータ貼り付け先!$A$2:$T$12093,16,FALSE) -> 1 | H39: 4 | I39: 101 | J39: =VLOOKUP(REPLACE($A$1,1,1,"")&I39,[1]戸籍からデータ貼り付け先!$A$2:$T$12093,14,FALSE) -> 0 | K39: =VLOOKUP(REPLACE($A$1,1,1,"")&I39,[1]戸籍からデータ貼り付け先!$A$2:$T$12093,16,FALSE) -> 0 | L39: 0
E40: 52 | F40: =VLOOKUP(REPLACE($A$1,1,1,"")&E40,[1]戸籍からデータ貼り付け先!$A$2:$T$12093,14,FALSE) -> 1 | G40: =VLOOKUP(REPLACE($A$1,1,1,"")&E40,[1]戸籍からデータ貼り付け先!$A$2:$T$12093,16,FALSE) -> 1 | H40: 2 | I40: 102 | J40: =VLOOKUP(REPLACE($A$1,1,1,"")&I40,[1]戸籍からデータ貼り付け先!$A$2:$T$12093,14,FALSE) -> 0 | K40: =VLOOKUP(REPLACE($A$1,1,1,"")&I40,[1]戸籍からデータ貼り付け先!$A$2:$T$12093,16,FALSE) -> 0 | L40: 0
E41: 53 | F41: =VLOOKUP(REPLACE($A$1,1,1,"")&E41,[1]戸籍からデータ貼り付け先!$A$2:$T$12093,14,FALSE) -> 1 | G41: =VLOOKUP(REPLACE($A$1,1,1,"")&E41,[1]戸籍からデータ貼り付け先!$A$2:$T$12093,16,FALSE) -> 1 | H41: 2 | I41: 103 | J41: =VLOOKUP(REPLACE($A$1,1,1,"")&I41,[1]戸籍からデータ貼り付け先!$A$2:$T$12093,14,FALSE) -> 0 | K41: =VLOOKUP(REPLACE($A$1,1,1,"")&I41,[1]戸籍からデータ貼り付け先!$A$2:$T$12093,16,FALSE) -> 0 | L41: 0
E42: 54 | F42: =VLOOKUP(REPLACE($A$1,1,1,"")&E42,[1]戸籍からデータ貼り付け先!$A$2:$T$12093,14,FALSE) -> 3 | G42: =VLOOKUP(REPLACE($A$1,1,1,"")&E42,[1]戸籍からデータ貼り付け先!$A$2:$T$12093,16,FALSE) -> 5 | H42: 8 | I42: 104 | J42: =VLOOKUP(REPLACE($A$1,1,1,"")&I42,[1]戸籍からデータ貼り付け先!$A$2:$T$12093,14,FALSE) -> 0 | K42: =VLOOKUP(REPLACE($A$1,1,1,"")&I42,[1]戸籍からデータ貼り付け先!$A$2:$T$12093,16,FALSE) -> 1 | L42: 1
E43: 55 | F43: =VLOOKUP(REPLACE($A$1,1,1,"")&E43,[1]戸籍からデータ貼り付け先!$A$2:$T$12093,14,FALSE) -> 0 | G43: =VLOOKUP(REPLACE($A$1,1,1,"")&E43,[1]戸籍からデータ貼り付け先!$A$2:$T$12093,16,FALSE) -> 0 | H43: 0 | I43: 105 | J43: =VLOOKUP(REPLACE($A$1,1,1,"")&I43,[1]戸籍からデータ貼り付け先!$A$2:$T$12093,14,FALSE) -> 0 | K43: =VLOOKUP(REPLACE($A$1,1,1,"")&I43,[1]戸籍からデータ貼り付け先!$A$2:$T$12093,16,FALSE) -> 0 | L43: 0
E44: 56 | F44: =VLOOKUP(REPLACE($A$1,1,1,"")&E44,[1]戸籍からデータ貼り付け先!$A$2:$T$12093,14,FALSE) -> 2 | G44: =VLOOKUP(REPLACE($A$1,1,1,"")&E44,[1]戸籍からデータ貼り付け先!$A$2:$T$12093,16,FALSE) -> 1 | H44: 3 | I44: 106 | J44: =VLOOKUP(REPLACE($A$1,1,1,"")&I44,[1]戸籍からデータ貼り付け先!$A$2:$T$12093,14,FALSE) -> 0 | K44: =VLOOKUP(REPLACE($A$1,1,1,"")&I44,[1]戸籍からデータ貼り付け先!$A$2:$T$12093,16,FALSE) -> 0 | L44: 0
E45: 57 | F45: =VLOOKUP(REPLACE($A$1,1,1,"")&E45,[1]戸籍からデータ貼り付け先!$A$2:$T$12093,14,FALSE) -> 3 | G45: =VLOOKUP(REPLACE($A$1,1,1,"")&E45,[1]戸籍からデータ貼り付け先!$A$2:$T$12093,16,FALSE) -> 2 | H45: 5 | I45: 107 | J45: =VLOOKUP(REPLACE($A$1,1,1,"")&I45,[1]戸籍からデータ貼り付け先!$A$2:$T$12093,14,FALSE) -> 0 | K45: =VLOOKUP(REPLACE($A$1,1,1,"")&I45,[1]戸籍からデータ貼り付け先!$A$2:$T$12093,16,FALSE) -> 0 | L45: 0
E46: 58 | F46: =VLOOKUP(REPLACE($A$1,1,1,"")&E46,[1]戸籍からデータ貼り付け先!$A$2:$T$12093,14,FALSE) -> 3 | G46: =VLOOKUP(REPLACE($A$1,1,1,"")&E46,[1]戸籍からデータ貼り付け先!$A$2:$T$12093,16,FALSE) -> 0 | H46: 3 | I46: 108 | J46: =VLOOKUP(REPLACE($A$1,1,1,"")&I46,[1]戸籍からデータ貼り付け先!$A$2:$T$12093,14,FALSE) -> 0 | K46: =VLOOKUP(REPLACE($A$1,1,1,"")&I46,[1]戸籍からデータ貼り付け先!$A$2:$T$12093,16,FALSE) -> 0 | L46: 0
E47: 59 | F47: =VLOOKUP(REPLACE($A$1,1,1,"")&E47,[1]戸籍からデータ貼り付け先!$A$2:$T$12093,14,FALSE) -> 1 | G47: =VLOOKUP(REPLACE($A$1,1,1,"")&E47,[1]戸籍からデータ貼り付け先!$A$2:$T$12093,16,FALSE) -> 3 | H47: 4 | I47: 小計 | J47: =SUM(J3:J46) -> 43 | K47: =SUM(K3:K46) -> 61 | L47: =SUM(J47:K47) -> 104
E48: 60 | F48: =VLOOKUP(REPLACE($A$1,1,1,"")&E48,[1]戸籍からデータ貼り付け先!$A$2:$T$12093,14,FALSE) -> 1 | G48: =VLOOKUP(REPLACE($A$1,1,1,"")&E48,[1]戸籍からデータ貼り付け先!$A$2:$T$12093,16,FALSE) -> 3 | H48: 4
E49: 61 | F49: =VLOOKUP(REPLACE($A$1,1,1,"")&E49,[1]戸籍からデータ貼り付け先!$A$2:$T$12093,14,FALSE) -> 3 | G49: =VLOOKUP(REPLACE($A$1,1,1,"")&E49,[1]戸籍からデータ貼り付け先!$A$2:$T$12093,16,FALSE) -> 0 | H49: 3 | J49: =REPLACE(A1,1,1,"")&"合計" -> 末広町合計
E50: 62 | F50: =VLOOKUP(REPLACE($A$1,1,1,"")&E50,[1]戸籍からデータ貼り付け先!$A$2:$T$12093,14,FALSE) -> 2 | G50: =VLOOKUP(REPLACE($A$1,1,1,"")&E50,[1]戸籍からデータ貼り付け先!$A$2:$T$12093,16,FALSE) -> 2 | H50: 4 | J50: 男 | K50: 女 | L50: 計
E51: 63 | F51: =VLOOKUP(REPLACE($A$1,1,1,"")&E51,[1]戸籍からデータ貼り付け先!$A$2:$T$12093,14,FALSE) -> 0 | G51: =VLOOKUP(REPLACE($A$1,1,1,"")&E51,[1]戸籍からデータ貼り付け先!$A$2:$T$12093,16,FALSE) -> 0 | H51: 0 | J51: =SUM(B18,F53,J47) -> 131 | K51: =SUM(C18,G53,K47) -> 145 | L51: =SUM(J51:K51) -> 276
E52: 64 | F52: =VLOOKUP(REPLACE($A$1,1,1,"")&E52,[1]戸籍からデータ貼り付け先!$A$2:$T$12093,14,FALSE) -> 0 | G52: =VLOOKUP(REPLACE($A$1,1,1,"")&E52,[1]戸籍からデータ貼り付け先!$A$2:$T$12093,16,FALSE) -> 1 | H52: 1
E53: 小計 | F53: =SUM(F3:F52) -> 70 | G53: =SUM(G3:G52) -> 65 | H53: =SUM(F53:G53) -> 135
F56: -8-

Sheet 入船町
A1: ◆入船町 | H1: =秦野市合計!H1 -> 令和7年10月1日現在（単位：人）
A2: 年少人口(0歳～14歳) | B2: 男 | C2: 女 | D2: 計 | E2: 生産年齢人口(15歳～64歳) | F2: 男 | G2: 女 | H2: 計 | I2: 老年人口(65歳以上) | J2: 男 | K2: 女 | L2: 計
A3: 0 | B3: =VLOOKUP(REPLACE($A$1,1,1,"")&A3,[1]戸籍からデータ貼り付け先!$A$2:$T$12093,14,FALSE) -> 1 | C3: =VLOOKUP(REPLACE($A$1,1,1,"")&A3,[1]戸籍からデータ貼り付け先!$A$2:$T$12093,16,FALSE) -> 2 | D3: =SUM(B3:C3) -> 3 | E3: 15 | F3: =VLOOKUP(REPLACE($A$1,1,1,"")&E3,[1]戸籍からデータ貼り付け先!$A$2:$T$12093,14,FALSE) -> 3 | G3: =VLOOKUP(REPLACE($A$1,1,1,"")&E3,[1]戸籍からデータ貼り付け先!$A$2:$T$12093,16,FALSE) -> 1 | H3: =SUM(F3:G3) -> 4 | I3: 65 | J3: =VLOOKUP(REPLACE($A$1,1,1,"")&I3,[1]戸籍からデータ貼り付け先!$A$2:$T$12093,14,FALSE) -> 0 | K3: =VLOOKUP(REPLACE($A$1,1,1,"")&I3,[1]戸籍からデータ貼り付け先!$A$2:$T$12093,16,FALSE) -> 3 | L3: =SUM(J3:K3) -> 3
A4: 1 | B4: =VLOOKUP(REPLACE($A$1,1,1,"")&A4,[1]戸籍からデータ貼り付け先!$A$2:$T$12093,14,FALSE) -> 0 | C4: =VLOOKUP(REPLACE($A$1,1,1,"")&A4,[1]戸籍からデータ貼り付け先!$A$2:$T$12093,16,FALSE) -> 1 | D4: =SUM(B4:C4) -> 1 | E4: 16 | F4: =VLOOKUP(REPLACE($A$1,1,1,"")&E4,[1]戸籍からデータ貼り付け先!$A$2:$T$12093,14,FALSE) -> 2 | G4: =VLOOKUP(REPLACE($A$1,1,1,"")&E4,[1]戸籍からデータ貼り付け先!$A$2:$T$12093,16,FALSE) -> 3 | H4: =SUM(F4:G4) -> 5 | I4: 66 | J4: =VLOOKUP(REPLACE($A$1,1,1,"")&I4,[1]戸籍からデータ貼り付け先!$A$2:$T$12093,14,FALSE) -> 2 | K4: =VLOOKUP(REPLACE($A$1,1,1,"")&I4,[1]戸籍からデータ貼り付け先!$A$2:$T$12093,16,FALSE) -> 5 | L4: =SUM(J4:K4) -> 7
A5: 2 | B5: =VLOOKUP(REPLACE($A$1,1,1,"")&A5,[1]戸籍からデータ貼り付け先!$A$2:$T$12093,14,FALSE) -> 1 | C5: =VLOOKUP(REPLACE($A$1,1,1,"")&A5,[1]戸籍からデータ貼り付け先!$A$2:$T$12093,16,FALSE) -> 0 | D5: 1 | E5: 17 | F5: =VLOOKUP(REPLACE($A$1,1,1,"")&E5,[1]戸籍からデータ貼り付け先!$A$2:$T$12093,14,FALSE) -> 2 | G5: =VLOOKUP(REPLACE($A$1,1,1,"")&E5,[1]戸籍からデータ貼り付け先!$A$2:$T$12093,16,FALSE) -> 2 | H5: 4 | I5: 67 | J5: =VLOOKUP(REPLACE($A$1,1,1,"")&I5,[1]戸籍からデータ貼り付け先!$A$2:$T$12093,14,FALSE) -> 2 | K5: =VLOOKUP(REPLACE($A$1,1,1,"")&I5,[1]戸籍からデータ貼り付け先!$A$2:$T$12093,16,FALSE) -> 1 | L5: 3
A6: 3 | B6: =VLOOKUP(REPLACE($A$1,1,1,"")&A6,[1]戸籍からデータ貼り付け先!$A$2:$T$12093,14,FALSE) -> 2 | C6: =VLOOKUP(REPLACE($A$1,1,1,"")&A6,[1]戸籍からデータ貼り付け先!$A$2:$T$12093,16,FALSE) -> 0 | D6: 2 | E6: 18 | F6: =VLOOKUP(REPLACE($A$1,1,1,"")&E6,[1]戸籍からデータ貼り付け先!$A$2:$T$12093,14,FALSE) -> 6 | G6: =VLOOKUP(REPLACE($A$1,1,1,"")&E6,[1]戸籍からデータ貼り付け先!$A$2:$T$12093,16,FALSE) -> 0 | H6: 6 | I6: 68 | J6: =VLOOKUP(REPLACE($A$1,1,1,"")&I6,[1]戸籍からデータ貼り付け先!$A$2:$T$12093,14,FALSE) -> 1 | K6: =VLOOKUP(REPLACE($A$1,1,1,"")&I6,[1]戸籍からデータ貼り付け先!$A$2:$T$12093,16,FALSE) -> 2 | L6: 3
A7: 4 | B7: =VLOOKUP(REPLACE($A$1,1,1,"")&A7,[1]戸籍からデータ貼り付け先!$A$2:$T$12093,14,FALSE) -> 1 | C7: =VLOOKUP(REPLACE($A$1,1,1,"")&A7,[1]戸籍からデータ貼り付け先!$A$2:$T$12093,16,FALSE) -> 1 | D7: 2 | E7: 19 | F7: =VLOOKUP(REPLACE($A$1,1,1,"")&E7,[1]戸籍からデータ貼り付け先!$A$2:$T$12093,14,FALSE) -> 4 | G7: =VLOOKUP(REPLACE($A$1,1,1,"")&E7,[1]戸籍からデータ貼り付け先!$A$2:$T$12093,16,FALSE) -> 3 | H7: 7 | I7: 69 | J7: =VLOOKUP(REPLACE($A$1,1,1,"")&I7,[1]戸籍からデータ貼り付け先!$A$2:$T$12093,14,FALSE) -> 4 | K7: =VLOOKUP(REPLACE($A$1,1,1,"")&I7,[1]戸籍からデータ貼り付け先!$A$2:$T$12093,16,FALSE) -> 2 | L7: 6
A8: 5 | B8: =VLOOKUP(REPLACE($A$1,1,1,"")&A8,[1]戸籍からデータ貼り付け先!$A$2:$T$12093,14,FALSE) -> 2 | C8: =VLOOKUP(REPLACE($A$1,1,1,"")&A8,[1]戸籍からデータ貼り付け先!$A$2:$T$12093,16,FALSE) -> 1 | D8: 3 | E8: 20 | F8: =VLOOKUP(REPLACE($A$1,1,1,"")&E8,[1]戸籍からデータ貼り付け先!$A$2:$T$12093,14,FALSE) -> 2 | G8: =VLOOKUP(REPLACE($A$1,1,1,"")&E8,[1]戸籍からデータ貼り付け先!$A$2:$T$12093,16,FALSE) -> 2 | H8: 4 | I8: 70 | J8: =VLOOKUP(REPLACE($A$1,1,1,"")&I8,[1]戸籍からデータ貼り付け先!$A$2:$T$12093,14,FALSE) -> 3 | K8: =VLOOKUP(REPLACE($A$1,1,1,"")&I8,[1]戸籍からデータ貼り付け先!$A$2:$T$12093,16,FALSE) -> 7 | L8: 10
A9: 6 | B9: =VLOOKUP(REPLACE($A$1,1,1,"")&A9,[1]戸籍からデータ貼り付け先!$A$2:$T$12093,14,FALSE) -> 0 | C9: =VLOOKUP(REPLACE($A$1,1,1,"")&A9,[1]戸籍からデータ貼り付け先!$A$2:$T$12093,16,FALSE) -> 0 | D9: 0 | E9: 21 | F9: =VLOOKUP(REPLACE($A$1,1,1,"")&E9,[1]戸籍からデータ貼り付け先!$A$2:$T$12093,14,FALSE) -> 3 | G9: =VLOOKUP(REPLACE($A$1,1,1,"")&E9,[1]戸籍からデータ貼り付け先!$A$2:$T$12093,16,FALSE) -> 0 | H9: 3 | I9: 71 | J9: =VLOOKUP(REPLACE($A$1,1,1,"")&I9,[1]戸籍からデータ貼り付け先!$A$2:$T$12093,14,FALSE) -> 3 | K9: =VLOOKUP(REPLACE($A$1,1,1,"")&I9,[1]戸籍からデータ貼り付け先!$A$2:$T$12093,16,FALSE) -> 8 | L9: 11
A10: 7 | B10: =VLOOKUP(REPLACE($A$1,1,1,"")&A10,[1]戸籍からデータ貼り付け先!$A$2:$T$12093,14,FALSE) -> 1 | C10: =VLOOKUP(REPLACE($A$1,1,1,"")&A10,[1]戸籍からデータ貼り付け先!$A$2:$T$12093,16,FALSE) -> 2 | D10: 3 | E10: 22 | F10: =VLOOKUP(REPLACE($A$1,1,1,"")&E10,[1]戸籍からデータ貼り付け先!$A$2:$T$12093,14,FALSE) -> 2 | G10: =VLOOKUP(REPLACE($A$1,1,1,"")&E10,[1]戸籍からデータ貼り付け先!$A$2:$T$12093,16,FALSE) -> 2 | H10: 4 | I10: 72 | J10: =VLOOKUP(REPLACE($A$1,1,1,"")&I10,[1]戸籍からデータ貼り付け先!$A$2:$T$12093,14,FALSE) -> 2 | K10: =VLOOKUP(REPLACE($A$1,1,1,"")&I10,[1]戸籍からデータ貼り付け先!$A$2:$T$12093,16,FALSE) -> 6 | L10: 8
A11: 8 | B11: =VLOOKUP(REPLACE($A$1,1,1,"")&A11,[1]戸籍からデータ貼り付け先!$A$2:$T$12093,14,FALSE) -> 3 | C11: =VLOOKUP(REPLACE($A$1,1,1,"")&A11,[1]戸籍からデータ貼り付け先!$A$2:$T$12093,16,FALSE) -> 0 | D11: 3 | E11: 23 | F11: =VLOOKUP(REPLACE($A$1,1,1,"")&E11,[1]戸籍からデータ貼り付け先!$A$2:$T$12093,14,FALSE) -> 5 | G11: =VLOOKUP(REPLACE($A$1,1,1,"")&E11,[1]戸籍からデータ貼り付け先!$A$2:$T$12093,16,FALSE) -> 0 | H11: 5 | I11: 73 | J11: =VLOOKUP(REPLACE($A$1,1,1,"")&I11,[1]戸籍からデータ貼り付け先!$A$2:$T$12093,14,FALSE) -> 6 | K11: =VLOOKUP(REPLACE($A$1,1,1,"")&I11,[1]戸籍からデータ貼り付け先!$A$2:$T$12093,16,FALSE) -> 7 | L11: 13
A12: 9 | B12: =VLOOKUP(REPLACE($A$1,1,1,"")&A12,[1]戸籍からデータ貼り付け先!$A$2:$T$12093,14,FALSE) -> 0 | C12: =VLOOKUP(REPLACE($A$1,1,1,"")&A12,[1]戸籍からデータ貼り付け先!$A$2:$T$12093,16,FALSE) -> 2 | D12: 2 | E12: 24 | F12: =VLOOKUP(REPLACE($A$1,1,1,"")&E12,[1]戸籍からデータ貼り付け先!$A$2:$T$12093,14,FALSE) -> 2 | G12: =VLOOKUP(REPLACE($A$1,1,1,"")&E12,[1]戸籍からデータ貼り付け先!$A$2:$T$12093,16,FALSE) -> 1 | H12: 3 | I12: 74 | J12: =VLOOKUP(REPLACE($A$1,1,1,"")&I12,[1]戸籍からデータ貼り付け先!$A$2:$T$12093,14,FALSE) -> 4 | K12: =VLOOKUP(REPLACE($A$1,1,1,"")&I12,[1]戸籍からデータ貼り付け先!$A$2:$T$12093,16,FALSE) -> 3 | L12: 7
A13: 10 | B13: =VLOOKUP(REPLACE($A$1,1,1,"")&A13,[1]戸籍からデータ貼り付け先!$A$2:$T$12093,14,FALSE) -> 0 | C13: =VLOOKUP(REPLACE($A$1,1,1,"")&A13,[1]戸籍からデータ貼り付け先!$A$2:$T$12093,16,FALSE) -> 4 | D13: 4 | E13: 25 | F13: =VLOOKUP(REPLACE($A$1,1,1,"")&E13,[1]戸籍からデータ貼り付け先!$A$2:$T$12093,14,FALSE) -> 0 | G13: =VLOOKUP(REPLACE($A$1,1,1,"")&E13,[1]戸籍からデータ貼り付け先!$A$2:$T$12093,16,FALSE) -> 2 | H13: 2 | I13: 75 | J13: =VLOOKUP(REPLACE($A$1,1,1,"")&I13,[1]戸籍からデータ貼り付け先!$A$2:$T$12093,14,FALSE) -> 10 | K13: =VLOOKUP(REPLACE($A$1,1,1,"")&I13,[1]戸籍からデータ貼り付け先!$A$2:$T$12093,16,FALSE) -> 6 | L13: 16
A14: 11 | B14: =VLOOKUP(REPLACE($A$1,1,1,"")&A14,[1]戸籍からデータ貼り付け先!$A$2:$T$12093,14,FALSE) -> 2 | C14: =VLOOKUP(REPLACE($A$1,1,1,"")&A14,[1]戸籍からデータ貼り付け先!$A$2:$T$12093,16,FALSE) -> 2 | D14: 4 | E14: 26 | F14: =VLOOKUP(REPLACE($A$1,1,1,"")&E14,[1]戸籍からデータ貼り付け先!$A$2:$T$12093,14,FALSE) -> 2 | G14: =VLOOKUP(REPLACE($A$1,1,1,"")&E14,[1]戸籍からデータ貼り付け先!$A$2:$T$12093,16,FALSE) -> 2 | H14: 4 | I14: 76 | J14: =VLOOKUP(REPLACE($A$1,1,1,"")&I14,[1]戸籍からデータ貼り付け先!$A$2:$T$12093,14,FALSE) -> 2 | K14: =VLOOKUP(REPLACE($A$1,1,1,"")&I14,[1]戸籍からデータ貼り付け先!$A$2:$T$12093,16,FALSE) -> 4 | L14: 6
A15: 12 | B15: =VLOOKUP(REPLACE($A$1,1,1,"")&A15,[1]戸籍からデータ貼り付け先!$A$2:$T$12093,14,FALSE) -> 5 | C15: =VLOOKUP(REPLACE($A$1,1,1,"")&A15,[1]戸籍からデータ貼り付け先!$A$2:$T$12093,16,FALSE) -> 2 | D15: 7 | E15: 27 | F15: =VLOOKUP(REPLACE($A$1,1,1,"")&E15,[1]戸籍からデータ貼り付け先!$A$2:$T$12093,14,FALSE) -> 2 | G15: =VLOOKUP(REPLACE($A$1,1,1,"")&E15,[1]戸籍からデータ貼り付け先!$A$2:$T$12093,16,FALSE) -> 1 | H15: 3 | I15: 77 | J15: =VLOOKUP(REPLACE($A$1,1,1,"")&I15,[1]戸籍からデータ貼り付け先!$A$2:$T$12093,14,FALSE) -> 1 | K15: =VLOOKUP(REPLACE($A$1,1,1,"")&I15,[1]戸籍からデータ貼り付け先!$A$2:$T$12093,16,FALSE) -> 6 | L15: 7
A16: 13 | B16: =VLOOKUP(REPLACE($A$1,1,1,"")&A16,[1]戸籍からデータ貼り付け先!$A$2:$T$12093,14,FALSE) -> 3 | C16: =VLOOKUP(REPLACE($A$1,1,1,"")&A16,[1]戸籍からデータ貼り付け先!$A$2:$T$12093,16,FALSE) -> 5 | D16: 8 | E16: 28 | F16: =VLOOKUP(REPLACE($A$1,1,1,"")&E16,[1]戸籍からデータ貼り付け先!$A$2:$T$12093,14,FALSE) -> 4 | G16: =VLOOKUP(REPLACE($A$1,1,1,"")&E16,[1]戸籍からデータ貼り付け先!$A$2:$T$12093,16,FALSE) -> 3 | H16: 7 | I16: 78 | J16: =VLOOKUP(REPLACE($A$1,1,1,"")&I16,[1]戸籍からデータ貼り付け先!$A$2:$T$12093,14,FALSE) -> 6 | K16: =VLOOKUP(REPLACE($A$1,1,1,"")&I16,[1]戸籍からデータ貼り付け先!$A$2:$T$12093,16,FALSE) -> 3 | L16: 9
A17: 14 | B17: =VLOOKUP(REPLACE($A$1,1,1,"")&A17,[1]戸籍からデータ貼り付け先!$A$2:$T$12093,14,FALSE) -> 3 | C17: =VLOOKUP(REPLACE($A$1,1,1,"")&A17,[1]戸籍からデータ貼り付け先!$A$2:$T$12093,16,FALSE) -> 1 | D17: 4 | E17: 29 | F17: =VLOOKUP(REPLACE($A$1,1,1,"")&E17,[1]戸籍からデータ貼り付け先!$A$2:$T$12093,14,FALSE) -> 2 | G17: =VLOOKUP(REPLACE($A$1,1,1,"")&E17,[1]戸籍からデータ貼り付け先!$A$2:$T$12093,16,FALSE) -> 1 | H17: 3 | I17: 79 | J17: =VLOOKUP(REPLACE($A$1,1,1,"")&I17,[1]戸籍からデータ貼り付け先!$A$2:$T$12093,14,FALSE) -> 1 | K17: =VLOOKUP(REPLACE($A$1,1,1,"")&I17,[1]戸籍からデータ貼り付け先!$A$2:$T$12093,16,FALSE) -> 1 | L17: 2
A18: 小計 | B18: =SUM(B3:B17) -> 24 | C18: =SUM(C3:C17) -> 23 | D18: =SUM(B18:C18) -> 47 | E18: 30 | F18: =VLOOKUP(REPLACE($A$1,1,1,"")&E18,[1]戸籍からデータ貼り付け先!$A$2:$T$12093,14,FALSE) -> 3 | G18: =VLOOKUP(REPLACE($A$1,1,1,"")&E18,[1]戸籍からデータ貼り付け先!$A$2:$T$12093,16,FALSE) -> 3 | H18: 6 | I18: 80 | J18: =VLOOKUP(REPLACE($A$1,1,1,"")&I18,[1]戸籍からデータ貼り付け先!$A$2:$T$12093,14,FALSE) -> 1 | K18: =VLOOKUP(REPLACE($A$1,1,1,"")&I18,[1]戸籍からデータ貼り付け先!$A$2:$T$12093,16,FALSE) -> 3 | L18: 4
E19: 31 | F19: =VLOOKUP(REPLACE($A$1,1,1,"")&E19,[1]戸籍からデータ貼り付け先!$A$2:$T$12093,14,FALSE) -> 2 | G19: =VLOOKUP(REPLACE($A$1,1,1,"")&E19,[1]戸籍からデータ貼り付け先!$A$2:$T$12093,16,FALSE) -> 1 | H19: 3 | I19: 81 | J19: =VLOOKUP(REPLACE($A$1,1,1,"")&I19,[1]戸籍からデータ貼り付け先!$A$2:$T$12093,14,FALSE) -> 3 | K19: =VLOOKUP(REPLACE($A$1,1,1,"")&I19,[1]戸籍からデータ貼り付け先!$A$2:$T$12093,16,FALSE) -> 4 | L19: 7
E20: 32 | F20: =VLOOKUP(REPLACE($A$1,1,1,"")&E20,[1]戸籍からデータ貼り付け先!$A$2:$T$12093,14,FALSE) -> 3 | G20: =VLOOKUP(REPLACE($A$1,1,1,"")&E20,[1]戸籍からデータ貼り付け先!$A$2:$T$12093,16,FALSE) -> 2 | H20: 5 | I20: 82 | J20: =VLOOKUP(REPLACE($A$1,1,1,"")&I20,[1]戸籍からデータ貼り付け先!$A$2:$T$12093,14,FALSE) -> 3 | K20: =VLOOKUP(REPLACE($A$1,1,1,"")&I20,[1]戸籍からデータ貼り付け先!$A$2:$T$12093,16,FALSE) -> 7 | L20: 10
E21: 33 | F21: =VLOOKUP(REPLACE($A$1,1,1,"")&E21,[1]戸籍からデータ貼り付け先!$A$2:$T$12093,14,FALSE) -> 1 | G21: =VLOOKUP(REPLACE($A$1,1,1,"")&E21,[1]戸籍からデータ貼り付け先!$A$2:$T$12093,16,FALSE) -> 1 | H21: 2 | I21: 83 | J21: =VLOOKUP(REPLACE($A$1,1,1,"")&I21,[1]戸籍からデータ貼り付け先!$A$2:$T$12093,14,FALSE) -> 1 | K21: =VLOOKUP(REPLACE($A$1,1,1,"")&I21,[1]戸籍からデータ貼り付け先!$A$2:$T$12093,16,FALSE) -> 4 | L21: 5
E22: 34 | F22: =VLOOKUP(REPLACE($A$1,1,1,"")&E22,[1]戸籍からデータ貼り付け先!$A$2:$T$12093,14,FALSE) -> 3 | G22: =VLOOKUP(REPLACE($A$1,1,1,"")&E22,[1]戸籍からデータ貼り付け先!$A$2:$T$12093,16,FALSE) -> 3 | H22: 6 | I22: 84 | J22: =VLOOKUP(REPLACE($A$1,1,1,"")&I22,[1]戸籍からデータ貼り付け先!$A$2:$T$12093,14,FALSE) -> 1 | K22: =VLOOKUP(REPLACE($A$1,1,1,"")&I22,[1]戸籍からデータ貼り付け先!$A$2:$T$12093,16,FALSE) -> 4 | L22: 5
E23: 35 | F23: =VLOOKUP(REPLACE($A$1,1,1,"")&E23,[1]戸籍からデータ貼り付け先!$A$2:$T$12093,14,FALSE) -> 2 | G23: =VLOOKUP(REPLACE($A$1,1,1,"")&E23,[1]戸籍からデータ貼り付け先!$A$2:$T$12093,16,FALSE) -> 2 | H23: 4 | I23: 85 | J23: =VLOOKUP(REPLACE($A$1,1,1,"")&I23,[1]戸籍からデータ貼り付け先!$A$2:$T$12093,14,FALSE) -> 4 | K23: =VLOOKUP(REPLACE($A$1,1,1,"")&I23,[1]戸籍からデータ貼り付け先!$A$2:$T$12093,16,FALSE) -> 6 | L23: 10
E24: 36 | F24: =VLOOKUP(REPLACE($A$1,1,1,"")&E24,[1]戸籍からデータ貼り付け先!$A$2:$T$12093,14,FALSE) -> 3 | G24: =VLOOKUP(REPLACE($A$1,1,1,"")&E24,[1]戸籍からデータ貼り付け先!$A$2:$T$12093,16,FALSE) -> 2 | H24: 5 | I24: 86 | J24: =VLOOKUP(REPLACE($A$1,1,1,"")&I24,[1]戸籍からデータ貼り付け先!$A$2:$T$12093,14,FALSE) -> 1 | K24: =VLOOKUP(REPLACE($A$1,1,1,"")&I24,[1]戸籍からデータ貼り付け先!$A$2:$T$12093,16,FALSE) -> 0 | L24: 1
E25: 37 | F25: =VLOOKUP(REPLACE($A$1,1,1,"")&E25,[1]戸籍からデータ貼り付け先!$A$2:$T$12093,14,FALSE) -> 3 | G25: =VLOOKUP(REPLACE($A$1,1,1,"")&E25,[1]戸籍からデータ貼り付け先!$A$2:$T$12093,16,FALSE) -> 1 | H25: 4 | I25: 87 | J25: =VLOOKUP(REPLACE($A$1,1,1,"")&I25,[1]戸籍からデータ貼り付け先!$A$2:$T$12093,14,FALSE) -> 1 | K25: =VLOOKUP(REPLACE($A$1,1,1,"")&I25,[1]戸籍からデータ貼り付け先!$A$2:$T$12093,16,FALSE) -> 2 | L25: 3
E26: 38 | F26: =VLOOKUP(REPLACE($A$1,1,1,"")&E26,[1]戸籍からデータ貼り付け先!$A$2:$T$12093,14,FALSE) -> 4 | G26: =VLOOKUP(REPLACE($A$1,1,1,"")&E26,[1]戸籍からデータ貼り付け先!$A$2:$T$12093,16,FALSE) -> 0 | H26: 4 | I26: 88 | J26: =VLOOKUP(REPLACE($A$1,1,1,"")&I26,[1]戸籍からデータ貼り付け先!$A$2:$T$12093,14,FALSE) -> 1 | K26: =VLOOKUP(REPLACE($A$1,1,1,"")&I26,[1]戸籍からデータ貼り付け先!$A$2:$T$12093,16,FALSE) -> 5 | L26: 6
E27: 39 | F27: =VLOOKUP(REPLACE($A$1,1,1,"")&E27,[1]戸籍からデータ貼り付け先!$A$2:$T$12093,14,FALSE) -> 2 | G27: =VLOOKUP(REPLACE($A$1,1,1,"")&E27,[1]戸籍からデータ貼り付け先!$A$2:$T$12093,16,FALSE) -> 3 | H27: 5 | I27: 89 | J27: =VLOOKUP(REPLACE($A$1,1,1,"")&I27,[1]戸籍からデータ貼り付け先!$A$2:$T$12093,14,FALSE) -> 1 | K27: =VLOOKUP(REPLACE($A$1,1,1,"")&I27,[1]戸籍からデータ貼り付け先!$A$2:$T$12093,16,FALSE) -> 4 | L27: 5
E28: 40 | F28: =VLOOKUP(REPLACE($A$1,1,1,"")&E28,[1]戸籍からデータ貼り付け先!$A$2:$T$12093,14,FALSE) -> 1 | G28: =VLOOKUP(REPLACE($A$1,1,1,"")&E28,[1]戸籍からデータ貼り付け先!$A$2:$T$12093,16,FALSE) -> 3 | H28: 4 | I28: 90 | J28: =VLOOKUP(REPLACE($A$1,1,1,"")&I28,[1]戸籍からデータ貼り付け先!$A$2:$T$12093,14,FALSE) -> 0 | K28: =VLOOKUP(REPLACE($A$1,1,1,"")&I28,[1]戸籍からデータ貼り付け先!$A$2:$T$12093,16,FALSE) -> 1 | L28: 1
E29: 41 | F29: =VLOOKUP(REPLACE($A$1,1,1,"")&E29,[1]戸籍からデータ貼り付け先!$A$2:$T$12093,14,FALSE) -> 0 | G29: =VLOOKUP(REPLACE($A$1,1,1,"")&E29,[1]戸籍からデータ貼り付け先!$A$2:$T$12093,16,FALSE) -> 1 | H29: 1 | I29: 91 | J29: =VLOOKUP(REPLACE($A$1,1,1,"")&I29,[1]戸籍からデータ貼り付け先!$A$2:$T$12093,14,FALSE) -> 0 | K29: =VLOOKUP(REPLACE($A$1,1,1,"")&I29,[1]戸籍からデータ貼り付け先!$A$2:$T$12093,16,FALSE) -> 3 | L29: 3
E30: 42 | F30: =VLOOKUP(REPLACE($A$1,1,1,"")&E30,[1]戸籍からデータ貼り付け先!$A$2:$T$12093,14,FALSE) -> 3 | G30: =VLOOKUP(REPLACE($A$1,1,1,"")&E30,[1]戸籍からデータ貼り付け先!$A$2:$T$12093,16,FALSE) -> 1 | H30: 4 | I30: 92 | J30: =VLOOKUP(REPLACE($A$1,1,1,"")&I30,[1]戸籍からデータ貼り付け先!$A$2:$T$12093,14,FALSE) -> 2 | K30: =VLOOKUP(REPLACE($A$1,1,1,"")&I30,[1]戸籍からデータ貼り付け先!$A$2:$T$12093,16,FALSE) -> 0 | L30: 2
E31: 43 | F31: =VLOOKUP(REPLACE($A$1,1,1,"")&E31,[1]戸籍からデータ貼り付け先!$A$2:$T$12093,14,FALSE) -> 2 | G31: =VLOOKUP(REPLACE($A$1,1,1,"")&E31,[1]戸籍からデータ貼り付け先!$A$2:$T$12093,16,FALSE) -> 2 | H31: 4 | I31: 93 | J31: =VLOOKUP(REPLACE($A$1,1,1,"")&I31,[1]戸籍からデータ貼り付け先!$A$2:$T$12093,14,FALSE) -> 0 | K31: =VLOOKUP(REPLACE($A$1,1,1,"")&I31,[1]戸籍からデータ貼り付け先!$A$2:$T$12093,16,FALSE) -> 1 | L31: 1
E32: 44 | F32: =VLOOKUP(REPLACE($A$1,1,1,"")&E32,[1]戸籍からデータ貼り付け先!$A$2:$T$12093,14,FALSE) -> 3 | G32: =VLOOKUP(REPLACE($A$1,1,1,"")&E32,[1]戸籍からデータ貼り付け先!$A$2:$T$12093,16,FALSE) -> 5 | H32: 8 | I32: 94 | J32: =VLOOKUP(REPLACE($A$1,1,1,"")&I32,[1]戸籍からデータ貼り付け先!$A$2:$T$12093,14,FALSE) -> 0 | K32: =VLOOKUP(REPLACE($A$1,1,1,"")&I32,[1]戸籍からデータ貼り付け先!$A$2:$T$12093,16,FALSE) -> 1 | L32: 1
E33: 45 | F33: =VLOOKUP(REPLACE($A$1,1,1,"")&E33,[1]戸籍からデータ貼り付け先!$A$2:$T$12093,14,FALSE) -> 2 | G33: =VLOOKUP(REPLACE($A$1,1,1,"")&E33,[1]戸籍からデータ貼り付け先!$A$2:$T$12093,16,FALSE) -> 4 | H33: 6 | I33: 95 | J33: =VLOOKUP(REPLACE($A$1,1,1,"")&I33,[1]戸籍からデータ貼り付け先!$A$2:$T$12093,14,FALSE) -> 0 | K33: =VLOOKUP(REPLACE($A$1,1,1,"")&I33,[1]戸籍からデータ貼り付け先!$A$2:$T$12093,16,FALSE) -> 2 | L33: 2
E34: 46 | F34: =VLOOKUP(REPLACE($A$1,1,1,"")&E34,[1]戸籍からデータ貼り付け先!$A$2:$T$12093,14,FALSE) -> 4 | G34: =VLOOKUP(REPLACE($A$1,1,1,"")&E34,[1]戸籍からデータ貼り付け先!$A$2:$T$12093,16,FALSE) -> 3 | H34: 7 | I34: 96 | J34: =VLOOKUP(REPLACE($A$1,1,1,"")&I34,[1]戸籍からデータ貼り付け先!$A$2:$T$12093,14,FALSE) -> 1 | K34: =VLOOKUP(REPLACE($A$1,1,1,"")&I34,[1]戸籍からデータ貼り付け先!$A$2:$T$12093,16,FALSE) -> 2 | L34: 3
E35: 47 | F35: =VLOOKUP(REPLACE($A$1,1,1,"")&E35,[1]戸籍からデータ貼り付け先!$A$2:$T$12093,14,FALSE) -> 6 | G35: =VLOOKUP(REPLACE($A$1,1,1,"")&E35,[1]戸籍からデータ貼り付け先!$A$2:$T$12093,16,FALSE) -> 4 | H35: 10 | I35: 97 | J35: =VLOOKUP(REPLACE($A$1,1,1,"")&I35,[1]戸籍からデータ貼り付け先!$A$2:$T$12093,14,FALSE) -> 0 | K35: =VLOOKUP(REPLACE($A$1,1,1,"")&I35,[1]戸籍からデータ貼り付け先!$A$2:$T$12093,16,FALSE) -> 0 | L35: 0
E36: 48 | F36: =VLOOKUP(REPLACE($A$1,1,1,"")&E36,[1]戸籍からデータ貼り付け先!$A$2:$T$12093,14,FALSE) -> 3 | G36: =VLOOKUP(REPLACE($A$1,1,1,"")&E36,[1]戸籍からデータ貼り付け先!$A$2:$T$12093,16,FALSE) -> 3 | H36: 6 | I36: 98 | J36: =VLOOKUP(REPLACE($A$1,1,1,"")&I36,[1]戸籍からデータ貼り付け先!$A$2:$T$12093,14,FALSE) -> 0 | K36: =VLOOKUP(REPLACE($A$1,1,1,"")&I36,[1]戸籍からデータ貼り付け先!$A$2:$T$12093,16,FALSE) -> 1 | L36: 1
E37: 49 | F37: =VLOOKUP(REPLACE($A$1,1,1,"")&E37,[1]戸籍からデータ貼り付け先!$A$2:$T$12093,14,FALSE) -> 6 | G37: =VLOOKUP(REPLACE($A$1,1,1,"")&E37,[1]戸籍からデータ貼り付け先!$A$2:$T$12093,16,FALSE) -> 4 | H37: 10 | I37: 99 | J37: =VLOOKUP(REPLACE($A$1,1,1,"")&I37,[1]戸籍からデータ貼り付け先!$A$2:$T$12093,14,FALSE) -> 0 | K37: =VLOOKUP(REPLACE($A$1,1,1,"")&I37,[1]戸籍からデータ貼り付け先!$A$2:$T$12093,16,FALSE) -> 0 | L37: 0
E38: 50 | F38: =VLOOKUP(REPLACE($A$1,1,1,"")&E38,[1]戸籍からデータ貼り付け先!$A$2:$T$12093,14,FALSE) -> 4 | G38: =VLOOKUP(REPLACE($A$1,1,1,"")&E38,[1]戸籍からデータ貼り付け先!$A$2:$T$12093,16,FALSE) -> 4 | H38: 8 | I38: 100 | J38: =VLOOKUP(REPLACE($A$1,1,1,"")&I38,[1]戸籍からデータ貼り付け先!$A$2:$T$12093,14,FALSE) -> 0 | K38: =VLOOKUP(REPLACE($A$1,1,1,"")&I38,[1]戸籍からデータ貼り付け先!$A$2:$T$12093,16,FALSE) -> 0 | L38: 0
E39: 51 | F39: =VLOOKUP(REPLACE($A$1,1,1,"")&E39,[1]戸籍からデータ貼り付け先!$A$2:$T$12093,14,FALSE) -> 3 | G39: =VLOOKUP(REPLACE($A$1,1,1,"")&E39,[1]戸籍からデータ貼り付け先!$A$2:$T$12093,16,FALSE) -> 4 | H39: 7 | I39: 101 | J39: =VLOOKUP(REPLACE($A$1,1,1,"")&I39,[1]戸籍からデータ貼り付け先!$A$2:$T$12093,14,FALSE) -> 0 | K39: =VLOOKUP(REPLACE($A$1,1,1,"")&I39,[1]戸籍からデータ貼り付け先!$A$2:$T$12093,16,FALSE) -> 0 | L39: 0
E40: 52 | F40: =VLOOKUP(REPLACE($A$1,1,1,"")&E40,[1]戸籍からデータ貼り付け先!$A$2:$T$12093,14,FALSE) -> 4 | G40: =VLOOKUP(REPLACE($A$1,1,1,"")&E40,[1]戸籍からデータ貼り付け先!$A$2:$T$12093,16,FALSE) -> 6 | H40: 10 | I40: 102 | J40: =VLOOKUP(REPLACE($A$1,1,1,"")&I40,[1]戸籍からデータ貼り付け先!$A$2:$T$12093,14,FALSE) -> 0 | K40: =VLOOKUP(REPLACE($A$1,1,1,"")&I40,[1]戸籍からデータ貼り付け先!$A$2:$T$12093,16,FALSE) -> 0 | L40: 0
E41: 53 | F41: =VLOOKUP(REPLACE($A$1,1,1,"")&E41,[1]戸籍からデータ貼り付け先!$A$2:$T$12093,14,FALSE) -> 2 | G41: =VLOOKUP(REPLACE($A$1,1,1,"")&E41,[1]戸籍からデータ貼り付け先!$A$2:$T$12093,16,FALSE) -> 5 | H41: 7 | I41: 103 | J41: =VLOOKUP(REPLACE($A$1,1,1,"")&I41,[1]戸籍からデータ貼り付け先!$A$2:$T$12093,14,FALSE) -> 0 | K41: =VLOOKUP(REPLACE($A$1,1,1,"")&I41,[1]戸籍からデータ貼り付け先!$A$2:$T$12093,16,FALSE) -> 0 | L41: 0
E42: 54 | F42: =VLOOKUP(REPLACE($A$1,1,1,"")&E42,[1]戸籍からデータ貼り付け先!$A$2:$T$12093,14,FALSE) -> 8 | G42: =VLOOKUP(REPLACE($A$1,1,1,"")&E42,[1]戸籍からデータ貼り付け先!$A$2:$T$12093,16,FALSE) -> 5 | H42: 13 | I42: 104 | J42: =VLOOKUP(REPLACE($A$1,1,1,"")&I42,[1]戸籍からデータ貼り付け先!$A$2:$T$12093,14,FALSE) -> 0 | K42: =VLOOKUP(REPLACE($A$1,1,1,"")&I42,[1]戸籍からデータ貼り付け先!$A$2:$T$12093,16,FALSE) -> 0 | L42: 0
E43: 55 | F43: =VLOOKUP(REPLACE($A$1,1,1,"")&E43,[1]戸籍からデータ貼り付け先!$A$2:$T$12093,14,FALSE) -> 4 | G43: =VLOOKUP(REPLACE($A$1,1,1,"")&E43,[1]戸籍からデータ貼り付け先!$A$2:$T$12093,16,FALSE) -> 6 | H43: 10 | I43: 105 | J43: =VLOOKUP(REPLACE($A$1,1,1,"")&I43,[1]戸籍からデータ貼り付け先!$A$2:$T$12093,14,FALSE) -> 0 | K43: =VLOOKUP(REPLACE($A$1,1,1,"")&I43,[1]戸籍からデータ貼り付け先!$A$2:$T$12093,16,FALSE) -> 0 | L43: 0
E44: 56 | F44: =VLOOKUP(REPLACE($A$1,1,1,"")&E44,[1]戸籍からデータ貼り付け先!$A$2:$T$12093,14,FALSE) -> 4 | G44: =VLOOKUP(REPLACE($A$1,1,1,"")&E44,[1]戸籍からデータ貼り付け先!$A$2:$T$12093,16,FALSE) -> 4 | H44: 8 | I44: 106 | J44: =VLOOKUP(REPLACE($A$1,1,1,"")&I44,[1]戸籍からデータ貼り付け先!$A$2:$T$12093,14,FALSE) -> 0 | K44: =VLOOKUP(REPLACE($A$1,1,1,"")&I44,[1]戸籍からデータ貼り付け先!$A$2:$T$12093,16,FALSE) -> 0 | L44: 0
E45: 57 | F45: =VLOOKUP(REPLACE($A$1,1,1,"")&E45,[1]戸籍からデータ貼り付け先!$A$2:$T$12093,14,FALSE) -> 4 | G45: =VLOOKUP(REPLACE($A$1,1,1,"")&E45,[1]戸籍からデータ貼り付け先!$A$2:$T$12093,16,FALSE) -> 3 | H45: 7 | I45: 107 | J45: =VLOOKUP(REPLACE($A$1,1,1,"")&I45,[1]戸籍からデータ貼り付け先!$A$2:$T$12093,14,FALSE) -> 0 | K45: =VLOOKUP(REPLACE($A$1,1,1,"")&I45,[1]戸籍からデータ貼り付け先!$A$2:$T$12093,16,FALSE) -> 0 | L45: 0
E46: 58 | F46: =VLOOKUP(REPLACE($A$1,1,1,"")&E46,[1]戸籍からデータ貼り付け先!$A$2:$T$12093,14,FALSE) -> 10 | G46: =VLOOKUP(REPLACE($A$1,1,1,"")&E46,[1]戸籍からデータ貼り付け先!$A$2:$T$12093,16,FALSE) -> 2 | H46: 12 | I46: 108 | J46: =VLOOKUP(REPLACE($A$1,1,1,"")&I46,[1]戸籍からデータ貼り付け先!$A$2:$T$12093,14,FALSE) -> 0 | K46: =VLOOKUP(REPLACE($A$1,1,1,"")&I46,[1]戸籍からデータ貼り付け先!$A$2:$T$12093,16,FALSE) -> 0 | L46: 0
E47: 59 | F47: =VLOOKUP(REPLACE($A$1,1,1,"")&E47,[1]戸籍からデータ貼り付け先!$A$2:$T$12093,14,FALSE) -> 1 | G47: =VLOOKUP(REPLACE($A$1,1,1,"")&E47,[1]戸籍からデータ貼り付け先!$A$2:$T$12093,16,FALSE) -> 1 | H47: 2 | I47: 小計 | J47: =SUM(J3:J46) -> 67 | K47: =SUM(K3:K46) -> 114 | L47: =SUM(J47:K47) -> 181
E48: 60 | F48: =VLOOKUP(REPLACE($A$1,1,1,"")&E48,[1]戸籍からデータ貼り付け先!$A$2:$T$12093,14,FALSE) -> 1 | G48: =VLOOKUP(REPLACE($A$1,1,1,"")&E48,[1]戸籍からデータ貼り付け先!$A$2:$T$12093,16,FALSE) -> 5 | H48: 6
E49: 61 | F49: =VLOOKUP(REPLACE($A$1,1,1,"")&E49,[1]戸籍からデータ貼り付け先!$A$2:$T$12093,14,FALSE) -> 4 | G49: =VLOOKUP(REPLACE($A$1,1,1,"")&E49,[1]戸籍からデータ貼り付け先!$A$2:$T$12093,16,FALSE) -> 3 | H49: 7 | J49: =REPLACE(A1,1,1,"")&"合計" -> 入船町合計
E50: 62 | F50: =VLOOKUP(REPLACE($A$1,1,1,"")&E50,[1]戸籍からデータ貼り付け先!$A$2:$T$12093,14,FALSE) -> 6 | G50: =VLOOKUP(REPLACE($A$1,1,1,"")&E50,[1]戸籍からデータ貼り付け先!$A$2:$T$12093,16,FALSE) -> 7 | H50: 13 | J50: 男 | K50: 女 | L50: 計
E51: 63 | F51: =VLOOKUP(REPLACE($A$1,1,1,"")&E51,[1]戸籍からデータ貼り付け先!$A$2:$T$12093,14,FALSE) -> 4 | G51: =VLOOKUP(REPLACE($A$1,1,1,"")&E51,[1]戸籍からデータ貼り付け先!$A$2:$T$12093,16,FALSE) -> 3 | H51: 7 | J51: =SUM(B18,F53,J47) -> 251 | K51: =SUM(C18,G53,K47) -> 272 | L51: =SUM(J51:K51) -> 523
E52: 64 | F52: =VLOOKUP(REPLACE($A$1,1,1,"")&E52,[1]戸籍からデータ貼り付け先!$A$2:$T$12093,14,FALSE) -> 4 | G52: =VLOOKUP(REPLACE($A$1,1,1,"")&E52,[1]戸籍からデータ貼り付け先!$A$2:$T$12093,16,FALSE) -> 6 | H52: 10
E53: 小計 | F53: =SUM(F3:F52) -> 160 | G53: =SUM(G3:G52) -> 135 | H53: =SUM(F53:G53) -> 295
F56: -9-

Sheet 曽屋一丁目
A1: ◆曽屋１丁目 | H1: =秦野市合計!H1 -> 令和7年10月1日現在（単位：人）
A2: 年少人口(0歳～14歳) | B2: 男 | C2: 女 | D2: 計 | E2: 生産年齢人口(15歳～64歳) | F2: 男 | G2: 女 | H2: 計 | I2: 老年人口(65歳以上) | J2: 男 | K2: 女 | L2: 計
A3: 0 | B3: =VLOOKUP(REPLACE($A$1,1,1,"")&A3,[1]戸籍からデータ貼り付け先!$A$2:$T$12093,14,FALSE) -> 2 | C3: =VLOOKUP(REPLACE($A$1,1,1,"")&A3,[1]戸籍からデータ貼り付け先!$A$2:$T$12093,16,FALSE) -> 0 | D3: =SUM(B3:C3) -> 2 | E3: 15 | F3: =VLOOKUP(REPLACE($A$1,1,1,"")&E3,[1]戸籍からデータ貼り付け先!$A$2:$T$12093,14,FALSE) -> 4 | G3: =VLOOKUP(REPLACE($A$1,1,1,"")&E3,[1]戸籍からデータ貼り付け先!$A$2:$T$12093,16,FALSE) -> 1 | H3: =SUM(F3:G3) -> 5 | I3: 65 | J3: =VLOOKUP(REPLACE($A$1,1,1,"")&I3,[1]戸籍からデータ貼り付け先!$A$2:$T$12093,14,FALSE) -> 3 | K3: =VLOOKUP(REPLACE($A$1,1,1,"")&I3,[1]戸籍からデータ貼り付け先!$A$2:$T$12093,16,FALSE) -> 4 | L3: =SUM(J3:K3) -> 7
A4: 1 | B4: =VLOOKUP(REPLACE($A$1,1,1,"")&A4,[1]戸籍からデータ貼り付け先!$A$2:$T$12093,14,FALSE) -> 1 | C4: =VLOOKUP(REPLACE($A$1,1,1,"")&A4,[1]戸籍からデータ貼り付け先!$A$2:$T$12093,16,FALSE) -> 0 | D4: =SUM(B4:C4) -> 1 | E4: 16 | F4: =VLOOKUP(REPLACE($A$1,1,1,"")&E4,[1]戸籍からデータ貼り付け先!$A$2:$T$12093,14,FALSE) -> 0 | G4: =VLOOKUP(REPLACE($A$1,1,1,"")&E4,[1]戸籍からデータ貼り付け先!$A$2:$T$12093,16,FALSE) -> 2 | H4: =SUM(F4:G4) -> 2 | I4: 66 | J4: =VLOOKUP(REPLACE($A$1,1,1,"")&I4,[1]戸籍からデータ貼り付け先!$A$2:$T$12093,14,FALSE) -> 2 | K4: =VLOOKUP(REPLACE($A$1,1,1,"")&I4,[1]戸籍からデータ貼り付け先!$A$2:$T$12093,16,FALSE) -> 2 | L4: =SUM(J4:K4) -> 4
A5: 2 | B5: =VLOOKUP(REPLACE($A$1,1,1,"")&A5,[1]戸籍からデータ貼り付け先!$A$2:$T$12093,14,FALSE) -> 1 | C5: =VLOOKUP(REPLACE($A$1,1,1,"")&A5,[1]戸籍からデータ貼り付け先!$A$2:$T$12093,16,FALSE) -> 1 | D5: 2 | E5: 17 | F5: =VLOOKUP(REPLACE($A$1,1,1,"")&E5,[1]戸籍からデータ貼り付け先!$A$2:$T$12093,14,FALSE) -> 0 | G5: =VLOOKUP(REPLACE($A$1,1,1,"")&E5,[1]戸籍からデータ貼り付け先!$A$2:$T$12093,16,FALSE) -> 1 | H5: 1 | I5: 67 | J5: =VLOOKUP(REPLACE($A$1,1,1,"")&I5,[1]戸籍からデータ貼り付け先!$A$2:$T$12093,14,FALSE) -> 2 | K5: =VLOOKUP(REPLACE($A$1,1,1,"")&I5,[1]戸籍からデータ貼り付け先!$A$2:$T$12093,16,FALSE) -> 2 | L5: 4
A6: 3 | B6: =VLOOKUP(REPLACE($A$1,1,1,"")&A6,[1]戸籍からデータ貼り付け先!$A$2:$T$12093,14,FALSE) -> 0 | C6: =VLOOKUP(REPLACE($A$1,1,1,"")&A6,[1]戸籍からデータ貼り付け先!$A$2:$T$12093,16,FALSE) -> 0 | D6: 0 | E6: 18 | F6: =VLOOKUP(REPLACE($A$1,1,1,"")&E6,[1]戸籍からデータ貼り付け先!$A$2:$T$12093,14,FALSE) -> 3 | G6: =VLOOKUP(REPLACE($A$1,1,1,"")&E6,[1]戸籍からデータ貼り付け先!$A$2:$T$12093,16,FALSE) -> 3 | H6: 6 | I6: 68 | J6: =VLOOKUP(REPLACE($A$1,1,1,"")&I6,[1]戸籍からデータ貼り付け先!$A$2:$T$12093,14,FALSE) -> 1 | K6: =VLOOKUP(REPLACE($A$1,1,1,"")&I6,[1]戸籍からデータ貼り付け先!$A$2:$T$12093,16,FALSE) -> 1 | L6: 2
A7: 4 | B7: =VLOOKUP(REPLACE($A$1,1,1,"")&A7,[1]戸籍からデータ貼り付け先!$A$2:$T$12093,14,FALSE) -> 3 | C7: =VLOOKUP(REPLACE($A$1,1,1,"")&A7,[1]戸籍からデータ貼り付け先!$A$2:$T$12093,16,FALSE) -> 2 | D7: 5 | E7: 19 | F7: =VLOOKUP(REPLACE($A$1,1,1,"")&E7,[1]戸籍からデータ貼り付け先!$A$2:$T$12093,14,FALSE) -> 1 | G7: =VLOOKUP(REPLACE($A$1,1,1,"")&E7,[1]戸籍からデータ貼り付け先!$A$2:$T$12093,16,FALSE) -> 2 | H7: 3 | I7: 69 | J7: =VLOOKUP(REPLACE($A$1,1,1,"")&I7,[1]戸籍からデータ貼り付け先!$A$2:$T$12093,14,FALSE) -> 3 | K7: =VLOOKUP(REPLACE($A$1,1,1,"")&I7,[1]戸籍からデータ貼り付け先!$A$2:$T$12093,16,FALSE) -> 4 | L7: 7
A8: 5 | B8: =VLOOKUP(REPLACE($A$1,1,1,"")&A8,[1]戸籍からデータ貼り付け先!$A$2:$T$12093,14,FALSE) -> 4 | C8: =VLOOKUP(REPLACE($A$1,1,1,"")&A8,[1]戸籍からデータ貼り付け先!$A$2:$T$12093,16,FALSE) -> 2 | D8: 6 | E8: 20 | F8: =VLOOKUP(REPLACE($A$1,1,1,"")&E8,[1]戸籍からデータ貼り付け先!$A$2:$T$12093,14,FALSE) -> 1 | G8: =VLOOKUP(REPLACE($A$1,1,1,"")&E8,[1]戸籍からデータ貼り付け先!$A$2:$T$12093,16,FALSE) -> 4 | H8: 5 | I8: 70 | J8: =VLOOKUP(REPLACE($A$1,1,1,"")&I8,[1]戸籍からデータ貼り付け先!$A$2:$T$12093,14,FALSE) -> 4 | K8: =VLOOKUP(REPLACE($A$1,1,1,"")&I8,[1]戸籍からデータ貼り付け先!$A$2:$T$12093,16,FALSE) -> 1 | L8: 5
A9: 6 | B9: =VLOOKUP(REPLACE($A$1,1,1,"")&A9,[1]戸籍からデータ貼り付け先!$A$2:$T$12093,14,FALSE) -> 2 | C9: =VLOOKUP(REPLACE($A$1,1,1,"")&A9,[1]戸籍からデータ貼り付け先!$A$2:$T$12093,16,FALSE) -> 2 | D9: 4 | E9: 21 | F9: =VLOOKUP(REPLACE($A$1,1,1,"")&E9,[1]戸籍からデータ貼り付け先!$A$2:$T$12093,14,FALSE) -> 3 | G9: =VLOOKUP(REPLACE($A$1,1,1,"")&E9,[1]戸籍からデータ貼り付け先!$A$2:$T$12093,16,FALSE) -> 1 | H9: 4 | I9: 71 | J9: =VLOOKUP(REPLACE($A$1,1,1,"")&I9,[1]戸籍からデータ貼り付け先!$A$2:$T$12093,14,FALSE) -> 2 | K9: =VLOOKUP(REPLACE($A$1,1,1,"")&I9,[1]戸籍からデータ貼り付け先!$A$2:$T$12093,16,FALSE) -> 1 | L9: 3
A10: 7 | B10: =VLOOKUP(REPLACE($A$1,1,1,"")&A10,[1]戸籍からデータ貼り付け先!$A$2:$T$12093,14,FALSE) -> 1 | C10: =VLOOKUP(REPLACE($A$1,1,1,"")&A10,[1]戸籍からデータ貼り付け先!$A$2:$T$12093,16,FALSE) -> 1 | D10: 2 | E10: 22 | F10: =VLOOKUP(REPLACE($A$1,1,1,"")&E10,[1]戸籍からデータ貼り付け先!$A$2:$T$12093,14,FALSE) -> 1 | G10: =VLOOKUP(REPLACE($A$1,1,1,"")&E10,[1]戸籍からデータ貼り付け先!$A$2:$T$12093,16,FALSE) -> 2 | H10: 3 | I10: 72 | J10: =VLOOKUP(REPLACE($A$1,1,1,"")&I10,[1]戸籍からデータ貼り付け先!$A$2:$T$12093,14,FALSE) -> 0 | K10: =VLOOKUP(REPLACE($A$1,1,1,"")&I10,[1]戸籍からデータ貼り付け先!$A$2:$T$12093,16,FALSE) -> 0 | L10: 0
A11: 8 | B11: =VLOOKUP(REPLACE($A$1,1,1,"")&A11,[1]戸籍からデータ貼り付け先!$A$2:$T$12093,14,FALSE) -> 4 | C11: =VLOOKUP(REPLACE($A$1,1,1,"")&A11,[1]戸籍からデータ貼り付け先!$A$2:$T$12093,16,FALSE) -> 2 | D11: 6 | E11: 23 | F11: =VLOOKUP(REPLACE($A$1,1,1,"")&E11,[1]戸籍からデータ貼り付け先!$A$2:$T$12093,14,FALSE) -> 1 | G11: =VLOOKUP(REPLACE($A$1,1,1,"")&E11,[1]戸籍からデータ貼り付け先!$A$2:$T$12093,16,FALSE) -> 2 | H11: 3 | I11: 73 | J11: =VLOOKUP(REPLACE($A$1,1,1,"")&I11,[1]戸籍からデータ貼り付け先!$A$2:$T$12093,14,FALSE) -> 1 | K11: =VLOOKUP(REPLACE($A$1,1,1,"")&I11,[1]戸籍からデータ貼り付け先!$A$2:$T$12093,16,FALSE) -> 3 | L11: 4
A12: 9 | B12: =VLOOKUP(REPLACE($A$1,1,1,"")&A12,[1]戸籍からデータ貼り付け先!$A$2:$T$12093,14,FALSE) -> 0 | C12: =VLOOKUP(REPLACE($A$1,1,1,"")&A12,[1]戸籍からデータ貼り付け先!$A$2:$T$12093,16,FALSE) -> 3 | D12: 3 | E12: 24 | F12: =VLOOKUP(REPLACE($A$1,1,1,"")&E12,[1]戸籍からデータ貼り付け先!$A$2:$T$12093,14,FALSE) -> 1 | G12: =VLOOKUP(REPLACE($A$1,1,1,"")&E12,[1]戸籍からデータ貼り付け先!$A$2:$T$12093,16,FALSE) -> 2 | H12: 3 | I12: 74 | J12: =VLOOKUP(REPLACE($A$1,1,1,"")&I12,[1]戸籍からデータ貼り付け先!$A$2:$T$12093,14,FALSE) -> 2 | K12: =VLOOKUP(REPLACE($A$1,1,1,"")&I12,[1]戸籍からデータ貼り付け先!$A$2:$T$12093,16,FALSE) -> 4 | L12: 6
A13: 10 | B13: =VLOOKUP(REPLACE($A$1,1,1,"")&A13,[1]戸籍からデータ貼り付け先!$A$2:$T$12093,14,FALSE) -> 2 | C13: =VLOOKUP(REPLACE($A$1,1,1,"")&A13,[1]戸籍からデータ貼り付け先!$A$2:$T$12093,16,FALSE) -> 1 | D13: 3 | E13: 25 | F13: =VLOOKUP(REPLACE($A$1,1,1,"")&E13,[1]戸籍からデータ貼り付け先!$A$2:$T$12093,14,FALSE) -> 2 | G13: =VLOOKUP(REPLACE($A$1,1,1,"")&E13,[1]戸籍からデータ貼り付け先!$A$2:$T$12093,16,FALSE) -> 5 | H13: 7 | I13: 75 | J13: =VLOOKUP(REPLACE($A$1,1,1,"")&I13,[1]戸籍からデータ貼り付け先!$A$2:$T$12093,14,FALSE) -> 6 | K13: =VLOOKUP(REPLACE($A$1,1,1,"")&I13,[1]戸籍からデータ貼り付け先!$A$2:$T$12093,16,FALSE) -> 5 | L13: 11
A14: 11 | B14: =VLOOKUP(REPLACE($A$1,1,1,"")&A14,[1]戸籍からデータ貼り付け先!$A$2:$T$12093,14,FALSE) -> 2 | C14: =VLOOKUP(REPLACE($A$1,1,1,"")&A14,[1]戸籍からデータ貼り付け先!$A$2:$T$12093,16,FALSE) -> 1 | D14: 3 | E14: 26 | F14: =VLOOKUP(REPLACE($A$1,1,1,"")&E14,[1]戸籍からデータ貼り付け先!$A$2:$T$12093,14,FALSE) -> 2 | G14: =VLOOKUP(REPLACE($A$1,1,1,"")&E14,[1]戸籍からデータ貼り付け先!$A$2:$T$12093,16,FALSE) -> 5 | H14: 7 | I14: 76 | J14: =VLOOKUP(REPLACE($A$1,1,1,"")&I14,[1]戸籍からデータ貼り付け先!$A$2:$T$12093,14,FALSE) -> 3 | K14: =VLOOKUP(REPLACE($A$1,1,1,"")&I14,[1]戸籍からデータ貼り付け先!$A$2:$T$12093,16,FALSE) -> 7 | L14: 10
A15: 12 | B15: =VLOOKUP(REPLACE($A$1,1,1,"")&A15,[1]戸籍からデータ貼り付け先!$A$2:$T$12093,14,FALSE) -> 3 | C15: =VLOOKUP(REPLACE($A$1,1,1,"")&A15,[1]戸籍からデータ貼り付け先!$A$2:$T$12093,16,FALSE) -> 3 | D15: 6 | E15: 27 | F15: =VLOOKUP(REPLACE($A$1,1,1,"")&E15,[1]戸籍からデータ貼り付け先!$A$2:$T$12093,14,FALSE) -> 6 | G15: =VLOOKUP(REPLACE($A$1,1,1,"")&E15,[1]戸籍からデータ貼り付け先!$A$2:$T$12093,16,FALSE) -> 0 | H15: 6 | I15: 77 | J15: =VLOOKUP(REPLACE($A$1,1,1,"")&I15,[1]戸籍からデータ貼り付け先!$A$2:$T$12093,14,FALSE) -> 0 | K15: =VLOOKUP(REPLACE($A$1,1,1,"")&I15,[1]戸籍からデータ貼り付け先!$A$2:$T$12093,16,FALSE) -> 2 | L15: 2
A16: 13 | B16: =VLOOKUP(REPLACE($A$1,1,1,"")&A16,[1]戸籍からデータ貼り付け先!$A$2:$T$12093,14,FALSE) -> 3 | C16: =VLOOKUP(REPLACE($A$1,1,1,"")&A16,[1]戸籍からデータ貼り付け先!$A$2:$T$12093,16,FALSE) -> 0 | D16: 3 | E16: 28 | F16: =VLOOKUP(REPLACE($A$1,1,1,"")&E16,[1]戸籍からデータ貼り付け先!$A$2:$T$12093,14,FALSE) -> 3 | G16: =VLOOKUP(REPLACE($A$1,1,1,"")&E16,[1]戸籍からデータ貼り付け先!$A$2:$T$12093,16,FALSE) -> 2 | H16: 5 | I16: 78 | J16: =VLOOKUP(REPLACE($A$1,1,1,"")&I16,[1]戸籍からデータ貼り付け先!$A$2:$T$12093,14,FALSE) -> 4 | K16: =VLOOKUP(REPLACE($A$1,1,1,"")&I16,[1]戸籍からデータ貼り付け先!$A$2:$T$12093,16,FALSE) -> 2 | L16: 6
A17: 14 | B17: =VLOOKUP(REPLACE($A$1,1,1,"")&A17,[1]戸籍からデータ貼り付け先!$A$2:$T$12093,14,FALSE) -> 4 | C17: =VLOOKUP(REPLACE($A$1,1,1,"")&A17,[1]戸籍からデータ貼り付け先!$A$2:$T$12093,16,FALSE) -> 2 | D17: 6 | E17: 29 | F17: =VLOOKUP(REPLACE($A$1,1,1,"")&E17,[1]戸籍からデータ貼り付け先!$A$2:$T$12093,14,FALSE) -> 0 | G17: =VLOOKUP(REPLACE($A$1,1,1,"")&E17,[1]戸籍からデータ貼り付け先!$A$2:$T$12093,16,FALSE) -> 1 | H17: 1 | I17: 79 | J17: =VLOOKUP(REPLACE($A$1,1,1,"")&I17,[1]戸籍からデータ貼り付け先!$A$2:$T$12093,14,FALSE) -> 4 | K17: =VLOOKUP(REPLACE($A$1,1,1,"")&I17,[1]戸籍からデータ貼り付け先!$A$2:$T$12093,16,FALSE) -> 4 | L17: 8
A18: 小計 | B18: =SUM(B3:B17) -> 32 | C18: =SUM(C3:C17) -> 20 | D18: =SUM(B18:C18) -> 52 | E18: 30 | F18: =VLOOKUP(REPLACE($A$1,1,1,"")&E18,[1]戸籍からデータ貼り付け先!$A$2:$T$12093,14,FALSE) -> 4 | G18: =VLOOKUP(REPLACE($A$1,1,1,"")&E18,[1]戸籍からデータ貼り付け先!$A$2:$T$12093,16,FALSE) -> 3 | H18: 7 | I18: 80 | J18: =VLOOKUP(REPLACE($A$1,1,1,"")&I18,[1]戸籍からデータ貼り付け先!$A$2:$T$12093,14,FALSE) -> 0 | K18: =VLOOKUP(REPLACE($A$1,1,1,"")&I18,[1]戸籍からデータ貼り付け先!$A$2:$T$12093,16,FALSE) -> 2 | L18: 2
E19: 31 | F19: =VLOOKUP(REPLACE($A$1,1,1,"")&E19,[1]戸籍からデータ貼り付け先!$A$2:$T$12093,14,FALSE) -> 1 | G19: =VLOOKUP(REPLACE($A$1,1,1,"")&E19,[1]戸籍からデータ貼り付け先!$A$2:$T$12093,16,FALSE) -> 5 | H19: 6 | I19: 81 | J19: =VLOOKUP(REPLACE($A$1,1,1,"")&I19,[1]戸籍からデータ貼り付け先!$A$2:$T$12093,14,FALSE) -> 2 | K19: =VLOOKUP(REPLACE($A$1,1,1,"")&I19,[1]戸籍からデータ貼り付け先!$A$2:$T$12093,16,FALSE) -> 6 | L19: 8
E20: 32 | F20: =VLOOKUP(REPLACE($A$1,1,1,"")&E20,[1]戸籍からデータ貼り付け先!$A$2:$T$12093,14,FALSE) -> 6 | G20: =VLOOKUP(REPLACE($A$1,1,1,"")&E20,[1]戸籍からデータ貼り付け先!$A$2:$T$12093,16,FALSE) -> 4 | H20: 10 | I20: 82 | J20: =VLOOKUP(REPLACE($A$1,1,1,"")&I20,[1]戸籍からデータ貼り付け先!$A$2:$T$12093,14,FALSE) -> 1 | K20: =VLOOKUP(REPLACE($A$1,1,1,"")&I20,[1]戸籍からデータ貼り付け先!$A$2:$T$12093,16,FALSE) -> 1 | L20: 2
E21: 33 | F21: =VLOOKUP(REPLACE($A$1,1,1,"")&E21,[1]戸籍からデータ貼り付け先!$A$2:$T$12093,14,FALSE) -> 2 | G21: =VLOOKUP(REPLACE($A$1,1,1,"")&E21,[1]戸籍からデータ貼り付け先!$A$2:$T$12093,16,FALSE) -> 2 | H21: 4 | I21: 83 | J21: =VLOOKUP(REPLACE($A$1,1,1,"")&I21,[1]戸籍からデータ貼り付け先!$A$2:$T$12093,14,FALSE) -> 3 | K21: =VLOOKUP(REPLACE($A$1,1,1,"")&I21,[1]戸籍からデータ貼り付け先!$A$2:$T$12093,16,FALSE) -> 3 | L21: 6
E22: 34 | F22: =VLOOKUP(REPLACE($A$1,1,1,"")&E22,[1]戸籍からデータ貼り付け先!$A$2:$T$12093,14,FALSE) -> 2 | G22: =VLOOKUP(REPLACE($A$1,1,1,"")&E22,[1]戸籍からデータ貼り付け先!$A$2:$T$12093,16,FALSE) -> 3 | H22: 5 | I22: 84 | J22: =VLOOKUP(REPLACE($A$1,1,1,"")&I22,[1]戸籍からデータ貼り付け先!$A$2:$T$12093,14,FALSE) -> 2 | K22: =VLOOKUP(REPLACE($A$1,1,1,"")&I22,[1]戸籍からデータ貼り付け先!$A$2:$T$12093,16,FALSE) -> 3 | L22: 5
E23: 35 | F23: =VLOOKUP(REPLACE($A$1,1,1,"")&E23,[1]戸籍からデータ貼り付け先!$A$2:$T$12093,14,FALSE) -> 2 | G23: =VLOOKUP(REPLACE($A$1,1,1,"")&E23,[1]戸籍からデータ貼り付け先!$A$2:$T$12093,16,FALSE) -> 4 | H23: 6 | I23: 85 | J23: =VLOOKUP(REPLACE($A$1,1,1,"")&I23,[1]戸籍からデータ貼り付け先!$A$2:$T$12093,14,FALSE) -> 1 | K23: =VLOOKUP(REPLACE($A$1,1,1,"")&I23,[1]戸籍からデータ貼り付け先!$A$2:$T$12093,16,FALSE) -> 4 | L23: 5
E24: 36 | F24: =VLOOKUP(REPLACE($A$1,1,1,"")&E24,[1]戸籍からデータ貼り付け先!$A$2:$T$12093,14,FALSE) -> 0 | G24: =VLOOKUP(REPLACE($A$1,1,1,"")&E24,[1]戸籍からデータ貼り付け先!$A$2:$T$12093,16,FALSE) -> 1 | H24: 1 | I24: 86 | J24: =VLOOKUP(REPLACE($A$1,1,1,"")&I24,[1]戸籍からデータ貼り付け先!$A$2:$T$12093,14,FALSE) -> 0 | K24: =VLOOKUP(REPLACE($A$1,1,1,"")&I24,[1]戸籍からデータ貼り付け先!$A$2:$T$12093,16,FALSE) -> 5 | L24: 5
E25: 37 | F25: =VLOOKUP(REPLACE($A$1,1,1,"")&E25,[1]戸籍からデータ貼り付け先!$A$2:$T$12093,14,FALSE) -> 2 | G25: =VLOOKUP(REPLACE($A$1,1,1,"")&E25,[1]戸籍からデータ貼り付け先!$A$2:$T$12093,16,FALSE) -> 4 | H25: 6 | I25: 87 | J25: =VLOOKUP(REPLACE($A$1,1,1,"")&I25,[1]戸籍からデータ貼り付け先!$A$2:$T$12093,14,FALSE) -> 3 | K25: =VLOOKUP(REPLACE($A$1,1,1,"")&I25,[1]戸籍からデータ貼り付け先!$A$2:$T$12093,16,FALSE) -> 3 | L25: 6
E26: 38 | F26: =VLOOKUP(REPLACE($A$1,1,1,"")&E26,[1]戸籍からデータ貼り付け先!$A$2:$T$12093,14,FALSE) -> 0 | G26: =VLOOKUP(REPLACE($A$1,1,1,"")&E26,[1]戸籍からデータ貼り付け先!$A$2:$T$12093,16,FALSE) -> 0 | H26: 0 | I26: 88 | J26: =VLOOKUP(REPLACE($A$1,1,1,"")&I26,[1]戸籍からデータ貼り付け先!$A$2:$T$12093,14,FALSE) -> 3 | K26: =VLOOKUP(REPLACE($A$1,1,1,"")&I26,[1]戸籍からデータ貼り付け先!$A$2:$T$12093,16,FALSE) -> 0 | L26: 3
E27: 39 | F27: =VLOOKUP(REPLACE($A$1,1,1,"")&E27,[1]戸籍からデータ貼り付け先!$A$2:$T$12093,14,FALSE) -> 2 | G27: =VLOOKUP(REPLACE($A$1,1,1,"")&E27,[1]戸籍からデータ貼り付け先!$A$2:$T$12093,16,FALSE) -> 2 | H27: 4 | I27: 89 | J27: =VLOOKUP(REPLACE($A$1,1,1,"")&I27,[1]戸籍からデータ貼り付け先!$A$2:$T$12093,14,FALSE) -> 1 | K27: =VLOOKUP(REPLACE($A$1,1,1,"")&I27,[1]戸籍からデータ貼り付け先!$A$2:$T$12093,16,FALSE) -> 2 | L27: 3
E28: 40 | F28: =VLOOKUP(REPLACE($A$1,1,1,"")&E28,[1]戸籍からデータ貼り付け先!$A$2:$T$12093,14,FALSE) -> 5 | G28: =VLOOKUP(REPLACE($A$1,1,1,"")&E28,[1]戸籍からデータ貼り付け先!$A$2:$T$12093,16,FALSE) -> 2 | H28: 7 | I28: 90 | J28: =VLOOKUP(REPLACE($A$1,1,1,"")&I28,[1]戸籍からデータ貼り付け先!$A$2:$T$12093,14,FALSE) -> 0 | K28: =VLOOKUP(REPLACE($A$1,1,1,"")&I28,[1]戸籍からデータ貼り付け先!$A$2:$T$12093,16,FALSE) -> 0 | L28: 0
E29: 41 | F29: =VLOOKUP(REPLACE($A$1,1,1,"")&E29,[1]戸籍からデータ貼り付け先!$A$2:$T$12093,14,FALSE) -> 3 | G29: =VLOOKUP(REPLACE($A$1,1,1,"")&E29,[1]戸籍からデータ貼り付け先!$A$2:$T$12093,16,FALSE) -> 1 | H29: 4 | I29: 91 | J29: =VLOOKUP(REPLACE($A$1,1,1,"")&I29,[1]戸籍からデータ貼り付け先!$A$2:$T$12093,14,FALSE) -> 2 | K29: =VLOOKUP(REPLACE($A$1,1,1,"")&I29,[1]戸籍からデータ貼り付け先!$A$2:$T$12093,16,FALSE) -> 1 | L29: 3
E30: 42 | F30: =VLOOKUP(REPLACE($A$1,1,1,"")&E30,[1]戸籍からデータ貼り付け先!$A$2:$T$12093,14,FALSE) -> 6 | G30: =VLOOKUP(REPLACE($A$1,1,1,"")&E30,[1]戸籍からデータ貼り付け先!$A$2:$T$12093,16,FALSE) -> 3 | H30: 9 | I30: 92 | J30: =VLOOKUP(REPLACE($A$1,1,1,"")&I30,[1]戸籍からデータ貼り付け先!$A$2:$T$12093,14,FALSE) -> 0 | K30: =VLOOKUP(REPLACE($A$1,1,1,"")&I30,[1]戸籍からデータ貼り付け先!$A$2:$T$12093,16,FALSE) -> 0 | L30: 0
E31: 43 | F31: =VLOOKUP(REPLACE($A$1,1,1,"")&E31,[1]戸籍からデータ貼り付け先!$A$2:$T$12093,14,FALSE) -> 3 | G31: =VLOOKUP(REPLACE($A$1,1,1,"")&E31,[1]戸籍からデータ貼り付け先!$A$2:$T$12093,16,FALSE) -> 5 | H31: 8 | I31: 93 | J31: =VLOOKUP(REPLACE($A$1,1,1,"")&I31,[1]戸籍からデータ貼り付け先!$A$2:$T$12093,14,FALSE) -> 0 | K31: =VLOOKUP(REPLACE($A$1,1,1,"")&I31,[1]戸籍からデータ貼り付け先!$A$2:$T$12093,16,FALSE) -> 2 | L31: 2
E32: 44 | F32: =VLOOKUP(REPLACE($A$1,1,1,"")&E32,[1]戸籍からデータ貼り付け先!$A$2:$T$12093,14,FALSE) -> 1 | G32: =VLOOKUP(REPLACE($A$1,1,1,"")&E32,[1]戸籍からデータ貼り付け先!$A$2:$T$12093,16,FALSE) -> 4 | H32: 5 | I32: 94 | J32: =VLOOKUP(REPLACE($A$1,1,1,"")&I32,[1]戸籍からデータ貼り付け先!$A$2:$T$12093,14,FALSE) -> 0 | K32: =VLOOKUP(REPLACE($A$1,1,1,"")&I32,[1]戸籍からデータ貼り付け先!$A$2:$T$12093,16,FALSE) -> 0 | L32: 0
E33: 45 | F33: =VLOOKUP(REPLACE($A$1,1,1,"")&E33,[1]戸籍からデータ貼り付け先!$A$2:$T$12093,14,FALSE) -> 4 | G33: =VLOOKUP(REPLACE($A$1,1,1,"")&E33,[1]戸籍からデータ貼り付け先!$A$2:$T$12093,16,FALSE) -> 1 | H33: 5 | I33: 95 | J33: =VLOOKUP(REPLACE($A$1,1,1,"")&I33,[1]戸籍からデータ貼り付け先!$A$2:$T$12093,14,FALSE) -> 0 | K33: =VLOOKUP(REPLACE($A$1,1,1,"")&I33,[1]戸籍からデータ貼り付け先!$A$2:$T$12093,16,FALSE) -> 0 | L33: 0
E34: 46 | F34: =VLOOKUP(REPLACE($A$1,1,1,"")&E34,[1]戸籍からデータ貼り付け先!$A$2:$T$12093,14,FALSE) -> 4 | G34: =VLOOKUP(REPLACE($A$1,1,1,"")&E34,[1]戸籍からデータ貼り付け先!$A$2:$T$12093,16,FALSE) -> 2 | H34: 6 | I34: 96 | J34: =VLOOKUP(REPLACE($A$1,1,1,"")&I34,[1]戸籍からデータ貼り付け先!$A$2:$T$12093,14,FALSE) -> 0 | K34: =VLOOKUP(REPLACE($A$1,1,1,"")&I34,[1]戸籍からデータ貼り付け先!$A$2:$T$12093,16,FALSE) -> 0 | L34: 0
E35: 47 | F35: =VLOOKUP(REPLACE($A$1,1,1,"")&E35,[1]戸籍からデータ貼り付け先!$A$2:$T$12093,14,FALSE) -> 5 | G35: =VLOOKUP(REPLACE($A$1,1,1,"")&E35,[1]戸籍からデータ貼り付け先!$A$2:$T$12093,16,FALSE) -> 2 | H35: 7 | I35: 97 | J35: =VLOOKUP(REPLACE($A$1,1,1,"")&I35,[1]戸籍からデータ貼り付け先!$A$2:$T$12093,14,FALSE) -> 0 | K35: =VLOOKUP(REPLACE($A$1,1,1,"")&I35,[1]戸籍からデータ貼り付け先!$A$2:$T$12093,16,FALSE) -> 0 | L35: 0
E36: 48 | F36: =VLOOKUP(REPLACE($A$1,1,1,"")&E36,[1]戸籍からデータ貼り付け先!$A$2:$T$12093,14,FALSE) -> 3 | G36: =VLOOKUP(REPLACE($A$1,1,1,"")&E36,[1]戸籍からデータ貼り付け先!$A$2:$T$12093,16,FALSE) -> 2 | H36: 5 | I36: 98 | J36: =VLOOKUP(REPLACE($A$1,1,1,"")&I36,[1]戸籍からデータ貼り付け先!$A$2:$T$12093,14,FALSE) -> 0 | K36: =VLOOKUP(REPLACE($A$1,1,1,"")&I36,[1]戸籍からデータ貼り付け先!$A$2:$T$12093,16,FALSE) -> 0 | L36: 0
E37: 49 | F37: =VLOOKUP(REPLACE($A$1,1,1,"")&E37,[1]戸籍からデータ貼り付け先!$A$2:$T$12093,14,FALSE) -> 2 | G37: =VLOOKUP(REPLACE($A$1,1,1,"")&E37,[1]戸籍からデータ貼り付け先!$A$2:$T$12093,16,FALSE) -> 7 | H37: 9 | I37: 99 | J37: =VLOOKUP(REPLACE($A$1,1,1,"")&I37,[1]戸籍からデータ貼り付け先!$A$2:$T$12093,14,FALSE) -> 0 | K37: =VLOOKUP(REPLACE($A$1,1,1,"")&I37,[1]戸籍からデータ貼り付け先!$A$2:$T$12093,16,FALSE) -> 1 | L37: 1
E38: 50 | F38: =VLOOKUP(REPLACE($A$1,1,1,"")&E38,[1]戸籍からデータ貼り付け先!$A$2:$T$12093,14,FALSE) -> 3 | G38: =VLOOKUP(REPLACE($A$1,1,1,"")&E38,[1]戸籍からデータ貼り付け先!$A$2:$T$12093,16,FALSE) -> 1 | H38: 4 | I38: 100 | J38: =VLOOKUP(REPLACE($A$1,1,1,"")&I38,[1]戸籍からデータ貼り付け先!$A$2:$T$12093,14,FALSE) -> 0 | K38: =VLOOKUP(REPLACE($A$1,1,1,"")&I38,[1]戸籍からデータ貼り付け先!$A$2:$T$12093,16,FALSE) -> 0 | L38: 0
E39: 51 | F39: =VLOOKUP(REPLACE($A$1,1,1,"")&E39,[1]戸籍からデータ貼り付け先!$A$2:$T$12093,14,FALSE) -> 4 | G39: =VLOOKUP(REPLACE($A$1,1,1,"")&E39,[1]戸籍からデータ貼り付け先!$A$2:$T$12093,16,FALSE) -> 4 | H39: 8 | I39: 101 | J39: =VLOOKUP(REPLACE($A$1,1,1,"")&I39,[1]戸籍からデータ貼り付け先!$A$2:$T$12093,14,FALSE) -> 0 | K39: =VLOOKUP(REPLACE($A$1,1,1,"")&I39,[1]戸籍からデータ貼り付け先!$A$2:$T$12093,16,FALSE) -> 0 | L39: 0
E40: 52 | F40: =VLOOKUP(REPLACE($A$1,1,1,"")&E40,[1]戸籍からデータ貼り付け先!$A$2:$T$12093,14,FALSE) -> 5 | G40: =VLOOKUP(REPLACE($A$1,1,1,"")&E40,[1]戸籍からデータ貼り付け先!$A$2:$T$12093,16,FALSE) -> 6 | H40: 11 | I40: 102 | J40: =VLOOKUP(REPLACE($A$1,1,1,"")&I40,[1]戸籍からデータ貼り付け先!$A$2:$T$12093,14,FALSE) -> 0 | K40: =VLOOKUP(REPLACE($A$1,1,1,"")&I40,[1]戸籍からデータ貼り付け先!$A$2:$T$12093,16,FALSE) -> 0 | L40: 0
E41: 53 | F41: =VLOOKUP(REPLACE($A$1,1,1,"")&E41,[1]戸籍からデータ貼り付け先!$A$2:$T$12093,14,FALSE) -> 4 | G41: =VLOOKUP(REPLACE($A$1,1,1,"")&E41,[1]戸籍からデータ貼り付け先!$A$2:$T$12093,16,FALSE) -> 3 | H41: 7 | I41: 103 | J41: =VLOOKUP(REPLACE($A$1,1,1,"")&I41,[1]戸籍からデータ貼り付け先!$A$2:$T$12093,14,FALSE) -> 0 | K41: =VLOOKUP(REPLACE($A$1,1,1,"")&I41,[1]戸籍からデータ貼り付け先!$A$2:$T$12093,16,FALSE) -> 0 | L41: 0
E42: 54 | F42: =VLOOKUP(REPLACE($A$1,1,1,"")&E42,[1]戸籍からデータ貼り付け先!$A$2:$T$12093,14,FALSE) -> 3 | G42: =VLOOKUP(REPLACE($A$1,1,1,"")&E42,[1]戸籍からデータ貼り付け先!$A$2:$T$12093,16,FALSE) -> 0 | H42: 3 | I42: 104 | J42: =VLOOKUP(REPLACE($A$1,1,1,"")&I42,[1]戸籍からデータ貼り付け先!$A$2:$T$12093,14,FALSE) -> 0 | K42: =VLOOKUP(REPLACE($A$1,1,1,"")&I42,[1]戸籍からデータ貼り付け先!$A$2:$T$12093,16,FALSE) -> 0 | L42: 0
E43: 55 | F43: =VLOOKUP(REPLACE($A$1,1,1,"")&E43,[1]戸籍からデータ貼り付け先!$A$2:$T$12093,14,FALSE) -> 6 | G43: =VLOOKUP(REPLACE($A$1,1,1,"")&E43,[1]戸籍からデータ貼り付け先!$A$2:$T$12093,16,FALSE) -> 3 | H43: 9 | I43: 105 | J43: =VLOOKUP(REPLACE($A$1,1,1,"")&I43,[1]戸籍からデータ貼り付け先!$A$2:$T$12093,14,FALSE) -> 0 | K43: =VLOOKUP(REPLACE($A$1,1,1,"")&I43,[1]戸籍からデータ貼り付け先!$A$2:$T$12093,16,FALSE) -> 0 | L43: 0
E44: 56 | F44: =VLOOKUP(REPLACE($A$1,1,1,"")&E44,[1]戸籍からデータ貼り付け先!$A$2:$T$12093,14,FALSE) -> 5 | G44: =VLOOKUP(REPLACE($A$1,1,1,"")&E44,[1]戸籍からデータ貼り付け先!$A$2:$T$12093,16,FALSE) -> 2 | H44: 7 | I44: 106 | J44: =VLOOKUP(REPLACE($A$1,1,1,"")&I44,[1]戸籍からデータ貼り付け先!$A$2:$T$12093,14,FALSE) -> 0 | K44: =VLOOKUP(REPLACE($A$1,1,1,"")&I44,[1]戸籍からデータ貼り付け先!$A$2:$T$12093,16,FALSE) -> 0 | L44: 0
E45: 57 | F45: =VLOOKUP(REPLACE($A$1,1,1,"")&E45,[1]戸籍からデータ貼り付け先!$A$2:$T$12093,14,FALSE) -> 4 | G45: =VLOOKUP(REPLACE($A$1,1,1,"")&E45,[1]戸籍からデータ貼り付け先!$A$2:$T$12093,16,FALSE) -> 5 | H45: 9 | I45: 107 | J45: =VLOOKUP(REPLACE($A$1,1,1,"")&I45,[1]戸籍からデータ貼り付け先!$A$2:$T$12093,14,FALSE) -> 0 | K45: =VLOOKUP(REPLACE($A$1,1,1,"")&I45,[1]戸籍からデータ貼り付け先!$A$2:$T$12093,16,FALSE) -> 0 | L45: 0
E46: 58 | F46: =VLOOKUP(REPLACE($A$1,1,1,"")&E46,[1]戸籍からデータ貼り付け先!$A$2:$T$12093,14,FALSE) -> 4 | G46: =VLOOKUP(REPLACE($A$1,1,1,"")&E46,[1]戸籍からデータ貼り付け先!$A$2:$T$12093,16,FALSE) -> 7 | H46: 11 | I46: 108 | J46: =VLOOKUP(REPLACE($A$1,1,1,"")&I46,[1]戸籍からデータ貼り付け先!$A$2:$T$12093,14,FALSE) -> 0 | K46: =VLOOKUP(REPLACE($A$1,1,1,"")&I46,[1]戸籍からデータ貼り付け先!$A$2:$T$12093,16,FALSE) -> 0 | L46: 0
E47: 59 | F47: =VLOOKUP(REPLACE($A$1,1,1,"")&E47,[1]戸籍からデータ貼り付け先!$A$2:$T$12093,14,FALSE) -> 3 | G47: =VLOOKUP(REPLACE($A$1,1,1,"")&E47,[1]戸籍からデータ貼り付け先!$A$2:$T$12093,16,FALSE) -> 4 | H47: 7 | I47: 小計 | J47: =SUM(J3:J46) -> 55 | K47: =SUM(K3:K46) -> 75 | L47: =SUM(J47:K47) -> 130
E48: 60 | F48: =VLOOKUP(REPLACE($A$1,1,1,"")&E48,[1]戸籍からデータ貼り付け先!$A$2:$T$12093,14,FALSE) -> 3 | G48: =VLOOKUP(REPLACE($A$1,1,1,"")&E48,[1]戸籍からデータ貼り付け先!$A$2:$T$12093,16,FALSE) -> 5 | H48: 8
E49: 61 | F49: =VLOOKUP(REPLACE($A$1,1,1,"")&E49,[1]戸籍からデータ貼り付け先!$A$2:$T$12093,14,FALSE) -> 4 | G49: =VLOOKUP(REPLACE($A$1,1,1,"")&E49,[1]戸籍からデータ貼り付け先!$A$2:$T$12093,16,FALSE) -> 4 | H49: 8 | J49: =REPLACE(A1,1,1,"")&"合計" -> 曽屋１丁目合計
E50: 62 | F50: =VLOOKUP(REPLACE($A$1,1,1,"")&E50,[1]戸籍からデータ貼り付け先!$A$2:$T$12093,14,FALSE) -> 5 | G50: =VLOOKUP(REPLACE($A$1,1,1,"")&E50,[1]戸籍からデータ貼り付け先!$A$2:$T$12093,16,FALSE) -> 2 | H50: 7 | J50: 男 | K50: 女 | L50: 計
E51: 63 | F51: =VLOOKUP(REPLACE($A$1,1,1,"")&E51,[1]戸籍からデータ貼り付け先!$A$2:$T$12093,14,FALSE) -> 9 | G51: =VLOOKUP(REPLACE($A$1,1,1,"")&E51,[1]戸籍からデータ貼り付け先!$A$2:$T$12093,16,FALSE) -> 3 | H51: 12 | J51: =SUM(B18,F53,J47) -> 237 | K51: =SUM(C18,G53,K47) -> 237 | L51: =SUM(J51:K51) -> 474
E52: 64 | F52: =VLOOKUP(REPLACE($A$1,1,1,"")&E52,[1]戸籍からデータ貼り付け先!$A$2:$T$12093,14,FALSE) -> 3 | G52: =VLOOKUP(REPLACE($A$1,1,1,"")&E52,[1]戸籍からデータ貼り付け先!$A$2:$T$12093,16,FALSE) -> 3 | H52: 6
E53: 小計 | F53: =SUM(F3:F52) -> 150 | G53: =SUM(G3:G52) -> 142 | H53: =SUM(F53:G53) -> 292
F56: -10-

Sheet 曽屋二丁目
A1: ◆曽屋２丁目 | H1: =秦野市合計!H1 -> 令和7年10月1日現在（単位：人）
A2: 年少人口(0歳～14歳) | B2: 男 | C2: 女 | D2: 計 | E2: 生産年齢人口(15歳～64歳) | F2: 男 | G2: 女 | H2: 計 | I2: 老年人口(65歳以上) | J2: 男 | K2: 女 | L2: 計
A3: 0 | B3: =VLOOKUP(REPLACE($A$1,1,1,"")&A3,[1]戸籍からデータ貼り付け先!$A$2:$T$12093,14,FALSE) -> 0 | C3: =VLOOKUP(REPLACE($A$1,1,1,"")&A3,[1]戸籍からデータ貼り付け先!$A$2:$T$12093,16,FALSE) -> 0 | D3: =SUM(B3:C3) -> 0 | E3: 15 | F3: =VLOOKUP(REPLACE($A$1,1,1,"")&E3,[1]戸籍からデータ貼り付け先!$A$2:$T$12093,14,FALSE) -> 1 | G3: =VLOOKUP(REPLACE($A$1,1,1,"")&E3,[1]戸籍からデータ貼り付け先!$A$2:$T$12093,16,FALSE) -> 4 | H3: =SUM(F3:G3) -> 5 | I3: 65 | J3: =VLOOKUP(REPLACE($A$1,1,1,"")&I3,[1]戸籍からデータ貼り付け先!$A$2:$T$12093,14,FALSE) -> 3 | K3: =VLOOKUP(REPLACE($A$1,1,1,"")&I3,[1]戸籍からデータ貼り付け先!$A$2:$T$12093,16,FALSE) -> 3 | L3: =SUM(J3:K3) -> 6
A4: 1 | B4: =VLOOKUP(REPLACE($A$1,1,1,"")&A4,[1]戸籍からデータ貼り付け先!$A$2:$T$12093,14,FALSE) -> 1 | C4: =VLOOKUP(REPLACE($A$1,1,1,"")&A4,[1]戸籍からデータ貼り付け先!$A$2:$T$12093,16,FALSE) -> 0 | D4: =SUM(B4:C4) -> 1 | E4: 16 | F4: =VLOOKUP(REPLACE($A$1,1,1,"")&E4,[1]戸籍からデータ貼り付け先!$A$2:$T$12093,14,FALSE) -> 4 | G4: =VLOOKUP(REPLACE($A$1,1,1,"")&E4,[1]戸籍からデータ貼り付け先!$A$2:$T$12093,16,FALSE) -> 4 | H4: =SUM(F4:G4) -> 8 | I4: 66 | J4: =VLOOKUP(REPLACE($A$1,1,1,"")&I4,[1]戸籍からデータ貼り付け先!$A$2:$T$12093,14,FALSE) -> 5 | K4: =VLOOKUP(REPLACE($A$1,1,1,"")&I4,[1]戸籍からデータ貼り付け先!$A$2:$T$12093,16,FALSE) -> 4 | L4: =SUM(J4:K4) -> 9
A5: 2 | B5: =VLOOKUP(REPLACE($A$1,1,1,"")&A5,[1]戸籍からデータ貼り付け先!$A$2:$T$12093,14,FALSE) -> 2 | C5: =VLOOKUP(REPLACE($A$1,1,1,"")&A5,[1]戸籍からデータ貼り付け先!$A$2:$T$12093,16,FALSE) -> 1 | D5: 3 | E5: 17 | F5: =VLOOKUP(REPLACE($A$1,1,1,"")&E5,[1]戸籍からデータ貼り付け先!$A$2:$T$12093,14,FALSE) -> 2 | G5: =VLOOKUP(REPLACE($A$1,1,1,"")&E5,[1]戸籍からデータ貼り付け先!$A$2:$T$12093,16,FALSE) -> 1 | H5: 3 | I5: 67 | J5: =VLOOKUP(REPLACE($A$1,1,1,"")&I5,[1]戸籍からデータ貼り付け先!$A$2:$T$12093,14,FALSE) -> 7 | K5: =VLOOKUP(REPLACE($A$1,1,1,"")&I5,[1]戸籍からデータ貼り付け先!$A$2:$T$12093,16,FALSE) -> 5 | L5: 12
A6: 3 | B6: =VLOOKUP(REPLACE($A$1,1,1,"")&A6,[1]戸籍からデータ貼り付け先!$A$2:$T$12093,14,FALSE) -> 3 | C6: =VLOOKUP(REPLACE($A$1,1,1,"")&A6,[1]戸籍からデータ貼り付け先!$A$2:$T$12093,16,FALSE) -> 2 | D6: 5 | E6: 18 | F6: =VLOOKUP(REPLACE($A$1,1,1,"")&E6,[1]戸籍からデータ貼り付け先!$A$2:$T$12093,14,FALSE) -> 6 | G6: =VLOOKUP(REPLACE($A$1,1,1,"")&E6,[1]戸籍からデータ貼り付け先!$A$2:$T$12093,16,FALSE) -> 5 | H6: 11 | I6: 68 | J6: =VLOOKUP(REPLACE($A$1,1,1,"")&I6,[1]戸籍からデータ貼り付け先!$A$2:$T$12093,14,FALSE) -> 1 | K6: =VLOOKUP(REPLACE($A$1,1,1,"")&I6,[1]戸籍からデータ貼り付け先!$A$2:$T$12093,16,FALSE) -> 4 | L6: 5
A7: 4 | B7: =VLOOKUP(REPLACE($A$1,1,1,"")&A7,[1]戸籍からデータ貼り付け先!$A$2:$T$12093,14,FALSE) -> 2 | C7: =VLOOKUP(REPLACE($A$1,1,1,"")&A7,[1]戸籍からデータ貼り付け先!$A$2:$T$12093,16,FALSE) -> 0 | D7: 2 | E7: 19 | F7: =VLOOKUP(REPLACE($A$1,1,1,"")&E7,[1]戸籍からデータ貼り付け先!$A$2:$T$12093,14,FALSE) -> 4 | G7: =VLOOKUP(REPLACE($A$1,1,1,"")&E7,[1]戸籍からデータ貼り付け先!$A$2:$T$12093,16,FALSE) -> 3 | H7: 7 | I7: 69 | J7: =VLOOKUP(REPLACE($A$1,1,1,"")&I7,[1]戸籍からデータ貼り付け先!$A$2:$T$12093,14,FALSE) -> 3 | K7: =VLOOKUP(REPLACE($A$1,1,1,"")&I7,[1]戸籍からデータ貼り付け先!$A$2:$T$12093,16,FALSE) -> 5 | L7: 8
A8: 5 | B8: =VLOOKUP(REPLACE($A$1,1,1,"")&A8,[1]戸籍からデータ貼り付け先!$A$2:$T$12093,14,FALSE) -> 1 | C8: =VLOOKUP(REPLACE($A$1,1,1,"")&A8,[1]戸籍からデータ貼り付け先!$A$2:$T$12093,16,FALSE) -> 1 | D8: 2 | E8: 20 | F8: =VLOOKUP(REPLACE($A$1,1,1,"")&E8,[1]戸籍からデータ貼り付け先!$A$2:$T$12093,14,FALSE) -> 3 | G8: =VLOOKUP(REPLACE($A$1,1,1,"")&E8,[1]戸籍からデータ貼り付け先!$A$2:$T$12093,16,FALSE) -> 8 | H8: 11 | I8: 70 | J8: =VLOOKUP(REPLACE($A$1,1,1,"")&I8,[1]戸籍からデータ貼り付け先!$A$2:$T$12093,14,FALSE) -> 0 | K8: =VLOOKUP(REPLACE($A$1,1,1,"")&I8,[1]戸籍からデータ貼り付け先!$A$2:$T$12093,16,FALSE) -> 7 | L8: 7
A9: 6 | B9: =VLOOKUP(REPLACE($A$1,1,1,"")&A9,[1]戸籍からデータ貼り付け先!$A$2:$T$12093,14,FALSE) -> 2 | C9: =VLOOKUP(REPLACE($A$1,1,1,"")&A9,[1]戸籍からデータ貼り付け先!$A$2:$T$12093,16,FALSE) -> 1 | D9: 3 | E9: 21 | F9: =VLOOKUP(REPLACE($A$1,1,1,"")&E9,[1]戸籍からデータ貼り付け先!$A$2:$T$12093,14,FALSE) -> 1 | G9: =VLOOKUP(REPLACE($A$1,1,1,"")&E9,[1]戸籍からデータ貼り付け先!$A$2:$T$12093,16,FALSE) -> 3 | H9: 4 | I9: 71 | J9: =VLOOKUP(REPLACE($A$1,1,1,"")&I9,[1]戸籍からデータ貼り付け先!$A$2:$T$12093,14,FALSE) -> 3 | K9: =VLOOKUP(REPLACE($A$1,1,1,"")&I9,[1]戸籍からデータ貼り付け先!$A$2:$T$12093,16,FALSE) -> 1 | L9: 4
A10: 7 | B10: =VLOOKUP(REPLACE($A$1,1,1,"")&A10,[1]戸籍からデータ貼り付け先!$A$2:$T$12093,14,FALSE) -> 2 | C10: =VLOOKUP(REPLACE($A$1,1,1,"")&A10,[1]戸籍からデータ貼り付け先!$A$2:$T$12093,16,FALSE) -> 2 | D10: 4 | E10: 22 | F10: =VLOOKUP(REPLACE($A$1,1,1,"")&E10,[1]戸籍からデータ貼り付け先!$A$2:$T$12093,14,FALSE) -> 2 | G10: =VLOOKUP(REPLACE($A$1,1,1,"")&E10,[1]戸籍からデータ貼り付け先!$A$2:$T$12093,16,FALSE) -> 2 | H10: 4 | I10: 72 | J10: =VLOOKUP(REPLACE($A$1,1,1,"")&I10,[1]戸籍からデータ貼り付け先!$A$2:$T$12093,14,FALSE) -> 8 | K10: =VLOOKUP(REPLACE($A$1,1,1,"")&I10,[1]戸籍からデータ貼り付け先!$A$2:$T$12093,16,FALSE) -> 6 | L10: 14
A11: 8 | B11: =VLOOKUP(REPLACE($A$1,1,1,"")&A11,[1]戸籍からデータ貼り付け先!$A$2:$T$12093,14,FALSE) -> 0 | C11: =VLOOKUP(REPLACE($A$1,1,1,"")&A11,[1]戸籍からデータ貼り付け先!$A$2:$T$12093,16,FALSE) -> 3 | D11: 3 | E11: 23 | F11: =VLOOKUP(REPLACE($A$1,1,1,"")&E11,[1]戸籍からデータ貼り付け先!$A$2:$T$12093,14,FALSE) -> 4 | G11: =VLOOKUP(REPLACE($A$1,1,1,"")&E11,[1]戸籍からデータ貼り付け先!$A$2:$T$12093,16,FALSE) -> 1 | H11: 5 | I11: 73 | J11: =VLOOKUP(REPLACE($A$1,1,1,"")&I11,[1]戸籍からデータ貼り付け先!$A$2:$T$12093,14,FALSE) -> 1 | K11: =VLOOKUP(REPLACE($A$1,1,1,"")&I11,[1]戸籍からデータ貼り付け先!$A$2:$T$12093,16,FALSE) -> 11 | L11: 12
A12: 9 | B12: =VLOOKUP(REPLACE($A$1,1,1,"")&A12,[1]戸籍からデータ貼り付け先!$A$2:$T$12093,14,FALSE) -> 4 | C12: =VLOOKUP(REPLACE($A$1,1,1,"")&A12,[1]戸籍からデータ貼り付け先!$A$2:$T$12093,16,FALSE) -> 3 | D12: 7 | E12: 24 | F12: =VLOOKUP(REPLACE($A$1,1,1,"")&E12,[1]戸籍からデータ貼り付け先!$A$2:$T$12093,14,FALSE) -> 5 | G12: =VLOOKUP(REPLACE($A$1,1,1,"")&E12,[1]戸籍からデータ貼り付け先!$A$2:$T$12093,16,FALSE) -> 1 | H12: 6 | I12: 74 | J12: =VLOOKUP(REPLACE($A$1,1,1,"")&I12,[1]戸籍からデータ貼り付け先!$A$2:$T$12093,14,FALSE) -> 4 | K12: =VLOOKUP(REPLACE($A$1,1,1,"")&I12,[1]戸籍からデータ貼り付け先!$A$2:$T$12093,16,FALSE) -> 14 | L12: 18
A13: 10 | B13: =VLOOKUP(REPLACE($A$1,1,1,"")&A13,[1]戸籍からデータ貼り付け先!$A$2:$T$12093,14,FALSE) -> 1 | C13: =VLOOKUP(REPLACE($A$1,1,1,"")&A13,[1]戸籍からデータ貼り付け先!$A$2:$T$12093,16,FALSE) -> 1 | D13: 2 | E13: 25 | F13: =VLOOKUP(REPLACE($A$1,1,1,"")&E13,[1]戸籍からデータ貼り付け先!$A$2:$T$12093,14,FALSE) -> 3 | G13: =VLOOKUP(REPLACE($A$1,1,1,"")&E13,[1]戸籍からデータ貼り付け先!$A$2:$T$12093,16,FALSE) -> 3 | H13: 6 | I13: 75 | J13: =VLOOKUP(REPLACE($A$1,1,1,"")&I13,[1]戸籍からデータ貼り付け先!$A$2:$T$12093,14,FALSE) -> 10 | K13: =VLOOKUP(REPLACE($A$1,1,1,"")&I13,[1]戸籍からデータ貼り付け先!$A$2:$T$12093,16,FALSE) -> 7 | L13: 17
A14: 11 | B14: =VLOOKUP(REPLACE($A$1,1,1,"")&A14,[1]戸籍からデータ貼り付け先!$A$2:$T$12093,14,FALSE) -> 2 | C14: =VLOOKUP(REPLACE($A$1,1,1,"")&A14,[1]戸籍からデータ貼り付け先!$A$2:$T$12093,16,FALSE) -> 2 | D14: 4 | E14: 26 | F14: =VLOOKUP(REPLACE($A$1,1,1,"")&E14,[1]戸籍からデータ貼り付け先!$A$2:$T$12093,14,FALSE) -> 2 | G14: =VLOOKUP(REPLACE($A$1,1,1,"")&E14,[1]戸籍からデータ貼り付け先!$A$2:$T$12093,16,FALSE) -> 2 | H14: 4 | I14: 76 | J14: =VLOOKUP(REPLACE($A$1,1,1,"")&I14,[1]戸籍からデータ貼り付け先!$A$2:$T$12093,14,FALSE) -> 12 | K14: =VLOOKUP(REPLACE($A$1,1,1,"")&I14,[1]戸籍からデータ貼り付け先!$A$2:$T$12093,16,FALSE) -> 7 | L14: 19
A15: 12 | B15: =VLOOKUP(REPLACE($A$1,1,1,"")&A15,[1]戸籍からデータ貼り付け先!$A$2:$T$12093,14,FALSE) -> 3 | C15: =VLOOKUP(REPLACE($A$1,1,1,"")&A15,[1]戸籍からデータ貼り付け先!$A$2:$T$12093,16,FALSE) -> 1 | D15: 4 | E15: 27 | F15: =VLOOKUP(REPLACE($A$1,1,1,"")&E15,[1]戸籍からデータ貼り付け先!$A$2:$T$12093,14,FALSE) -> 3 | G15: =VLOOKUP(REPLACE($A$1,1,1,"")&E15,[1]戸籍からデータ貼り付け先!$A$2:$T$12093,16,FALSE) -> 0 | H15: 3 | I15: 77 | J15: =VLOOKUP(REPLACE($A$1,1,1,"")&I15,[1]戸籍からデータ貼り付け先!$A$2:$T$12093,14,FALSE) -> 5 | K15: =VLOOKUP(REPLACE($A$1,1,1,"")&I15,[1]戸籍からデータ貼り付け先!$A$2:$T$12093,16,FALSE) -> 6 | L15: 11
A16: 13 | B16: =VLOOKUP(REPLACE($A$1,1,1,"")&A16,[1]戸籍からデータ貼り付け先!$A$2:$T$12093,14,FALSE) -> 4 | C16: =VLOOKUP(REPLACE($A$1,1,1,"")&A16,[1]戸籍からデータ貼り付け先!$A$2:$T$12093,16,FALSE) -> 2 | D16: 6 | E16: 28 | F16: =VLOOKUP(REPLACE($A$1,1,1,"")&E16,[1]戸籍からデータ貼り付け先!$A$2:$T$12093,14,FALSE) -> 3 | G16: =VLOOKUP(REPLACE($A$1,1,1,"")&E16,[1]戸籍からデータ貼り付け先!$A$2:$T$12093,16,FALSE) -> 2 | H16: 5 | I16: 78 | J16: =VLOOKUP(REPLACE($A$1,1,1,"")&I16,[1]戸籍からデータ貼り付け先!$A$2:$T$12093,14,FALSE) -> 7 | K16: =VLOOKUP(REPLACE($A$1,1,1,"")&I16,[1]戸籍からデータ貼り付け先!$A$2:$T$12093,16,FALSE) -> 10 | L16: 17
A17: 14 | B17: =VLOOKUP(REPLACE($A$1,1,1,"")&A17,[1]戸籍からデータ貼り付け先!$A$2:$T$12093,14,FALSE) -> 2 | C17: =VLOOKUP(REPLACE($A$1,1,1,"")&A17,[1]戸籍からデータ貼り付け先!$A$2:$T$12093,16,FALSE) -> 1 | D17: 3 | E17: 29 | F17: =VLOOKUP(REPLACE($A$1,1,1,"")&E17,[1]戸籍からデータ貼り付け先!$A$2:$T$12093,14,FALSE) -> 2 | G17: =VLOOKUP(REPLACE($A$1,1,1,"")&E17,[1]戸籍からデータ貼り付け先!$A$2:$T$12093,16,FALSE) -> 1 | H17: 3 | I17: 79 | J17: =VLOOKUP(REPLACE($A$1,1,1,"")&I17,[1]戸籍からデータ貼り付け先!$A$2:$T$12093,14,FALSE) -> 6 | K17: =VLOOKUP(REPLACE($A$1,1,1,"")&I17,[1]戸籍からデータ貼り付け先!$A$2:$T$12093,16,FALSE) -> 3 | L17: 9
A18: 小計 | B18: =SUM(B3:B17) -> 29 | C18: =SUM(C3:C17) -> 20 | D18: =SUM(B18:C18) -> 49 | E18: 30 | F18: =VLOOKUP(REPLACE($A$1,1,1,"")&E18,[1]戸籍からデータ貼り付け先!$A$2:$T$12093,14,FALSE) -> 2 | G18: =VLOOKUP(REPLACE($A$1,1,1,"")&E18,[1]戸籍からデータ貼り付け先!$A$2:$T$12093,16,FALSE) -> 2 | H18: 4 | I18: 80 | J18: =VLOOKUP(REPLACE($A$1,1,1,"")&I18,[1]戸籍からデータ貼り付け先!$A$2:$T$12093,14,FALSE) -> 5 | K18: =VLOOKUP(REPLACE($A$1,1,1,"")&I18,[1]戸籍からデータ貼り付け先!$A$2:$T$12093,16,FALSE) -> 3 | L18: 8
E19: 31 | F19: =VLOOKUP(REPLACE($A$1,1,1,"")&E19,[1]戸籍からデータ貼り付け先!$A$2:$T$12093,14,FALSE) -> 0 | G19: =VLOOKUP(REPLACE($A$1,1,1,"")&E19,[1]戸籍からデータ貼り付け先!$A$2:$T$12093,16,FALSE) -> 3 | H19: 3 | I19: 81 | J19: =VLOOKUP(REPLACE($A$1,1,1,"")&I19,[1]戸籍からデータ貼り付け先!$A$2:$T$12093,14,FALSE) -> 4 | K19: =VLOOKUP(REPLACE($A$1,1,1,"")&I19,[1]戸籍からデータ貼り付け先!$A$2:$T$12093,16,FALSE) -> 6 | L19: 10
E20: 32 | F20: =VLOOKUP(REPLACE($A$1,1,1,"")&E20,[1]戸籍からデータ貼り付け先!$A$2:$T$12093,14,FALSE) -> 4 | G20: =VLOOKUP(REPLACE($A$1,1,1,"")&E20,[1]戸籍からデータ貼り付け先!$A$2:$T$12093,16,FALSE) -> 6 | H20: 10 | I20: 82 | J20: =VLOOKUP(REPLACE($A$1,1,1,"")&I20,[1]戸籍からデータ貼り付け先!$A$2:$T$12093,14,FALSE) -> 6 | K20: =VLOOKUP(REPLACE($A$1,1,1,"")&I20,[1]戸籍からデータ貼り付け先!$A$2:$T$12093,16,FALSE) -> 4 | L20: 10
E21: 33 | F21: =VLOOKUP(REPLACE($A$1,1,1,"")&E21,[1]戸籍からデータ貼り付け先!$A$2:$T$12093,14,FALSE) -> 2 | G21: =VLOOKUP(REPLACE($A$1,1,1,"")&E21,[1]戸籍からデータ貼り付け先!$A$2:$T$12093,16,FALSE) -> 4 | H21: 6 | I21: 83 | J21: =VLOOKUP(REPLACE($A$1,1,1,"")&I21,[1]戸籍からデータ貼り付け先!$A$2:$T$12093,14,FALSE) -> 3 | K21: =VLOOKUP(REPLACE($A$1,1,1,"")&I21,[1]戸籍からデータ貼り付け先!$A$2:$T$12093,16,FALSE) -> 6 | L21: 9
E22: 34 | F22: =VLOOKUP(REPLACE($A$1,1,1,"")&E22,[1]戸籍からデータ貼り付け先!$A$2:$T$12093,14,FALSE) -> 1 | G22: =VLOOKUP(REPLACE($A$1,1,1,"")&E22,[1]戸籍からデータ貼り付け先!$A$2:$T$12093,16,FALSE) -> 1 | H22: 2 | I22: 84 | J22: =VLOOKUP(REPLACE($A$1,1,1,"")&I22,[1]戸籍からデータ貼り付け先!$A$2:$T$12093,14,FALSE) -> 5 | K22: =VLOOKUP(REPLACE($A$1,1,1,"")&I22,[1]戸籍からデータ貼り付け先!$A$2:$T$12093,16,FALSE) -> 3 | L22: 8
E23: 35 | F23: =VLOOKUP(REPLACE($A$1,1,1,"")&E23,[1]戸籍からデータ貼り付け先!$A$2:$T$12093,14,FALSE) -> 4 | G23: =VLOOKUP(REPLACE($A$1,1,1,"")&E23,[1]戸籍からデータ貼り付け先!$A$2:$T$12093,16,FALSE) -> 1 | H23: 5 | I23: 85 | J23: =VLOOKUP(REPLACE($A$1,1,1,"")&I23,[1]戸籍からデータ貼り付け先!$A$2:$T$12093,14,FALSE) -> 1 | K23: =VLOOKUP(REPLACE($A$1,1,1,"")&I23,[1]戸籍からデータ貼り付け先!$A$2:$T$12093,16,FALSE) -> 2 | L23: 3
E24: 36 | F24: =VLOOKUP(REPLACE($A$1,1,1,"")&E24,[1]戸籍からデータ貼り付け先!$A$2:$T$12093,14,FALSE) -> 5 | G24: =VLOOKUP(REPLACE($A$1,1,1,"")&E24,[1]戸籍からデータ貼り付け先!$A$2:$T$12093,16,FALSE) -> 4 | H24: 9 | I24: 86 | J24: =VLOOKUP(REPLACE($A$1,1,1,"")&I24,[1]戸籍からデータ貼り付け先!$A$2:$T$12093,14,FALSE) -> 2 | K24: =VLOOKUP(REPLACE($A$1,1,1,"")&I24,[1]戸籍からデータ貼り付け先!$A$2:$T$12093,16,FALSE) -> 1 | L24: 3
E25: 37 | F25: =VLOOKUP(REPLACE($A$1,1,1,"")&E25,[1]戸籍からデータ貼り付け先!$A$2:$T$12093,14,FALSE) -> 0 | G25: =VLOOKUP(REPLACE($A$1,1,1,"")&E25,[1]戸籍からデータ貼り付け先!$A$2:$T$12093,16,FALSE) -> 3 | H25: 3 | I25: 87 | J25: =VLOOKUP(REPLACE($A$1,1,1,"")&I25,[1]戸籍からデータ貼り付け先!$A$2:$T$12093,14,FALSE) -> 0 | K25: =VLOOKUP(REPLACE($A$1,1,1,"")&I25,[1]戸籍からデータ貼り付け先!$A$2:$T$12093,16,FALSE) -> 1 | L25: 1
E26: 38 | F26: =VLOOKUP(REPLACE($A$1,1,1,"")&E26,[1]戸籍からデータ貼り付け先!$A$2:$T$12093,14,FALSE) -> 7 | G26: =VLOOKUP(REPLACE($A$1,1,1,"")&E26,[1]戸籍からデータ貼り付け先!$A$2:$T$12093,16,FALSE) -> 2 | H26: 9 | I26: 88 | J26: =VLOOKUP(REPLACE($A$1,1,1,"")&I26,[1]戸籍からデータ貼り付け先!$A$2:$T$12093,14,FALSE) -> 1 | K26: =VLOOKUP(REPLACE($A$1,1,1,"")&I26,[1]戸籍からデータ貼り付け先!$A$2:$T$12093,16,FALSE) -> 4 | L26: 5
E27: 39 | F27: =VLOOKUP(REPLACE($A$1,1,1,"")&E27,[1]戸籍からデータ貼り付け先!$A$2:$T$12093,14,FALSE) -> 3 | G27: =VLOOKUP(REPLACE($A$1,1,1,"")&E27,[1]戸籍からデータ貼り付け先!$A$2:$T$12093,16,FALSE) -> 2 | H27: 5 | I27: 89 | J27: =VLOOKUP(REPLACE($A$1,1,1,"")&I27,[1]戸籍からデータ貼り付け先!$A$2:$T$12093,14,FALSE) -> 2 | K27: =VLOOKUP(REPLACE($A$1,1,1,"")&I27,[1]戸籍からデータ貼り付け先!$A$2:$T$12093,16,FALSE) -> 3 | L27: 5
E28: 40 | F28: =VLOOKUP(REPLACE($A$1,1,1,"")&E28,[1]戸籍からデータ貼り付け先!$A$2:$T$12093,14,FALSE) -> 3 | G28: =VLOOKUP(REPLACE($A$1,1,1,"")&E28,[1]戸籍からデータ貼り付け先!$A$2:$T$12093,16,FALSE) -> 0 | H28: 3 | I28: 90 | J28: =VLOOKUP(REPLACE($A$1,1,1,"")&I28,[1]戸籍からデータ貼り付け先!$A$2:$T$12093,14,FALSE) -> 3 | K28: =VLOOKUP(REPLACE($A$1,1,1,"")&I28,[1]戸籍からデータ貼り付け先!$A$2:$T$12093,16,FALSE) -> 4 | L28: 7
E29: 41 | F29: =VLOOKUP(REPLACE($A$1,1,1,"")&E29,[1]戸籍からデータ貼り付け先!$A$2:$T$12093,14,FALSE) -> 4 | G29: =VLOOKUP(REPLACE($A$1,1,1,"")&E29,[1]戸籍からデータ貼り付け先!$A$2:$T$12093,16,FALSE) -> 3 | H29: 7 | I29: 91 | J29: =VLOOKUP(REPLACE($A$1,1,1,"")&I29,[1]戸籍からデータ貼り付け先!$A$2:$T$12093,14,FALSE) -> 1 | K29: =VLOOKUP(REPLACE($A$1,1,1,"")&I29,[1]戸籍からデータ貼り付け先!$A$2:$T$12093,16,FALSE) -> 3 | L29: 4
E30: 42 | F30: =VLOOKUP(REPLACE($A$1,1,1,"")&E30,[1]戸籍からデータ貼り付け先!$A$2:$T$12093,14,FALSE) -> 4 | G30: =VLOOKUP(REPLACE($A$1,1,1,"")&E30,[1]戸籍からデータ貼り付け先!$A$2:$T$12093,16,FALSE) -> 2 | H30: 6 | I30: 92 | J30: =VLOOKUP(REPLACE($A$1,1,1,"")&I30,[1]戸籍からデータ貼り付け先!$A$2:$T$12093,14,FALSE) -> 1 | K30: =VLOOKUP(REPLACE($A$1,1,1,"")&I30,[1]戸籍からデータ貼り付け先!$A$2:$T$12093,16,FALSE) -> 3 | L30: 4
E31: 43 | F31: =VLOOKUP(REPLACE($A$1,1,1,"")&E31,[1]戸籍からデータ貼り付け先!$A$2:$T$12093,14,FALSE) -> 6 | G31: =VLOOKUP(REPLACE($A$1,1,1,"")&E31,[1]戸籍からデータ貼り付け先!$A$2:$T$12093,16,FALSE) -> 4 | H31: 10 | I31: 93 | J31: =VLOOKUP(REPLACE($A$1,1,1,"")&I31,[1]戸籍からデータ貼り付け先!$A$2:$T$12093,14,FALSE) -> 0 | K31: =VLOOKUP(REPLACE($A$1,1,1,"")&I31,[1]戸籍からデータ貼り付け先!$A$2:$T$12093,16,FALSE) -> 1 | L31: 1
E32: 44 | F32: =VLOOKUP(REPLACE($A$1,1,1,"")&E32,[1]戸籍からデータ貼り付け先!$A$2:$T$12093,14,FALSE) -> 1 | G32: =VLOOKUP(REPLACE($A$1,1,1,"")&E32,[1]戸籍からデータ貼り付け先!$A$2:$T$12093,16,FALSE) -> 2 | H32: 3 | I32: 94 | J32: =VLOOKUP(REPLACE($A$1,1,1,"")&I32,[1]戸籍からデータ貼り付け先!$A$2:$T$12093,14,FALSE) -> 1 | K32: =VLOOKUP(REPLACE($A$1,1,1,"")&I32,[1]戸籍からデータ貼り付け先!$A$2:$T$12093,16,FALSE) -> 1 | L32: 2
E33: 45 | F33: =VLOOKUP(REPLACE($A$1,1,1,"")&E33,[1]戸籍からデータ貼り付け先!$A$2:$T$12093,14,FALSE) -> 7 | G33: =VLOOKUP(REPLACE($A$1,1,1,"")&E33,[1]戸籍からデータ貼り付け先!$A$2:$T$12093,16,FALSE) -> 2 | H33: 9 | I33: 95 | J33: =VLOOKUP(REPLACE($A$1,1,1,"")&I33,[1]戸籍からデータ貼り付け先!$A$2:$T$12093,14,FALSE) -> 0 | K33: =VLOOKUP(REPLACE($A$1,1,1,"")&I33,[1]戸籍からデータ貼り付け先!$A$2:$T$12093,16,FALSE) -> 1 | L33: 1
E34: 46 | F34: =VLOOKUP(REPLACE($A$1,1,1,"")&E34,[1]戸籍からデータ貼り付け先!$A$2:$T$12093,14,FALSE) -> 4 | G34: =VLOOKUP(REPLACE($A$1,1,1,"")&E34,[1]戸籍からデータ貼り付け先!$A$2:$T$12093,16,FALSE) -> 4 | H34: 8 | I34: 96 | J34: =VLOOKUP(REPLACE($A$1,1,1,"")&I34,[1]戸籍からデータ貼り付け先!$A$2:$T$12093,14,FALSE) -> 0 | K34: =VLOOKUP(REPLACE($A$1,1,1,"")&I34,[1]戸籍からデータ貼り付け先!$A$2:$T$12093,16,FALSE) -> 2 | L34: 2
E35: 47 | F35: =VLOOKUP(REPLACE($A$1,1,1,"")&E35,[1]戸籍からデータ貼り付け先!$A$2:$T$12093,14,FALSE) -> 5 | G35: =VLOOKUP(REPLACE($A$1,1,1,"")&E35,[1]戸籍からデータ貼り付け先!$A$2:$T$12093,16,FALSE) -> 5 | H35: 10 | I35: 97 | J35: =VLOOKUP(REPLACE($A$1,1,1,"")&I35,[1]戸籍からデータ貼り付け先!$A$2:$T$12093,14,FALSE) -> 0 | K35: =VLOOKUP(REPLACE($A$1,1,1,"")&I35,[1]戸籍からデータ貼り付け先!$A$2:$T$12093,16,FALSE) -> 2 | L35: 2
E36: 48 | F36: =VLOOKUP(REPLACE($A$1,1,1,"")&E36,[1]戸籍からデータ貼り付け先!$A$2:$T$12093,14,FALSE) -> 7 | G36: =VLOOKUP(REPLACE($A$1,1,1,"")&E36,[1]戸籍からデータ貼り付け先!$A$2:$T$12093,16,FALSE) -> 7 | H36: 14 | I36: 98 | J36: =VLOOKUP(REPLACE($A$1,1,1,"")&I36,[1]戸籍からデータ貼り付け先!$A$2:$T$12093,14,FALSE) -> 0 | K36: =VLOOKUP(REPLACE($A$1,1,1,"")&I36,[1]戸籍からデータ貼り付け先!$A$2:$T$12093,16,FALSE) -> 1 | L36: 1
E37: 49 | F37: =VLOOKUP(REPLACE($A$1,1,1,"")&E37,[1]戸籍からデータ貼り付け先!$A$2:$T$12093,14,FALSE) -> 4 | G37: =VLOOKUP(REPLACE($A$1,1,1,"")&E37,[1]戸籍からデータ貼り付け先!$A$2:$T$12093,16,FALSE) -> 4 | H37: 8 | I37: 99 | J37: =VLOOKUP(REPLACE($A$1,1,1,"")&I37,[1]戸籍からデータ貼り付け先!$A$2:$T$12093,14,FALSE) -> 0 | K37: =VLOOKUP(REPLACE($A$1,1,1,"")&I37,[1]戸籍からデータ貼り付け先!$A$2:$T$12093,16,FALSE) -> 2 | L37: 2
E38: 50 | F38: =VLOOKUP(REPLACE($A$1,1,1,"")&E38,[1]戸籍からデータ貼り付け先!$A$2:$T$12093,14,FALSE) -> 10 | G38: =VLOOKUP(REPLACE($A$1,1,1,"")&E38,[1]戸籍からデータ貼り付け先!$A$2:$T$12093,16,FALSE) -> 9 | H38: 19 | I38: 100 | J38: =VLOOKUP(REPLACE($A$1,1,1,"")&I38,[1]戸籍からデータ貼り付け先!$A$2:$T$12093,14,FALSE) -> 0 | K38: =VLOOKUP(REPLACE($A$1,1,1,"")&I38,[1]戸籍からデータ貼り付け先!$A$2:$T$12093,16,FALSE) -> 0 | L38: 0
E39: 51 | F39: =VLOOKUP(REPLACE($A$1,1,1,"")&E39,[1]戸籍からデータ貼り付け先!$A$2:$T$12093,14,FALSE) -> 5 | G39: =VLOOKUP(REPLACE($A$1,1,1,"")&E39,[1]戸籍からデータ貼り付け先!$A$2:$T$12093,16,FALSE) -> 13 | H39: 18 | I39: 101 | J39: =VLOOKUP(REPLACE($A$1,1,1,"")&I39,[1]戸籍からデータ貼り付け先!$A$2:$T$12093,14,FALSE) -> 0 | K39: =VLOOKUP(REPLACE($A$1,1,1,"")&I39,[1]戸籍からデータ貼り付け先!$A$2:$T$12093,16,FALSE) -> 0 | L39: 0
E40: 52 | F40: =VLOOKUP(REPLACE($A$1,1,1,"")&E40,[1]戸籍からデータ貼り付け先!$A$2:$T$12093,14,FALSE) -> 8 | G40: =VLOOKUP(REPLACE($A$1,1,1,"")&E40,[1]戸籍からデータ貼り付け先!$A$2:$T$12093,16,FALSE) -> 5 | H40: 13 | I40: 102 | J40: =VLOOKUP(REPLACE($A$1,1,1,"")&I40,[1]戸籍からデータ貼り付け先!$A$2:$T$12093,14,FALSE) -> 0 | K40: =VLOOKUP(REPLACE($A$1,1,1,"")&I40,[1]戸籍からデータ貼り付け先!$A$2:$T$12093,16,FALSE) -> 0 | L40: 0
E41: 53 | F41: =VLOOKUP(REPLACE($A$1,1,1,"")&E41,[1]戸籍からデータ貼り付け先!$A$2:$T$12093,14,FALSE) -> 6 | G41: =VLOOKUP(REPLACE($A$1,1,1,"")&E41,[1]戸籍からデータ貼り付け先!$A$2:$T$12093,16,FALSE) -> 2 | H41: 8 | I41: 103 | J41: =VLOOKUP(REPLACE($A$1,1,1,"")&I41,[1]戸籍からデータ貼り付け先!$A$2:$T$12093,14,FALSE) -> 0 | K41: =VLOOKUP(REPLACE($A$1,1,1,"")&I41,[1]戸籍からデータ貼り付け先!$A$2:$T$12093,16,FALSE) -> 0 | L41: 0
E42: 54 | F42: =VLOOKUP(REPLACE($A$1,1,1,"")&E42,[1]戸籍からデータ貼り付け先!$A$2:$T$12093,14,FALSE) -> 7 | G42: =VLOOKUP(REPLACE($A$1,1,1,"")&E42,[1]戸籍からデータ貼り付け先!$A$2:$T$12093,16,FALSE) -> 3 | H42: 10 | I42: 104 | J42: =VLOOKUP(REPLACE($A$1,1,1,"")&I42,[1]戸籍からデータ貼り付け先!$A$2:$T$12093,14,FALSE) -> 0 | K42: =VLOOKUP(REPLACE($A$1,1,1,"")&I42,[1]戸籍からデータ貼り付け先!$A$2:$T$12093,16,FALSE) -> 1 | L42: 1
E43: 55 | F43: =VLOOKUP(REPLACE($A$1,1,1,"")&E43,[1]戸籍からデータ貼り付け先!$A$2:$T$12093,14,FALSE) -> 9 | G43: =VLOOKUP(REPLACE($A$1,1,1,"")&E43,[1]戸籍からデータ貼り付け先!$A$2:$T$12093,16,FALSE) -> 7 | H43: 16 | I43: 105 | J43: =VLOOKUP(REPLACE($A$1,1,1,"")&I43,[1]戸籍からデータ貼り付け先!$A$2:$T$12093,14,FALSE) -> 0 | K43: =VLOOKUP(REPLACE($A$1,1,1,"")&I43,[1]戸籍からデータ貼り付け先!$A$2:$T$12093,16,FALSE) -> 0 | L43: 0
E44: 56 | F44: =VLOOKUP(REPLACE($A$1,1,1,"")&E44,[1]戸籍からデータ貼り付け先!$A$2:$T$12093,14,FALSE) -> 5 | G44: =VLOOKUP(REPLACE($A$1,1,1,"")&E44,[1]戸籍からデータ貼り付け先!$A$2:$T$12093,16,FALSE) -> 7 | H44: 12 | I44: 106 | J44: =VLOOKUP(REPLACE($A$1,1,1,"")&I44,[1]戸籍からデータ貼り付け先!$A$2:$T$12093,14,FALSE) -> 0 | K44: =VLOOKUP(REPLACE($A$1,1,1,"")&I44,[1]戸籍からデータ貼り付け先!$A$2:$T$12093,16,FALSE) -> 0 | L44: 0
E45: 57 | F45: =VLOOKUP(REPLACE($A$1,1,1,"")&E45,[1]戸籍からデータ貼り付け先!$A$2:$T$12093,14,FALSE) -> 5 | G45: =VLOOKUP(REPLACE($A$1,1,1,"")&E45,[1]戸籍からデータ貼り付け先!$A$2:$T$12093,16,FALSE) -> 3 | H45: 8 | I45: 107 | J45: =VLOOKUP(REPLACE($A$1,1,1,"")&I45,[1]戸籍からデータ貼り付け先!$A$2:$T$12093,14,FALSE) -> 0 | K45: =VLOOKUP(REPLACE($A$1,1,1,"")&I45,[1]戸籍からデータ貼り付け先!$A$2:$T$12093,16,FALSE) -> 0 | L45: 0
E46: 58 | F46: =VLOOKUP(REPLACE($A$1,1,1,"")&E46,[1]戸籍からデータ貼り付け先!$A$2:$T$12093,14,FALSE) -> 6 | G46: =VLOOKUP(REPLACE($A$1,1,1,"")&E46,[1]戸籍からデータ貼り付け先!$A$2:$T$12093,16,FALSE) -> 3 | H46: 9 | I46: 108 | J46: =VLOOKUP(REPLACE($A$1,1,1,"")&I46,[1]戸籍からデータ貼り付け先!$A$2:$T$12093,14,FALSE) -> 0 | K46: =VLOOKUP(REPLACE($A$1,1,1,"")&I46,[1]戸籍からデータ貼り付け先!$A$2:$T$12093,16,FALSE) -> 0 | L46: 0
E47: 59 | F47: =VLOOKUP(REPLACE($A$1,1,1,"")&E47,[1]戸籍からデータ貼り付け先!$A$2:$T$12093,14,FALSE) -> 5 | G47: =VLOOKUP(REPLACE($A$1,1,1,"")&E47,[1]戸籍からデータ貼り付け先!$A$2:$T$12093,16,FALSE) -> 2 | H47: 7 | I47: 小計 | J47: =SUM(J3:J46) -> 110 | K47: =SUM(K3:K46) -> 147 | L47: =SUM(J47:K47) -> 257
E48: 60 | F48: =VLOOKUP(REPLACE($A$1,1,1,"")&E48,[1]戸籍からデータ貼り付け先!$A$2:$T$12093,14,FALSE) -> 5 | G48: =VLOOKUP(REPLACE($A$1,1,1,"")&E48,[1]戸籍からデータ貼り付け先!$A$2:$T$12093,16,FALSE) -> 5 | H48: 10
E49: 61 | F49: =VLOOKUP(REPLACE($A$1,1,1,"")&E49,[1]戸籍からデータ貼り付け先!$A$2:$T$12093,14,FALSE) -> 5 | G49: =VLOOKUP(REPLACE($A$1,1,1,"")&E49,[1]戸籍からデータ貼り付け先!$A$2:$T$12093,16,FALSE) -> 3 | H49: 8 | J49: =REPLACE(A1,1,1,"")&"合計" -> 曽屋２丁目合計
E50: 62 | F50: =VLOOKUP(REPLACE($A$1,1,1,"")&E50,[1]戸籍からデータ貼り付け先!$A$2:$T$12093,14,FALSE) -> 8 | G50: =VLOOKUP(REPLACE($A$1,1,1,"")&E50,[1]戸籍からデータ貼り付け先!$A$2:$T$12093,16,FALSE) -> 7 | H50: 15 | J50: 男 | K50: 女 | L50: 計
E51: 63 | F51: =VLOOKUP(REPLACE($A$1,1,1,"")&E51,[1]戸籍からデータ貼り付け先!$A$2:$T$12093,14,FALSE) -> 3 | G51: =VLOOKUP(REPLACE($A$1,1,1,"")&E51,[1]戸籍からデータ貼り付け先!$A$2:$T$12093,16,FALSE) -> 2 | H51: 5 | J51: =SUM(B18,F53,J47) -> 347 | K51: =SUM(C18,G53,K47) -> 343 | L51: =SUM(J51:K51) -> 690
E52: 64 | F52: =VLOOKUP(REPLACE($A$1,1,1,"")&E52,[1]戸籍からデータ貼り付け先!$A$2:$T$12093,14,FALSE) -> 3 | G52: =VLOOKUP(REPLACE($A$1,1,1,"")&E52,[1]戸籍からデータ貼り付け先!$A$2:$T$12093,16,FALSE) -> 4 | H52: 7
E53: 小計 | F53: =SUM(F3:F52) -> 208 | G53: =SUM(G3:G52) -> 176 | H53: =SUM(F53:G53) -> 384
F56: -11-

Sheet 寿町
A1: ◆寿町 | H1: =秦野市合計!H1 -> 令和7年10月1日現在（単位：人）
A2: 年少人口(0歳～14歳) | B2: 男 | C2: 女 | D2: 計 | E2: 生産年齢人口(15歳～64歳) | F2: 男 | G2: 女 | H2: 計 | I2: 老年人口(65歳以上) | J2: 男 | K2: 女 | L2: 計
A3: 0 | B3: =VLOOKUP(REPLACE($A$1,1,1,"")&A3,[1]戸籍からデータ貼り付け先!$A$2:$T$12093,14,FALSE) -> 1 | C3: =VLOOKUP(REPLACE($A$1,1,1,"")&A3,[1]戸籍からデータ貼り付け先!$A$2:$T$12093,16,FALSE) -> 0 | D3: =SUM(B3:C3) -> 1 | E3: 15 | F3: =VLOOKUP(REPLACE($A$1,1,1,"")&E3,[1]戸籍からデータ貼り付け先!$A$2:$T$12093,14,FALSE) -> 10 | G3: =VLOOKUP(REPLACE($A$1,1,1,"")&E3,[1]戸籍からデータ貼り付け先!$A$2:$T$12093,16,FALSE) -> 7 | H3: =SUM(F3:G3) -> 17 | I3: 65 | J3: =VLOOKUP(REPLACE($A$1,1,1,"")&I3,[1]戸籍からデータ貼り付け先!$A$2:$T$12093,14,FALSE) -> 3 | K3: =VLOOKUP(REPLACE($A$1,1,1,"")&I3,[1]戸籍からデータ貼り付け先!$A$2:$T$12093,16,FALSE) -> 4 | L3: =SUM(J3:K3) -> 7
A4: 1 | B4: =VLOOKUP(REPLACE($A$1,1,1,"")&A4,[1]戸籍からデータ貼り付け先!$A$2:$T$12093,14,FALSE) -> 0 | C4: =VLOOKUP(REPLACE($A$1,1,1,"")&A4,[1]戸籍からデータ貼り付け先!$A$2:$T$12093,16,FALSE) -> 2 | D4: =SUM(B4:C4) -> 2 | E4: 16 | F4: =VLOOKUP(REPLACE($A$1,1,1,"")&E4,[1]戸籍からデータ貼り付け先!$A$2:$T$12093,14,FALSE) -> 7 | G4: =VLOOKUP(REPLACE($A$1,1,1,"")&E4,[1]戸籍からデータ貼り付け先!$A$2:$T$12093,16,FALSE) -> 7 | H4: =SUM(F4:G4) -> 14 | I4: 66 | J4: =VLOOKUP(REPLACE($A$1,1,1,"")&I4,[1]戸籍からデータ貼り付け先!$A$2:$T$12093,14,FALSE) -> 4 | K4: =VLOOKUP(REPLACE($A$1,1,1,"")&I4,[1]戸籍からデータ貼り付け先!$A$2:$T$12093,16,FALSE) -> 4 | L4: =SUM(J4:K4) -> 8
A5: 2 | B5: =VLOOKUP(REPLACE($A$1,1,1,"")&A5,[1]戸籍からデータ貼り付け先!$A$2:$T$12093,14,FALSE) -> 1 | C5: =VLOOKUP(REPLACE($A$1,1,1,"")&A5,[1]戸籍からデータ貼り付け先!$A$2:$T$12093,16,FALSE) -> 0 | D5: 1 | E5: 17 | F5: =VLOOKUP(REPLACE($A$1,1,1,"")&E5,[1]戸籍からデータ貼り付け先!$A$2:$T$12093,14,FALSE) -> 6 | G5: =VLOOKUP(REPLACE($A$1,1,1,"")&E5,[1]戸籍からデータ貼り付け先!$A$2:$T$12093,16,FALSE) -> 9 | H5: 15 | I5: 67 | J5: =VLOOKUP(REPLACE($A$1,1,1,"")&I5,[1]戸籍からデータ貼り付け先!$A$2:$T$12093,14,FALSE) -> 4 | K5: =VLOOKUP(REPLACE($A$1,1,1,"")&I5,[1]戸籍からデータ貼り付け先!$A$2:$T$12093,16,FALSE) -> 2 | L5: 6
A6: 3 | B6: =VLOOKUP(REPLACE($A$1,1,1,"")&A6,[1]戸籍からデータ貼り付け先!$A$2:$T$12093,14,FALSE) -> 0 | C6: =VLOOKUP(REPLACE($A$1,1,1,"")&A6,[1]戸籍からデータ貼り付け先!$A$2:$T$12093,16,FALSE) -> 0 | D6: 0 | E6: 18 | F6: =VLOOKUP(REPLACE($A$1,1,1,"")&E6,[1]戸籍からデータ貼り付け先!$A$2:$T$12093,14,FALSE) -> 8 | G6: =VLOOKUP(REPLACE($A$1,1,1,"")&E6,[1]戸籍からデータ貼り付け先!$A$2:$T$12093,16,FALSE) -> 3 | H6: 11 | I6: 68 | J6: =VLOOKUP(REPLACE($A$1,1,1,"")&I6,[1]戸籍からデータ貼り付け先!$A$2:$T$12093,14,FALSE) -> 4 | K6: =VLOOKUP(REPLACE($A$1,1,1,"")&I6,[1]戸籍からデータ貼り付け先!$A$2:$T$12093,16,FALSE) -> 0 | L6: 4
A7: 4 | B7: =VLOOKUP(REPLACE($A$1,1,1,"")&A7,[1]戸籍からデータ貼り付け先!$A$2:$T$12093,14,FALSE) -> 0 | C7: =VLOOKUP(REPLACE($A$1,1,1,"")&A7,[1]戸籍からデータ貼り付け先!$A$2:$T$12093,16,FALSE) -> 1 | D7: 1 | E7: 19 | F7: =VLOOKUP(REPLACE($A$1,1,1,"")&E7,[1]戸籍からデータ貼り付け先!$A$2:$T$12093,14,FALSE) -> 3 | G7: =VLOOKUP(REPLACE($A$1,1,1,"")&E7,[1]戸籍からデータ貼り付け先!$A$2:$T$12093,16,FALSE) -> 4 | H7: 7 | I7: 69 | J7: =VLOOKUP(REPLACE($A$1,1,1,"")&I7,[1]戸籍からデータ貼り付け先!$A$2:$T$12093,14,FALSE) -> 0 | K7: =VLOOKUP(REPLACE($A$1,1,1,"")&I7,[1]戸籍からデータ貼り付け先!$A$2:$T$12093,16,FALSE) -> 2 | L7: 2
A8: 5 | B8: =VLOOKUP(REPLACE($A$1,1,1,"")&A8,[1]戸籍からデータ貼り付け先!$A$2:$T$12093,14,FALSE) -> 1 | C8: =VLOOKUP(REPLACE($A$1,1,1,"")&A8,[1]戸籍からデータ貼り付け先!$A$2:$T$12093,16,FALSE) -> 0 | D8: 1 | E8: 20 | F8: =VLOOKUP(REPLACE($A$1,1,1,"")&E8,[1]戸籍からデータ貼り付け先!$A$2:$T$12093,14,FALSE) -> 5 | G8: =VLOOKUP(REPLACE($A$1,1,1,"")&E8,[1]戸籍からデータ貼り付け先!$A$2:$T$12093,16,FALSE) -> 7 | H8: 12 | I8: 70 | J8: =VLOOKUP(REPLACE($A$1,1,1,"")&I8,[1]戸籍からデータ貼り付け先!$A$2:$T$12093,14,FALSE) -> 6 | K8: =VLOOKUP(REPLACE($A$1,1,1,"")&I8,[1]戸籍からデータ貼り付け先!$A$2:$T$12093,16,FALSE) -> 3 | L8: 9
A9: 6 | B9: =VLOOKUP(REPLACE($A$1,1,1,"")&A9,[1]戸籍からデータ貼り付け先!$A$2:$T$12093,14,FALSE) -> 2 | C9: =VLOOKUP(REPLACE($A$1,1,1,"")&A9,[1]戸籍からデータ貼り付け先!$A$2:$T$12093,16,FALSE) -> 1 | D9: 3 | E9: 21 | F9: =VLOOKUP(REPLACE($A$1,1,1,"")&E9,[1]戸籍からデータ貼り付け先!$A$2:$T$12093,14,FALSE) -> 3 | G9: =VLOOKUP(REPLACE($A$1,1,1,"")&E9,[1]戸籍からデータ貼り付け先!$A$2:$T$12093,16,FALSE) -> 2 | H9: 5 | I9: 71 | J9: =VLOOKUP(REPLACE($A$1,1,1,"")&I9,[1]戸籍からデータ貼り付け先!$A$2:$T$12093,14,FALSE) -> 6 | K9: =VLOOKUP(REPLACE($A$1,1,1,"")&I9,[1]戸籍からデータ貼り付け先!$A$2:$T$12093,16,FALSE) -> 3 | L9: 9
A10: 7 | B10: =VLOOKUP(REPLACE($A$1,1,1,"")&A10,[1]戸籍からデータ貼り付け先!$A$2:$T$12093,14,FALSE) -> 1 | C10: =VLOOKUP(REPLACE($A$1,1,1,"")&A10,[1]戸籍からデータ貼り付け先!$A$2:$T$12093,16,FALSE) -> 1 | D10: 2 | E10: 22 | F10: =VLOOKUP(REPLACE($A$1,1,1,"")&E10,[1]戸籍からデータ貼り付け先!$A$2:$T$12093,14,FALSE) -> 1 | G10: =VLOOKUP(REPLACE($A$1,1,1,"")&E10,[1]戸籍からデータ貼り付け先!$A$2:$T$12093,16,FALSE) -> 5 | H10: 6 | I10: 72 | J10: =VLOOKUP(REPLACE($A$1,1,1,"")&I10,[1]戸籍からデータ貼り付け先!$A$2:$T$12093,14,FALSE) -> 2 | K10: =VLOOKUP(REPLACE($A$1,1,1,"")&I10,[1]戸籍からデータ貼り付け先!$A$2:$T$12093,16,FALSE) -> 2 | L10: 4
A11: 8 | B11: =VLOOKUP(REPLACE($A$1,1,1,"")&A11,[1]戸籍からデータ貼り付け先!$A$2:$T$12093,14,FALSE) -> 1 | C11: =VLOOKUP(REPLACE($A$1,1,1,"")&A11,[1]戸籍からデータ貼り付け先!$A$2:$T$12093,16,FALSE) -> 1 | D11: 2 | E11: 23 | F11: =VLOOKUP(REPLACE($A$1,1,1,"")&E11,[1]戸籍からデータ貼り付け先!$A$2:$T$12093,14,FALSE) -> 1 | G11: =VLOOKUP(REPLACE($A$1,1,1,"")&E11,[1]戸籍からデータ貼り付け先!$A$2:$T$12093,16,FALSE) -> 4 | H11: 5 | I11: 73 | J11: =VLOOKUP(REPLACE($A$1,1,1,"")&I11,[1]戸籍からデータ貼り付け先!$A$2:$T$12093,14,FALSE) -> 1 | K11: =VLOOKUP(REPLACE($A$1,1,1,"")&I11,[1]戸籍からデータ貼り付け先!$A$2:$T$12093,16,FALSE) -> 5 | L11: 6
A12: 9 | B12: =VLOOKUP(REPLACE($A$1,1,1,"")&A12,[1]戸籍からデータ貼り付け先!$A$2:$T$12093,14,FALSE) -> 4 | C12: =VLOOKUP(REPLACE($A$1,1,1,"")&A12,[1]戸籍からデータ貼り付け先!$A$2:$T$12093,16,FALSE) -> 2 | D12: 6 | E12: 24 | F12: =VLOOKUP(REPLACE($A$1,1,1,"")&E12,[1]戸籍からデータ貼り付け先!$A$2:$T$12093,14,FALSE) -> 3 | G12: =VLOOKUP(REPLACE($A$1,1,1,"")&E12,[1]戸籍からデータ貼り付け先!$A$2:$T$12093,16,FALSE) -> 4 | H12: 7 | I12: 74 | J12: =VLOOKUP(REPLACE($A$1,1,1,"")&I12,[1]戸籍からデータ貼り付け先!$A$2:$T$12093,14,FALSE) -> 8 | K12: =VLOOKUP(REPLACE($A$1,1,1,"")&I12,[1]戸籍からデータ貼り付け先!$A$2:$T$12093,16,FALSE) -> 8 | L12: 16
A13: 10 | B13: =VLOOKUP(REPLACE($A$1,1,1,"")&A13,[1]戸籍からデータ貼り付け先!$A$2:$T$12093,14,FALSE) -> 0 | C13: =VLOOKUP(REPLACE($A$1,1,1,"")&A13,[1]戸籍からデータ貼り付け先!$A$2:$T$12093,16,FALSE) -> 1 | D13: 1 | E13: 25 | F13: =VLOOKUP(REPLACE($A$1,1,1,"")&E13,[1]戸籍からデータ貼り付け先!$A$2:$T$12093,14,FALSE) -> 3 | G13: =VLOOKUP(REPLACE($A$1,1,1,"")&E13,[1]戸籍からデータ貼り付け先!$A$2:$T$12093,16,FALSE) -> 2 | H13: 5 | I13: 75 | J13: =VLOOKUP(REPLACE($A$1,1,1,"")&I13,[1]戸籍からデータ貼り付け先!$A$2:$T$12093,14,FALSE) -> 3 | K13: =VLOOKUP(REPLACE($A$1,1,1,"")&I13,[1]戸籍からデータ貼り付け先!$A$2:$T$12093,16,FALSE) -> 8 | L13: 11
A14: 11 | B14: =VLOOKUP(REPLACE($A$1,1,1,"")&A14,[1]戸籍からデータ貼り付け先!$A$2:$T$12093,14,FALSE) -> 2 | C14: =VLOOKUP(REPLACE($A$1,1,1,"")&A14,[1]戸籍からデータ貼り付け先!$A$2:$T$12093,16,FALSE) -> 4 | D14: 6 | E14: 26 | F14: =VLOOKUP(REPLACE($A$1,1,1,"")&E14,[1]戸籍からデータ貼り付け先!$A$2:$T$12093,14,FALSE) -> 2 | G14: =VLOOKUP(REPLACE($A$1,1,1,"")&E14,[1]戸籍からデータ貼り付け先!$A$2:$T$12093,16,FALSE) -> 1 | H14: 3 | I14: 76 | J14: =VLOOKUP(REPLACE($A$1,1,1,"")&I14,[1]戸籍からデータ貼り付け先!$A$2:$T$12093,14,FALSE) -> 2 | K14: =VLOOKUP(REPLACE($A$1,1,1,"")&I14,[1]戸籍からデータ貼り付け先!$A$2:$T$12093,16,FALSE) -> 8 | L14: 10
A15: 12 | B15: =VLOOKUP(REPLACE($A$1,1,1,"")&A15,[1]戸籍からデータ貼り付け先!$A$2:$T$12093,14,FALSE) -> 5 | C15: =VLOOKUP(REPLACE($A$1,1,1,"")&A15,[1]戸籍からデータ貼り付け先!$A$2:$T$12093,16,FALSE) -> 3 | D15: 8 | E15: 27 | F15: =VLOOKUP(REPLACE($A$1,1,1,"")&E15,[1]戸籍からデータ貼り付け先!$A$2:$T$12093,14,FALSE) -> 4 | G15: =VLOOKUP(REPLACE($A$1,1,1,"")&E15,[1]戸籍からデータ貼り付け先!$A$2:$T$12093,16,FALSE) -> 4 | H15: 8 | I15: 77 | J15: =VLOOKUP(REPLACE($A$1,1,1,"")&I15,[1]戸籍からデータ貼り付け先!$A$2:$T$12093,14,FALSE) -> 6 | K15: =VLOOKUP(REPLACE($A$1,1,1,"")&I15,[1]戸籍からデータ貼り付け先!$A$2:$T$12093,16,FALSE) -> 9 | L15: 15
A16: 13 | B16: =VLOOKUP(REPLACE($A$1,1,1,"")&A16,[1]戸籍からデータ貼り付け先!$A$2:$T$12093,14,FALSE) -> 6 | C16: =VLOOKUP(REPLACE($A$1,1,1,"")&A16,[1]戸籍からデータ貼り付け先!$A$2:$T$12093,16,FALSE) -> 1 | D16: 7 | E16: 28 | F16: =VLOOKUP(REPLACE($A$1,1,1,"")&E16,[1]戸籍からデータ貼り付け先!$A$2:$T$12093,14,FALSE) -> 2 | G16: =VLOOKUP(REPLACE($A$1,1,1,"")&E16,[1]戸籍からデータ貼り付け先!$A$2:$T$12093,16,FALSE) -> 1 | H16: 3 | I16: 78 | J16: =VLOOKUP(REPLACE($A$1,1,1,"")&I16,[1]戸籍からデータ貼り付け先!$A$2:$T$12093,14,FALSE) -> 6 | K16: =VLOOKUP(REPLACE($A$1,1,1,"")&I16,[1]戸籍からデータ貼り付け先!$A$2:$T$12093,16,FALSE) -> 7 | L16: 13
A17: 14 | B17: =VLOOKUP(REPLACE($A$1,1,1,"")&A17,[1]戸籍からデータ貼り付け先!$A$2:$T$12093,14,FALSE) -> 3 | C17: =VLOOKUP(REPLACE($A$1,1,1,"")&A17,[1]戸籍からデータ貼り付け先!$A$2:$T$12093,16,FALSE) -> 2 | D17: 5 | E17: 29 | F17: =VLOOKUP(REPLACE($A$1,1,1,"")&E17,[1]戸籍からデータ貼り付け先!$A$2:$T$12093,14,FALSE) -> 1 | G17: =VLOOKUP(REPLACE($A$1,1,1,"")&E17,[1]戸籍からデータ貼り付け先!$A$2:$T$12093,16,FALSE) -> 2 | H17: 3 | I17: 79 | J17: =VLOOKUP(REPLACE($A$1,1,1,"")&I17,[1]戸籍からデータ貼り付け先!$A$2:$T$12093,14,FALSE) -> 5 | K17: =VLOOKUP(REPLACE($A$1,1,1,"")&I17,[1]戸籍からデータ貼り付け先!$A$2:$T$12093,16,FALSE) -> 7 | L17: 12
A18: 小計 | B18: =SUM(B3:B17) -> 27 | C18: =SUM(C3:C17) -> 19 | D18: =SUM(B18:C18) -> 46 | E18: 30 | F18: =VLOOKUP(REPLACE($A$1,1,1,"")&E18,[1]戸籍からデータ貼り付け先!$A$2:$T$12093,14,FALSE) -> 1 | G18: =VLOOKUP(REPLACE($A$1,1,1,"")&E18,[1]戸籍からデータ貼り付け先!$A$2:$T$12093,16,FALSE) -> 3 | H18: 4 | I18: 80 | J18: =VLOOKUP(REPLACE($A$1,1,1,"")&I18,[1]戸籍からデータ貼り付け先!$A$2:$T$12093,14,FALSE) -> 3 | K18: =VLOOKUP(REPLACE($A$1,1,1,"")&I18,[1]戸籍からデータ貼り付け先!$A$2:$T$12093,16,FALSE) -> 1 | L18: 4
E19: 31 | F19: =VLOOKUP(REPLACE($A$1,1,1,"")&E19,[1]戸籍からデータ貼り付け先!$A$2:$T$12093,14,FALSE) -> 2 | G19: =VLOOKUP(REPLACE($A$1,1,1,"")&E19,[1]戸籍からデータ貼り付け先!$A$2:$T$12093,16,FALSE) -> 0 | H19: 2 | I19: 81 | J19: =VLOOKUP(REPLACE($A$1,1,1,"")&I19,[1]戸籍からデータ貼り付け先!$A$2:$T$12093,14,FALSE) -> 5 | K19: =VLOOKUP(REPLACE($A$1,1,1,"")&I19,[1]戸籍からデータ貼り付け先!$A$2:$T$12093,16,FALSE) -> 5 | L19: 10
E20: 32 | F20: =VLOOKUP(REPLACE($A$1,1,1,"")&E20,[1]戸籍からデータ貼り付け先!$A$2:$T$12093,14,FALSE) -> 0 | G20: =VLOOKUP(REPLACE($A$1,1,1,"")&E20,[1]戸籍からデータ貼り付け先!$A$2:$T$12093,16,FALSE) -> 0 | H20: 0 | I20: 82 | J20: =VLOOKUP(REPLACE($A$1,1,1,"")&I20,[1]戸籍からデータ貼り付け先!$A$2:$T$12093,14,FALSE) -> 1 | K20: =VLOOKUP(REPLACE($A$1,1,1,"")&I20,[1]戸籍からデータ貼り付け先!$A$2:$T$12093,16,FALSE) -> 3 | L20: 4
E21: 33 | F21: =VLOOKUP(REPLACE($A$1,1,1,"")&E21,[1]戸籍からデータ貼り付け先!$A$2:$T$12093,14,FALSE) -> 2 | G21: =VLOOKUP(REPLACE($A$1,1,1,"")&E21,[1]戸籍からデータ貼り付け先!$A$2:$T$12093,16,FALSE) -> 2 | H21: 4 | I21: 83 | J21: =VLOOKUP(REPLACE($A$1,1,1,"")&I21,[1]戸籍からデータ貼り付け先!$A$2:$T$12093,14,FALSE) -> 3 | K21: =VLOOKUP(REPLACE($A$1,1,1,"")&I21,[1]戸籍からデータ貼り付け先!$A$2:$T$12093,16,FALSE) -> 5 | L21: 8
E22: 34 | F22: =VLOOKUP(REPLACE($A$1,1,1,"")&E22,[1]戸籍からデータ貼り付け先!$A$2:$T$12093,14,FALSE) -> 1 | G22: =VLOOKUP(REPLACE($A$1,1,1,"")&E22,[1]戸籍からデータ貼り付け先!$A$2:$T$12093,16,FALSE) -> 0 | H22: 1 | I22: 84 | J22: =VLOOKUP(REPLACE($A$1,1,1,"")&I22,[1]戸籍からデータ貼り付け先!$A$2:$T$12093,14,FALSE) -> 2 | K22: =VLOOKUP(REPLACE($A$1,1,1,"")&I22,[1]戸籍からデータ貼り付け先!$A$2:$T$12093,16,FALSE) -> 2 | L22: 4
E23: 35 | F23: =VLOOKUP(REPLACE($A$1,1,1,"")&E23,[1]戸籍からデータ貼り付け先!$A$2:$T$12093,14,FALSE) -> 1 | G23: =VLOOKUP(REPLACE($A$1,1,1,"")&E23,[1]戸籍からデータ貼り付け先!$A$2:$T$12093,16,FALSE) -> 3 | H23: 4 | I23: 85 | J23: =VLOOKUP(REPLACE($A$1,1,1,"")&I23,[1]戸籍からデータ貼り付け先!$A$2:$T$12093,14,FALSE) -> 5 | K23: =VLOOKUP(REPLACE($A$1,1,1,"")&I23,[1]戸籍からデータ貼り付け先!$A$2:$T$12093,16,FALSE) -> 3 | L23: 8
E24: 36 | F24: =VLOOKUP(REPLACE($A$1,1,1,"")&E24,[1]戸籍からデータ貼り付け先!$A$2:$T$12093,14,FALSE) -> 1 | G24: =VLOOKUP(REPLACE($A$1,1,1,"")&E24,[1]戸籍からデータ貼り付け先!$A$2:$T$12093,16,FALSE) -> 1 | H24: 2 | I24: 86 | J24: =VLOOKUP(REPLACE($A$1,1,1,"")&I24,[1]戸籍からデータ貼り付け先!$A$2:$T$12093,14,FALSE) -> 4 | K24: =VLOOKUP(REPLACE($A$1,1,1,"")&I24,[1]戸籍からデータ貼り付け先!$A$2:$T$12093,16,FALSE) -> 1 | L24: 5
E25: 37 | F25: =VLOOKUP(REPLACE($A$1,1,1,"")&E25,[1]戸籍からデータ貼り付け先!$A$2:$T$12093,14,FALSE) -> 1 | G25: =VLOOKUP(REPLACE($A$1,1,1,"")&E25,[1]戸籍からデータ貼り付け先!$A$2:$T$12093,16,FALSE) -> 1 | H25: 2 | I25: 87 | J25: =VLOOKUP(REPLACE($A$1,1,1,"")&I25,[1]戸籍からデータ貼り付け先!$A$2:$T$12093,14,FALSE) -> 2 | K25: =VLOOKUP(REPLACE($A$1,1,1,"")&I25,[1]戸籍からデータ貼り付け先!$A$2:$T$12093,16,FALSE) -> 10 | L25: 12
E26: 38 | F26: =VLOOKUP(REPLACE($A$1,1,1,"")&E26,[1]戸籍からデータ貼り付け先!$A$2:$T$12093,14,FALSE) -> 3 | G26: =VLOOKUP(REPLACE($A$1,1,1,"")&E26,[1]戸籍からデータ貼り付け先!$A$2:$T$12093,16,FALSE) -> 0 | H26: 3 | I26: 88 | J26: =VLOOKUP(REPLACE($A$1,1,1,"")&I26,[1]戸籍からデータ貼り付け先!$A$2:$T$12093,14,FALSE) -> 1 | K26: =VLOOKUP(REPLACE($A$1,1,1,"")&I26,[1]戸籍からデータ貼り付け先!$A$2:$T$12093,16,FALSE) -> 2 | L26: 3
E27: 39 | F27: =VLOOKUP(REPLACE($A$1,1,1,"")&E27,[1]戸籍からデータ貼り付け先!$A$2:$T$12093,14,FALSE) -> 1 | G27: =VLOOKUP(REPLACE($A$1,1,1,"")&E27,[1]戸籍からデータ貼り付け先!$A$2:$T$12093,16,FALSE) -> 2 | H27: 3 | I27: 89 | J27: =VLOOKUP(REPLACE($A$1,1,1,"")&I27,[1]戸籍からデータ貼り付け先!$A$2:$T$12093,14,FALSE) -> 1 | K27: =VLOOKUP(REPLACE($A$1,1,1,"")&I27,[1]戸籍からデータ貼り付け先!$A$2:$T$12093,16,FALSE) -> 3 | L27: 4
E28: 40 | F28: =VLOOKUP(REPLACE($A$1,1,1,"")&E28,[1]戸籍からデータ貼り付け先!$A$2:$T$12093,14,FALSE) -> 3 | G28: =VLOOKUP(REPLACE($A$1,1,1,"")&E28,[1]戸籍からデータ貼り付け先!$A$2:$T$12093,16,FALSE) -> 2 | H28: 5 | I28: 90 | J28: =VLOOKUP(REPLACE($A$1,1,1,"")&I28,[1]戸籍からデータ貼り付け先!$A$2:$T$12093,14,FALSE) -> 0 | K28: =VLOOKUP(REPLACE($A$1,1,1,"")&I28,[1]戸籍からデータ貼り付け先!$A$2:$T$12093,16,FALSE) -> 2 | L28: 2
E29: 41 | F29: =VLOOKUP(REPLACE($A$1,1,1,"")&E29,[1]戸籍からデータ貼り付け先!$A$2:$T$12093,14,FALSE) -> 2 | G29: =VLOOKUP(REPLACE($A$1,1,1,"")&E29,[1]戸籍からデータ貼り付け先!$A$2:$T$12093,16,FALSE) -> 5 | H29: 7 | I29: 91 | J29: =VLOOKUP(REPLACE($A$1,1,1,"")&I29,[1]戸籍からデータ貼り付け先!$A$2:$T$12093,14,FALSE) -> 1 | K29: =VLOOKUP(REPLACE($A$1,1,1,"")&I29,[1]戸籍からデータ貼り付け先!$A$2:$T$12093,16,FALSE) -> 1 | L29: 2
E30: 42 | F30: =VLOOKUP(REPLACE($A$1,1,1,"")&E30,[1]戸籍からデータ貼り付け先!$A$2:$T$12093,14,FALSE) -> 4 | G30: =VLOOKUP(REPLACE($A$1,1,1,"")&E30,[1]戸籍からデータ貼り付け先!$A$2:$T$12093,16,FALSE) -> 2 | H30: 6 | I30: 92 | J30: =VLOOKUP(REPLACE($A$1,1,1,"")&I30,[1]戸籍からデータ貼り付け先!$A$2:$T$12093,14,FALSE) -> 0 | K30: =VLOOKUP(REPLACE($A$1,1,1,"")&I30,[1]戸籍からデータ貼り付け先!$A$2:$T$12093,16,FALSE) -> 2 | L30: 2
E31: 43 | F31: =VLOOKUP(REPLACE($A$1,1,1,"")&E31,[1]戸籍からデータ貼り付け先!$A$2:$T$12093,14,FALSE) -> 6 | G31: =VLOOKUP(REPLACE($A$1,1,1,"")&E31,[1]戸籍からデータ貼り付け先!$A$2:$T$12093,16,FALSE) -> 10 | H31: 16 | I31: 93 | J31: =VLOOKUP(REPLACE($A$1,1,1,"")&I31,[1]戸籍からデータ貼り付け先!$A$2:$T$12093,14,FALSE) -> 0 | K31: =VLOOKUP(REPLACE($A$1,1,1,"")&I31,[1]戸籍からデータ貼り付け先!$A$2:$T$12093,16,FALSE) -> 3 | L31: 3
E32: 44 | F32: =VLOOKUP(REPLACE($A$1,1,1,"")&E32,[1]戸籍からデータ貼り付け先!$A$2:$T$12093,14,FALSE) -> 9 | G32: =VLOOKUP(REPLACE($A$1,1,1,"")&E32,[1]戸籍からデータ貼り付け先!$A$2:$T$12093,16,FALSE) -> 9 | H32: 18 | I32: 94 | J32: =VLOOKUP(REPLACE($A$1,1,1,"")&I32,[1]戸籍からデータ貼り付け先!$A$2:$T$12093,14,FALSE) -> 0 | K32: =VLOOKUP(REPLACE($A$1,1,1,"")&I32,[1]戸籍からデータ貼り付け先!$A$2:$T$12093,16,FALSE) -> 0 | L32: 0
E33: 45 | F33: =VLOOKUP(REPLACE($A$1,1,1,"")&E33,[1]戸籍からデータ貼り付け先!$A$2:$T$12093,14,FALSE) -> 9 | G33: =VLOOKUP(REPLACE($A$1,1,1,"")&E33,[1]戸籍からデータ貼り付け先!$A$2:$T$12093,16,FALSE) -> 5 | H33: 14 | I33: 95 | J33: =VLOOKUP(REPLACE($A$1,1,1,"")&I33,[1]戸籍からデータ貼り付け先!$A$2:$T$12093,14,FALSE) -> 0 | K33: =VLOOKUP(REPLACE($A$1,1,1,"")&I33,[1]戸籍からデータ貼り付け先!$A$2:$T$12093,16,FALSE) -> 1 | L33: 1
E34: 46 | F34: =VLOOKUP(REPLACE($A$1,1,1,"")&E34,[1]戸籍からデータ貼り付け先!$A$2:$T$12093,14,FALSE) -> 4 | G34: =VLOOKUP(REPLACE($A$1,1,1,"")&E34,[1]戸籍からデータ貼り付け先!$A$2:$T$12093,16,FALSE) -> 7 | H34: 11 | I34: 96 | J34: =VLOOKUP(REPLACE($A$1,1,1,"")&I34,[1]戸籍からデータ貼り付け先!$A$2:$T$12093,14,FALSE) -> 0 | K34: =VLOOKUP(REPLACE($A$1,1,1,"")&I34,[1]戸籍からデータ貼り付け先!$A$2:$T$12093,16,FALSE) -> 1 | L34: 1
E35: 47 | F35: =VLOOKUP(REPLACE($A$1,1,1,"")&E35,[1]戸籍からデータ貼り付け先!$A$2:$T$12093,14,FALSE) -> 7 | G35: =VLOOKUP(REPLACE($A$1,1,1,"")&E35,[1]戸籍からデータ貼り付け先!$A$2:$T$12093,16,FALSE) -> 7 | H35: 14 | I35: 97 | J35: =VLOOKUP(REPLACE($A$1,1,1,"")&I35,[1]戸籍からデータ貼り付け先!$A$2:$T$12093,14,FALSE) -> 0 | K35: =VLOOKUP(REPLACE($A$1,1,1,"")&I35,[1]戸籍からデータ貼り付け先!$A$2:$T$12093,16,FALSE) -> 0 | L35: 0
E36: 48 | F36: =VLOOKUP(REPLACE($A$1,1,1,"")&E36,[1]戸籍からデータ貼り付け先!$A$2:$T$12093,14,FALSE) -> 8 | G36: =VLOOKUP(REPLACE($A$1,1,1,"")&E36,[1]戸籍からデータ貼り付け先!$A$2:$T$12093,16,FALSE) -> 8 | H36: 16 | I36: 98 | J36: =VLOOKUP(REPLACE($A$1,1,1,"")&I36,[1]戸籍からデータ貼り付け先!$A$2:$T$12093,14,FALSE) -> 0 | K36: =VLOOKUP(REPLACE($A$1,1,1,"")&I36,[1]戸籍からデータ貼り付け先!$A$2:$T$12093,16,FALSE) -> 0 | L36: 0
E37: 49 | F37: =VLOOKUP(REPLACE($A$1,1,1,"")&E37,[1]戸籍からデータ貼り付け先!$A$2:$T$12093,14,FALSE) -> 12 | G37: =VLOOKUP(REPLACE($A$1,1,1,"")&E37,[1]戸籍からデータ貼り付け先!$A$2:$T$12093,16,FALSE) -> 11 | H37: 23 | I37: 99 | J37: =VLOOKUP(REPLACE($A$1,1,1,"")&I37,[1]戸籍からデータ貼り付け先!$A$2:$T$12093,14,FALSE) -> 0 | K37: =VLOOKUP(REPLACE($A$1,1,1,"")&I37,[1]戸籍からデータ貼り付け先!$A$2:$T$12093,16,FALSE) -> 0 | L37: 0
E38: 50 | F38: =VLOOKUP(REPLACE($A$1,1,1,"")&E38,[1]戸籍からデータ貼り付け先!$A$2:$T$12093,14,FALSE) -> 12 | G38: =VLOOKUP(REPLACE($A$1,1,1,"")&E38,[1]戸籍からデータ貼り付け先!$A$2:$T$12093,16,FALSE) -> 12 | H38: 24 | I38: 100 | J38: =VLOOKUP(REPLACE($A$1,1,1,"")&I38,[1]戸籍からデータ貼り付け先!$A$2:$T$12093,14,FALSE) -> 0 | K38: =VLOOKUP(REPLACE($A$1,1,1,"")&I38,[1]戸籍からデータ貼り付け先!$A$2:$T$12093,16,FALSE) -> 0 | L38: 0
E39: 51 | F39: =VLOOKUP(REPLACE($A$1,1,1,"")&E39,[1]戸籍からデータ貼り付け先!$A$2:$T$12093,14,FALSE) -> 12 | G39: =VLOOKUP(REPLACE($A$1,1,1,"")&E39,[1]戸籍からデータ貼り付け先!$A$2:$T$12093,16,FALSE) -> 14 | H39: 26 | I39: 101 | J39: =VLOOKUP(REPLACE($A$1,1,1,"")&I39,[1]戸籍からデータ貼り付け先!$A$2:$T$12093,14,FALSE) -> 0 | K39: =VLOOKUP(REPLACE($A$1,1,1,"")&I39,[1]戸籍からデータ貼り付け先!$A$2:$T$12093,16,FALSE) -> 0 | L39: 0
E40: 52 | F40: =VLOOKUP(REPLACE($A$1,1,1,"")&E40,[1]戸籍からデータ貼り付け先!$A$2:$T$12093,14,FALSE) -> 6 | G40: =VLOOKUP(REPLACE($A$1,1,1,"")&E40,[1]戸籍からデータ貼り付け先!$A$2:$T$12093,16,FALSE) -> 8 | H40: 14 | I40: 102 | J40: =VLOOKUP(REPLACE($A$1,1,1,"")&I40,[1]戸籍からデータ貼り付け先!$A$2:$T$12093,14,FALSE) -> 0 | K40: =VLOOKUP(REPLACE($A$1,1,1,"")&I40,[1]戸籍からデータ貼り付け先!$A$2:$T$12093,16,FALSE) -> 0 | L40: 0
E41: 53 | F41: =VLOOKUP(REPLACE($A$1,1,1,"")&E41,[1]戸籍からデータ貼り付け先!$A$2:$T$12093,14,FALSE) -> 13 | G41: =VLOOKUP(REPLACE($A$1,1,1,"")&E41,[1]戸籍からデータ貼り付け先!$A$2:$T$12093,16,FALSE) -> 8 | H41: 21 | I41: 103 | J41: =VLOOKUP(REPLACE($A$1,1,1,"")&I41,[1]戸籍からデータ貼り付け先!$A$2:$T$12093,14,FALSE) -> 0 | K41: =VLOOKUP(REPLACE($A$1,1,1,"")&I41,[1]戸籍からデータ貼り付け先!$A$2:$T$12093,16,FALSE) -> 1 | L41: 1
E42: 54 | F42: =VLOOKUP(REPLACE($A$1,1,1,"")&E42,[1]戸籍からデータ貼り付け先!$A$2:$T$12093,14,FALSE) -> 7 | G42: =VLOOKUP(REPLACE($A$1,1,1,"")&E42,[1]戸籍からデータ貼り付け先!$A$2:$T$12093,16,FALSE) -> 5 | H42: 12 | I42: 104 | J42: =VLOOKUP(REPLACE($A$1,1,1,"")&I42,[1]戸籍からデータ貼り付け先!$A$2:$T$12093,14,FALSE) -> 0 | K42: =VLOOKUP(REPLACE($A$1,1,1,"")&I42,[1]戸籍からデータ貼り付け先!$A$2:$T$12093,16,FALSE) -> 0 | L42: 0
E43: 55 | F43: =VLOOKUP(REPLACE($A$1,1,1,"")&E43,[1]戸籍からデータ貼り付け先!$A$2:$T$12093,14,FALSE) -> 5 | G43: =VLOOKUP(REPLACE($A$1,1,1,"")&E43,[1]戸籍からデータ貼り付け先!$A$2:$T$12093,16,FALSE) -> 7 | H43: 12 | I43: 105 | J43: =VLOOKUP(REPLACE($A$1,1,1,"")&I43,[1]戸籍からデータ貼り付け先!$A$2:$T$12093,14,FALSE) -> 0 | K43: =VLOOKUP(REPLACE($A$1,1,1,"")&I43,[1]戸籍からデータ貼り付け先!$A$2:$T$12093,16,FALSE) -> 0 | L43: 0
E44: 56 | F44: =VLOOKUP(REPLACE($A$1,1,1,"")&E44,[1]戸籍からデータ貼り付け先!$A$2:$T$12093,14,FALSE) -> 3 | G44: =VLOOKUP(REPLACE($A$1,1,1,"")&E44,[1]戸籍からデータ貼り付け先!$A$2:$T$12093,16,FALSE) -> 5 | H44: 8 | I44: 106 | J44: =VLOOKUP(REPLACE($A$1,1,1,"")&I44,[1]戸籍からデータ貼り付け先!$A$2:$T$12093,14,FALSE) -> 0 | K44: =VLOOKUP(REPLACE($A$1,1,1,"")&I44,[1]戸籍からデータ貼り付け先!$A$2:$T$12093,16,FALSE) -> 0 | L44: 0
E45: 57 | F45: =VLOOKUP(REPLACE($A$1,1,1,"")&E45,[1]戸籍からデータ貼り付け先!$A$2:$T$12093,14,FALSE) -> 4 | G45: =VLOOKUP(REPLACE($A$1,1,1,"")&E45,[1]戸籍からデータ貼り付け先!$A$2:$T$12093,16,FALSE) -> 7 | H45: 11 | I45: 107 | J45: =VLOOKUP(REPLACE($A$1,1,1,"")&I45,[1]戸籍からデータ貼り付け先!$A$2:$T$12093,14,FALSE) -> 0 | K45: =VLOOKUP(REPLACE($A$1,1,1,"")&I45,[1]戸籍からデータ貼り付け先!$A$2:$T$12093,16,FALSE) -> 0 | L45: 0
E46: 58 | F46: =VLOOKUP(REPLACE($A$1,1,1,"")&E46,[1]戸籍からデータ貼り付け先!$A$2:$T$12093,14,FALSE) -> 11 | G46: =VLOOKUP(REPLACE($A$1,1,1,"")&E46,[1]戸籍からデータ貼り付け先!$A$2:$T$12093,16,FALSE) -> 7 | H46: 18 | I46: 108 | J46: =VLOOKUP(REPLACE($A$1,1,1,"")&I46,[1]戸籍からデータ貼り付け先!$A$2:$T$12093,14,FALSE) -> 0 | K46: =VLOOKUP(REPLACE($A$1,1,1,"")&I46,[1]戸籍からデータ貼り付け先!$A$2:$T$12093,16,FALSE) -> 0 | L46: 0
E47: 59 | F47: =VLOOKUP(REPLACE($A$1,1,1,"")&E47,[1]戸籍からデータ貼り付け先!$A$2:$T$12093,14,FALSE) -> 5 | G47: =VLOOKUP(REPLACE($A$1,1,1,"")&E47,[1]戸籍からデータ貼り付け先!$A$2:$T$12093,16,FALSE) -> 5 | H47: 10 | I47: 小計 | J47: =SUM(J3:J46) -> 88 | K47: =SUM(K3:K46) -> 118 | L47: =SUM(J47:K47) -> 206
E48: 60 | F48: =VLOOKUP(REPLACE($A$1,1,1,"")&E48,[1]戸籍からデータ貼り付け先!$A$2:$T$12093,14,FALSE) -> 9 | G48: =VLOOKUP(REPLACE($A$1,1,1,"")&E48,[1]戸籍からデータ貼り付け先!$A$2:$T$12093,16,FALSE) -> 5 | H48: 14
E49: 61 | F49: =VLOOKUP(REPLACE($A$1,1,1,"")&E49,[1]戸籍からデータ貼り付け先!$A$2:$T$12093,14,FALSE) -> 9 | G49: =VLOOKUP(REPLACE($A$1,1,1,"")&E49,[1]戸籍からデータ貼り付け先!$A$2:$T$12093,16,FALSE) -> 5 | H49: 14 | J49: =REPLACE(A1,1,1,"")&"合計" -> 寿町合計
E50: 62 | F50: =VLOOKUP(REPLACE($A$1,1,1,"")&E50,[1]戸籍からデータ貼り付け先!$A$2:$T$12093,14,FALSE) -> 5 | G50: =VLOOKUP(REPLACE($A$1,1,1,"")&E50,[1]戸籍からデータ貼り付け先!$A$2:$T$12093,16,FALSE) -> 0 | H50: 5 | J50: 男 | K50: 女 | L50: 計
E51: 63 | F51: =VLOOKUP(REPLACE($A$1,1,1,"")&E51,[1]戸籍からデータ貼り付け先!$A$2:$T$12093,14,FALSE) -> 3 | G51: =VLOOKUP(REPLACE($A$1,1,1,"")&E51,[1]戸籍からデータ貼り付け先!$A$2:$T$12093,16,FALSE) -> 6 | H51: 9 | J51: =SUM(B18,F53,J47) -> 357 | K51: =SUM(C18,G53,K47) -> 373 | L51: =SUM(J51:K51) -> 730
E52: 64 | F52: =VLOOKUP(REPLACE($A$1,1,1,"")&E52,[1]戸籍からデータ貼り付け先!$A$2:$T$12093,14,FALSE) -> 2 | G52: =VLOOKUP(REPLACE($A$1,1,1,"")&E52,[1]戸籍からデータ貼り付け先!$A$2:$T$12093,16,FALSE) -> 2 | H52: 4
E53: 小計 | F53: =SUM(F3:F52) -> 242 | G53: =SUM(G3:G52) -> 236 | H53: =SUM(F53:G53) -> 478
F56: -12-

Sheet 栄町
A1: ◆栄町 | H1: =秦野市合計!H1 -> 令和7年10月1日現在（単位：人）
A2: 年少人口(0歳～14歳) | B2: 男 | C2: 女 | D2: 計 | E2: 生産年齢人口(15歳～64歳) | F2: 男 | G2: 女 | H2: 計 | I2: 老年人口(65歳以上) | J2: 男 | K2: 女 | L2: 計
A3: 0 | B3: =VLOOKUP(REPLACE($A$1,1,1,"")&A3,[1]戸籍からデータ貼り付け先!$A$2:$T$12093,14,FALSE) -> 2 | C3: =VLOOKUP(REPLACE($A$1,1,1,"")&A3,[1]戸籍からデータ貼り付け先!$A$2:$T$12093,16,FALSE) -> 0 | D3: =SUM(B3:C3) -> 2 | E3: 15 | F3: =VLOOKUP(REPLACE($A$1,1,1,"")&E3,[1]戸籍からデータ貼り付け先!$A$2:$T$12093,14,FALSE) -> 2 | G3: =VLOOKUP(REPLACE($A$1,1,1,"")&E3,[1]戸籍からデータ貼り付け先!$A$2:$T$12093,16,FALSE) -> 0 | H3: =SUM(F3:G3) -> 2 | I3: 65 | J3: =VLOOKUP(REPLACE($A$1,1,1,"")&I3,[1]戸籍からデータ貼り付け先!$A$2:$T$12093,14,FALSE) -> 1 | K3: =VLOOKUP(REPLACE($A$1,1,1,"")&I3,[1]戸籍からデータ貼り付け先!$A$2:$T$12093,16,FALSE) -> 5 | L3: =SUM(J3:K3) -> 6
A4: 1 | B4: =VLOOKUP(REPLACE($A$1,1,1,"")&A4,[1]戸籍からデータ貼り付け先!$A$2:$T$12093,14,FALSE) -> 1 | C4: =VLOOKUP(REPLACE($A$1,1,1,"")&A4,[1]戸籍からデータ貼り付け先!$A$2:$T$12093,16,FALSE) -> 1 | D4: =SUM(B4:C4) -> 2 | E4: 16 | F4: =VLOOKUP(REPLACE($A$1,1,1,"")&E4,[1]戸籍からデータ貼り付け先!$A$2:$T$12093,14,FALSE) -> 4 | G4: =VLOOKUP(REPLACE($A$1,1,1,"")&E4,[1]戸籍からデータ貼り付け先!$A$2:$T$12093,16,FALSE) -> 0 | H4: =SUM(F4:G4) -> 4 | I4: 66 | J4: =VLOOKUP(REPLACE($A$1,1,1,"")&I4,[1]戸籍からデータ貼り付け先!$A$2:$T$12093,14,FALSE) -> 5 | K4: =VLOOKUP(REPLACE($A$1,1,1,"")&I4,[1]戸籍からデータ貼り付け先!$A$2:$T$12093,16,FALSE) -> 3 | L4: =SUM(J4:K4) -> 8
A5: 2 | B5: =VLOOKUP(REPLACE($A$1,1,1,"")&A5,[1]戸籍からデータ貼り付け先!$A$2:$T$12093,14,FALSE) -> 1 | C5: =VLOOKUP(REPLACE($A$1,1,1,"")&A5,[1]戸籍からデータ貼り付け先!$A$2:$T$12093,16,FALSE) -> 2 | D5: 3 | E5: 17 | F5: =VLOOKUP(REPLACE($A$1,1,1,"")&E5,[1]戸籍からデータ貼り付け先!$A$2:$T$12093,14,FALSE) -> 2 | G5: =VLOOKUP(REPLACE($A$1,1,1,"")&E5,[1]戸籍からデータ貼り付け先!$A$2:$T$12093,16,FALSE) -> 0 | H5: 2 | I5: 67 | J5: =VLOOKUP(REPLACE($A$1,1,1,"")&I5,[1]戸籍からデータ貼り付け先!$A$2:$T$12093,14,FALSE) -> 2 | K5: =VLOOKUP(REPLACE($A$1,1,1,"")&I5,[1]戸籍からデータ貼り付け先!$A$2:$T$12093,16,FALSE) -> 2 | L5: 4
A6: 3 | B6: =VLOOKUP(REPLACE($A$1,1,1,"")&A6,[1]戸籍からデータ貼り付け先!$A$2:$T$12093,14,FALSE) -> 3 | C6: =VLOOKUP(REPLACE($A$1,1,1,"")&A6,[1]戸籍からデータ貼り付け先!$A$2:$T$12093,16,FALSE) -> 1 | D6: 4 | E6: 18 | F6: =VLOOKUP(REPLACE($A$1,1,1,"")&E6,[1]戸籍からデータ貼り付け先!$A$2:$T$12093,14,FALSE) -> 3 | G6: =VLOOKUP(REPLACE($A$1,1,1,"")&E6,[1]戸籍からデータ貼り付け先!$A$2:$T$12093,16,FALSE) -> 3 | H6: 6 | I6: 68 | J6: =VLOOKUP(REPLACE($A$1,1,1,"")&I6,[1]戸籍からデータ貼り付け先!$A$2:$T$12093,14,FALSE) -> 1 | K6: =VLOOKUP(REPLACE($A$1,1,1,"")&I6,[1]戸籍からデータ貼り付け先!$A$2:$T$12093,16,FALSE) -> 3 | L6: 4
A7: 4 | B7: =VLOOKUP(REPLACE($A$1,1,1,"")&A7,[1]戸籍からデータ貼り付け先!$A$2:$T$12093,14,FALSE) -> 1 | C7: =VLOOKUP(REPLACE($A$1,1,1,"")&A7,[1]戸籍からデータ貼り付け先!$A$2:$T$12093,16,FALSE) -> 0 | D7: 1 | E7: 19 | F7: =VLOOKUP(REPLACE($A$1,1,1,"")&E7,[1]戸籍からデータ貼り付け先!$A$2:$T$12093,14,FALSE) -> 2 | G7: =VLOOKUP(REPLACE($A$1,1,1,"")&E7,[1]戸籍からデータ貼り付け先!$A$2:$T$12093,16,FALSE) -> 2 | H7: 4 | I7: 69 | J7: =VLOOKUP(REPLACE($A$1,1,1,"")&I7,[1]戸籍からデータ貼り付け先!$A$2:$T$12093,14,FALSE) -> 5 | K7: =VLOOKUP(REPLACE($A$1,1,1,"")&I7,[1]戸籍からデータ貼り付け先!$A$2:$T$12093,16,FALSE) -> 1 | L7: 6
A8: 5 | B8: =VLOOKUP(REPLACE($A$1,1,1,"")&A8,[1]戸籍からデータ貼り付け先!$A$2:$T$12093,14,FALSE) -> 0 | C8: =VLOOKUP(REPLACE($A$1,1,1,"")&A8,[1]戸籍からデータ貼り付け先!$A$2:$T$12093,16,FALSE) -> 1 | D8: 1 | E8: 20 | F8: =VLOOKUP(REPLACE($A$1,1,1,"")&E8,[1]戸籍からデータ貼り付け先!$A$2:$T$12093,14,FALSE) -> 4 | G8: =VLOOKUP(REPLACE($A$1,1,1,"")&E8,[1]戸籍からデータ貼り付け先!$A$2:$T$12093,16,FALSE) -> 0 | H8: 4 | I8: 70 | J8: =VLOOKUP(REPLACE($A$1,1,1,"")&I8,[1]戸籍からデータ貼り付け先!$A$2:$T$12093,14,FALSE) -> 4 | K8: =VLOOKUP(REPLACE($A$1,1,1,"")&I8,[1]戸籍からデータ貼り付け先!$A$2:$T$12093,16,FALSE) -> 4 | L8: 8
A9: 6 | B9: =VLOOKUP(REPLACE($A$1,1,1,"")&A9,[1]戸籍からデータ貼り付け先!$A$2:$T$12093,14,FALSE) -> 2 | C9: =VLOOKUP(REPLACE($A$1,1,1,"")&A9,[1]戸籍からデータ貼り付け先!$A$2:$T$12093,16,FALSE) -> 2 | D9: 4 | E9: 21 | F9: =VLOOKUP(REPLACE($A$1,1,1,"")&E9,[1]戸籍からデータ貼り付け先!$A$2:$T$12093,14,FALSE) -> 2 | G9: =VLOOKUP(REPLACE($A$1,1,1,"")&E9,[1]戸籍からデータ貼り付け先!$A$2:$T$12093,16,FALSE) -> 1 | H9: 3 | I9: 71 | J9: =VLOOKUP(REPLACE($A$1,1,1,"")&I9,[1]戸籍からデータ貼り付け先!$A$2:$T$12093,14,FALSE) -> 3 | K9: =VLOOKUP(REPLACE($A$1,1,1,"")&I9,[1]戸籍からデータ貼り付け先!$A$2:$T$12093,16,FALSE) -> 6 | L9: 9
A10: 7 | B10: =VLOOKUP(REPLACE($A$1,1,1,"")&A10,[1]戸籍からデータ貼り付け先!$A$2:$T$12093,14,FALSE) -> 1 | C10: =VLOOKUP(REPLACE($A$1,1,1,"")&A10,[1]戸籍からデータ貼り付け先!$A$2:$T$12093,16,FALSE) -> 0 | D10: 1 | E10: 22 | F10: =VLOOKUP(REPLACE($A$1,1,1,"")&E10,[1]戸籍からデータ貼り付け先!$A$2:$T$12093,14,FALSE) -> 1 | G10: =VLOOKUP(REPLACE($A$1,1,1,"")&E10,[1]戸籍からデータ貼り付け先!$A$2:$T$12093,16,FALSE) -> 2 | H10: 3 | I10: 72 | J10: =VLOOKUP(REPLACE($A$1,1,1,"")&I10,[1]戸籍からデータ貼り付け先!$A$2:$T$12093,14,FALSE) -> 0 | K10: =VLOOKUP(REPLACE($A$1,1,1,"")&I10,[1]戸籍からデータ貼り付け先!$A$2:$T$12093,16,FALSE) -> 2 | L10: 2
